{"text_format":"1","workbook":"xlsx","n_sheets":18,"sheets":["Instructions","Preferences","Scores","Results","Itinerary Chart","Program Chart","Itinerary Details","Itinerary Xref Chart","Tables","Detail Informaton","itineraryCamps","ItineraryPrograms","Descriptions","Calculator","Itineraries","Programs","Camp Programs","Camp Elevations"],"not_rendered":{"charts":8,"images":4,"macros":1,"external_links":0,"defined_names":165,"comments":2,"pivot_tables":0},"unopened":[{"sheet":"Itinerary Chart","index":4,"reason":"not_a_worksheet"},{"sheet":"Program Chart","index":5,"reason":"not_a_worksheet"}],"bounds":{"document_bytes":16777216,"sheet_cells":100000,"rows_first":2000,"rows_last":500,"rows_between":2000,"halvings":0,"cell_chars":16384,"cell_head_chars":4096},"cells_cut":0,"cells_raw":0,"read":"whole","date_system":"1900"}

{"sheet":"Instructions","index":0,"n_rows":8,"n_cols":6,"rows_kept":8,"cut":false,"hidden":false,"merged":[[5,1,5,16],[0,2,0,15],[3,1,3,15]]}
[null,null,"Philmont 2025 Itineraries - 9 Day Treks"]
[]
[]
[null,"Questions or suggestions regarding this spreadsheet may be e-mailed to the author Sid Covington at sid_c@swbell.net"]
[]
[null,{"$f":"\"Updated \"&getlastsavedate()&\" - Revision \" & getSpreadsheetProperty(\"Revision\")","v":"Updated 1/7/2025 4:20PM - Revision 2025_1-0"}]
[null,"     Revision History:",null,null,null,"Note:  Use Ctrl-F1 to show/hide the Excel ribbon"]
[null,null,"2025_1-0","Original 2025 Update"]

{"sheet":"Preferences","index":1,"n_rows":37,"n_cols":7,"rows_kept":37,"cut":false,"hidden":false,"merged":[[29,0,30,2],[24,0,25,2],[26,0,26,2],[17,0,17,2],[10,0,10,2],[21,0,21,2],[19,0,20,2],[0,0,0,7],[3,4,5,7],[12,4,16,7],[9,6,9,7],[8,6,8,7],[7,6,7,7]]}
["Set Crew preferences below"]
[]
["Philmont is divided into four areas.  Is it important to you",null,null,null,"Altitude Factors:"]
["which area you go to?","y",{"$f":"IF(UPPER(B4)=\"Y\",\"\",IF(UPPER(B4)=\"N\",\"\",\"ERROR-Must be Y or N\"))","v":""},null,"Altitude factors may be included or excluded from the calculations.  There are three different factors in the calculation that relate to altitude."]
["If it is important, rank your preference in 1, 2, 3, 4 order with"]
["  1 being the most preferred, 4 being least."]
["    South Country",3,{"$f":"IF(B7<1,\"ERROR-Must be in 1-4 range\",IF(B7>4,\"ERROR-Must be in 1-4 range\",\"\"))","v":""},null,"   Factor:","Include?"]
["    Central Country",4,{"$f":"IF(B8<1,\"ERROR-Must be in 1-4 range\",IF(B8>4,\"ERROR-Must be in 1-4 range\",\"\"))","v":""},null,"     Highest camp elevation:","n",{"$f":"IF(UPPER(F8)=\"Y\",\"\",IF(UPPER(F8)=\"N\",\"\",\"ERROR-enter a 'y' or 'n'\"))","v":""}]
["    North Country",1,{"$f":"IF(B9<1,\"ERROR-Must be in 1-4 range\",IF(B9>4,\"ERROR-Must be in 1-4 range\",\"\"))","v":""},null,"     Trek camp elevation change:","n",{"$f":"IF(UPPER(F9)=\"Y\",\"\",IF(UPPER(F9)=\"N\",\"\",\"ERROR-enter a 'y' or 'n'\"))","v":""}]
["    Valle Vidal",2,{"$f":"IF(B10<1,\"ERROR-Must be in 1-4 range\",IF(B10>4,\"ERROR-Must be in 1-4 range\",\"\"))","v":""},null,"     Average daily change:","y",{"$f":"IF(UPPER(F10)=\"Y\",\"\",IF(UPPER(F10)=\"N\",\"\",\"ERROR-enter a 'y' or 'n'\"))","v":""}]
[{"$f":"IF(LOWER(areaImportant)=\"y\",(IF(validAreaRanking(),\"\",\"ERROR—rank preferences 1 to 4\")),\"\")","v":""}]
[]
["Rate the capability of your crew on a scale of 1 to 10 with",null,null,null,"How much more important are programs than the other factors such as distance, country, altitude, Tooth of Time, etc. in your selection of an itinerary?  Enter y if programs are more important, n if should be treated as lower priority than other factors."]
["1 indicating a young crew with little backpacking experience"]
["and 10 indicating an older crew with a lot of experience."]
[]
["    Capability",6]
[{"$f":"IF(B17>0,IF(B17<11,\"\",\"ERROR-must be less than 10\"),\"ERROR-must be greater than 0\")","v":""},null,null,null,"  Programs more important?","y"]
[]
["Many itineraries return to Base Camp via bus but some hike in (not necessarily over the Tooth of Time)."]
[null,null,null,null,"Include Itineraries with an Itinerary Rating of:"]
["Is it important to hike into Base Camp?",null,null,null,null,null,"Include?"]
[null,"n",null,null,"Challenging","C","y"]
[null,null,null,null,"Rugged","R","y"]
["Most itineraries depart Base Camp to the trailhead by bus.  There are some that hike out of Base Camp to the first camp.",null,null,null,"Strenuous","S","y"]
[null,null,null,null,"Super Strenuous","SS","y"]
["Is it important to hike out of Base Camp?"]
[null,"n"]
[]
["A key part of a Philmont Trek is climbing peaks.  Is it important to you to climb the following peaks?"]
[]
["Baldy Peak","y"]
["Mount Phillips","y"]
["Tooth of Time","y"]
["Inspiration Point","y"]
["Trail Peak","n"]
["Others (Mountaineering)","n"]

{"sheet":"Scores","index":2,"n_rows":55,"n_cols":13,"rows_kept":55,"cut":false,"hidden":false,"merged":[]}
["Program:","Crewmember 1","Crewmember 2","Crewmember 3","Crewmember 4","Crewmember 5","Crewmember 6","Crewmember 7","Crewmember 8","Crewmember 9","Crewmember 10","Crewmember 11","Crewmember 12"]
[{"$f":"INDEX(program_table,ROW()-1)","v":"Climbing: Bouldering Gym"},15,15,15,15,15,15,15,15,15,15,2,0]
[{"$f":"INDEX(program_table,ROW()-1)","v":"Climbing: Climbing Wall/Tower"},20,20,20,20,20,20,20,19,18,17,16,15]
[{"$f":"INDEX(program_table,ROW()-1)","v":"Climbing: Crate Stacking"},2,13,10,2,0,7,13,10,2,0,7,10]
[{"$f":"INDEX(program_table,ROW()-1)","v":"Climbing: Rock Climbing"},18,18,18,18,18,18,18,18,18,18,5,3]
[{"$f":"INDEX(program_table,ROW()-1)","v":"COPE: High Challenge Course"},2,0,15,0,18,20,0,15,0,18,20,0]
[{"$f":"INDEX(program_table,ROW()-1)","v":"COPE: Initiative Games"},2,20,0,14,6,10,20,0,14,6,10,9]
[{"$f":"INDEX(program_table,ROW()-1)","v":"COPE: Low Challenge Course"},2,20,0,14,6,10,20,0,14,6,10,9]
[{"$f":"INDEX(program_table,ROW()-1)","v":"Ecology: Demonstration Forest"},2,5,15,0,20,7,5,15,0,0,7,8]
[{"$f":"INDEX(program_table,ROW()-1)","v":"Ecology: Self-Guided Fishing"},2,19,0,0,9,9,19,0,0,9,9,11]
[{"$f":"INDEX(program_table,ROW()-1)","v":"Evening: Advisor Coffee"},2,10,5,0,0,7,10,5,0,null,7,15]
[{"$f":"INDEX(program_table,ROW()-1)","v":"Evening: Campfire Show"},2,20,5,0,0,5,20,5,0,null,5,11]
[{"$f":"INDEX(program_table,ROW()-1)","v":"Evening: Chuckwagon Dinner"},2,11,null,13,null,4,10,null,15,0,null,18]
[{"$f":"INDEX(program_table,ROW()-1)","v":"Historical: Adobe Brick-Making"},2,10,0,13,0,4,10,0,13,0,4,18]
[{"$f":"INDEX(program_table,ROW()-1)","v":"Historical: Blacksmithing"},2,13,10,2,null,7,13,10,2,0,7,10]
[{"$f":"INDEX(program_table,ROW()-1)","v":"Historical: Cabin Restoration"},2,12,5,3,null,10,12,5,3,0,10,20]
[{"$f":"INDEX(program_table,ROW()-1)","v":"Historical: Cabin/House Tour"},2,8,0,16,5,8,0,8,16,8,3,10]
[{"$f":"INDEX(program_table,ROW()-1)","v":"Historical: Crafting"},2,1,1,17,6,4,1,1,17,6,4,11]
[{"$f":"INDEX(program_table,ROW()-1)","v":"Historical: Crosscut & Tie Making"},2,10,6,15,10,5,10,0,null,1,20,18]
[{"$f":"INDEX(program_table,ROW()-1)","v":"Historical: Flint Knapping"},2,3,5,0,0,5,20,5,0,0,7,15]
[{"$f":"INDEX(program_table,ROW()-1)","v":"Historical: Fur Trapper Rendezvous"},2,2,15,18,0,10,2,15,18,0,10,12]
[{"$f":"INDEX(program_table,ROW()-1)","v":"Historical: Gold Panning"},2,19,0,6,0,12,19,0,6,0,12,0]
[{"$f":"INDEX(program_table,ROW()-1)","v":"Historical: Mine Tour"},15,2,0,12,0,12,2,10,8,0,20,5]
[{"$f":"INDEX(program_table,ROW()-1)","v":"Historical: Petroglyph Tour"},2,6,5,8,9,10,7,7,3,2,1,9]
[{"$f":"INDEX(program_table,ROW()-1)","v":"Historical: Pump Car Rides"},2,null,15,null,18,20,0,15,0,18,20]
[{"$f":"INDEX(program_table,ROW()-1)","v":"Historical: Railroad Construction"},2,16,10,15,0,20,16,10,15,0,20,10]
[{"$f":"INDEX(program_table,ROW()-1)","v":"Historical: Spar Pole Climbing"},2,null,10,5,10,null,10,20,5,15,2,18]
[{"$f":"INDEX(program_table,ROW()-1)","v":"Landmarks: Baldy Mountain"},2,0,15,null,17,12,0,15,0,17,12,10]
[{"$f":"INDEX(program_table,ROW()-1)","v":"Landmarks: Inspiration Point"},15,0,15,null,19,12,0,15,0,19,12,10]
[{"$f":"INDEX(program_table,ROW()-1)","v":"Landmarks: Mount Phillips"},15,0,15,null,12,12,0,15,null,12,12,10]
[{"$f":"INDEX(program_table,ROW()-1)","v":"Landmarks: Mountaineering"},15,0,15,null,11,12,10,15,15,11,12,10]
[{"$f":"INDEX(program_table,ROW()-1)","v":"Landmarks: Tooth of Time"},18,17,6,null,12,13,5,16,3,13,14,18]
[{"$f":"INDEX(program_table,ROW()-1)","v":"Landmarks: Trail Peak"},10,0,5,null,16,9,0,5,0,16,null,0]
[{"$f":"INDEX(program_table,ROW()-1)","v":"Livestock: Animal Husbandry"},19,20,null,14,7,10,20,null,14,7,2,8]
[{"$f":"INDEX(program_table,ROW()-1)","v":"Livestock: Burro Packing"},19,20,0,14,7,10,20,18,14,7,10,8]
[{"$f":"INDEX(program_table,ROW()-1)","v":"Livestock: Chicken Tending"},18,5,10,5,19,20,null,10,15,5,14,19]
[{"$f":"INDEX(program_table,ROW()-1)","v":"Livestock: Horse Rides"},20,5,16,20,20,1,15,15,null,18,20,20]
[{"$f":"INDEX(program_table,ROW()-1)","v":"Low Impact Camping"},14,15,10,17,20,4,20,15,17,null,5,20]
[{"$f":"INDEX(program_table,ROW()-1)","v":"Range Sports: 3D Archery"},19,20,null,14,7,10,20,null,14,7,10,8]
[{"$f":"INDEX(program_table,ROW()-1)","v":"Range Sports: Aerial Archery"},8,2,10,20,0,12,2,10,15,0,12,10]
[{"$f":"INDEX(program_table,ROW()-1)","v":"Range Sports: Atlatl Throwing"},10,5,5,7,4,12,5,5,7,4,12,15]
[{"$f":"INDEX(program_table,ROW()-1)","v":"Range Sports: Cartridge Reloading"},18,17,6,null,12,13,5,16,3,13,14,18]
[{"$f":"INDEX(program_table,ROW()-1)","v":"Range Sports: Cowboy Action Shooting"},15,10,20,15,12,20,10,6,10,5," ",15]
[{"$f":"INDEX(program_table,ROW()-1)","v":"Range Sports: Field Archery"},10,0,5,null,16,9,0,5,0,16,null,0]
[{"$f":"INDEX(program_table,ROW()-1)","v":"Range Sports: Muzzleloader Shooting"},19,20,null,14,7,10,20,null,14,7,2,8]
[{"$f":"INDEX(program_table,ROW()-1)","v":"Range Sports: Rifle Shooting"},19,20,0,14,7,10,20,18,14,7,10,8]
[{"$f":"INDEX(program_table,ROW()-1)","v":"Range Sports: Shotgun Shooting"},18,5,10,5,19,20,null,10,15,5,14,19]
[{"$f":"INDEX(program_table,ROW()-1)","v":"Range Sports: Shotshell Reloading"},20,5,16,20,20,1,15,15,null,18,20,20]
[{"$f":"INDEX(program_table,ROW()-1)","v":"Range Sports: Tomahawk Throwing"},14,15,10,17,20,4,20,15,17,null,5,20]
[{"$f":"INDEX(program_table,ROW()-1)","v":"STEM: Archeology"},15,10,20,15,12,20,10,6,10,5," ",15]
[{"$f":"INDEX(program_table,ROW()-1)","v":"STEM: Astronomy"},15,10,20,15,12,20,10,6,10,5," ",15]
[{"$f":"INDEX(program_table,ROW()-1)","v":"STEM: Geology"},10,0,5,null,16,9,0,5,0,16,null,0]
[{"$f":"INDEX(program_table,ROW()-1)","v":"Western Lore: Branding"},11,18,20,15,null,10,20,null,15,18,10,20]
[{"$f":"INDEX(program_table,ROW()-1)","v":"Western Lore: Cantina"},11,18,null,0,null,10,20,null,0,null,10,20]
[{"$f":"INDEX(program_table,ROW()-1)","v":"Western Lore: Roping"},20,14,16,20,20,null,15,15,12,18,20,20]

{"sheet":"Results","index":3,"n_rows":61,"n_cols":16,"rows_kept":61,"cut":false,"hidden":false,"merged":[[14,4,14,5],[1,10,1,15],[0,0,0,15],[1,8,2,8],[1,9,2,9],[1,4,2,4],[1,5,2,5]]}
["Philmont Trek Itinerary Selection"]
[null,null,null,null,"Choice",null,null,null,"# X's","Pgm Index","Top Itinerary/Program Cross Reference"]
["Itinerary","Classification","Distance",{"$f":"IF(meanMedian=\"Mean\",\"Average\",meanMedian) & \" Score\"","v":"Total Score"},null,null,"Program (by Popularity)","Value",null,null,"9-11","9-12","9-6","9-10","9-8","9-4"]
["9-11","Super Strenuous",53,13599.5,"#1",null,"Climbing: Climbing Wall/Tower",225,{"$f":"COUNTIF(K4:P4,\"X\")","v":0},2,{"$f":"IF($G4=0,\"\",IF(INDEX(itineraryPrograms,numericItinerary(K$3),$J4)=\"y\",\"X\",\"\"))","v":""},{"$f":"IF($G4=0,\"\",IF(INDEX(itineraryPrograms,numericItinerary(L$3),$J4)=\"y\",\"X\",\"\"))","v":""},{"$f":"IF($G4=0,\"\",IF(INDEX(itineraryPrograms,numericItinerary(M$3),$J4)=\"y\",\"X\",\"\"))","v":""},{"$f":"IF($G4=0,\"\",IF(INDEX(itineraryPrograms,numericItinerary(N$3),$J4)=\"y\",\"X\",\"\"))","v":""},{"$f":"IF($G4=0,\"\",IF(INDEX(itineraryPrograms,numericItinerary(O$3),$J4)=\"y\",\"X\",\"\"))","v":""},{"$f":"IF($G4=0,\"\",IF(INDEX(itineraryPrograms,numericItinerary(P$3),$J4)=\"y\",\"X\",\"\"))","v":""}]
["9-12","Super Strenuous",57,13374.5,"#2",null,"Western Lore: Roping",190,4,54,{"$f":"IF($G5=0,\"\",IF(INDEX(itineraryPrograms,numericItinerary(K$3),$J5)=\"y\",\"X\",\"\"))","v":""},{"$f":"IF($G5=0,\"\",IF(INDEX(itineraryPrograms,numericItinerary(L$3),$J5)=\"y\",\"X\",\"\"))","v":""},{"$f":"IF($G5=0,\"\",IF(INDEX(itineraryPrograms,numericItinerary(M$3),$J5)=\"y\",\"X\",\"\"))","v":"X"},{"$f":"IF($G5=0,\"\",IF(INDEX(itineraryPrograms,numericItinerary(N$3),$J5)=\"y\",\"X\",\"\"))","v":"X"},{"$f":"IF($G5=0,\"\",IF(INDEX(itineraryPrograms,numericItinerary(O$3),$J5)=\"y\",\"X\",\"\"))","v":"X"},{"$f":"IF($G5=0,\"\",IF(INDEX(itineraryPrograms,numericItinerary(P$3),$J5)=\"y\",\"X\",\"\"))","v":"X"}]
["9-6","Rugged",62,13363.2,"#3",null,"Climbing: Rock Climbing",188,0,4,{"$f":"IF($G6=0,\"\",IF(INDEX(itineraryPrograms,numericItinerary(K$3),$J6)=\"y\",\"X\",\"\"))","v":""},{"$f":"IF($G6=0,\"\",IF(INDEX(itineraryPrograms,numericItinerary(L$3),$J6)=\"y\",\"X\",\"\"))","v":""},{"$f":"IF($G6=0,\"\",IF(INDEX(itineraryPrograms,numericItinerary(M$3),$J6)=\"y\",\"X\",\"\"))","v":""},{"$f":"IF($G6=0,\"\",IF(INDEX(itineraryPrograms,numericItinerary(N$3),$J6)=\"y\",\"X\",\"\"))","v":""},{"$f":"IF($G6=0,\"\",IF(INDEX(itineraryPrograms,numericItinerary(O$3),$J6)=\"y\",\"X\",\"\"))","v":""},{"$f":"IF($G6=0,\"\",IF(INDEX(itineraryPrograms,numericItinerary(P$3),$J6)=\"y\",\"X\",\"\"))","v":""}]
["9-10","Super Strenuous",53,12817,"#4",null,"Range Sports: Cowboy Action Shooting",170,1,42,{"$f":"IF($G7=0,\"\",IF(INDEX(itineraryPrograms,numericItinerary(K$3),$J7)=\"y\",\"X\",\"\"))","v":""},{"$f":"IF($G7=0,\"\",IF(INDEX(itineraryPrograms,numericItinerary(L$3),$J7)=\"y\",\"X\",\"\"))","v":"X"},{"$f":"IF($G7=0,\"\",IF(INDEX(itineraryPrograms,numericItinerary(M$3),$J7)=\"y\",\"X\",\"\"))","v":""},{"$f":"IF($G7=0,\"\",IF(INDEX(itineraryPrograms,numericItinerary(N$3),$J7)=\"y\",\"X\",\"\"))","v":""},{"$f":"IF($G7=0,\"\",IF(INDEX(itineraryPrograms,numericItinerary(O$3),$J7)=\"y\",\"X\",\"\"))","v":""},{"$f":"IF($G7=0,\"\",IF(INDEX(itineraryPrograms,numericItinerary(P$3),$J7)=\"y\",\"X\",\"\"))","v":""}]
["9-8","Strenuous",44,11933.8,"#5",null,"Livestock: Horse Rides",170,4,36,{"$f":"IF($G8=0,\"\",IF(INDEX(itineraryPrograms,numericItinerary(K$3),$J8)=\"y\",\"X\",\"\"))","v":"X"},{"$f":"IF($G8=0,\"\",IF(INDEX(itineraryPrograms,numericItinerary(L$3),$J8)=\"y\",\"X\",\"\"))","v":""},{"$f":"IF($G8=0,\"\",IF(INDEX(itineraryPrograms,numericItinerary(M$3),$J8)=\"y\",\"X\",\"\"))","v":"X"},{"$f":"IF($G8=0,\"\",IF(INDEX(itineraryPrograms,numericItinerary(N$3),$J8)=\"y\",\"X\",\"\"))","v":""},{"$f":"IF($G8=0,\"\",IF(INDEX(itineraryPrograms,numericItinerary(O$3),$J8)=\"y\",\"X\",\"\"))","v":"X"},{"$f":"IF($G8=0,\"\",IF(INDEX(itineraryPrograms,numericItinerary(P$3),$J8)=\"y\",\"X\",\"\"))","v":"X"}]
["9-4","Rugged",42,11543.4,"#6",null,"Range Sports: Field Archery",157,0,43,{"$f":"IF($G9=0,\"\",IF(INDEX(itineraryPrograms,numericItinerary(K$3),$J9)=\"y\",\"X\",\"\"))","v":""},{"$f":"IF($G9=0,\"\",IF(INDEX(itineraryPrograms,numericItinerary(L$3),$J9)=\"y\",\"X\",\"\"))","v":""},{"$f":"IF($G9=0,\"\",IF(INDEX(itineraryPrograms,numericItinerary(M$3),$J9)=\"y\",\"X\",\"\"))","v":""},{"$f":"IF($G9=0,\"\",IF(INDEX(itineraryPrograms,numericItinerary(N$3),$J9)=\"y\",\"X\",\"\"))","v":""},{"$f":"IF($G9=0,\"\",IF(INDEX(itineraryPrograms,numericItinerary(O$3),$J9)=\"y\",\"X\",\"\"))","v":""},{"$f":"IF($G9=0,\"\",IF(INDEX(itineraryPrograms,numericItinerary(P$3),$J9)=\"y\",\"X\",\"\"))","v":""}]
["9-1","Challenging",40,11089.3,null,null,"Western Lore: Branding",157,2,52,{"$f":"IF($G10=0,\"\",IF(INDEX(itineraryPrograms,numericItinerary(K$3),$J10)=\"y\",\"X\",\"\"))","v":"X"},{"$f":"IF($G10=0,\"\",IF(INDEX(itineraryPrograms,numericItinerary(L$3),$J10)=\"y\",\"X\",\"\"))","v":""},{"$f":"IF($G10=0,\"\",IF(INDEX(itineraryPrograms,numericItinerary(M$3),$J10)=\"y\",\"X\",\"\"))","v":""},{"$f":"IF($G10=0,\"\",IF(INDEX(itineraryPrograms,numericItinerary(N$3),$J10)=\"y\",\"X\",\"\"))","v":"X"},{"$f":"IF($G10=0,\"\",IF(INDEX(itineraryPrograms,numericItinerary(O$3),$J10)=\"y\",\"X\",\"\"))","v":""},{"$f":"IF($G10=0,\"\",IF(INDEX(itineraryPrograms,numericItinerary(P$3),$J10)=\"y\",\"X\",\"\"))","v":""}]
["9-9","Strenuous",42,11007.1,null,null,"Low Impact Camping",157,1,37,{"$f":"IF($G11=0,\"\",IF(INDEX(itineraryPrograms,numericItinerary(K$3),$J11)=\"y\",\"X\",\"\"))","v":""},{"$f":"IF($G11=0,\"\",IF(INDEX(itineraryPrograms,numericItinerary(L$3),$J11)=\"y\",\"X\",\"\"))","v":""},{"$f":"IF($G11=0,\"\",IF(INDEX(itineraryPrograms,numericItinerary(M$3),$J11)=\"y\",\"X\",\"\"))","v":""},{"$f":"IF($G11=0,\"\",IF(INDEX(itineraryPrograms,numericItinerary(N$3),$J11)=\"y\",\"X\",\"\"))","v":""},{"$f":"IF($G11=0,\"\",IF(INDEX(itineraryPrograms,numericItinerary(O$3),$J11)=\"y\",\"X\",\"\"))","v":""},{"$f":"IF($G11=0,\"\",IF(INDEX(itineraryPrograms,numericItinerary(P$3),$J11)=\"y\",\"X\",\"\"))","v":"X"}]
["9-7","Strenuous",42,10761.1,null,null,"Climbing: Bouldering Gym",152,0,1,{"$f":"IF($G12=0,\"\",IF(INDEX(itineraryPrograms,numericItinerary(K$3),$J12)=\"y\",\"X\",\"\"))","v":""},{"$f":"IF($G12=0,\"\",IF(INDEX(itineraryPrograms,numericItinerary(L$3),$J12)=\"y\",\"X\",\"\"))","v":""},{"$f":"IF($G12=0,\"\",IF(INDEX(itineraryPrograms,numericItinerary(M$3),$J12)=\"y\",\"X\",\"\"))","v":""},{"$f":"IF($G12=0,\"\",IF(INDEX(itineraryPrograms,numericItinerary(N$3),$J12)=\"y\",\"X\",\"\"))","v":""},{"$f":"IF($G12=0,\"\",IF(INDEX(itineraryPrograms,numericItinerary(O$3),$J12)=\"y\",\"X\",\"\"))","v":""},{"$f":"IF($G12=0,\"\",IF(INDEX(itineraryPrograms,numericItinerary(P$3),$J12)=\"y\",\"X\",\"\"))","v":""}]
["9-5","Rugged",36,10674.2,null,null,"Livestock: Burro Packing",147,5,34,{"$f":"IF($G13=0,\"\",IF(INDEX(itineraryPrograms,numericItinerary(K$3),$J13)=\"y\",\"X\",\"\"))","v":"X"},{"$f":"IF($G13=0,\"\",IF(INDEX(itineraryPrograms,numericItinerary(L$3),$J13)=\"y\",\"X\",\"\"))","v":"X"},{"$f":"IF($G13=0,\"\",IF(INDEX(itineraryPrograms,numericItinerary(M$3),$J13)=\"y\",\"X\",\"\"))","v":"X"},{"$f":"IF($G13=0,\"\",IF(INDEX(itineraryPrograms,numericItinerary(N$3),$J13)=\"y\",\"X\",\"\"))","v":""},{"$f":"IF($G13=0,\"\",IF(INDEX(itineraryPrograms,numericItinerary(O$3),$J13)=\"y\",\"X\",\"\"))","v":"X"},{"$f":"IF($G13=0,\"\",IF(INDEX(itineraryPrograms,numericItinerary(P$3),$J13)=\"y\",\"X\",\"\"))","v":"X"}]
["9-2","Challenging",36,10262,null,null,"Range Sports: Atlatl Throwing",147,null,40]
["9-3","Challenging",41,9679.2999999999993,{"$f":"meanMedian & \" Score Selected\"","v":"Total Score Selected"},null,"Livestock: Chicken Tending",140,null,35]
["PREFERENCES:",null,null,null,null,null,"Range Sports: Cartridge Reloading",140,1,41,{"$f":"IF($G16=0,\"\",IF(INDEX(itineraryPrograms,numericItinerary(K$3),$J16)=\"y\",\"X\",\"\"))","v":""},{"$f":"IF($G16=0,\"\",IF(INDEX(itineraryPrograms,numericItinerary(L$3),$J16)=\"y\",\"X\",\"\"))","v":""},{"$f":"IF($G16=0,\"\",IF(INDEX(itineraryPrograms,numericItinerary(M$3),$J16)=\"y\",\"X\",\"\"))","v":"X"},{"$f":"IF($G16=0,\"\",IF(INDEX(itineraryPrograms,numericItinerary(N$3),$J16)=\"y\",\"X\",\"\"))","v":""},{"$f":"IF($G16=0,\"\",IF(INDEX(itineraryPrograms,numericItinerary(O$3),$J16)=\"y\",\"X\",\"\"))","v":""},{"$f":"IF($G16=0,\"\",IF(INDEX(itineraryPrograms,numericItinerary(P$3),$J16)=\"y\",\"X\",\"\"))","v":""}]
["Area Important?",{"$f":"UPPER(areaImportant)","v":"Y"},null,null,null,null,"STEM: Astronomy",138,3,50,{"$f":"IF($G17=0,\"\",IF(INDEX(itineraryPrograms,numericItinerary(K$3),$J17)=\"y\",\"X\",\"\"))","v":"X"},{"$f":"IF($G17=0,\"\",IF(INDEX(itineraryPrograms,numericItinerary(L$3),$J17)=\"y\",\"X\",\"\"))","v":""},{"$f":"IF($G17=0,\"\",IF(INDEX(itineraryPrograms,numericItinerary(M$3),$J17)=\"y\",\"X\",\"\"))","v":"X"},{"$f":"IF($G17=0,\"\",IF(INDEX(itineraryPrograms,numericItinerary(N$3),$J17)=\"y\",\"X\",\"\"))","v":"X"},{"$f":"IF($G17=0,\"\",IF(INDEX(itineraryPrograms,numericItinerary(O$3),$J17)=\"y\",\"X\",\"\"))","v":""},{"$f":"IF($G17=0,\"\",IF(INDEX(itineraryPrograms,numericItinerary(P$3),$J17)=\"y\",\"X\",\"\"))","v":""}]
["      South:",{"$f":"IF(UPPER(areaImportant)=\"Y\",Preferences!B7,\"\")","v":3},null,null,null,null,"Range Sports: Tomahawk Throwing",138,1,48,{"$f":"IF($G18=0,\"\",IF(INDEX(itineraryPrograms,numericItinerary(K$3),$J18)=\"y\",\"X\",\"\"))","v":""},{"$f":"IF($G18=0,\"\",IF(INDEX(itineraryPrograms,numericItinerary(L$3),$J18)=\"y\",\"X\",\"\"))","v":"X"},{"$f":"IF($G18=0,\"\",IF(INDEX(itineraryPrograms,numericItinerary(M$3),$J18)=\"y\",\"X\",\"\"))","v":""},{"$f":"IF($G18=0,\"\",IF(INDEX(itineraryPrograms,numericItinerary(N$3),$J18)=\"y\",\"X\",\"\"))","v":""},{"$f":"IF($G18=0,\"\",IF(INDEX(itineraryPrograms,numericItinerary(O$3),$J18)=\"y\",\"X\",\"\"))","v":""},{"$f":"IF($G18=0,\"\",IF(INDEX(itineraryPrograms,numericItinerary(P$3),$J18)=\"y\",\"X\",\"\"))","v":""}]
["      Central:",{"$f":"IF(UPPER(areaImportant)=\"Y\",Preferences!B8,\"\")","v":4},null,{"$f":"MIN(rankedScore)","v":9679.2999999999993},null,null,"STEM: Archeology",138,3,49,{"$f":"IF($G19=0,\"\",IF(INDEX(itineraryPrograms,numericItinerary(K$3),$J19)=\"y\",\"X\",\"\"))","v":"X"},{"$f":"IF($G19=0,\"\",IF(INDEX(itineraryPrograms,numericItinerary(L$3),$J19)=\"y\",\"X\",\"\"))","v":"X"},{"$f":"IF($G19=0,\"\",IF(INDEX(itineraryPrograms,numericItinerary(M$3),$J19)=\"y\",\"X\",\"\"))","v":""},{"$f":"IF($G19=0,\"\",IF(INDEX(itineraryPrograms,numericItinerary(N$3),$J19)=\"y\",\"X\",\"\"))","v":"X"},{"$f":"IF($G19=0,\"\",IF(INDEX(itineraryPrograms,numericItinerary(O$3),$J19)=\"y\",\"X\",\"\"))","v":""},{"$f":"IF($G19=0,\"\",IF(INDEX(itineraryPrograms,numericItinerary(P$3),$J19)=\"y\",\"X\",\"\"))","v":""}]
["      North:",{"$f":"IF(UPPER(areaImportant)=\"Y\",Preferences!B9,\"\")","v":1},null,{"$f":"MAX(rankedScore)","v":13599.5},null,null,"Range Sports: Shotshell Reloading",135,1,47,{"$f":"IF($G20=0,\"\",IF(INDEX(itineraryPrograms,numericItinerary(K$3),$J20)=\"y\",\"X\",\"\"))","v":""},{"$f":"IF($G20=0,\"\",IF(INDEX(itineraryPrograms,numericItinerary(L$3),$J20)=\"y\",\"X\",\"\"))","v":"X"},{"$f":"IF($G20=0,\"\",IF(INDEX(itineraryPrograms,numericItinerary(M$3),$J20)=\"y\",\"X\",\"\"))","v":""},{"$f":"IF($G20=0,\"\",IF(INDEX(itineraryPrograms,numericItinerary(N$3),$J20)=\"y\",\"X\",\"\"))","v":""},{"$f":"IF($G20=0,\"\",IF(INDEX(itineraryPrograms,numericItinerary(O$3),$J20)=\"y\",\"X\",\"\"))","v":""},{"$f":"IF($G20=0,\"\",IF(INDEX(itineraryPrograms,numericItinerary(P$3),$J20)=\"y\",\"X\",\"\"))","v":""}]
["      Valle Vidal:",{"$f":"IF(UPPER(areaImportant)=\"Y\",Preferences!B10,\"\")","v":2},null,null,null,null,"Landmarks: Tooth of Time",135,4,31,{"$f":"IF($G21=0,\"\",IF(INDEX(itineraryPrograms,numericItinerary(K$3),$J21)=\"y\",\"X\",\"\"))","v":"X"},{"$f":"IF($G21=0,\"\",IF(INDEX(itineraryPrograms,numericItinerary(L$3),$J21)=\"y\",\"X\",\"\"))","v":"X"},{"$f":"IF($G21=0,\"\",IF(INDEX(itineraryPrograms,numericItinerary(M$3),$J21)=\"y\",\"X\",\"\"))","v":""},{"$f":"IF($G21=0,\"\",IF(INDEX(itineraryPrograms,numericItinerary(N$3),$J21)=\"y\",\"X\",\"\"))","v":"X"},{"$f":"IF($G21=0,\"\",IF(INDEX(itineraryPrograms,numericItinerary(O$3),$J21)=\"y\",\"X\",\"\"))","v":"X"},{"$f":"IF($G21=0,\"\",IF(INDEX(itineraryPrograms,numericItinerary(P$3),$J21)=\"y\",\"X\",\"\"))","v":""}]
["Capability:",{"$f":"skillLevel","v":6},null,null,null,null,"Historical: Railroad Construction",134,1,25,{"$f":"IF($G22=0,\"\",IF(INDEX(itineraryPrograms,numericItinerary(K$3),$J22)=\"y\",\"X\",\"\"))","v":""},{"$f":"IF($G22=0,\"\",IF(INDEX(itineraryPrograms,numericItinerary(L$3),$J22)=\"y\",\"X\",\"\"))","v":""},{"$f":"IF($G22=0,\"\",IF(INDEX(itineraryPrograms,numericItinerary(M$3),$J22)=\"y\",\"X\",\"\"))","v":""},{"$f":"IF($G22=0,\"\",IF(INDEX(itineraryPrograms,numericItinerary(N$3),$J22)=\"y\",\"X\",\"\"))","v":"X"},{"$f":"IF($G22=0,\"\",IF(INDEX(itineraryPrograms,numericItinerary(O$3),$J22)=\"y\",\"X\",\"\"))","v":""},{"$f":"IF($G22=0,\"\",IF(INDEX(itineraryPrograms,numericItinerary(P$3),$J22)=\"y\",\"X\",\"\"))","v":""}]
["Hike Out?",{"$f":"UPPER(hikeOut)","v":"N"},null,null,null,null,"Range Sports: 3D Archery",129,2,38,{"$f":"IF($G23=0,\"\",IF(INDEX(itineraryPrograms,numericItinerary(K$3),$J23)=\"y\",\"X\",\"\"))","v":"X"},{"$f":"IF($G23=0,\"\",IF(INDEX(itineraryPrograms,numericItinerary(L$3),$J23)=\"y\",\"X\",\"\"))","v":""},{"$f":"IF($G23=0,\"\",IF(INDEX(itineraryPrograms,numericItinerary(M$3),$J23)=\"y\",\"X\",\"\"))","v":"X"},{"$f":"IF($G23=0,\"\",IF(INDEX(itineraryPrograms,numericItinerary(N$3),$J23)=\"y\",\"X\",\"\"))","v":""},{"$f":"IF($G23=0,\"\",IF(INDEX(itineraryPrograms,numericItinerary(O$3),$J23)=\"y\",\"X\",\"\"))","v":""},{"$f":"IF($G23=0,\"\",IF(INDEX(itineraryPrograms,numericItinerary(P$3),$J23)=\"y\",\"X\",\"\"))","v":""}]
["Hike In/Tooth?",{"$f":"UPPER(hikeIn)","v":"N"},null,null,null,null,"Range Sports: Muzzleloader Shooting",129,0,44,{"$f":"IF($G24=0,\"\",IF(INDEX(itineraryPrograms,numericItinerary(K$3),$J24)=\"y\",\"X\",\"\"))","v":""},{"$f":"IF($G24=0,\"\",IF(INDEX(itineraryPrograms,numericItinerary(L$3),$J24)=\"y\",\"X\",\"\"))","v":""},{"$f":"IF($G24=0,\"\",IF(INDEX(itineraryPrograms,numericItinerary(M$3),$J24)=\"y\",\"X\",\"\"))","v":""},{"$f":"IF($G24=0,\"\",IF(INDEX(itineraryPrograms,numericItinerary(N$3),$J24)=\"y\",\"X\",\"\"))","v":""},{"$f":"IF($G24=0,\"\",IF(INDEX(itineraryPrograms,numericItinerary(O$3),$J24)=\"y\",\"X\",\"\"))","v":""},{"$f":"IF($G24=0,\"\",IF(INDEX(itineraryPrograms,numericItinerary(P$3),$J24)=\"y\",\"X\",\"\"))","v":""}]
["Max Altitude?",{"$f":"UPPER(altitudeMax)","v":"N"},null,null,null,null,"Landmarks: Mountaineering",126,1,30,{"$f":"IF($G25=0,\"\",IF(INDEX(itineraryPrograms,numericItinerary(K$3),$J25)=\"y\",\"X\",\"\"))","v":""},{"$f":"IF($G25=0,\"\",IF(INDEX(itineraryPrograms,numericItinerary(L$3),$J25)=\"y\",\"X\",\"\"))","v":"X"},{"$f":"IF($G25=0,\"\",IF(INDEX(itineraryPrograms,numericItinerary(M$3),$J25)=\"y\",\"X\",\"\"))","v":""},{"$f":"IF($G25=0,\"\",IF(INDEX(itineraryPrograms,numericItinerary(N$3),$J25)=\"y\",\"X\",\"\"))","v":""},{"$f":"IF($G25=0,\"\",IF(INDEX(itineraryPrograms,numericItinerary(O$3),$J25)=\"y\",\"X\",\"\"))","v":""},{"$f":"IF($G25=0,\"\",IF(INDEX(itineraryPrograms,numericItinerary(P$3),$J25)=\"y\",\"X\",\"\"))","v":""}]
["Total elevation?",{"$f":"UPPER(altitudeChange)","v":"N"},null,null,null,null,"Livestock: Animal Husbandry",121,1,33,{"$f":"IF($G26=0,\"\",IF(INDEX(itineraryPrograms,numericItinerary(K$3),$J26)=\"y\",\"X\",\"\"))","v":""},{"$f":"IF($G26=0,\"\",IF(INDEX(itineraryPrograms,numericItinerary(L$3),$J26)=\"y\",\"X\",\"\"))","v":"X"},{"$f":"IF($G26=0,\"\",IF(INDEX(itineraryPrograms,numericItinerary(M$3),$J26)=\"y\",\"X\",\"\"))","v":""},{"$f":"IF($G26=0,\"\",IF(INDEX(itineraryPrograms,numericItinerary(N$3),$J26)=\"y\",\"X\",\"\"))","v":""},{"$f":"IF($G26=0,\"\",IF(INDEX(itineraryPrograms,numericItinerary(O$3),$J26)=\"y\",\"X\",\"\"))","v":""},{"$f":"IF($G26=0,\"\",IF(INDEX(itineraryPrograms,numericItinerary(P$3),$J26)=\"y\",\"X\",\"\"))","v":""}]
["Daily change?",{"$f":"UPPER(altitudeDaily)","v":"Y"},null,null,null,null,"Landmarks: Inspiration Point",117,2,28,{"$f":"IF($G27=0,\"\",IF(INDEX(itineraryPrograms,numericItinerary(K$3),$J27)=\"y\",\"X\",\"\"))","v":"X"},{"$f":"IF($G27=0,\"\",IF(INDEX(itineraryPrograms,numericItinerary(L$3),$J27)=\"y\",\"X\",\"\"))","v":""},{"$f":"IF($G27=0,\"\",IF(INDEX(itineraryPrograms,numericItinerary(M$3),$J27)=\"y\",\"X\",\"\"))","v":""},{"$f":"IF($G27=0,\"\",IF(INDEX(itineraryPrograms,numericItinerary(N$3),$J27)=\"y\",\"X\",\"\"))","v":"X"},{"$f":"IF($G27=0,\"\",IF(INDEX(itineraryPrograms,numericItinerary(O$3),$J27)=\"y\",\"X\",\"\"))","v":""},{"$f":"IF($G27=0,\"\",IF(INDEX(itineraryPrograms,numericItinerary(P$3),$J27)=\"y\",\"X\",\"\"))","v":""}]
["Programs?",{"$f":"UPPER(programsImportant)","v":"Y"},null,null,null,null,"COPE: Initiative Games",111,2,6,{"$f":"IF($G28=0,\"\",IF(INDEX(itineraryPrograms,numericItinerary(K$3),$J28)=\"y\",\"X\",\"\"))","v":""},{"$f":"IF($G28=0,\"\",IF(INDEX(itineraryPrograms,numericItinerary(L$3),$J28)=\"y\",\"X\",\"\"))","v":""},{"$f":"IF($G28=0,\"\",IF(INDEX(itineraryPrograms,numericItinerary(M$3),$J28)=\"y\",\"X\",\"\"))","v":"X"},{"$f":"IF($G28=0,\"\",IF(INDEX(itineraryPrograms,numericItinerary(N$3),$J28)=\"y\",\"X\",\"\"))","v":""},{"$f":"IF($G28=0,\"\",IF(INDEX(itineraryPrograms,numericItinerary(O$3),$J28)=\"y\",\"X\",\"\"))","v":"X"},{"$f":"IF($G28=0,\"\",IF(INDEX(itineraryPrograms,numericItinerary(P$3),$J28)=\"y\",\"X\",\"\"))","v":""}]
[null,null,null,null,null,null,"COPE: Low Challenge Course",111,3,7,{"$f":"IF($G29=0,\"\",IF(INDEX(itineraryPrograms,numericItinerary(K$3),$J29)=\"y\",\"X\",\"\"))","v":"X"},{"$f":"IF($G29=0,\"\",IF(INDEX(itineraryPrograms,numericItinerary(L$3),$J29)=\"y\",\"X\",\"\"))","v":""},{"$f":"IF($G29=0,\"\",IF(INDEX(itineraryPrograms,numericItinerary(M$3),$J29)=\"y\",\"X\",\"\"))","v":"X"},{"$f":"IF($G29=0,\"\",IF(INDEX(itineraryPrograms,numericItinerary(N$3),$J29)=\"y\",\"X\",\"\"))","v":""},{"$f":"IF($G29=0,\"\",IF(INDEX(itineraryPrograms,numericItinerary(O$3),$J29)=\"y\",\"X\",\"\"))","v":"X"},{"$f":"IF($G29=0,\"\",IF(INDEX(itineraryPrograms,numericItinerary(P$3),$J29)=\"y\",\"X\",\"\"))","v":""}]
[null,null,null,null,null,null,"Historical: Pump Car Rides",108,3,24,{"$f":"IF($G30=0,\"\",IF(INDEX(itineraryPrograms,numericItinerary(K$3),$J30)=\"y\",\"X\",\"\"))","v":"X"},{"$f":"IF($G30=0,\"\",IF(INDEX(itineraryPrograms,numericItinerary(L$3),$J30)=\"y\",\"X\",\"\"))","v":""},{"$f":"IF($G30=0,\"\",IF(INDEX(itineraryPrograms,numericItinerary(M$3),$J30)=\"y\",\"X\",\"\"))","v":"X"},{"$f":"IF($G30=0,\"\",IF(INDEX(itineraryPrograms,numericItinerary(N$3),$J30)=\"y\",\"X\",\"\"))","v":"X"},{"$f":"IF($G30=0,\"\",IF(INDEX(itineraryPrograms,numericItinerary(O$3),$J30)=\"y\",\"X\",\"\"))","v":""},{"$f":"IF($G30=0,\"\",IF(INDEX(itineraryPrograms,numericItinerary(P$3),$J30)=\"y\",\"X\",\"\"))","v":""}]
[null,null,null,null,null,null,"COPE: High Challenge Course",108,null,5]
[null,null,null,null,null,null,"Historical: Fur Trapper Rendezvous",104,null,20]
[null,null,null,null,null,null,"Landmarks: Mount Phillips",103,null,29]
[null,null,null,null,null,null,"Range Sports: Aerial Archery",101,null,39]
[null,null,null,null,null,null,"Range Sports: Rifle Shooting",101,null,45]
[null,null,null,null,null,null,"Landmarks: Baldy Mountain",100,null,27]
[null,null,null,null,null,null,"Historical: Crosscut & Tie Making",97,null,18]
[null,null,null,null,null,null,"Historical: Spar Pole Climbing",97,null,26]
[null,null,null,null,null,null,"Range Sports: Shotgun Shooting",91,1,46,{"$f":"IF($G39=0,\"\",IF(INDEX(itineraryPrograms,numericItinerary(K$3),$J39)=\"y\",\"X\",\"\"))","v":""},{"$f":"IF($G39=0,\"\",IF(INDEX(itineraryPrograms,numericItinerary(L$3),$J39)=\"y\",\"X\",\"\"))","v":"X"},{"$f":"IF($G39=0,\"\",IF(INDEX(itineraryPrograms,numericItinerary(M$3),$J39)=\"y\",\"X\",\"\"))","v":""},{"$f":"IF($G39=0,\"\",IF(INDEX(itineraryPrograms,numericItinerary(N$3),$J39)=\"y\",\"X\",\"\"))","v":""},{"$f":"IF($G39=0,\"\",IF(INDEX(itineraryPrograms,numericItinerary(O$3),$J39)=\"y\",\"X\",\"\"))","v":""},{"$f":"IF($G39=0,\"\",IF(INDEX(itineraryPrograms,numericItinerary(P$3),$J39)=\"y\",\"X\",\"\"))","v":""}]
[null,null,null,null,null,null,"Western Lore: Cantina",89,5,53,{"$f":"IF($G40=0,\"\",IF(INDEX(itineraryPrograms,numericItinerary(K$3),$J40)=\"y\",\"X\",\"\"))","v":""},{"$f":"IF($G40=0,\"\",IF(INDEX(itineraryPrograms,numericItinerary(L$3),$J40)=\"y\",\"X\",\"\"))","v":"X"},{"$f":"IF($G40=0,\"\",IF(INDEX(itineraryPrograms,numericItinerary(M$3),$J40)=\"y\",\"X\",\"\"))","v":"X"},{"$f":"IF($G40=0,\"\",IF(INDEX(itineraryPrograms,numericItinerary(N$3),$J40)=\"y\",\"X\",\"\"))","v":"X"},{"$f":"IF($G40=0,\"\",IF(INDEX(itineraryPrograms,numericItinerary(O$3),$J40)=\"y\",\"X\",\"\"))","v":"X"},{"$f":"IF($G40=0,\"\",IF(INDEX(itineraryPrograms,numericItinerary(P$3),$J40)=\"y\",\"X\",\"\"))","v":"X"}]
[null,null,null,null,null,null,"Ecology: Self-Guided Fishing",87,3,9,{"$f":"IF($G41=0,\"\",IF(INDEX(itineraryPrograms,numericItinerary(K$3),$J41)=\"y\",\"X\",\"\"))","v":""},{"$f":"IF($G41=0,\"\",IF(INDEX(itineraryPrograms,numericItinerary(L$3),$J41)=\"y\",\"X\",\"\"))","v":"X"},{"$f":"IF($G41=0,\"\",IF(INDEX(itineraryPrograms,numericItinerary(M$3),$J41)=\"y\",\"X\",\"\"))","v":""},{"$f":"IF($G41=0,\"\",IF(INDEX(itineraryPrograms,numericItinerary(N$3),$J41)=\"y\",\"X\",\"\"))","v":""},{"$f":"IF($G41=0,\"\",IF(INDEX(itineraryPrograms,numericItinerary(O$3),$J41)=\"y\",\"X\",\"\"))","v":"X"},{"$f":"IF($G41=0,\"\",IF(INDEX(itineraryPrograms,numericItinerary(P$3),$J41)=\"y\",\"X\",\"\"))","v":"X"}]
[null,null,null,null,null,null,"Historical: Mine Tour",86,2,22,{"$f":"IF($G42=0,\"\",IF(INDEX(itineraryPrograms,numericItinerary(K$3),$J42)=\"y\",\"X\",\"\"))","v":"X"},{"$f":"IF($G42=0,\"\",IF(INDEX(itineraryPrograms,numericItinerary(L$3),$J42)=\"y\",\"X\",\"\"))","v":""},{"$f":"IF($G42=0,\"\",IF(INDEX(itineraryPrograms,numericItinerary(M$3),$J42)=\"y\",\"X\",\"\"))","v":""},{"$f":"IF($G42=0,\"\",IF(INDEX(itineraryPrograms,numericItinerary(N$3),$J42)=\"y\",\"X\",\"\"))","v":"X"},{"$f":"IF($G42=0,\"\",IF(INDEX(itineraryPrograms,numericItinerary(O$3),$J42)=\"y\",\"X\",\"\"))","v":""},{"$f":"IF($G42=0,\"\",IF(INDEX(itineraryPrograms,numericItinerary(P$3),$J42)=\"y\",\"X\",\"\"))","v":""}]
[null,null,null,null,null,null,"Ecology: Demonstration Forest",84,0,8,{"$f":"IF($G43=0,\"\",IF(INDEX(itineraryPrograms,numericItinerary(K$3),$J43)=\"y\",\"X\",\"\"))","v":""},{"$f":"IF($G43=0,\"\",IF(INDEX(itineraryPrograms,numericItinerary(L$3),$J43)=\"y\",\"X\",\"\"))","v":""},{"$f":"IF($G43=0,\"\",IF(INDEX(itineraryPrograms,numericItinerary(M$3),$J43)=\"y\",\"X\",\"\"))","v":""},{"$f":"IF($G43=0,\"\",IF(INDEX(itineraryPrograms,numericItinerary(N$3),$J43)=\"y\",\"X\",\"\"))","v":""},{"$f":"IF($G43=0,\"\",IF(INDEX(itineraryPrograms,numericItinerary(O$3),$J43)=\"y\",\"X\",\"\"))","v":""},{"$f":"IF($G43=0,\"\",IF(INDEX(itineraryPrograms,numericItinerary(P$3),$J43)=\"y\",\"X\",\"\"))","v":""}]
[null,null,null,null,null,null,"Historical: Cabin/House Tour",84,null,16,{"$f":"IF($G44=0,\"\",IF(INDEX(itineraryPrograms,numericItinerary(K$3),$J44)=\"y\",\"X\",\"\"))","v":""},{"$f":"IF($G44=0,\"\",IF(INDEX(itineraryPrograms,numericItinerary(L$3),$J44)=\"y\",\"X\",\"\"))","v":""},{"$f":"IF($G44=0,\"\",IF(INDEX(itineraryPrograms,numericItinerary(M$3),$J44)=\"y\",\"X\",\"\"))","v":""},{"$f":"IF($G44=0,\"\",IF(INDEX(itineraryPrograms,numericItinerary(N$3),$J44)=\"y\",\"X\",\"\"))","v":""},{"$f":"IF($G44=0,\"\",IF(INDEX(itineraryPrograms,numericItinerary(O$3),$J44)=\"y\",\"X\",\"\"))","v":""},{"$f":"IF($G44=0,\"\",IF(INDEX(itineraryPrograms,numericItinerary(P$3),$J44)=\"y\",\"X\",\"\"))","v":"X"}]
[null,null,null,null,null,null,"Historical: Cabin Restoration",82,null,15,{"$f":"IF($G45=0,\"\",IF(INDEX(itineraryPrograms,numericItinerary(K$3),$J45)=\"y\",\"X\",\"\"))","v":"X"},{"$f":"IF($G45=0,\"\",IF(INDEX(itineraryPrograms,numericItinerary(L$3),$J45)=\"y\",\"X\",\"\"))","v":""},{"$f":"IF($G45=0,\"\",IF(INDEX(itineraryPrograms,numericItinerary(M$3),$J45)=\"y\",\"X\",\"\"))","v":""},{"$f":"IF($G45=0,\"\",IF(INDEX(itineraryPrograms,numericItinerary(N$3),$J45)=\"y\",\"X\",\"\"))","v":"X"},{"$f":"IF($G45=0,\"\",IF(INDEX(itineraryPrograms,numericItinerary(O$3),$J45)=\"y\",\"X\",\"\"))","v":""},{"$f":"IF($G45=0,\"\",IF(INDEX(itineraryPrograms,numericItinerary(P$3),$J45)=\"y\",\"X\",\"\"))","v":"X"}]
[null,null,null,null,null,null,"Climbing: Crate Stacking",76,null,3,{"$f":"IF($G46=0,\"\",IF(INDEX(itineraryPrograms,numericItinerary(K$3),$J46)=\"y\",\"X\",\"\"))","v":""},{"$f":"IF($G46=0,\"\",IF(INDEX(itineraryPrograms,numericItinerary(L$3),$J46)=\"y\",\"X\",\"\"))","v":""},{"$f":"IF($G46=0,\"\",IF(INDEX(itineraryPrograms,numericItinerary(M$3),$J46)=\"y\",\"X\",\"\"))","v":""},{"$f":"IF($G46=0,\"\",IF(INDEX(itineraryPrograms,numericItinerary(N$3),$J46)=\"y\",\"X\",\"\"))","v":""},{"$f":"IF($G46=0,\"\",IF(INDEX(itineraryPrograms,numericItinerary(O$3),$J46)=\"y\",\"X\",\"\"))","v":""},{"$f":"IF($G46=0,\"\",IF(INDEX(itineraryPrograms,numericItinerary(P$3),$J46)=\"y\",\"X\",\"\"))","v":""}]
[null,null,null,null,null,null,"Historical: Blacksmithing",76,null,14,{"$f":"IF($G47=0,\"\",IF(INDEX(itineraryPrograms,numericItinerary(K$3),$J47)=\"y\",\"X\",\"\"))","v":""},{"$f":"IF($G47=0,\"\",IF(INDEX(itineraryPrograms,numericItinerary(L$3),$J47)=\"y\",\"X\",\"\"))","v":""},{"$f":"IF($G47=0,\"\",IF(INDEX(itineraryPrograms,numericItinerary(M$3),$J47)=\"y\",\"X\",\"\"))","v":""},{"$f":"IF($G47=0,\"\",IF(INDEX(itineraryPrograms,numericItinerary(N$3),$J47)=\"y\",\"X\",\"\"))","v":""},{"$f":"IF($G47=0,\"\",IF(INDEX(itineraryPrograms,numericItinerary(O$3),$J47)=\"y\",\"X\",\"\"))","v":"X"},{"$f":"IF($G47=0,\"\",IF(INDEX(itineraryPrograms,numericItinerary(P$3),$J47)=\"y\",\"X\",\"\"))","v":"X"}]
[null,null,null,null,null,null,"Historical: Gold Panning",76,null,21,{"$f":"IF($G48=0,\"\",IF(INDEX(itineraryPrograms,numericItinerary(K$3),$J48)=\"y\",\"X\",\"\"))","v":"X"},{"$f":"IF($G48=0,\"\",IF(INDEX(itineraryPrograms,numericItinerary(L$3),$J48)=\"y\",\"X\",\"\"))","v":""},{"$f":"IF($G48=0,\"\",IF(INDEX(itineraryPrograms,numericItinerary(M$3),$J48)=\"y\",\"X\",\"\"))","v":""},{"$f":"IF($G48=0,\"\",IF(INDEX(itineraryPrograms,numericItinerary(N$3),$J48)=\"y\",\"X\",\"\"))","v":"X"},{"$f":"IF($G48=0,\"\",IF(INDEX(itineraryPrograms,numericItinerary(O$3),$J48)=\"y\",\"X\",\"\"))","v":""},{"$f":"IF($G48=0,\"\",IF(INDEX(itineraryPrograms,numericItinerary(P$3),$J48)=\"y\",\"X\",\"\"))","v":""}]
[null,null,null,null,null,null,"Historical: Adobe Brick-Making",74,null,13,{"$f":"IF($G49=0,\"\",IF(INDEX(itineraryPrograms,numericItinerary(K$3),$J49)=\"y\",\"X\",\"\"))","v":""},{"$f":"IF($G49=0,\"\",IF(INDEX(itineraryPrograms,numericItinerary(L$3),$J49)=\"y\",\"X\",\"\"))","v":"X"},{"$f":"IF($G49=0,\"\",IF(INDEX(itineraryPrograms,numericItinerary(M$3),$J49)=\"y\",\"X\",\"\"))","v":""},{"$f":"IF($G49=0,\"\",IF(INDEX(itineraryPrograms,numericItinerary(N$3),$J49)=\"y\",\"X\",\"\"))","v":""},{"$f":"IF($G49=0,\"\",IF(INDEX(itineraryPrograms,numericItinerary(O$3),$J49)=\"y\",\"X\",\"\"))","v":"X"},{"$f":"IF($G49=0,\"\",IF(INDEX(itineraryPrograms,numericItinerary(P$3),$J49)=\"y\",\"X\",\"\"))","v":"X"}]
[null,null,null,null,null,null,"Evening: Chuckwagon Dinner",73,null,12]
[null,null,null,null,null,null,"Evening: Campfire Show",73,null,11]
[null,null,null,null,null,null,"Historical: Crafting",71,null,17,{"$f":"IF($G52=0,\"\",IF(INDEX(itineraryPrograms,numericItinerary(K$3),$J52)=\"y\",\"X\",\"\"))","v":"X"},{"$f":"IF($G52=0,\"\",IF(INDEX(itineraryPrograms,numericItinerary(L$3),$J52)=\"y\",\"X\",\"\"))","v":""},{"$f":"IF($G52=0,\"\",IF(INDEX(itineraryPrograms,numericItinerary(M$3),$J52)=\"y\",\"X\",\"\"))","v":"X"},{"$f":"IF($G52=0,\"\",IF(INDEX(itineraryPrograms,numericItinerary(N$3),$J52)=\"y\",\"X\",\"\"))","v":""},{"$f":"IF($G52=0,\"\",IF(INDEX(itineraryPrograms,numericItinerary(O$3),$J52)=\"y\",\"X\",\"\"))","v":"X"},{"$f":"IF($G52=0,\"\",IF(INDEX(itineraryPrograms,numericItinerary(P$3),$J52)=\"y\",\"X\",\"\"))","v":"X"}]
[null,null,null,null,null,null,"Historical: Petroglyph Tour",69,null,23,{"$f":"IF($G53=0,\"\",IF(INDEX(itineraryPrograms,numericItinerary(K$3),$J53)=\"y\",\"X\",\"\"))","v":""},{"$f":"IF($G53=0,\"\",IF(INDEX(itineraryPrograms,numericItinerary(L$3),$J53)=\"y\",\"X\",\"\"))","v":""},{"$f":"IF($G53=0,\"\",IF(INDEX(itineraryPrograms,numericItinerary(M$3),$J53)=\"y\",\"X\",\"\"))","v":""},{"$f":"IF($G53=0,\"\",IF(INDEX(itineraryPrograms,numericItinerary(N$3),$J53)=\"y\",\"X\",\"\"))","v":""},{"$f":"IF($G53=0,\"\",IF(INDEX(itineraryPrograms,numericItinerary(O$3),$J53)=\"y\",\"X\",\"\"))","v":""},{"$f":"IF($G53=0,\"\",IF(INDEX(itineraryPrograms,numericItinerary(P$3),$J53)=\"y\",\"X\",\"\"))","v":""}]
[null,null,null,null,null,null,"Historical: Flint Knapping",62,null,19,{"$f":"IF($G54=0,\"\",IF(INDEX(itineraryPrograms,numericItinerary(K$3),$J54)=\"y\",\"X\",\"\"))","v":""},{"$f":"IF($G54=0,\"\",IF(INDEX(itineraryPrograms,numericItinerary(L$3),$J54)=\"y\",\"X\",\"\"))","v":""},{"$f":"IF($G54=0,\"\",IF(INDEX(itineraryPrograms,numericItinerary(M$3),$J54)=\"y\",\"X\",\"\"))","v":"X"},{"$f":"IF($G54=0,\"\",IF(INDEX(itineraryPrograms,numericItinerary(N$3),$J54)=\"y\",\"X\",\"\"))","v":"X"},{"$f":"IF($G54=0,\"\",IF(INDEX(itineraryPrograms,numericItinerary(O$3),$J54)=\"y\",\"X\",\"\"))","v":"X"},{"$f":"IF($G54=0,\"\",IF(INDEX(itineraryPrograms,numericItinerary(P$3),$J54)=\"y\",\"X\",\"\"))","v":"X"}]
[null,null,null,null,null,null,"Evening: Advisor Coffee",61,null,10,{"$f":"IF($G55=0,\"\",IF(INDEX(itineraryPrograms,numericItinerary(K$3),$J55)=\"y\",\"X\",\"\"))","v":""},{"$f":"IF($G55=0,\"\",IF(INDEX(itineraryPrograms,numericItinerary(L$3),$J55)=\"y\",\"X\",\"\"))","v":""},{"$f":"IF($G55=0,\"\",IF(INDEX(itineraryPrograms,numericItinerary(M$3),$J55)=\"y\",\"X\",\"\"))","v":""},{"$f":"IF($G55=0,\"\",IF(INDEX(itineraryPrograms,numericItinerary(N$3),$J55)=\"y\",\"X\",\"\"))","v":""},{"$f":"IF($G55=0,\"\",IF(INDEX(itineraryPrograms,numericItinerary(O$3),$J55)=\"y\",\"X\",\"\"))","v":""},{"$f":"IF($G55=0,\"\",IF(INDEX(itineraryPrograms,numericItinerary(P$3),$J55)=\"y\",\"X\",\"\"))","v":""}]
[null,null,null,null,null,null,"Landmarks: Trail Peak",61,{"$f":"COUNTIF(K56:P56,\"X\")","v":3},32,{"$f":"IF($G56=0,\"\",IF(INDEX(itineraryPrograms,numericItinerary(K$3),$J56)=\"y\",\"X\",\"\"))","v":""},{"$f":"IF($G56=0,\"\",IF(INDEX(itineraryPrograms,numericItinerary(L$3),$J56)=\"y\",\"X\",\"\"))","v":"X"},{"$f":"IF($G56=0,\"\",IF(INDEX(itineraryPrograms,numericItinerary(M$3),$J56)=\"y\",\"X\",\"\"))","v":""},{"$f":"IF($G56=0,\"\",IF(INDEX(itineraryPrograms,numericItinerary(N$3),$J56)=\"y\",\"X\",\"\"))","v":""},{"$f":"IF($G56=0,\"\",IF(INDEX(itineraryPrograms,numericItinerary(O$3),$J56)=\"y\",\"X\",\"\"))","v":"X"},{"$f":"IF($G56=0,\"\",IF(INDEX(itineraryPrograms,numericItinerary(P$3),$J56)=\"y\",\"X\",\"\"))","v":"X"}]
[null,null,null,null,null,null,"STEM: Geology",61,{"$f":"COUNTIF(K57:P57,\"X\")","v":1},51,{"$f":"IF($G57=0,\"\",IF(INDEX(itineraryPrograms,numericItinerary(K$3),$J57)=\"y\",\"X\",\"\"))","v":""},{"$f":"IF($G57=0,\"\",IF(INDEX(itineraryPrograms,numericItinerary(L$3),$J57)=\"y\",\"X\",\"\"))","v":""},{"$f":"IF($G57=0,\"\",IF(INDEX(itineraryPrograms,numericItinerary(M$3),$J57)=\"y\",\"X\",\"\"))","v":"X"},{"$f":"IF($G57=0,\"\",IF(INDEX(itineraryPrograms,numericItinerary(N$3),$J57)=\"y\",\"X\",\"\"))","v":""},{"$f":"IF($G57=0,\"\",IF(INDEX(itineraryPrograms,numericItinerary(O$3),$J57)=\"y\",\"X\",\"\"))","v":""},{"$f":"IF($G57=0,\"\",IF(INDEX(itineraryPrograms,numericItinerary(P$3),$J57)=\"y\",\"X\",\"\"))","v":""}]
[null,null,null,null,null,null,null,93,null,49,{"$f":"COUNTIF(K3:K56,\"X\")","v":14},13,12,13,13,13]
[null,null,null,null,null,null,null,0,null,50,{"$f":"K3","v":"9-11"},"9-12","9-6","9-10","9-8","9-4"]
[null,null,null,null,null,null,null,{"$f":"MIN(H4:H57)","v":61},"Min"]
[null,null,null,null,null,null,null,{"$f":"MAX(H4:H57)","v":225},"Max"]

{"sheet":"Itinerary Details","index":6,"n_rows":26,"n_cols":34,"rows_kept":26,"cut":false,"hidden":false,"merged":[[19,4,19,9],[19,12,19,13],[19,15,19,17],[15,15,15,17],[16,15,16,17],[22,15,22,17],[17,15,17,17],[18,15,18,17],[20,15,20,17],[5,10,5,11],[4,14,4,16],[5,14,5,16],[14,15,14,17],[11,1,11,18],[12,1,12,18],[7,4,7,5],[8,4,8,5],[14,12,14,13],[13,10,13,13],[7,10,7,14],[15,1,15,2],[16,1,16,2],[16,12,16,13],[22,1,22,2],[23,1,23,2],[15,12,15,13],[17,1,17,2],[17,4,17,9],[17,12,17,13],[18,1,18,2],[18,4,18,9],[18,12,18,13],[20,1,20,2],[20,4,20,9],[20,12,20,13],[19,1,19,2],[0,0,0,18],[15,4,15,9],[16,4,16,9],[5,0,5,1],[6,0,6,1],[7,0,7,1],[8,0,8,1],[9,0,9,1],[10,0,10,1],[4,4,4,5],[5,4,5,5],[14,4,14,8],[1,3,1,18],[6,4,6,5],[9,3,10,6],[4,10,4,11],[21,1,21,2],[21,4,21,9],[21,12,21,13],[21,15,21,17],[24,11,24,13],[22,12,22,13],[23,12,23,13],[22,4,22,9],[23,4,23,9],[23,15,23,17]]}
["Itinerary Information"]
["Itinerary Number:",null,"9-1"]
["Expedition Number:",null,"608-A"]
[null,null," "]
["Classification:",null,{"$f":"VLOOKUP(INDEX(classification,numericItinerary(itineraryNumber)),difficultyTable,2)","v":"Challenging"},null,"Staffed Camps:",null,{"$f":"getNcamps(\"Staff\",itineraryNumber)","v":"5"},null,null,"Area(s):",{"$f":"getCountry(numericItinerary(itineraryNumber))","v":"South"},null,null,"Starting:",{"$f":"AA25","v":"Zastrow Trailhead"}]
["Distance:",null,{"$f":"INDEX(distance,numericItinerary(itineraryNumber))","v":40},null,"Trail Camps:",null,{"$f":"getNcamps(\"Trail\",itineraryNumber)","v":"5"},null,null,"Map(s):",{"$f":"getMaps(numericItinerary(itineraryNumber))","v":"South"},null,null,"Ending:",{"$f":"AB25","v":"Hike In"}]
["Initial/Max Days Food:",null,{"$f":"getFoodDays(itineraryNumber)","v":"2/2"},null,"Layovers:",null,{"$f":"getNcamps(\"Layover\",itineraryNumber)","v":"2"}]
["Return via Tooth:",null,{"$f":"IF(INDEX(viaTooth,numericItinerary(itineraryNumber))=\"y\",\"Yes\",\"No\")","v":"No"},null,"Dry Camps",null,{"$f":"getNcamps(\"Dry\",itineraryNumber)","v":"0"},null,null,"Peaks:",{"$f":"getPeakS(numericItinerary(itineraryNumber))","v":"Tooth of Time"}]
["Min/Max Altitude:",null,{"$f":"getAltitude(\"Min\",itineraryNumber) & \"/\" & getAltitude(\"Max\",itineraryNumber)","v":"7,217/9,330"},null,"Showers",null,{"$f":"COUNTIF(nShowers,\"y\")","v":3}]
["Total Altitude Change:",null,{"$f":"getAltitude(\"Chg\",itineraryNumber)","v":"2,113"},"Elevation information shown here is based on beginning/ending campsite altitudes, not any peaks or side hikes."]
["Daily Altitude Change:",null,{"$f":"getAltitude(\"Avg\",itineraryNumber)","v":"728"}]
["Description:",{"$f":"INDEX(descriptions,numericItinerary(itineraryNumber))","v":"This program-focused itinerary visits many of the staffed camps located in Philmont's South Country while exploring this region's beautiful meadows, riverways, and mesas. Plenty of time is provided for exploring all of the activities offered at each camp or for exploring side hikes to nearby peaks or viewpoints. This trek would be an excellent way to explore Philmont for the first time!"}]
["Programs:",{"$f":"getPrograms(numericItinerary(itineraryNumber))","v":"Climbing: Bouldering Gym, Climbing: Climbing Wall/Tower, Climbing: Crate Stacking, Climbing: Rock Climbing, COPE: High Challenge Course, COPE: Initiative Games, COPE: Low Challenge Course, Ecology: Self-Guided Fishing, Evening: Campfire Show, Evening: Chuckwagon Dinner, Historical: Adobe Brick-Making, Historical: Blacksmithing, Historical: Cabin Restoration, Historical: Crafting, Historical: Crosscut & Tie Making, Historical: Flint Knapping, Landmarks: Mount Phillips, Livestock: Burro Packing, Livestock: Horse Rides, Range Sports: Rifle Shooting, Western Lore: Cantina, Western Lore: Roping, "}]
[null,null,null,null,null,null,null,null,null,null,"UTM Coordinates"]
[null,"Date:",null,"Day","Campsite",null,null,null,null,null,"Elevation","Easting","Northing",null,"Food Pickup","Cross US-64",null,null,null,null,null,null,null,"Elevation","Change","Date","Day","CAMP","Type","Dry","Showers","Commissary","Trading Post","Map"]
[null,{"$f":"AA16 & \" (\" & TEXT(Z16,\"m/d/yyyy\") & \")\"","v":"Sunday (6/8/2025)"},null,1,"Camping HQ",null,null,null,null,null,{"$f":"TEXT(INDEX(campLocation,MATCH(AB16,camps,0),5),\"##,##0\")","v":"6,696"},{"$f":"INDEX(campInfo,MATCH(AB16,camps),3)","v":503848},{"$f":"INDEX(campInfo,MATCH(AB16,camps),4)","v":4034364},null,null,{"$f":"getUS64crossingdirection(itineraryNumber,D16)","v":""},null,null,null,null,null,null,null,{"$f":"INT(K16)","v":6696},0,{"$f":"expeditionStartDate(itinExpeditionNo)","v":"2025-06-08"},{"$f":"INDEX({\"Sunday\",\"Monday\",\"Tuesday\",\"Wednesday\",\"Thursday\",\"Friday\",\"Saturday\"},WEEKDAY(Z16))","v":"Sunday"},"Camping HQ",null,{"$f":"INDEX(campInfo,MATCH($AB16,camps),10)","v":""},{"$f":"INDEX(campInfo,MATCH($AB16,camps),11)","v":""},{"$f":"INDEX(campInfo,MATCH($AB16,camps),6)","v":""},{"$f":"INDEX(campInfo,MATCH($AB16,camps),7)","v":""},{"$f":"VLOOKUP($AB16,campInfo,12)","v":"South"}]
[null,{"$f":"AA17 & \" (\" & TEXT(Z17,\"m/d/yyyy\") & \")\"","v":"Monday (6/9/2025)"},null,{"$f":"D16+1","v":2},{"$f":"getCampWithInfo(AB17,AC17,AD17,AE17,AF17,AG17)","v":"ABREU (Showers)"},null,null,null,null,null,"7,217",498586,4025999,null,{"$f":"INDEX(foodPickups,numericItinerary(itineraryNumber),D17-1)","v":"Camping HQ"},{"$f":"getUS64crossingdirection(itineraryNumber,D17)","v":""},null,null,null,null,null,null,null,7217,{"$f":"X17-X16","v":521},{"$f":"Z16+1","v":"2025-06-09"},{"$f":"INDEX({\"Sunday\",\"Monday\",\"Tuesday\",\"Wednesday\",\"Thursday\",\"Friday\",\"Saturday\"},WEEKDAY(Z17))","v":"Monday"},"Abreu",{"$f":"IF(VLOOKUP($AB17,campInfo,8)=\"Y\",\"Staff\",\"Trail\")","v":"Staff"},{"$f":"VLOOKUP($AB17,campInfo,10)","v":""},{"$f":"VLOOKUP($AB17,campInfo,11)","v":"Y"},{"$f":"VLOOKUP($AB17,campInfo,6)","v":""},{"$f":"VLOOKUP($AB17,campInfo,7)","v":""},"South"]
[null,{"$f":"AA18 & \" (\" & TEXT(Z18,\"m/d/yyyy\") & \")\"","v":"Tuesday (6/10/2025)"},null,{"$f":"D17+1","v":3},{"$f":"getCampWithInfo(AB18,AC18,AD18,AE18,AF18,AG18)","v":"Lower Bonito"},null,null,null,null,null,{"$f":"TEXT(INDEX(campLocation,MATCH(AB18,camps,0),5),\"##,##0\")","v":"8,962"},493583,4027520,null,{"$f":"INDEX(foodPickups,numericItinerary(itineraryNumber),D18-1)","v":0},{"$f":"getUS64crossingdirection(itineraryNumber,D18)","v":""},null,null,null,null,null,null,null,{"$f":"INT(K18)","v":8962},{"$f":"X18-X17","v":1745},{"$f":"Z17+1","v":"2025-06-10"},{"$f":"INDEX({\"Sunday\",\"Monday\",\"Tuesday\",\"Wednesday\",\"Thursday\",\"Friday\",\"Saturday\"},WEEKDAY(Z18))","v":"Tuesday"},"Lower Bonito","Trail","","","","","South"]
[null,{"$f":"AA19 & \" (\" & TEXT(Z19,\"m/d/yyyy\") & \")\"","v":"Wednesday (6/11/2025)"},null,4,{"$f":"getCampWithInfo(AB19,AC19,AD19,AE19,AF19,AG19)","v":"BEAUBIEN (Showers)"},null,null,null,null,null,{"$f":"TEXT(INDEX(campLocation,MATCH(AB19,camps,0),5),\"##,##0\")","v":"9,330"},490738,4030941,null,{"$f":"INDEX(foodPickups,numericItinerary(itineraryNumber),D19-1)","v":"Phillips Junction"},{"$f":"getUS64crossingdirection(itineraryNumber,D19)","v":""},null,null,null,null,null,null,null,{"$f":"INT(K19)","v":9330},368,"2025-06-11",{"$f":"INDEX({\"Sunday\",\"Monday\",\"Tuesday\",\"Wednesday\",\"Thursday\",\"Friday\",\"Saturday\"},WEEKDAY(Z19))","v":"Wednesday"},"Beaubien","Staff","","Y","","","South"]
[null,{"$f":"AA20 & \" (\" & TEXT(Z20,\"m/d/yyyy\") & \")\"","v":"Thursday (6/12/2025)"},null,5,{"$f":"getCampWithInfo(AB20,AC20,AD20,AE20,AF20,AG20)","v":"BLACK MOUNTAIN"},null,null,null,null,null,{"$f":"TEXT(INDEX(campLocation,MATCH(AB20,camps,0),5),\"##,##0\")","v":"8,991"},491634,4033045,null,{"$f":"INDEX(foodPickups,numericItinerary(itineraryNumber),D20-1)","v":0},{"$f":"getUS64crossingdirection(itineraryNumber,D20)","v":""},null,null,null,null,null,null,null,{"$f":"INT(K20)","v":8991},-339,"2025-06-12",{"$f":"INDEX({\"Sunday\",\"Monday\",\"Tuesday\",\"Wednesday\",\"Thursday\",\"Friday\",\"Saturday\"},WEEKDAY(Z20))","v":"Thursday"},"Black Mountain","Staff","","","","","South"]
[null,{"$f":"AA21 & \" (\" & TEXT(Z21,\"m/d/yyyy\") & \")\"","v":"Friday (6/13/2025)"},null,6,{"$f":"getCampWithInfo(AB21,AC21,AD21,AE21,AF21,AG21)","v":"MINERS PARK (Showers, Commissary)"},null,null,null,null,null,{"$f":"TEXT(INDEX(campLocation,MATCH(AB21,camps,0),5),\"##,##0\")","v":"7,977"},496250,4030958,null,{"$f":"INDEX(foodPickups,numericItinerary(itineraryNumber),D21-1)","v":"Miners Park"},{"$f":"getUS64crossingdirection(itineraryNumber,D21)","v":""},null,null,null,null,null,null,null,{"$f":"INT(K21)","v":7977},-1014,"2025-06-13",{"$f":"INDEX({\"Sunday\",\"Monday\",\"Tuesday\",\"Wednesday\",\"Thursday\",\"Friday\",\"Saturday\"},WEEKDAY(Z21))","v":"Friday"},"Miners Park","Staff","","Y","Y","","South"]
[null,{"$f":"AA22 & \" (\" & TEXT(Z22,\"m/d/yyyy\") & \")\"","v":"Saturday (6/14/2025)"},null,7,{"$f":"getCampWithInfo(AB22,AC22,AD22,AE22,AF22,AG22)","v":"Bear Caves"},null,null,null,null,null,{"$f":"TEXT(INDEX(campLocation,MATCH(AB22,camps,0),5),\"##,##0\")","v":"8,423"},496976,4028855,null,{"$f":"INDEX(foodPickups,numericItinerary(itineraryNumber),D22-1)","v":0},{"$f":"getUS64crossingdirection(itineraryNumber,D22)","v":""},null,null,null,null,null,null,null,{"$f":"INT(K22)","v":8423},446,"2025-06-14",{"$f":"INDEX({\"Sunday\",\"Monday\",\"Tuesday\",\"Wednesday\",\"Thursday\",\"Friday\",\"Saturday\"},WEEKDAY(Z22))","v":"Saturday"},"Bear Caves","Trail","","","","","South"]
[null,"Sunday (6/15/2025)",null,8,{"$f":"getCampWithInfo(AB23,AC23,AD23,AE23,AF23,AG23)","v":"URRACA"},null,null,null,null,null,"7,968",500851,4029314,null,{"$f":"INDEX(foodPickups,numericItinerary(itineraryNumber),D23-1)","v":0},{"$f":"getUS64crossingdirection(itineraryNumber,D23)","v":""},null,null,null,null,null,null,null,7968,-455,"2025-06-15",{"$f":"INDEX({\"Sunday\",\"Monday\",\"Tuesday\",\"Wednesday\",\"Thursday\",\"Friday\",\"Saturday\"},WEEKDAY(Z23))","v":"Sunday"},"Urraca","Staff","","","","","South"]
[null,"Monday (6/16/2025)",null,9,{"$f":"getCampWithInfo(AB24,AC24,AD24,AE24,AF24,AG24)","v":"Camping HQ"},null,null,null,null,null,"6,696",503848,4034364,null,{"$f":"INDEX(foodPickups,numericItinerary(itineraryNumber),D24-1)","v":0},{"$f":"getUS64crossingdirection(itineraryNumber,D24)","v":""},null,null,null,null,null,null,null,6696,-1272,"2025-06-16",{"$f":"INDEX({\"Sunday\",\"Monday\",\"Tuesday\",\"Wednesday\",\"Thursday\",\"Friday\",\"Saturday\"},WEEKDAY(Z24))","v":"Monday"},"Camping HQ","Trail","","","","","South"]
[null,null,null,null,null,null,null,null,null,null,null,"NAD 3/Zone 13\n* Estimated coordinates",null,null,null,null,null,null,null,null,null,null,null,null,null,null,{"$f":"getstartendinfo(\"S\",itineraryNumber)","v":"Zastrow Trailhead"},"Hike In"]
[null,null,null,null,null,null,null,null,null,null,null,null,null,null,null,null,null,null,null,null,null,null,null,null,null,null,null,"BASE"]

{"sheet":"Itinerary Xref Chart","index":7,"n_rows":65,"n_cols":16,"rows_kept":65,"cut":false,"hidden":false,"merged":[[0,1,4,1],[61,0,61,1]]}
["ITINERARY NUMBERS:","# times in \nItineraries",{"$f":"INDEX(itineraryNumbers,COLUMN()-2)","v":"9-1"},{"$f":"INDEX(itineraryNumbers,COLUMN()-2)","v":"9-2"},{"$f":"INDEX(itineraryNumbers,COLUMN()-2)","v":"9-3"},{"$f":"INDEX(itineraryNumbers,COLUMN()-2)","v":"9-4"},{"$f":"INDEX(itineraryNumbers,COLUMN()-2)","v":"9-5"},{"$f":"INDEX(itineraryNumbers,COLUMN()-2)","v":"9-6"},{"$f":"INDEX(itineraryNumbers,COLUMN()-2)","v":"9-7"},{"$f":"INDEX(itineraryNumbers,COLUMN()-2)","v":"9-8"},{"$f":"INDEX(itineraryNumbers,COLUMN()-2)","v":"9-9"},{"$f":"INDEX(itineraryNumbers,COLUMN()-2)","v":"9-10"},{"$f":"INDEX(itineraryNumbers,COLUMN()-2)","v":"9-11"},{"$f":"INDEX(itineraryNumbers,COLUMN()-2)","v":"9-12"},null,"Check"]
["Hiking Difficulty",null,{"$f":"INDEX(classification,numericItinerary(C1))","v":"C"},{"$f":"INDEX(classification,numericItinerary(D1))","v":"C"},{"$f":"INDEX(classification,numericItinerary(E1))","v":"C"},{"$f":"INDEX(classification,numericItinerary(F1))","v":"R"},{"$f":"INDEX(classification,numericItinerary(G1))","v":"R"},{"$f":"INDEX(classification,numericItinerary(H1))","v":"R"},{"$f":"INDEX(classification,numericItinerary(I1))","v":"S"},{"$f":"INDEX(classification,numericItinerary(J1))","v":"S"},{"$f":"INDEX(classification,numericItinerary(K1))","v":"S"},{"$f":"INDEX(classification,numericItinerary(L1))","v":"SS"},{"$f":"INDEX(classification,numericItinerary(M1))","v":"SS"},{"$f":"INDEX(classification,numericItinerary(N1))","v":"SS"}]
["Distance (Approximately)",null,{"$f":"INDEX(distance,numericItinerary(C1))","v":40},{"$f":"INDEX(distance,numericItinerary(D1))","v":36},{"$f":"INDEX(distance,numericItinerary(E1))","v":41},{"$f":"INDEX(distance,numericItinerary(F1))","v":42},{"$f":"INDEX(distance,numericItinerary(G1))","v":36},{"$f":"INDEX(distance,numericItinerary(H1))","v":62},{"$f":"INDEX(distance,numericItinerary(I1))","v":42},{"$f":"INDEX(distance,numericItinerary(J1))","v":44},{"$f":"INDEX(distance,numericItinerary(K1))","v":42},{"$f":"INDEX(distance,numericItinerary(L1))","v":53},{"$f":"INDEX(distance,numericItinerary(M1))","v":53},{"$f":"INDEX(distance,numericItinerary(N1))","v":57},null,{"$f":"SUM(C3:N3)","v":548}]
["Trail Camps",null,{"$f":"countcamps(itineraryTrail,numericItinerary(C$1))","v":5},{"$f":"countcamps(itineraryTrail,numericItinerary(D$1))","v":7},{"$f":"countcamps(itineraryTrail,numericItinerary(E$1))","v":8},{"$f":"countcamps(itineraryTrail,numericItinerary(F$1))","v":6},{"$f":"countcamps(itineraryTrail,numericItinerary(G$1))","v":8},{"$f":"countcamps(itineraryTrail,numericItinerary(H$1))","v":5},{"$f":"countcamps(itineraryTrail,numericItinerary(I$1))","v":6},{"$f":"countcamps(itineraryTrail,numericItinerary(J$1))","v":7},{"$f":"countcamps(itineraryTrail,numericItinerary(K$1))","v":7},{"$f":"countcamps(itineraryTrail,numericItinerary(L$1))","v":7},{"$f":"countcamps(itineraryTrail,numericItinerary(M$1))","v":9},{"$f":"countcamps(itineraryTrail,numericItinerary(N$1))","v":7},null,{"$f":"SUM(C4:N4)","v":82}]
["Dry Camps",null,{"$f":"countcamps(itineraryStaff,numericItinerary(C$1))","v":5},{"$f":"countcamps(itineraryStaff,numericItinerary(D$1))","v":3},{"$f":"countcamps(itineraryStaff,numericItinerary(E$1))","v":2},{"$f":"countcamps(itineraryStaff,numericItinerary(F$1))","v":4},{"$f":"countcamps(itineraryStaff,numericItinerary(G$1))","v":2},{"$f":"countcamps(itineraryStaff,numericItinerary(H$1))","v":5},{"$f":"countcamps(itineraryStaff,numericItinerary(I$1))","v":4},{"$f":"countcamps(itineraryStaff,numericItinerary(J$1))","v":3},{"$f":"countcamps(itineraryStaff,numericItinerary(K$1))","v":3},{"$f":"countcamps(itineraryStaff,numericItinerary(L$1))","v":3},{"$f":"countcamps(itineraryStaff,numericItinerary(M$1))","v":1},{"$f":"countcamps(itineraryStaff,numericItinerary(N$1))","v":3},null,{"$f":"SUM(C5:N5)","v":38}]
[{"$f":"INDEX(program_table,ROW()-5)","v":"Climbing: Bouldering Gym"},{"$f":"COUNTIF(C6:N6,\"X\")","v":3},{"$f":"getProgramXref($A6,numericItinerary(C$1))","v":"x"},{"$f":"getProgramXref($A6,numericItinerary(D$1))","v":""},{"$f":"getProgramXref($A6,numericItinerary(E$1))","v":"x"},{"$f":"getProgramXref($A6,numericItinerary(F$1))","v":""},{"$f":"getProgramXref($A6,numericItinerary(G$1))","v":""},{"$f":"getProgramXref($A6,numericItinerary(H$1))","v":""},{"$f":"getProgramXref($A6,numericItinerary(I$1))","v":"x"},{"$f":"getProgramXref($A6,numericItinerary(J$1))","v":""},{"$f":"getProgramXref($A6,numericItinerary(K$1))","v":""},{"$f":"getProgramXref($A6,numericItinerary(L$1))","v":""},{"$f":"getProgramXref($A6,numericItinerary(M$1))","v":""},{"$f":"getProgramXref($A6,numericItinerary(N$1))","v":""},null,{"$f":"COUNTIF(C6:N6,\"X\")","v":3}]
[{"$f":"INDEX(program_table,ROW()-5)","v":"Climbing: Climbing Wall/Tower"},1,{"$f":"getProgramXref($A7,numericItinerary(C$1))","v":"x"},{"$f":"getProgramXref($A7,numericItinerary(D$1))","v":""},{"$f":"getProgramXref($A7,numericItinerary(E$1))","v":""},{"$f":"getProgramXref($A7,numericItinerary(F$1))","v":""},{"$f":"getProgramXref($A7,numericItinerary(G$1))","v":""},{"$f":"getProgramXref($A7,numericItinerary(H$1))","v":""},{"$f":"getProgramXref($A7,numericItinerary(I$1))","v":""},{"$f":"getProgramXref($A7,numericItinerary(J$1))","v":""},{"$f":"getProgramXref($A7,numericItinerary(K$1))","v":""},{"$f":"getProgramXref($A7,numericItinerary(L$1))","v":""},{"$f":"getProgramXref($A7,numericItinerary(M$1))","v":""},{"$f":"getProgramXref($A7,numericItinerary(N$1))","v":""},null,1]
[{"$f":"INDEX(program_table,ROW()-5)","v":"Climbing: Crate Stacking"},1,{"$f":"getProgramXref($A8,numericItinerary(C$1))","v":"x"},{"$f":"getProgramXref($A8,numericItinerary(D$1))","v":""},{"$f":"getProgramXref($A8,numericItinerary(E$1))","v":""},{"$f":"getProgramXref($A8,numericItinerary(F$1))","v":""},{"$f":"getProgramXref($A8,numericItinerary(G$1))","v":""},{"$f":"getProgramXref($A8,numericItinerary(H$1))","v":""},{"$f":"getProgramXref($A8,numericItinerary(I$1))","v":""},{"$f":"getProgramXref($A8,numericItinerary(J$1))","v":""},{"$f":"getProgramXref($A8,numericItinerary(K$1))","v":""},{"$f":"getProgramXref($A8,numericItinerary(L$1))","v":""},{"$f":"getProgramXref($A8,numericItinerary(M$1))","v":""},{"$f":"getProgramXref($A8,numericItinerary(N$1))","v":""},null,1]
[{"$f":"INDEX(program_table,ROW()-5)","v":"Climbing: Rock Climbing"},2,{"$f":"getProgramXref($A9,numericItinerary(C$1))","v":"x"},{"$f":"getProgramXref($A9,numericItinerary(D$1))","v":""},{"$f":"getProgramXref($A9,numericItinerary(E$1))","v":""},{"$f":"getProgramXref($A9,numericItinerary(F$1))","v":""},{"$f":"getProgramXref($A9,numericItinerary(G$1))","v":""},{"$f":"getProgramXref($A9,numericItinerary(H$1))","v":""},{"$f":"getProgramXref($A9,numericItinerary(I$1))","v":"x"},{"$f":"getProgramXref($A9,numericItinerary(J$1))","v":""},{"$f":"getProgramXref($A9,numericItinerary(K$1))","v":""},{"$f":"getProgramXref($A9,numericItinerary(L$1))","v":""},{"$f":"getProgramXref($A9,numericItinerary(M$1))","v":""},{"$f":"getProgramXref($A9,numericItinerary(N$1))","v":""},null,2]
[{"$f":"INDEX(program_table,ROW()-5)","v":"COPE: High Challenge Course"},2,{"$f":"getProgramXref($A10,numericItinerary(C$1))","v":"x"},{"$f":"getProgramXref($A10,numericItinerary(D$1))","v":""},{"$f":"getProgramXref($A10,numericItinerary(E$1))","v":""},{"$f":"getProgramXref($A10,numericItinerary(F$1))","v":""},{"$f":"getProgramXref($A10,numericItinerary(G$1))","v":""},{"$f":"getProgramXref($A10,numericItinerary(H$1))","v":""},{"$f":"getProgramXref($A10,numericItinerary(I$1))","v":""},{"$f":"getProgramXref($A10,numericItinerary(J$1))","v":"x"},{"$f":"getProgramXref($A10,numericItinerary(K$1))","v":""},{"$f":"getProgramXref($A10,numericItinerary(L$1))","v":""},{"$f":"getProgramXref($A10,numericItinerary(M$1))","v":""},{"$f":"getProgramXref($A10,numericItinerary(N$1))","v":""},null,2]
[{"$f":"INDEX(program_table,ROW()-5)","v":"COPE: Initiative Games"},4,{"$f":"getProgramXref($A11,numericItinerary(C$1))","v":"x"},{"$f":"getProgramXref($A11,numericItinerary(D$1))","v":""},{"$f":"getProgramXref($A11,numericItinerary(E$1))","v":""},{"$f":"getProgramXref($A11,numericItinerary(F$1))","v":""},{"$f":"getProgramXref($A11,numericItinerary(G$1))","v":"x"},{"$f":"getProgramXref($A11,numericItinerary(H$1))","v":"x"},{"$f":"getProgramXref($A11,numericItinerary(I$1))","v":""},{"$f":"getProgramXref($A11,numericItinerary(J$1))","v":"x"},{"$f":"getProgramXref($A11,numericItinerary(K$1))","v":""},{"$f":"getProgramXref($A11,numericItinerary(L$1))","v":""},{"$f":"getProgramXref($A11,numericItinerary(M$1))","v":""},{"$f":"getProgramXref($A11,numericItinerary(N$1))","v":""},null,4]
[{"$f":"INDEX(program_table,ROW()-5)","v":"COPE: Low Challenge Course"},5,{"$f":"getProgramXref($A12,numericItinerary(C$1))","v":"x"},{"$f":"getProgramXref($A12,numericItinerary(D$1))","v":""},{"$f":"getProgramXref($A12,numericItinerary(E$1))","v":""},{"$f":"getProgramXref($A12,numericItinerary(F$1))","v":""},{"$f":"getProgramXref($A12,numericItinerary(G$1))","v":"x"},{"$f":"getProgramXref($A12,numericItinerary(H$1))","v":"x"},{"$f":"getProgramXref($A12,numericItinerary(I$1))","v":""},{"$f":"getProgramXref($A12,numericItinerary(J$1))","v":"x"},{"$f":"getProgramXref($A12,numericItinerary(K$1))","v":""},{"$f":"getProgramXref($A12,numericItinerary(L$1))","v":""},{"$f":"getProgramXref($A12,numericItinerary(M$1))","v":"x"},{"$f":"getProgramXref($A12,numericItinerary(N$1))","v":""},null,5]
[{"$f":"INDEX(program_table,ROW()-5)","v":"Ecology: Demonstration Forest"},2,{"$f":"getProgramXref($A13,numericItinerary(C$1))","v":""},{"$f":"getProgramXref($A13,numericItinerary(D$1))","v":""},{"$f":"getProgramXref($A13,numericItinerary(E$1))","v":"x"},{"$f":"getProgramXref($A13,numericItinerary(F$1))","v":""},{"$f":"getProgramXref($A13,numericItinerary(G$1))","v":""},{"$f":"getProgramXref($A13,numericItinerary(H$1))","v":""},{"$f":"getProgramXref($A13,numericItinerary(I$1))","v":""},{"$f":"getProgramXref($A13,numericItinerary(J$1))","v":""},{"$f":"getProgramXref($A13,numericItinerary(K$1))","v":"x"},{"$f":"getProgramXref($A13,numericItinerary(L$1))","v":""},{"$f":"getProgramXref($A13,numericItinerary(M$1))","v":""},{"$f":"getProgramXref($A13,numericItinerary(N$1))","v":""},null,2]
[{"$f":"INDEX(program_table,ROW()-5)","v":"Ecology: Self-Guided Fishing"},5,{"$f":"getProgramXref($A14,numericItinerary(C$1))","v":"x"},{"$f":"getProgramXref($A14,numericItinerary(D$1))","v":""},{"$f":"getProgramXref($A14,numericItinerary(E$1))","v":""},{"$f":"getProgramXref($A14,numericItinerary(F$1))","v":"x"},{"$f":"getProgramXref($A14,numericItinerary(G$1))","v":""},{"$f":"getProgramXref($A14,numericItinerary(H$1))","v":""},{"$f":"getProgramXref($A14,numericItinerary(I$1))","v":""},{"$f":"getProgramXref($A14,numericItinerary(J$1))","v":"x"},{"$f":"getProgramXref($A14,numericItinerary(K$1))","v":"x"},{"$f":"getProgramXref($A14,numericItinerary(L$1))","v":""},{"$f":"getProgramXref($A14,numericItinerary(M$1))","v":""},{"$f":"getProgramXref($A14,numericItinerary(N$1))","v":"x"},null,5]
[{"$f":"INDEX(program_table,ROW()-5)","v":"Evening: Advisor Coffee"},0,{"$f":"getProgramXref($A15,numericItinerary(C$1))","v":""},{"$f":"getProgramXref($A15,numericItinerary(D$1))","v":""},{"$f":"getProgramXref($A15,numericItinerary(E$1))","v":""},{"$f":"getProgramXref($A15,numericItinerary(F$1))","v":""},{"$f":"getProgramXref($A15,numericItinerary(G$1))","v":""},{"$f":"getProgramXref($A15,numericItinerary(H$1))","v":""},{"$f":"getProgramXref($A15,numericItinerary(I$1))","v":""},{"$f":"getProgramXref($A15,numericItinerary(J$1))","v":""},{"$f":"getProgramXref($A15,numericItinerary(K$1))","v":""},{"$f":"getProgramXref($A15,numericItinerary(L$1))","v":""},{"$f":"getProgramXref($A15,numericItinerary(M$1))","v":""},{"$f":"getProgramXref($A15,numericItinerary(N$1))","v":""},null,0]
[{"$f":"INDEX(program_table,ROW()-5)","v":"Evening: Campfire Show"},12,{"$f":"getProgramXref($A16,numericItinerary(C$1))","v":"x"},{"$f":"getProgramXref($A16,numericItinerary(D$1))","v":"x"},{"$f":"getProgramXref($A16,numericItinerary(E$1))","v":"x"},{"$f":"getProgramXref($A16,numericItinerary(F$1))","v":"x"},{"$f":"getProgramXref($A16,numericItinerary(G$1))","v":"x"},{"$f":"getProgramXref($A16,numericItinerary(H$1))","v":"x"},{"$f":"getProgramXref($A16,numericItinerary(I$1))","v":"x"},{"$f":"getProgramXref($A16,numericItinerary(J$1))","v":"x"},{"$f":"getProgramXref($A16,numericItinerary(K$1))","v":"x"},{"$f":"getProgramXref($A16,numericItinerary(L$1))","v":"x"},{"$f":"getProgramXref($A16,numericItinerary(M$1))","v":"x"},{"$f":"getProgramXref($A16,numericItinerary(N$1))","v":"x"},null,12]
[{"$f":"INDEX(program_table,ROW()-5)","v":"Evening: Chuckwagon Dinner"},10,{"$f":"getProgramXref($A17,numericItinerary(C$1))","v":"x"},{"$f":"getProgramXref($A17,numericItinerary(D$1))","v":"x"},{"$f":"getProgramXref($A17,numericItinerary(E$1))","v":"x"},{"$f":"getProgramXref($A17,numericItinerary(F$1))","v":"x"},{"$f":"getProgramXref($A17,numericItinerary(G$1))","v":""},{"$f":"getProgramXref($A17,numericItinerary(H$1))","v":"x"},{"$f":"getProgramXref($A17,numericItinerary(I$1))","v":""},{"$f":"getProgramXref($A17,numericItinerary(J$1))","v":"x"},{"$f":"getProgramXref($A17,numericItinerary(K$1))","v":"x"},{"$f":"getProgramXref($A17,numericItinerary(L$1))","v":"x"},{"$f":"getProgramXref($A17,numericItinerary(M$1))","v":"x"},{"$f":"getProgramXref($A17,numericItinerary(N$1))","v":"x"},null,10]
[{"$f":"INDEX(program_table,ROW()-5)","v":"Historical: Adobe Brick-Making"},7,{"$f":"getProgramXref($A18,numericItinerary(C$1))","v":"x"},{"$f":"getProgramXref($A18,numericItinerary(D$1))","v":"x"},{"$f":"getProgramXref($A18,numericItinerary(E$1))","v":"x"},{"$f":"getProgramXref($A18,numericItinerary(F$1))","v":"x"},{"$f":"getProgramXref($A18,numericItinerary(G$1))","v":""},{"$f":"getProgramXref($A18,numericItinerary(H$1))","v":""},{"$f":"getProgramXref($A18,numericItinerary(I$1))","v":""},{"$f":"getProgramXref($A18,numericItinerary(J$1))","v":"x"},{"$f":"getProgramXref($A18,numericItinerary(K$1))","v":"x"},{"$f":"getProgramXref($A18,numericItinerary(L$1))","v":""},{"$f":"getProgramXref($A18,numericItinerary(M$1))","v":""},{"$f":"getProgramXref($A18,numericItinerary(N$1))","v":"x"},null,7]
[{"$f":"INDEX(program_table,ROW()-5)","v":"Historical: Blacksmithing"},4,{"$f":"getProgramXref($A19,numericItinerary(C$1))","v":"x"},{"$f":"getProgramXref($A19,numericItinerary(D$1))","v":""},{"$f":"getProgramXref($A19,numericItinerary(E$1))","v":""},{"$f":"getProgramXref($A19,numericItinerary(F$1))","v":"x"},{"$f":"getProgramXref($A19,numericItinerary(G$1))","v":""},{"$f":"getProgramXref($A19,numericItinerary(H$1))","v":""},{"$f":"getProgramXref($A19,numericItinerary(I$1))","v":""},{"$f":"getProgramXref($A19,numericItinerary(J$1))","v":"x"},{"$f":"getProgramXref($A19,numericItinerary(K$1))","v":"x"},{"$f":"getProgramXref($A19,numericItinerary(L$1))","v":""},{"$f":"getProgramXref($A19,numericItinerary(M$1))","v":""},{"$f":"getProgramXref($A19,numericItinerary(N$1))","v":""},null,4]
[{"$f":"INDEX(program_table,ROW()-5)","v":"Historical: Cabin Restoration"},7,{"$f":"getProgramXref($A20,numericItinerary(C$1))","v":"x"},{"$f":"getProgramXref($A20,numericItinerary(D$1))","v":""},{"$f":"getProgramXref($A20,numericItinerary(E$1))","v":""},{"$f":"getProgramXref($A20,numericItinerary(F$1))","v":"x"},{"$f":"getProgramXref($A20,numericItinerary(G$1))","v":"x"},{"$f":"getProgramXref($A20,numericItinerary(H$1))","v":""},{"$f":"getProgramXref($A20,numericItinerary(I$1))","v":"x"},{"$f":"getProgramXref($A20,numericItinerary(J$1))","v":""},{"$f":"getProgramXref($A20,numericItinerary(K$1))","v":"x"},{"$f":"getProgramXref($A20,numericItinerary(L$1))","v":"x"},{"$f":"getProgramXref($A20,numericItinerary(M$1))","v":"x"},{"$f":"getProgramXref($A20,numericItinerary(N$1))","v":""},null,7]
[{"$f":"INDEX(program_table,ROW()-5)","v":"Historical: Cabin/House Tour"},2,{"$f":"getProgramXref($A21,numericItinerary(C$1))","v":""},{"$f":"getProgramXref($A21,numericItinerary(D$1))","v":""},{"$f":"getProgramXref($A21,numericItinerary(E$1))","v":""},{"$f":"getProgramXref($A21,numericItinerary(F$1))","v":"x"},{"$f":"getProgramXref($A21,numericItinerary(G$1))","v":""},{"$f":"getProgramXref($A21,numericItinerary(H$1))","v":""},{"$f":"getProgramXref($A21,numericItinerary(I$1))","v":""},{"$f":"getProgramXref($A21,numericItinerary(J$1))","v":""},{"$f":"getProgramXref($A21,numericItinerary(K$1))","v":"x"},{"$f":"getProgramXref($A21,numericItinerary(L$1))","v":""},{"$f":"getProgramXref($A21,numericItinerary(M$1))","v":""},{"$f":"getProgramXref($A21,numericItinerary(N$1))","v":""},null,2]
[{"$f":"INDEX(program_table,ROW()-5)","v":"Historical: Crafting"},6,{"$f":"getProgramXref($A22,numericItinerary(C$1))","v":"x"},{"$f":"getProgramXref($A22,numericItinerary(D$1))","v":""},{"$f":"getProgramXref($A22,numericItinerary(E$1))","v":""},{"$f":"getProgramXref($A22,numericItinerary(F$1))","v":"x"},{"$f":"getProgramXref($A22,numericItinerary(G$1))","v":""},{"$f":"getProgramXref($A22,numericItinerary(H$1))","v":"x"},{"$f":"getProgramXref($A22,numericItinerary(I$1))","v":""},{"$f":"getProgramXref($A22,numericItinerary(J$1))","v":"x"},{"$f":"getProgramXref($A22,numericItinerary(K$1))","v":"x"},{"$f":"getProgramXref($A22,numericItinerary(L$1))","v":""},{"$f":"getProgramXref($A22,numericItinerary(M$1))","v":"x"},{"$f":"getProgramXref($A22,numericItinerary(N$1))","v":""},null,6]
[{"$f":"INDEX(program_table,ROW()-5)","v":"Historical: Crosscut & Tie Making"},4,{"$f":"getProgramXref($A23,numericItinerary(C$1))","v":"x"},{"$f":"getProgramXref($A23,numericItinerary(D$1))","v":""},{"$f":"getProgramXref($A23,numericItinerary(E$1))","v":""},{"$f":"getProgramXref($A23,numericItinerary(F$1))","v":"x"},{"$f":"getProgramXref($A23,numericItinerary(G$1))","v":""},{"$f":"getProgramXref($A23,numericItinerary(H$1))","v":""},{"$f":"getProgramXref($A23,numericItinerary(I$1))","v":""},{"$f":"getProgramXref($A23,numericItinerary(J$1))","v":"x"},{"$f":"getProgramXref($A23,numericItinerary(K$1))","v":"x"},{"$f":"getProgramXref($A23,numericItinerary(L$1))","v":""},{"$f":"getProgramXref($A23,numericItinerary(M$1))","v":""},{"$f":"getProgramXref($A23,numericItinerary(N$1))","v":""},null,4]
[{"$f":"INDEX(program_table,ROW()-5)","v":"Historical: Flint Knapping"},6,{"$f":"getProgramXref($A24,numericItinerary(C$1))","v":"x"},{"$f":"getProgramXref($A24,numericItinerary(D$1))","v":""},{"$f":"getProgramXref($A24,numericItinerary(E$1))","v":""},{"$f":"getProgramXref($A24,numericItinerary(F$1))","v":"x"},{"$f":"getProgramXref($A24,numericItinerary(G$1))","v":"x"},{"$f":"getProgramXref($A24,numericItinerary(H$1))","v":"x"},{"$f":"getProgramXref($A24,numericItinerary(I$1))","v":""},{"$f":"getProgramXref($A24,numericItinerary(J$1))","v":"x"},{"$f":"getProgramXref($A24,numericItinerary(K$1))","v":""},{"$f":"getProgramXref($A24,numericItinerary(L$1))","v":"x"},{"$f":"getProgramXref($A24,numericItinerary(M$1))","v":""},{"$f":"getProgramXref($A24,numericItinerary(N$1))","v":""},null,6]
[{"$f":"INDEX(program_table,ROW()-5)","v":"Historical: Fur Trapper Rendezvous"},1,{"$f":"getProgramXref($A25,numericItinerary(C$1))","v":""},{"$f":"getProgramXref($A25,numericItinerary(D$1))","v":""},{"$f":"getProgramXref($A25,numericItinerary(E$1))","v":""},{"$f":"getProgramXref($A25,numericItinerary(F$1))","v":""},{"$f":"getProgramXref($A25,numericItinerary(G$1))","v":""},{"$f":"getProgramXref($A25,numericItinerary(H$1))","v":""},{"$f":"getProgramXref($A25,numericItinerary(I$1))","v":""},{"$f":"getProgramXref($A25,numericItinerary(J$1))","v":"x"},{"$f":"getProgramXref($A25,numericItinerary(K$1))","v":""},{"$f":"getProgramXref($A25,numericItinerary(L$1))","v":""},{"$f":"getProgramXref($A25,numericItinerary(M$1))","v":""},{"$f":"getProgramXref($A25,numericItinerary(N$1))","v":""},null,1]
[{"$f":"INDEX(program_table,ROW()-5)","v":"Historical: Gold Panning"},3,{"$f":"getProgramXref($A26,numericItinerary(C$1))","v":""},{"$f":"getProgramXref($A26,numericItinerary(D$1))","v":""},{"$f":"getProgramXref($A26,numericItinerary(E$1))","v":""},{"$f":"getProgramXref($A26,numericItinerary(F$1))","v":""},{"$f":"getProgramXref($A26,numericItinerary(G$1))","v":"x"},{"$f":"getProgramXref($A26,numericItinerary(H$1))","v":""},{"$f":"getProgramXref($A26,numericItinerary(I$1))","v":""},{"$f":"getProgramXref($A26,numericItinerary(J$1))","v":""},{"$f":"getProgramXref($A26,numericItinerary(K$1))","v":""},{"$f":"getProgramXref($A26,numericItinerary(L$1))","v":"x"},{"$f":"getProgramXref($A26,numericItinerary(M$1))","v":"x"},{"$f":"getProgramXref($A26,numericItinerary(N$1))","v":""},null,3]
[{"$f":"INDEX(program_table,ROW()-5)","v":"Historical: Mine Tour"},6,{"$f":"getProgramXref($A27,numericItinerary(C$1))","v":""},{"$f":"getProgramXref($A27,numericItinerary(D$1))","v":""},{"$f":"getProgramXref($A27,numericItinerary(E$1))","v":"x"},{"$f":"getProgramXref($A27,numericItinerary(F$1))","v":""},{"$f":"getProgramXref($A27,numericItinerary(G$1))","v":"x"},{"$f":"getProgramXref($A27,numericItinerary(H$1))","v":""},{"$f":"getProgramXref($A27,numericItinerary(I$1))","v":"x"},{"$f":"getProgramXref($A27,numericItinerary(J$1))","v":""},{"$f":"getProgramXref($A27,numericItinerary(K$1))","v":"x"},{"$f":"getProgramXref($A27,numericItinerary(L$1))","v":"x"},{"$f":"getProgramXref($A27,numericItinerary(M$1))","v":"x"},{"$f":"getProgramXref($A27,numericItinerary(N$1))","v":""},null,6]
[{"$f":"INDEX(program_table,ROW()-5)","v":"Historical: Petroglyph Tour"},1,{"$f":"getProgramXref($A28,numericItinerary(C$1))","v":""},{"$f":"getProgramXref($A28,numericItinerary(D$1))","v":""},{"$f":"getProgramXref($A28,numericItinerary(E$1))","v":""},{"$f":"getProgramXref($A28,numericItinerary(F$1))","v":""},{"$f":"getProgramXref($A28,numericItinerary(G$1))","v":""},{"$f":"getProgramXref($A28,numericItinerary(H$1))","v":""},{"$f":"getProgramXref($A28,numericItinerary(I$1))","v":""},{"$f":"getProgramXref($A28,numericItinerary(J$1))","v":""},{"$f":"getProgramXref($A28,numericItinerary(K$1))","v":"x"},{"$f":"getProgramXref($A28,numericItinerary(L$1))","v":""},{"$f":"getProgramXref($A28,numericItinerary(M$1))","v":""},{"$f":"getProgramXref($A28,numericItinerary(N$1))","v":""},null,1]
[{"$f":"INDEX(program_table,ROW()-5)","v":"Historical: Pump Car Rides"},5,{"$f":"getProgramXref($A29,numericItinerary(C$1))","v":""},{"$f":"getProgramXref($A29,numericItinerary(D$1))","v":"x"},{"$f":"getProgramXref($A29,numericItinerary(E$1))","v":""},{"$f":"getProgramXref($A29,numericItinerary(F$1))","v":""},{"$f":"getProgramXref($A29,numericItinerary(G$1))","v":"x"},{"$f":"getProgramXref($A29,numericItinerary(H$1))","v":"x"},{"$f":"getProgramXref($A29,numericItinerary(I$1))","v":""},{"$f":"getProgramXref($A29,numericItinerary(J$1))","v":""},{"$f":"getProgramXref($A29,numericItinerary(K$1))","v":""},{"$f":"getProgramXref($A29,numericItinerary(L$1))","v":"x"},{"$f":"getProgramXref($A29,numericItinerary(M$1))","v":"x"},{"$f":"getProgramXref($A29,numericItinerary(N$1))","v":""},null,5]
[{"$f":"INDEX(program_table,ROW()-5)","v":"Historical: Railroad Construction"},1,{"$f":"getProgramXref($A30,numericItinerary(C$1))","v":""},{"$f":"getProgramXref($A30,numericItinerary(D$1))","v":""},{"$f":"getProgramXref($A30,numericItinerary(E$1))","v":""},{"$f":"getProgramXref($A30,numericItinerary(F$1))","v":""},{"$f":"getProgramXref($A30,numericItinerary(G$1))","v":""},{"$f":"getProgramXref($A30,numericItinerary(H$1))","v":""},{"$f":"getProgramXref($A30,numericItinerary(I$1))","v":""},{"$f":"getProgramXref($A30,numericItinerary(J$1))","v":""},{"$f":"getProgramXref($A30,numericItinerary(K$1))","v":""},{"$f":"getProgramXref($A30,numericItinerary(L$1))","v":"x"},{"$f":"getProgramXref($A30,numericItinerary(M$1))","v":""},{"$f":"getProgramXref($A30,numericItinerary(N$1))","v":""},null,1]
[{"$f":"INDEX(program_table,ROW()-5)","v":"Historical: Spar Pole Climbing"},2,{"$f":"getProgramXref($A31,numericItinerary(C$1))","v":""},{"$f":"getProgramXref($A31,numericItinerary(D$1))","v":""},{"$f":"getProgramXref($A31,numericItinerary(E$1))","v":""},{"$f":"getProgramXref($A31,numericItinerary(F$1))","v":""},{"$f":"getProgramXref($A31,numericItinerary(G$1))","v":""},{"$f":"getProgramXref($A31,numericItinerary(H$1))","v":""},{"$f":"getProgramXref($A31,numericItinerary(I$1))","v":""},{"$f":"getProgramXref($A31,numericItinerary(J$1))","v":""},{"$f":"getProgramXref($A31,numericItinerary(K$1))","v":""},{"$f":"getProgramXref($A31,numericItinerary(L$1))","v":"x"},{"$f":"getProgramXref($A31,numericItinerary(M$1))","v":"x"},{"$f":"getProgramXref($A31,numericItinerary(N$1))","v":""},null,2]
[{"$f":"INDEX(program_table,ROW()-5)","v":"Landmarks: Baldy Mountain"},2,{"$f":"getProgramXref($A32,numericItinerary(C$1))","v":""},{"$f":"getProgramXref($A32,numericItinerary(D$1))","v":""},{"$f":"getProgramXref($A32,numericItinerary(E$1))","v":""},{"$f":"getProgramXref($A32,numericItinerary(F$1))","v":"x"},{"$f":"getProgramXref($A32,numericItinerary(G$1))","v":""},{"$f":"getProgramXref($A32,numericItinerary(H$1))","v":""},{"$f":"getProgramXref($A32,numericItinerary(I$1))","v":""},{"$f":"getProgramXref($A32,numericItinerary(J$1))","v":""},{"$f":"getProgramXref($A32,numericItinerary(K$1))","v":""},{"$f":"getProgramXref($A32,numericItinerary(L$1))","v":"x"},{"$f":"getProgramXref($A32,numericItinerary(M$1))","v":""},{"$f":"getProgramXref($A32,numericItinerary(N$1))","v":""},null,2]
[{"$f":"INDEX(program_table,ROW()-5)","v":"Landmarks: Inspiration Point"},3,{"$f":"getProgramXref($A33,numericItinerary(C$1))","v":""},{"$f":"getProgramXref($A33,numericItinerary(D$1))","v":""},{"$f":"getProgramXref($A33,numericItinerary(E$1))","v":""},{"$f":"getProgramXref($A33,numericItinerary(F$1))","v":""},{"$f":"getProgramXref($A33,numericItinerary(G$1))","v":"x"},{"$f":"getProgramXref($A33,numericItinerary(H$1))","v":""},{"$f":"getProgramXref($A33,numericItinerary(I$1))","v":""},{"$f":"getProgramXref($A33,numericItinerary(J$1))","v":""},{"$f":"getProgramXref($A33,numericItinerary(K$1))","v":""},{"$f":"getProgramXref($A33,numericItinerary(L$1))","v":"x"},{"$f":"getProgramXref($A33,numericItinerary(M$1))","v":"x"},{"$f":"getProgramXref($A33,numericItinerary(N$1))","v":""},null,3]
[{"$f":"INDEX(program_table,ROW()-5)","v":"Landmarks: Mount Phillips"},2,{"$f":"getProgramXref($A34,numericItinerary(C$1))","v":"x"},{"$f":"getProgramXref($A34,numericItinerary(D$1))","v":""},{"$f":"getProgramXref($A34,numericItinerary(E$1))","v":""},{"$f":"getProgramXref($A34,numericItinerary(F$1))","v":""},{"$f":"getProgramXref($A34,numericItinerary(G$1))","v":""},{"$f":"getProgramXref($A34,numericItinerary(H$1))","v":""},{"$f":"getProgramXref($A34,numericItinerary(I$1))","v":""},{"$f":"getProgramXref($A34,numericItinerary(J$1))","v":"x"},{"$f":"getProgramXref($A34,numericItinerary(K$1))","v":""},{"$f":"getProgramXref($A34,numericItinerary(L$1))","v":""},{"$f":"getProgramXref($A34,numericItinerary(M$1))","v":""},{"$f":"getProgramXref($A34,numericItinerary(N$1))","v":""},null,2]
[{"$f":"INDEX(program_table,ROW()-5)","v":"Landmarks: Mountaineering"},3,{"$f":"getProgramXref($A35,numericItinerary(C$1))","v":""},{"$f":"getProgramXref($A35,numericItinerary(D$1))","v":""},{"$f":"getProgramXref($A35,numericItinerary(E$1))","v":""},{"$f":"getProgramXref($A35,numericItinerary(F$1))","v":""},{"$f":"getProgramXref($A35,numericItinerary(G$1))","v":""},{"$f":"getProgramXref($A35,numericItinerary(H$1))","v":""},{"$f":"getProgramXref($A35,numericItinerary(I$1))","v":"x"},{"$f":"getProgramXref($A35,numericItinerary(J$1))","v":""},{"$f":"getProgramXref($A35,numericItinerary(K$1))","v":"x"},{"$f":"getProgramXref($A35,numericItinerary(L$1))","v":""},{"$f":"getProgramXref($A35,numericItinerary(M$1))","v":""},{"$f":"getProgramXref($A35,numericItinerary(N$1))","v":"x"},null,3]
[{"$f":"INDEX(program_table,ROW()-5)","v":"Landmarks: Tooth of Time"},6,{"$f":"getProgramXref($A36,numericItinerary(C$1))","v":""},{"$f":"getProgramXref($A36,numericItinerary(D$1))","v":""},{"$f":"getProgramXref($A36,numericItinerary(E$1))","v":""},{"$f":"getProgramXref($A36,numericItinerary(F$1))","v":""},{"$f":"getProgramXref($A36,numericItinerary(G$1))","v":"x"},{"$f":"getProgramXref($A36,numericItinerary(H$1))","v":""},{"$f":"getProgramXref($A36,numericItinerary(I$1))","v":""},{"$f":"getProgramXref($A36,numericItinerary(J$1))","v":"x"},{"$f":"getProgramXref($A36,numericItinerary(K$1))","v":"x"},{"$f":"getProgramXref($A36,numericItinerary(L$1))","v":"x"},{"$f":"getProgramXref($A36,numericItinerary(M$1))","v":"x"},{"$f":"getProgramXref($A36,numericItinerary(N$1))","v":"x"},null,6]
[{"$f":"INDEX(program_table,ROW()-5)","v":"Landmarks: Trail Peak"},4,{"$f":"getProgramXref($A37,numericItinerary(C$1))","v":""},{"$f":"getProgramXref($A37,numericItinerary(D$1))","v":""},{"$f":"getProgramXref($A37,numericItinerary(E$1))","v":"x"},{"$f":"getProgramXref($A37,numericItinerary(F$1))","v":"x"},{"$f":"getProgramXref($A37,numericItinerary(G$1))","v":""},{"$f":"getProgramXref($A37,numericItinerary(H$1))","v":""},{"$f":"getProgramXref($A37,numericItinerary(I$1))","v":""},{"$f":"getProgramXref($A37,numericItinerary(J$1))","v":"x"},{"$f":"getProgramXref($A37,numericItinerary(K$1))","v":""},{"$f":"getProgramXref($A37,numericItinerary(L$1))","v":""},{"$f":"getProgramXref($A37,numericItinerary(M$1))","v":""},{"$f":"getProgramXref($A37,numericItinerary(N$1))","v":"x"},null,4]
[{"$f":"INDEX(program_table,ROW()-5)","v":"Livestock: Animal Husbandry"},{"$f":"COUNTIF(C38:N38,\"X\")","v":1},{"$f":"getProgramXref($A38,numericItinerary(C$1))","v":""},{"$f":"getProgramXref($A38,numericItinerary(D$1))","v":""},{"$f":"getProgramXref($A38,numericItinerary(E$1))","v":""},{"$f":"getProgramXref($A38,numericItinerary(F$1))","v":""},{"$f":"getProgramXref($A38,numericItinerary(G$1))","v":""},{"$f":"getProgramXref($A38,numericItinerary(H$1))","v":""},{"$f":"getProgramXref($A38,numericItinerary(I$1))","v":""},{"$f":"getProgramXref($A38,numericItinerary(J$1))","v":""},{"$f":"getProgramXref($A38,numericItinerary(K$1))","v":""},{"$f":"getProgramXref($A38,numericItinerary(L$1))","v":""},{"$f":"getProgramXref($A38,numericItinerary(M$1))","v":""},{"$f":"getProgramXref($A38,numericItinerary(N$1))","v":"x"},null,{"$f":"COUNTIF(C38:N38,\"X\")","v":1}]
[{"$f":"INDEX(program_table,ROW()-5)","v":"Livestock: Burro Packing"},7,{"$f":"getProgramXref($A39,numericItinerary(C$1))","v":"x"},{"$f":"getProgramXref($A39,numericItinerary(D$1))","v":""},{"$f":"getProgramXref($A39,numericItinerary(E$1))","v":""},{"$f":"getProgramXref($A39,numericItinerary(F$1))","v":"x"},{"$f":"getProgramXref($A39,numericItinerary(G$1))","v":""},{"$f":"getProgramXref($A39,numericItinerary(H$1))","v":"x"},{"$f":"getProgramXref($A39,numericItinerary(I$1))","v":""},{"$f":"getProgramXref($A39,numericItinerary(J$1))","v":"x"},{"$f":"getProgramXref($A39,numericItinerary(K$1))","v":"x"},{"$f":"getProgramXref($A39,numericItinerary(L$1))","v":""},{"$f":"getProgramXref($A39,numericItinerary(M$1))","v":"x"},{"$f":"getProgramXref($A39,numericItinerary(N$1))","v":"x"},null,7]
[{"$f":"INDEX(program_table,ROW()-5)","v":"Livestock: Chicken Tending"},1,{"$f":"getProgramXref($A40,numericItinerary(C$1))","v":""},{"$f":"getProgramXref($A40,numericItinerary(D$1))","v":""},{"$f":"getProgramXref($A40,numericItinerary(E$1))","v":""},{"$f":"getProgramXref($A40,numericItinerary(F$1))","v":""},{"$f":"getProgramXref($A40,numericItinerary(G$1))","v":"x"},{"$f":"getProgramXref($A40,numericItinerary(H$1))","v":""},{"$f":"getProgramXref($A40,numericItinerary(I$1))","v":""},{"$f":"getProgramXref($A40,numericItinerary(J$1))","v":""},{"$f":"getProgramXref($A40,numericItinerary(K$1))","v":""},{"$f":"getProgramXref($A40,numericItinerary(L$1))","v":""},{"$f":"getProgramXref($A40,numericItinerary(M$1))","v":""},{"$f":"getProgramXref($A40,numericItinerary(N$1))","v":""},null,1]
[{"$f":"INDEX(program_table,ROW()-5)","v":"Livestock: Horse Rides"},6,{"$f":"getProgramXref($A41,numericItinerary(C$1))","v":"x"},{"$f":"getProgramXref($A41,numericItinerary(D$1))","v":""},{"$f":"getProgramXref($A41,numericItinerary(E$1))","v":""},{"$f":"getProgramXref($A41,numericItinerary(F$1))","v":"x"},{"$f":"getProgramXref($A41,numericItinerary(G$1))","v":""},{"$f":"getProgramXref($A41,numericItinerary(H$1))","v":"x"},{"$f":"getProgramXref($A41,numericItinerary(I$1))","v":""},{"$f":"getProgramXref($A41,numericItinerary(J$1))","v":"x"},{"$f":"getProgramXref($A41,numericItinerary(K$1))","v":"x"},{"$f":"getProgramXref($A41,numericItinerary(L$1))","v":""},{"$f":"getProgramXref($A41,numericItinerary(M$1))","v":"x"},{"$f":"getProgramXref($A41,numericItinerary(N$1))","v":""},null,6]
[{"$f":"INDEX(program_table,ROW()-5)","v":"Low Impact Camping"},3,{"$f":"getProgramXref($A42,numericItinerary(C$1))","v":""},{"$f":"getProgramXref($A42,numericItinerary(D$1))","v":"x"},{"$f":"getProgramXref($A42,numericItinerary(E$1))","v":"x"},{"$f":"getProgramXref($A42,numericItinerary(F$1))","v":"x"},{"$f":"getProgramXref($A42,numericItinerary(G$1))","v":""},{"$f":"getProgramXref($A42,numericItinerary(H$1))","v":""},{"$f":"getProgramXref($A42,numericItinerary(I$1))","v":""},{"$f":"getProgramXref($A42,numericItinerary(J$1))","v":""},{"$f":"getProgramXref($A42,numericItinerary(K$1))","v":""},{"$f":"getProgramXref($A42,numericItinerary(L$1))","v":""},{"$f":"getProgramXref($A42,numericItinerary(M$1))","v":""},{"$f":"getProgramXref($A42,numericItinerary(N$1))","v":""},null,3]
[{"$f":"INDEX(program_table,ROW()-5)","v":"Range Sports: 3D Archery"},2,{"$f":"getProgramXref($A43,numericItinerary(C$1))","v":""},{"$f":"getProgramXref($A43,numericItinerary(D$1))","v":""},{"$f":"getProgramXref($A43,numericItinerary(E$1))","v":""},{"$f":"getProgramXref($A43,numericItinerary(F$1))","v":""},{"$f":"getProgramXref($A43,numericItinerary(G$1))","v":""},{"$f":"getProgramXref($A43,numericItinerary(H$1))","v":"x"},{"$f":"getProgramXref($A43,numericItinerary(I$1))","v":""},{"$f":"getProgramXref($A43,numericItinerary(J$1))","v":""},{"$f":"getProgramXref($A43,numericItinerary(K$1))","v":""},{"$f":"getProgramXref($A43,numericItinerary(L$1))","v":""},{"$f":"getProgramXref($A43,numericItinerary(M$1))","v":"x"},{"$f":"getProgramXref($A43,numericItinerary(N$1))","v":""},null,2]
[{"$f":"INDEX(program_table,ROW()-5)","v":"Range Sports: Aerial Archery"},4,{"$f":"getProgramXref($A44,numericItinerary(C$1))","v":""},{"$f":"getProgramXref($A44,numericItinerary(D$1))","v":"x"},{"$f":"getProgramXref($A44,numericItinerary(E$1))","v":"x"},{"$f":"getProgramXref($A44,numericItinerary(F$1))","v":""},{"$f":"getProgramXref($A44,numericItinerary(G$1))","v":""},{"$f":"getProgramXref($A44,numericItinerary(H$1))","v":""},{"$f":"getProgramXref($A44,numericItinerary(I$1))","v":"x"},{"$f":"getProgramXref($A44,numericItinerary(J$1))","v":"x"},{"$f":"getProgramXref($A44,numericItinerary(K$1))","v":""},{"$f":"getProgramXref($A44,numericItinerary(L$1))","v":""},{"$f":"getProgramXref($A44,numericItinerary(M$1))","v":""},{"$f":"getProgramXref($A44,numericItinerary(N$1))","v":""},null,4]
[{"$f":"INDEX(program_table,ROW()-5)","v":"Range Sports: Atlatl Throwing"},3,{"$f":"getProgramXref($A45,numericItinerary(C$1))","v":""},{"$f":"getProgramXref($A45,numericItinerary(D$1))","v":"x"},{"$f":"getProgramXref($A45,numericItinerary(E$1))","v":""},{"$f":"getProgramXref($A45,numericItinerary(F$1))","v":""},{"$f":"getProgramXref($A45,numericItinerary(G$1))","v":""},{"$f":"getProgramXref($A45,numericItinerary(H$1))","v":""},{"$f":"getProgramXref($A45,numericItinerary(I$1))","v":"x"},{"$f":"getProgramXref($A45,numericItinerary(J$1))","v":"x"},{"$f":"getProgramXref($A45,numericItinerary(K$1))","v":""},{"$f":"getProgramXref($A45,numericItinerary(L$1))","v":""},{"$f":"getProgramXref($A45,numericItinerary(M$1))","v":""},{"$f":"getProgramXref($A45,numericItinerary(N$1))","v":""},null,3]
[{"$f":"INDEX(program_table,ROW()-5)","v":"Range Sports: Cartridge Reloading"},2,{"$f":"getProgramXref($A46,numericItinerary(C$1))","v":""},{"$f":"getProgramXref($A46,numericItinerary(D$1))","v":""},{"$f":"getProgramXref($A46,numericItinerary(E$1))","v":""},{"$f":"getProgramXref($A46,numericItinerary(F$1))","v":""},{"$f":"getProgramXref($A46,numericItinerary(G$1))","v":"x"},{"$f":"getProgramXref($A46,numericItinerary(H$1))","v":"x"},{"$f":"getProgramXref($A46,numericItinerary(I$1))","v":""},{"$f":"getProgramXref($A46,numericItinerary(J$1))","v":""},{"$f":"getProgramXref($A46,numericItinerary(K$1))","v":""},{"$f":"getProgramXref($A46,numericItinerary(L$1))","v":""},{"$f":"getProgramXref($A46,numericItinerary(M$1))","v":""},{"$f":"getProgramXref($A46,numericItinerary(N$1))","v":""},null,2]
[{"$f":"INDEX(program_table,ROW()-5)","v":"Range Sports: Cowboy Action Shooting"},3,{"$f":"getProgramXref($A47,numericItinerary(C$1))","v":""},{"$f":"getProgramXref($A47,numericItinerary(D$1))","v":""},{"$f":"getProgramXref($A47,numericItinerary(E$1))","v":"x"},{"$f":"getProgramXref($A47,numericItinerary(F$1))","v":""},{"$f":"getProgramXref($A47,numericItinerary(G$1))","v":""},{"$f":"getProgramXref($A47,numericItinerary(H$1))","v":""},{"$f":"getProgramXref($A47,numericItinerary(I$1))","v":"x"},{"$f":"getProgramXref($A47,numericItinerary(J$1))","v":""},{"$f":"getProgramXref($A47,numericItinerary(K$1))","v":""},{"$f":"getProgramXref($A47,numericItinerary(L$1))","v":""},{"$f":"getProgramXref($A47,numericItinerary(M$1))","v":""},{"$f":"getProgramXref($A47,numericItinerary(N$1))","v":"x"},null,3]
[{"$f":"INDEX(program_table,ROW()-5)","v":"Range Sports: Field Archery"},1,{"$f":"getProgramXref($A48,numericItinerary(C$1))","v":""},{"$f":"getProgramXref($A48,numericItinerary(D$1))","v":"x"},{"$f":"getProgramXref($A48,numericItinerary(E$1))","v":""},{"$f":"getProgramXref($A48,numericItinerary(F$1))","v":""},{"$f":"getProgramXref($A48,numericItinerary(G$1))","v":""},{"$f":"getProgramXref($A48,numericItinerary(H$1))","v":""},{"$f":"getProgramXref($A48,numericItinerary(I$1))","v":""},{"$f":"getProgramXref($A48,numericItinerary(J$1))","v":""},{"$f":"getProgramXref($A48,numericItinerary(K$1))","v":""},{"$f":"getProgramXref($A48,numericItinerary(L$1))","v":""},{"$f":"getProgramXref($A48,numericItinerary(M$1))","v":""},{"$f":"getProgramXref($A48,numericItinerary(N$1))","v":""},null,1]
[{"$f":"INDEX(program_table,ROW()-5)","v":"Range Sports: Muzzleloader Shooting"},3,{"$f":"getProgramXref($A49,numericItinerary(C$1))","v":""},{"$f":"getProgramXref($A49,numericItinerary(D$1))","v":"x"},{"$f":"getProgramXref($A49,numericItinerary(E$1))","v":"x"},{"$f":"getProgramXref($A49,numericItinerary(F$1))","v":""},{"$f":"getProgramXref($A49,numericItinerary(G$1))","v":""},{"$f":"getProgramXref($A49,numericItinerary(H$1))","v":""},{"$f":"getProgramXref($A49,numericItinerary(I$1))","v":"x"},{"$f":"getProgramXref($A49,numericItinerary(J$1))","v":""},{"$f":"getProgramXref($A49,numericItinerary(K$1))","v":""},{"$f":"getProgramXref($A49,numericItinerary(L$1))","v":""},{"$f":"getProgramXref($A49,numericItinerary(M$1))","v":""},{"$f":"getProgramXref($A49,numericItinerary(N$1))","v":""},null,3]
[{"$f":"INDEX(program_table,ROW()-5)","v":"Range Sports: Rifle Shooting"},3,{"$f":"getProgramXref($A50,numericItinerary(C$1))","v":"x"},{"$f":"getProgramXref($A50,numericItinerary(D$1))","v":""},{"$f":"getProgramXref($A50,numericItinerary(E$1))","v":""},{"$f":"getProgramXref($A50,numericItinerary(F$1))","v":"x"},{"$f":"getProgramXref($A50,numericItinerary(G$1))","v":""},{"$f":"getProgramXref($A50,numericItinerary(H$1))","v":""},{"$f":"getProgramXref($A50,numericItinerary(I$1))","v":""},{"$f":"getProgramXref($A50,numericItinerary(J$1))","v":""},{"$f":"getProgramXref($A50,numericItinerary(K$1))","v":""},{"$f":"getProgramXref($A50,numericItinerary(L$1))","v":"x"},{"$f":"getProgramXref($A50,numericItinerary(M$1))","v":""},{"$f":"getProgramXref($A50,numericItinerary(N$1))","v":""},null,3]
[{"$f":"INDEX(program_table,ROW()-5)","v":"Range Sports: Shotgun Shooting"},3,{"$f":"getProgramXref($A51,numericItinerary(C$1))","v":""},{"$f":"getProgramXref($A51,numericItinerary(D$1))","v":""},{"$f":"getProgramXref($A51,numericItinerary(E$1))","v":"x"},{"$f":"getProgramXref($A51,numericItinerary(F$1))","v":""},{"$f":"getProgramXref($A51,numericItinerary(G$1))","v":""},{"$f":"getProgramXref($A51,numericItinerary(H$1))","v":""},{"$f":"getProgramXref($A51,numericItinerary(I$1))","v":"x"},{"$f":"getProgramXref($A51,numericItinerary(J$1))","v":""},{"$f":"getProgramXref($A51,numericItinerary(K$1))","v":""},{"$f":"getProgramXref($A51,numericItinerary(L$1))","v":""},{"$f":"getProgramXref($A51,numericItinerary(M$1))","v":""},{"$f":"getProgramXref($A51,numericItinerary(N$1))","v":"x"},null,3]
[{"$f":"INDEX(program_table,ROW()-5)","v":"Range Sports: Shotshell Reloading"},3,{"$f":"getProgramXref($A52,numericItinerary(C$1))","v":""},{"$f":"getProgramXref($A52,numericItinerary(D$1))","v":"x"},{"$f":"getProgramXref($A52,numericItinerary(E$1))","v":""},{"$f":"getProgramXref($A52,numericItinerary(F$1))","v":""},{"$f":"getProgramXref($A52,numericItinerary(G$1))","v":""},{"$f":"getProgramXref($A52,numericItinerary(H$1))","v":""},{"$f":"getProgramXref($A52,numericItinerary(I$1))","v":"x"},{"$f":"getProgramXref($A52,numericItinerary(J$1))","v":""},{"$f":"getProgramXref($A52,numericItinerary(K$1))","v":""},{"$f":"getProgramXref($A52,numericItinerary(L$1))","v":""},{"$f":"getProgramXref($A52,numericItinerary(M$1))","v":""},{"$f":"getProgramXref($A52,numericItinerary(N$1))","v":"x"},null,3]
[{"$f":"INDEX(program_table,ROW()-5)","v":"Range Sports: Tomahawk Throwing"},3,{"$f":"getProgramXref($A53,numericItinerary(C$1))","v":""},{"$f":"getProgramXref($A53,numericItinerary(D$1))","v":"x"},{"$f":"getProgramXref($A53,numericItinerary(E$1))","v":""},{"$f":"getProgramXref($A53,numericItinerary(F$1))","v":""},{"$f":"getProgramXref($A53,numericItinerary(G$1))","v":""},{"$f":"getProgramXref($A53,numericItinerary(H$1))","v":""},{"$f":"getProgramXref($A53,numericItinerary(I$1))","v":"x"},{"$f":"getProgramXref($A53,numericItinerary(J$1))","v":""},{"$f":"getProgramXref($A53,numericItinerary(K$1))","v":""},{"$f":"getProgramXref($A53,numericItinerary(L$1))","v":""},{"$f":"getProgramXref($A53,numericItinerary(M$1))","v":""},{"$f":"getProgramXref($A53,numericItinerary(N$1))","v":"x"},null,3]
[{"$f":"INDEX(program_table,ROW()-5)","v":"STEM: Archeology"},5,{"$f":"getProgramXref($A54,numericItinerary(C$1))","v":""},{"$f":"getProgramXref($A54,numericItinerary(D$1))","v":""},{"$f":"getProgramXref($A54,numericItinerary(E$1))","v":""},{"$f":"getProgramXref($A54,numericItinerary(F$1))","v":""},{"$f":"getProgramXref($A54,numericItinerary(G$1))","v":"x"},{"$f":"getProgramXref($A54,numericItinerary(H$1))","v":""},{"$f":"getProgramXref($A54,numericItinerary(I$1))","v":""},{"$f":"getProgramXref($A54,numericItinerary(J$1))","v":""},{"$f":"getProgramXref($A54,numericItinerary(K$1))","v":"x"},{"$f":"getProgramXref($A54,numericItinerary(L$1))","v":"x"},{"$f":"getProgramXref($A54,numericItinerary(M$1))","v":"x"},{"$f":"getProgramXref($A54,numericItinerary(N$1))","v":"x"},null,5]
[{"$f":"INDEX(program_table,ROW()-5)","v":"STEM: Astronomy"},4,{"$f":"getProgramXref($A55,numericItinerary(C$1))","v":""},{"$f":"getProgramXref($A55,numericItinerary(D$1))","v":""},{"$f":"getProgramXref($A55,numericItinerary(E$1))","v":""},{"$f":"getProgramXref($A55,numericItinerary(F$1))","v":""},{"$f":"getProgramXref($A55,numericItinerary(G$1))","v":"x"},{"$f":"getProgramXref($A55,numericItinerary(H$1))","v":"x"},{"$f":"getProgramXref($A55,numericItinerary(I$1))","v":""},{"$f":"getProgramXref($A55,numericItinerary(J$1))","v":""},{"$f":"getProgramXref($A55,numericItinerary(K$1))","v":""},{"$f":"getProgramXref($A55,numericItinerary(L$1))","v":"x"},{"$f":"getProgramXref($A55,numericItinerary(M$1))","v":"x"},{"$f":"getProgramXref($A55,numericItinerary(N$1))","v":""}]
[{"$f":"INDEX(program_table,ROW()-5)","v":"STEM: Geology"},1,{"$f":"getProgramXref($A56,numericItinerary(C$1))","v":""},{"$f":"getProgramXref($A56,numericItinerary(D$1))","v":""},{"$f":"getProgramXref($A56,numericItinerary(E$1))","v":""},{"$f":"getProgramXref($A56,numericItinerary(F$1))","v":""},{"$f":"getProgramXref($A56,numericItinerary(G$1))","v":""},{"$f":"getProgramXref($A56,numericItinerary(H$1))","v":"x"},{"$f":"getProgramXref($A56,numericItinerary(I$1))","v":""},{"$f":"getProgramXref($A56,numericItinerary(J$1))","v":""},{"$f":"getProgramXref($A56,numericItinerary(K$1))","v":""},{"$f":"getProgramXref($A56,numericItinerary(L$1))","v":""},{"$f":"getProgramXref($A56,numericItinerary(M$1))","v":""},{"$f":"getProgramXref($A56,numericItinerary(N$1))","v":""},null,{"$f":"COUNTIF(C56:N56,\"X\")","v":1}]
[{"$f":"INDEX(program_table,ROW()-5)","v":"Western Lore: Branding"},5,{"$f":"getProgramXref($A57,numericItinerary(C$1))","v":""},{"$f":"getProgramXref($A57,numericItinerary(D$1))","v":""},{"$f":"getProgramXref($A57,numericItinerary(E$1))","v":"x"},{"$f":"getProgramXref($A57,numericItinerary(F$1))","v":""},{"$f":"getProgramXref($A57,numericItinerary(G$1))","v":"x"},{"$f":"getProgramXref($A57,numericItinerary(H$1))","v":""},{"$f":"getProgramXref($A57,numericItinerary(I$1))","v":""},{"$f":"getProgramXref($A57,numericItinerary(J$1))","v":""},{"$f":"getProgramXref($A57,numericItinerary(K$1))","v":"x"},{"$f":"getProgramXref($A57,numericItinerary(L$1))","v":"x"},{"$f":"getProgramXref($A57,numericItinerary(M$1))","v":"x"},{"$f":"getProgramXref($A57,numericItinerary(N$1))","v":""},null,5]
[{"$f":"INDEX(program_table,ROW()-5)","v":"Western Lore: Cantina"},10,{"$f":"getProgramXref($A58,numericItinerary(C$1))","v":"x"},{"$f":"getProgramXref($A58,numericItinerary(D$1))","v":"x"},{"$f":"getProgramXref($A58,numericItinerary(E$1))","v":"x"},{"$f":"getProgramXref($A58,numericItinerary(F$1))","v":"x"},{"$f":"getProgramXref($A58,numericItinerary(G$1))","v":"x"},{"$f":"getProgramXref($A58,numericItinerary(H$1))","v":"x"},{"$f":"getProgramXref($A58,numericItinerary(I$1))","v":""},{"$f":"getProgramXref($A58,numericItinerary(J$1))","v":"x"},{"$f":"getProgramXref($A58,numericItinerary(K$1))","v":"x"},{"$f":"getProgramXref($A58,numericItinerary(L$1))","v":"x"},{"$f":"getProgramXref($A58,numericItinerary(M$1))","v":""},{"$f":"getProgramXref($A58,numericItinerary(N$1))","v":"x"},null,10]
[{"$f":"INDEX(program_table,ROW()-5)","v":"Western Lore: Roping"},8,{"$f":"getProgramXref($A59,numericItinerary(C$1))","v":"x"},{"$f":"getProgramXref($A59,numericItinerary(D$1))","v":"x"},{"$f":"getProgramXref($A59,numericItinerary(E$1))","v":""},{"$f":"getProgramXref($A59,numericItinerary(F$1))","v":"x"},{"$f":"getProgramXref($A59,numericItinerary(G$1))","v":"x"},{"$f":"getProgramXref($A59,numericItinerary(H$1))","v":"x"},{"$f":"getProgramXref($A59,numericItinerary(I$1))","v":""},{"$f":"getProgramXref($A59,numericItinerary(J$1))","v":"x"},{"$f":"getProgramXref($A59,numericItinerary(K$1))","v":"x"},{"$f":"getProgramXref($A59,numericItinerary(L$1))","v":"x"},{"$f":"getProgramXref($A59,numericItinerary(M$1))","v":""},{"$f":"getProgramXref($A59,numericItinerary(N$1))","v":""},null,8]
[{"$f":"INDEX(program_table,ROW()-5)","v":{"$error":"#REF!"}},0,{"$f":"getProgramXref($A60,numericItinerary(C$1))","v":{"$error":"#VALUE!"}},{"$f":"getProgramXref($A60,numericItinerary(D$1))","v":{"$error":"#VALUE!"}},{"$f":"getProgramXref($A60,numericItinerary(E$1))","v":{"$error":"#VALUE!"}},{"$f":"getProgramXref($A60,numericItinerary(F$1))","v":{"$error":"#VALUE!"}},{"$f":"getProgramXref($A60,numericItinerary(G$1))","v":{"$error":"#VALUE!"}},{"$f":"getProgramXref($A60,numericItinerary(H$1))","v":{"$error":"#VALUE!"}},{"$f":"getProgramXref($A60,numericItinerary(I$1))","v":{"$error":"#VALUE!"}},{"$f":"getProgramXref($A60,numericItinerary(J$1))","v":{"$error":"#VALUE!"}},{"$f":"getProgramXref($A60,numericItinerary(K$1))","v":{"$error":"#VALUE!"}},{"$f":"getProgramXref($A60,numericItinerary(L$1))","v":{"$error":"#VALUE!"}},{"$f":"getProgramXref($A60,numericItinerary(M$1))","v":{"$error":"#VALUE!"}},{"$f":"getProgramXref($A60,numericItinerary(N$1))","v":{"$error":"#VALUE!"}},null,0]
[{"$f":"INDEX(program_table,ROW()-5)","v":{"$error":"#REF!"}},0,{"$f":"getProgramXref($A61,numericItinerary(C$1))","v":{"$error":"#VALUE!"}},{"$f":"getProgramXref($A61,numericItinerary(D$1))","v":{"$error":"#VALUE!"}},{"$f":"getProgramXref($A61,numericItinerary(E$1))","v":{"$error":"#VALUE!"}},{"$f":"getProgramXref($A61,numericItinerary(F$1))","v":{"$error":"#VALUE!"}},{"$f":"getProgramXref($A61,numericItinerary(G$1))","v":{"$error":"#VALUE!"}},{"$f":"getProgramXref($A61,numericItinerary(H$1))","v":{"$error":"#VALUE!"}},{"$f":"getProgramXref($A61,numericItinerary(I$1))","v":{"$error":"#VALUE!"}},{"$f":"getProgramXref($A61,numericItinerary(J$1))","v":{"$error":"#VALUE!"}},{"$f":"getProgramXref($A61,numericItinerary(K$1))","v":{"$error":"#VALUE!"}},{"$f":"getProgramXref($A61,numericItinerary(L$1))","v":{"$error":"#VALUE!"}},{"$f":"getProgramXref($A61,numericItinerary(M$1))","v":{"$error":"#VALUE!"}},{"$f":"getProgramXref($A61,numericItinerary(N$1))","v":{"$error":"#VALUE!"}},null,0]
["# programs in itinerary:  ",null,{"$f":"COUNTIF(C6:C61,\"X\")","v":22},13,14,18,17,15,13,21,20,18,17,15,null,{"$f":"COUNTIF(#REF!,\"X\")","v":{"$error":"#REF!"}}]
[null,null,null,null,null,null,null,null,null,null,null,null,null,null,null,{"$f":"COUNTIF(#REF!,\"X\")","v":{"$error":"#REF!"}}]
[null,null,null,null,null,null,null,null,null,null,null,null,null,null,null,{"$f":"COUNTIF(#REF!,\"X\")","v":{"$error":"#REF!"}}]
[null,null,null,null,null,null,null,null,null,null,null,null,null,null,null,{"$f":"COUNTIF(#REF!,\"X\")","v":{"$error":"#REF!"}}]

{"sheet":"Tables","index":8,"n_rows":151,"n_cols":16,"rows_kept":151,"cut":false,"hidden":false,"merged":[[1,4,1,10],[143,0,150,0],[106,10,106,14],[114,8,114,9],[115,8,115,9],[118,11,123,11],[118,12,123,12],[118,13,123,13],[118,14,123,14],[1,11,55,11]]}
["Row","Category","Code","Value",null,"Total","Score Selected",null,null,null,"n","Index"]
[null,"programFactor","Multiply X Activity score for value to use",1.5,"This is applied to each score in the calculation. Use to make activities more/less important.",null,null,null,null,null,null,"These are the results of the \"Scores\" worksheet — from the scores entered from the Preference Survey worksheets.","Total","Average","Median","Mode"]
[{"$f":"ROW()-2","v":1},"Program",{"$f":" INDEX(program_table,A3,1)","v":"Climbing: Bouldering Gym"},{"$f":"SUM(Scores!B2:M2)","v":152},null,null,null,null,null,null,1,null,{"$f":"SUM(Scores!$B2:M2)*programFactor","v":228},{"$f":"IF(COUNT(Scores!$B2:M2)>0,AVERAGE(Scores!$B2:M2)*programFactor,0)","v":19},{"$f":"IF(COUNT(Scores!$B2:M2)>0,MEDIAN(Scores!$B2:M2)*programFactor,0)","v":22.5},{"$f":"IF(getmode(Scores!$B2:M2)=\"\",\"\",getmode(Scores!$B2:M2)*programFactor)","v":22.5}]
[{"$f":"ROW()-2","v":2},"Program",{"$f":" INDEX(program_table,A4,1)","v":"Climbing: Climbing Wall/Tower"},{"$f":"SUM(Scores!B3:M3)","v":225},null,null,null,null,null,null,2,null,{"$f":"SUM(Scores!$B3:M3)*programFactor","v":337.5},{"$f":"IF(COUNT(Scores!$B3:M3)>0,AVERAGE(Scores!$B3:M3)*programFactor,0)","v":28.125},{"$f":"IF(COUNT(Scores!$B3:M3)>0,MEDIAN(Scores!$B3:M3)*programFactor,0)","v":30},{"$f":"IF(getmode(Scores!$B3:M3)=\"\",\"\",getmode(Scores!$B3:M3)*programFactor)","v":30}]
[3,"Program",{"$f":" INDEX(program_table,A5,1)","v":"Climbing: Crate Stacking"},{"$f":"SUM(Scores!B4:M4)","v":76},null,null,null,null,null,null,3,null,{"$f":"SUM(Scores!$B4:M4)*programFactor","v":114},{"$f":"IF(COUNT(Scores!$B4:M4)>0,AVERAGE(Scores!$B4:M4)*programFactor,0)","v":9.5},{"$f":"IF(COUNT(Scores!$B4:M4)>0,MEDIAN(Scores!$B4:M4)*programFactor,0)","v":10.5},{"$f":"IF(getmode(Scores!$B4:M4)=\"\",\"\",getmode(Scores!$B4:M4)*programFactor)","v":3}]
[4,"Program",{"$f":" INDEX(program_table,A6,1)","v":"Climbing: Rock Climbing"},{"$f":"SUM(Scores!B5:M5)","v":188},null,null,null,null,null,null,4,null,{"$f":"SUM(Scores!$B5:M5)*programFactor","v":282},{"$f":"IF(COUNT(Scores!$B5:M5)>0,AVERAGE(Scores!$B5:M5)*programFactor,0)","v":23.5},{"$f":"IF(COUNT(Scores!$B5:M5)>0,MEDIAN(Scores!$B5:M5)*programFactor,0)","v":27},{"$f":"IF(getmode(Scores!$B5:M5)=\"\",\"\",getmode(Scores!$B5:M5)*programFactor)","v":27}]
[5,"Program",{"$f":" INDEX(program_table,A7,1)","v":"COPE: High Challenge Course"},{"$f":"SUM(Scores!B6:M6)","v":108},null,null,null,null,null,null,5,null,{"$f":"SUM(Scores!$B6:M6)*programFactor","v":162},{"$f":"IF(COUNT(Scores!$B6:M6)>0,AVERAGE(Scores!$B6:M6)*programFactor,0)","v":13.5},{"$f":"IF(COUNT(Scores!$B6:M6)>0,MEDIAN(Scores!$B6:M6)*programFactor,0)","v":12.75},{"$f":"IF(getmode(Scores!$B6:M6)=\"\",\"\",getmode(Scores!$B6:M6)*programFactor)","v":0}]
[6,"Program",{"$f":" INDEX(program_table,A8,1)","v":"COPE: Initiative Games"},{"$f":"SUM(Scores!B7:M7)","v":111},null,null,null,null,null,null,6,null,{"$f":"SUM(Scores!$B7:M7)*programFactor","v":166.5},{"$f":"IF(COUNT(Scores!$B7:M7)>0,AVERAGE(Scores!$B7:M7)*programFactor,0)","v":13.875},{"$f":"IF(COUNT(Scores!$B7:M7)>0,MEDIAN(Scores!$B7:M7)*programFactor,0)","v":14.25},{"$f":"IF(getmode(Scores!$B7:M7)=\"\",\"\",getmode(Scores!$B7:M7)*programFactor)","v":0}]
[7,"Program",{"$f":" INDEX(program_table,A9,1)","v":"COPE: Low Challenge Course"},{"$f":"SUM(Scores!B8:M8)","v":111},null,null,null,null,null,null,7,null,{"$f":"SUM(Scores!$B8:M8)*programFactor","v":166.5},{"$f":"IF(COUNT(Scores!$B8:M8)>0,AVERAGE(Scores!$B8:M8)*programFactor,0)","v":13.875},{"$f":"IF(COUNT(Scores!$B8:M8)>0,MEDIAN(Scores!$B8:M8)*programFactor,0)","v":14.25},{"$f":"IF(getmode(Scores!$B8:M8)=\"\",\"\",getmode(Scores!$B8:M8)*programFactor)","v":0}]
[8,"Program",{"$f":" INDEX(program_table,A10,1)","v":"Ecology: Demonstration Forest"},{"$f":"SUM(Scores!B9:M9)","v":84},null,null,null,null,null,null,8,null,{"$f":"SUM(Scores!$B9:M9)*programFactor","v":126},{"$f":"IF(COUNT(Scores!$B9:M9)>0,AVERAGE(Scores!$B9:M9)*programFactor,0)","v":10.5},{"$f":"IF(COUNT(Scores!$B9:M9)>0,MEDIAN(Scores!$B9:M9)*programFactor,0)","v":9},{"$f":"IF(getmode(Scores!$B9:M9)=\"\",\"\",getmode(Scores!$B9:M9)*programFactor)","v":0}]
[9,"Program",{"$f":" INDEX(program_table,A11,1)","v":"Ecology: Self-Guided Fishing"},{"$f":"SUM(Scores!B10:M10)","v":87},null,null,null,null,null,null,9,null,{"$f":"SUM(Scores!$B10:M10)*programFactor","v":130.5},{"$f":"IF(COUNT(Scores!$B10:M10)>0,AVERAGE(Scores!$B10:M10)*programFactor,0)","v":10.875},{"$f":"IF(COUNT(Scores!$B10:M10)>0,MEDIAN(Scores!$B10:M10)*programFactor,0)","v":13.5},{"$f":"IF(getmode(Scores!$B10:M10)=\"\",\"\",getmode(Scores!$B10:M10)*programFactor)","v":0}]
[10,"Program",{"$f":" INDEX(program_table,A12,1)","v":"Evening: Advisor Coffee"},{"$f":"SUM(Scores!B11:M11)","v":61},null,null,null,null,null,null,10,null,{"$f":"SUM(Scores!$B11:M11)*programFactor","v":91.5},{"$f":"IF(COUNT(Scores!$B11:M11)>0,AVERAGE(Scores!$B11:M11)*programFactor,0)","v":8.3181818181818183},{"$f":"IF(COUNT(Scores!$B11:M11)>0,MEDIAN(Scores!$B11:M11)*programFactor,0)","v":7.5},{"$f":"IF(getmode(Scores!$B11:M11)=\"\",\"\",getmode(Scores!$B11:M11)*programFactor)","v":0}]
[11,"Program",{"$f":" INDEX(program_table,A13,1)","v":"Evening: Campfire Show"},{"$f":"SUM(Scores!B12:M12)","v":73},null,null,null,null,null,null,11,null,{"$f":"SUM(Scores!$B12:M12)*programFactor","v":109.5},{"$f":"IF(COUNT(Scores!$B12:M12)>0,AVERAGE(Scores!$B12:M12)*programFactor,0)","v":9.954545454545455},{"$f":"IF(COUNT(Scores!$B12:M12)>0,MEDIAN(Scores!$B12:M12)*programFactor,0)","v":7.5},{"$f":"IF(getmode(Scores!$B12:M12)=\"\",\"\",getmode(Scores!$B12:M12)*programFactor)","v":7.5}]
[12,"Program",{"$f":" INDEX(program_table,A14,1)","v":"Evening: Chuckwagon Dinner"},{"$f":"SUM(Scores!B13:M13)","v":73},null,null,null,null,null,null,12,null,{"$f":"SUM(Scores!$B13:M13)*programFactor","v":109.5},{"$f":"IF(COUNT(Scores!$B13:M13)>0,AVERAGE(Scores!$B13:M13)*programFactor,0)","v":13.6875},{"$f":"IF(COUNT(Scores!$B13:M13)>0,MEDIAN(Scores!$B13:M13)*programFactor,0)","v":15.75},{"$f":"IF(getmode(Scores!$B13:M13)=\"\",\"\",getmode(Scores!$B13:M13)*programFactor)","v":0}]
[13,"Program",{"$f":" INDEX(program_table,A15,1)","v":"Historical: Adobe Brick-Making"},{"$f":"SUM(Scores!B14:M14)","v":74},null,null,null,null,null,null,13,null,{"$f":"SUM(Scores!$B14:M14)*programFactor","v":111},{"$f":"IF(COUNT(Scores!$B14:M14)>0,AVERAGE(Scores!$B14:M14)*programFactor,0)","v":9.25},{"$f":"IF(COUNT(Scores!$B14:M14)>0,MEDIAN(Scores!$B14:M14)*programFactor,0)","v":6},{"$f":"IF(getmode(Scores!$B14:M14)=\"\",\"\",getmode(Scores!$B14:M14)*programFactor)","v":0}]
[14,"Program",{"$f":" INDEX(program_table,A16,1)","v":"Historical: Blacksmithing"},{"$f":"SUM(Scores!B15:M15)","v":76},null,null,null,null,null,null,14,null,{"$f":"SUM(Scores!$B15:M15)*programFactor","v":114},{"$f":"IF(COUNT(Scores!$B15:M15)>0,AVERAGE(Scores!$B15:M15)*programFactor,0)","v":10.363636363636363},{"$f":"IF(COUNT(Scores!$B15:M15)>0,MEDIAN(Scores!$B15:M15)*programFactor,0)","v":10.5},{"$f":"IF(getmode(Scores!$B15:M15)=\"\",\"\",getmode(Scores!$B15:M15)*programFactor)","v":3}]
[15,"Program",{"$f":" INDEX(program_table,A17,1)","v":"Historical: Cabin Restoration"},{"$f":"SUM(Scores!B16:M16)","v":82},null,null,null,null,null,null,15,null,{"$f":"SUM(Scores!$B16:M16)*programFactor","v":123},{"$f":"IF(COUNT(Scores!$B16:M16)>0,AVERAGE(Scores!$B16:M16)*programFactor,0)","v":11.181818181818182},{"$f":"IF(COUNT(Scores!$B16:M16)>0,MEDIAN(Scores!$B16:M16)*programFactor,0)","v":7.5},{"$f":"IF(getmode(Scores!$B16:M16)=\"\",\"\",getmode(Scores!$B16:M16)*programFactor)","v":4.5}]
[16,"Program",{"$f":" INDEX(program_table,A18,1)","v":"Historical: Cabin/House Tour"},{"$f":"SUM(Scores!B17:M17)","v":84},null,null,null,null,null,null,16,null,{"$f":"SUM(Scores!$B17:M17)*programFactor","v":126},{"$f":"IF(COUNT(Scores!$B17:M17)>0,AVERAGE(Scores!$B17:M17)*programFactor,0)","v":10.5},{"$f":"IF(COUNT(Scores!$B17:M17)>0,MEDIAN(Scores!$B17:M17)*programFactor,0)","v":12},{"$f":"IF(getmode(Scores!$B17:M17)=\"\",\"\",getmode(Scores!$B17:M17)*programFactor)","v":12}]
[17,"Program",{"$f":" INDEX(program_table,A19,1)","v":"Historical: Crafting"},{"$f":"SUM(Scores!B18:M18)","v":71},null,null,null,null,null,null,17,null,{"$f":"SUM(Scores!$B18:M18)*programFactor","v":106.5},{"$f":"IF(COUNT(Scores!$B18:M18)>0,AVERAGE(Scores!$B18:M18)*programFactor,0)","v":8.875},{"$f":"IF(COUNT(Scores!$B18:M18)>0,MEDIAN(Scores!$B18:M18)*programFactor,0)","v":6},{"$f":"IF(getmode(Scores!$B18:M18)=\"\",\"\",getmode(Scores!$B18:M18)*programFactor)","v":1.5}]
[18,"Program",{"$f":" INDEX(program_table,A20,1)","v":"Historical: Crosscut & Tie Making"},{"$f":"SUM(Scores!B19:M19)","v":97},null,null,null,null,null,null,18,null,{"$f":"SUM(Scores!$B19:M19)*programFactor","v":145.5},{"$f":"IF(COUNT(Scores!$B19:M19)>0,AVERAGE(Scores!$B19:M19)*programFactor,0)","v":13.227272727272727},{"$f":"IF(COUNT(Scores!$B19:M19)>0,MEDIAN(Scores!$B19:M19)*programFactor,0)","v":15},{"$f":"IF(getmode(Scores!$B19:M19)=\"\",\"\",getmode(Scores!$B19:M19)*programFactor)","v":15}]
[19,"Program",{"$f":" INDEX(program_table,A21,1)","v":"Historical: Flint Knapping"},{"$f":"SUM(Scores!B20:M20)","v":62},null,null,null,null,null,null,19,null,{"$f":"SUM(Scores!$B20:M20)*programFactor","v":93},{"$f":"IF(COUNT(Scores!$B20:M20)>0,AVERAGE(Scores!$B20:M20)*programFactor,0)","v":7.75},{"$f":"IF(COUNT(Scores!$B20:M20)>0,MEDIAN(Scores!$B20:M20)*programFactor,0)","v":6},{"$f":"IF(getmode(Scores!$B20:M20)=\"\",\"\",getmode(Scores!$B20:M20)*programFactor)","v":0}]
[20,"Program",{"$f":" INDEX(program_table,A22,1)","v":"Historical: Fur Trapper Rendezvous"},{"$f":"SUM(Scores!B21:M21)","v":104},null,null,null,null,null,null,20,null,{"$f":"SUM(Scores!$B21:M21)*programFactor","v":156},{"$f":"IF(COUNT(Scores!$B21:M21)>0,AVERAGE(Scores!$B21:M21)*programFactor,0)","v":13},{"$f":"IF(COUNT(Scores!$B21:M21)>0,MEDIAN(Scores!$B21:M21)*programFactor,0)","v":15},{"$f":"IF(getmode(Scores!$B21:M21)=\"\",\"\",getmode(Scores!$B21:M21)*programFactor)","v":3}]
[21,"Program",{"$f":" INDEX(program_table,A23,1)","v":"Historical: Gold Panning"},{"$f":"SUM(Scores!B22:M22)","v":76},null,null,null,null,null,null,21,null,{"$f":"SUM(Scores!$B22:M22)*programFactor","v":114},{"$f":"IF(COUNT(Scores!$B22:M22)>0,AVERAGE(Scores!$B22:M22)*programFactor,0)","v":9.5},{"$f":"IF(COUNT(Scores!$B22:M22)>0,MEDIAN(Scores!$B22:M22)*programFactor,0)","v":6},{"$f":"IF(getmode(Scores!$B22:M22)=\"\",\"\",getmode(Scores!$B22:M22)*programFactor)","v":0}]
[22,"Program",{"$f":" INDEX(program_table,A24,1)","v":"Historical: Mine Tour"},{"$f":"SUM(Scores!B23:M23)","v":86},null,null,null,null,null,null,22,null,{"$f":"SUM(Scores!$B23:M23)*programFactor","v":129},{"$f":"IF(COUNT(Scores!$B23:M23)>0,AVERAGE(Scores!$B23:M23)*programFactor,0)","v":10.75},{"$f":"IF(COUNT(Scores!$B23:M23)>0,MEDIAN(Scores!$B23:M23)*programFactor,0)","v":9.75},{"$f":"IF(getmode(Scores!$B23:M23)=\"\",\"\",getmode(Scores!$B23:M23)*programFactor)","v":0}]
[23,"Program",{"$f":" INDEX(program_table,A25,1)","v":"Historical: Petroglyph Tour"},{"$f":"SUM(Scores!B24:M24)","v":69},null,null,null,null,null,null,23,null,{"$f":"SUM(Scores!$B24:M24)*programFactor","v":103.5},{"$f":"IF(COUNT(Scores!$B24:M24)>0,AVERAGE(Scores!$B24:M24)*programFactor,0)","v":8.625},{"$f":"IF(COUNT(Scores!$B24:M24)>0,MEDIAN(Scores!$B24:M24)*programFactor,0)","v":9.75},{"$f":"IF(getmode(Scores!$B24:M24)=\"\",\"\",getmode(Scores!$B24:M24)*programFactor)","v":3}]
[24,"Program",{"$f":" INDEX(program_table,A26,1)","v":"Historical: Pump Car Rides"},{"$f":"SUM(Scores!B25:M25)","v":108},null,null,null,null,null,null,24,null,{"$f":"SUM(Scores!$B25:M25)*programFactor","v":162},{"$f":"IF(COUNT(Scores!$B25:M25)>0,AVERAGE(Scores!$B25:M25)*programFactor,0)","v":18},{"$f":"IF(COUNT(Scores!$B25:M25)>0,MEDIAN(Scores!$B25:M25)*programFactor,0)","v":22.5},{"$f":"IF(getmode(Scores!$B25:M25)=\"\",\"\",getmode(Scores!$B25:M25)*programFactor)","v":0}]
[25,"Program",{"$f":" INDEX(program_table,A27,1)","v":"Historical: Railroad Construction"},{"$f":"SUM(Scores!B26:M26)","v":134},null,null,null,null,null,null,25,null,{"$f":"SUM(Scores!$B26:M26)*programFactor","v":201},{"$f":"IF(COUNT(Scores!$B26:M26)>0,AVERAGE(Scores!$B26:M26)*programFactor,0)","v":16.75},{"$f":"IF(COUNT(Scores!$B26:M26)>0,MEDIAN(Scores!$B26:M26)*programFactor,0)","v":18.75},{"$f":"IF(getmode(Scores!$B26:M26)=\"\",\"\",getmode(Scores!$B26:M26)*programFactor)","v":15}]
[26,"Program",{"$f":" INDEX(program_table,A28,1)","v":"Historical: Spar Pole Climbing"},{"$f":"SUM(Scores!B27:M27)","v":97},null,null,null,null,null,null,26,null,{"$f":"SUM(Scores!$B27:M27)*programFactor","v":145.5},{"$f":"IF(COUNT(Scores!$B27:M27)>0,AVERAGE(Scores!$B27:M27)*programFactor,0)","v":14.549999999999999},{"$f":"IF(COUNT(Scores!$B27:M27)>0,MEDIAN(Scores!$B27:M27)*programFactor,0)","v":15},{"$f":"IF(getmode(Scores!$B27:M27)=\"\",\"\",getmode(Scores!$B27:M27)*programFactor)","v":15}]
[27,"Program",{"$f":" INDEX(program_table,A29,1)","v":"Landmarks: Baldy Mountain"},{"$f":"SUM(Scores!B28:M28)","v":100},null,null,null,null,null,null,26,null,{"$f":"SUM(Scores!$B28:M28)*programFactor","v":150},{"$f":"IF(COUNT(Scores!$B28:M28)>0,AVERAGE(Scores!$B28:M28)*programFactor,0)","v":13.636363636363637},{"$f":"IF(COUNT(Scores!$B28:M28)>0,MEDIAN(Scores!$B28:M28)*programFactor,0)","v":18},{"$f":"IF(getmode(Scores!$B28:M28)=\"\",\"\",getmode(Scores!$B28:M28)*programFactor)","v":0}]
[28,"Program",{"$f":" INDEX(program_table,A30,1)","v":"Landmarks: Inspiration Point"},{"$f":"SUM(Scores!B29:M29)","v":117},null,null,null,null,null,null,27,null,{"$f":"SUM(Scores!$B29:M29)*programFactor","v":175.5},{"$f":"IF(COUNT(Scores!$B29:M29)>0,AVERAGE(Scores!$B29:M29)*programFactor,0)","v":15.954545454545455},{"$f":"IF(COUNT(Scores!$B29:M29)>0,MEDIAN(Scores!$B29:M29)*programFactor,0)","v":18},{"$f":"IF(getmode(Scores!$B29:M29)=\"\",\"\",getmode(Scores!$B29:M29)*programFactor)","v":0}]
[29,"Program",{"$f":" INDEX(program_table,A31,1)","v":"Landmarks: Mount Phillips"},{"$f":"SUM(Scores!B30:M30)","v":103},null,null,null,null,null,null,28,null,{"$f":"SUM(Scores!$B30:M30)*programFactor","v":154.5},{"$f":"IF(COUNT(Scores!$B30:M30)>0,AVERAGE(Scores!$B30:M30)*programFactor,0)","v":15.450000000000001},{"$f":"IF(COUNT(Scores!$B30:M30)>0,MEDIAN(Scores!$B30:M30)*programFactor,0)","v":18},{"$f":"IF(getmode(Scores!$B30:M30)=\"\",\"\",getmode(Scores!$B30:M30)*programFactor)","v":18}]
[30,"Program",{"$f":" INDEX(program_table,A32,1)","v":"Landmarks: Mountaineering"},{"$f":"SUM(Scores!B31:M31)","v":126},null,null,null,null,null,null,null,null,{"$f":"SUM(Scores!$B31:M31)*programFactor","v":189},{"$f":"IF(COUNT(Scores!$B31:M31)>0,AVERAGE(Scores!$B31:M31)*programFactor,0)","v":17.181818181818183},{"$f":"IF(COUNT(Scores!$B31:M31)>0,MEDIAN(Scores!$B31:M31)*programFactor,0)","v":18},{"$f":"IF(getmode(Scores!$B31:M31)=\"\",\"\",getmode(Scores!$B31:M31)*programFactor)","v":22.5}]
[31,"Program",{"$f":" INDEX(program_table,A33,1)","v":"Landmarks: Tooth of Time"},{"$f":"SUM(Scores!B32:M32)","v":135},null,null,null,null,null,null,null,null,{"$f":"SUM(Scores!$B32:M32)*programFactor","v":202.5},{"$f":"IF(COUNT(Scores!$B32:M32)>0,AVERAGE(Scores!$B32:M32)*programFactor,0)","v":18.40909090909091},{"$f":"IF(COUNT(Scores!$B32:M32)>0,MEDIAN(Scores!$B32:M32)*programFactor,0)","v":19.5},{"$f":"IF(getmode(Scores!$B32:M32)=\"\",\"\",getmode(Scores!$B32:M32)*programFactor)","v":19.5}]
[32,"Program",{"$f":" INDEX(program_table,A34,1)","v":"Landmarks: Trail Peak"},{"$f":"SUM(Scores!B33:M33)","v":61},null,null,null,null,null,null,null,null,{"$f":"SUM(Scores!$B33:M33)*programFactor","v":91.5},{"$f":"IF(COUNT(Scores!$B33:M33)>0,AVERAGE(Scores!$B33:M33)*programFactor,0)","v":9.1499999999999986},{"$f":"IF(COUNT(Scores!$B33:M33)>0,MEDIAN(Scores!$B33:M33)*programFactor,0)","v":7.5},{"$f":"IF(getmode(Scores!$B33:M33)=\"\",\"\",getmode(Scores!$B33:M33)*programFactor)","v":0}]
[33,"Program",{"$f":" INDEX(program_table,A35,1)","v":"Livestock: Animal Husbandry"},{"$f":"SUM(Scores!B34:M34)","v":121},null,null,null,null,null,null,null,null,{"$f":"SUM(Scores!$B34:M34)*programFactor","v":181.5},{"$f":"IF(COUNT(Scores!$B34:M34)>0,AVERAGE(Scores!$B34:M34)*programFactor,0)","v":18.149999999999999},{"$f":"IF(COUNT(Scores!$B34:M34)>0,MEDIAN(Scores!$B34:M34)*programFactor,0)","v":18},{"$f":"IF(getmode(Scores!$B34:M34)=\"\",\"\",getmode(Scores!$B34:M34)*programFactor)","v":10.5}]
[34,"Program",{"$f":" INDEX(program_table,A36,1)","v":"Livestock: Burro Packing"},{"$f":"SUM(Scores!B35:M35)","v":147},null,null,null,null,null,null,null,null,{"$f":"SUM(Scores!$B35:M35)*programFactor","v":220.5},{"$f":"IF(COUNT(Scores!$B35:M35)>0,AVERAGE(Scores!$B35:M35)*programFactor,0)","v":18.375},{"$f":"IF(COUNT(Scores!$B35:M35)>0,MEDIAN(Scores!$B35:M35)*programFactor,0)","v":18},{"$f":"IF(getmode(Scores!$B35:M35)=\"\",\"\",getmode(Scores!$B35:M35)*programFactor)","v":10.5}]
[35,"Program",{"$f":" INDEX(program_table,A37,1)","v":"Livestock: Chicken Tending"},{"$f":"SUM(Scores!B36:M36)","v":140},null,null,null,null,null,null,null,null,{"$f":"SUM(Scores!$B36:M36)*programFactor","v":210},{"$f":"IF(COUNT(Scores!$B36:M36)>0,AVERAGE(Scores!$B36:M36)*programFactor,0)","v":19.09090909090909},{"$f":"IF(COUNT(Scores!$B36:M36)>0,MEDIAN(Scores!$B36:M36)*programFactor,0)","v":21},{"$f":"IF(getmode(Scores!$B36:M36)=\"\",\"\",getmode(Scores!$B36:M36)*programFactor)","v":7.5}]
[36,"Program",{"$f":" INDEX(program_table,A38,1)","v":"Livestock: Horse Rides"},{"$f":"SUM(Scores!B37:M37)","v":170},null,null,null,null,null,null,null,null,{"$f":"SUM(Scores!$B37:M37)*programFactor","v":255},{"$f":"IF(COUNT(Scores!$B37:M37)>0,AVERAGE(Scores!$B37:M37)*programFactor,0)","v":23.181818181818183},{"$f":"IF(COUNT(Scores!$B37:M37)>0,MEDIAN(Scores!$B37:M37)*programFactor,0)","v":27},{"$f":"IF(getmode(Scores!$B37:M37)=\"\",\"\",getmode(Scores!$B37:M37)*programFactor)","v":30}]
[37,"Program",{"$f":" INDEX(program_table,A39,1)","v":"Low Impact Camping"},{"$f":"SUM(Scores!B38:M38)","v":157},null,null,null,null,null,null,null,null,{"$f":"SUM(Scores!$B38:M38)*programFactor","v":235.5},{"$f":"IF(COUNT(Scores!$B38:M38)>0,AVERAGE(Scores!$B38:M38)*programFactor,0)","v":21.40909090909091},{"$f":"IF(COUNT(Scores!$B38:M38)>0,MEDIAN(Scores!$B38:M38)*programFactor,0)","v":22.5},{"$f":"IF(getmode(Scores!$B38:M38)=\"\",\"\",getmode(Scores!$B38:M38)*programFactor)","v":30}]
[38,"Program",{"$f":" INDEX(program_table,A40,1)","v":"Range Sports: 3D Archery"},{"$f":"SUM(Scores!B39:M39)","v":129},null,null,null,null,null,null,null,null,{"$f":"SUM(Scores!$B39:M39)*programFactor","v":193.5},{"$f":"IF(COUNT(Scores!$B39:M39)>0,AVERAGE(Scores!$B39:M39)*programFactor,0)","v":19.350000000000001},{"$f":"IF(COUNT(Scores!$B39:M39)>0,MEDIAN(Scores!$B39:M39)*programFactor,0)","v":18},{"$f":"IF(getmode(Scores!$B39:M39)=\"\",\"\",getmode(Scores!$B39:M39)*programFactor)","v":10.5}]
[39,"Program",{"$f":" INDEX(program_table,A41,1)","v":"Range Sports: Aerial Archery"},{"$f":"SUM(Scores!B40:M40)","v":101},null,null,null,null,null,null,null,null,{"$f":"SUM(Scores!$B34:M34)*programFactor","v":181.5},{"$f":"IF(COUNT(Scores!$B34:M34)>0,AVERAGE(Scores!$B34:M34)*programFactor,0)","v":18.149999999999999},{"$f":"IF(COUNT(Scores!$B34:M34)>0,MEDIAN(Scores!$B34:M34)*programFactor,0)","v":18},{"$f":"IF(getmode(Scores!$B34:M34)=\"\",\"\",getmode(Scores!$B34:M34)*programFactor)","v":10.5}]
[40,"Program",{"$f":" INDEX(program_table,A42,1)","v":"Range Sports: Atlatl Throwing"},{"$f":"SUM(Scores!B35:M35)","v":147},null,null,null,null,null,null,null,null,{"$f":"SUM(Scores!$B35:M35)*programFactor","v":220.5},{"$f":"IF(COUNT(Scores!$B35:M35)>0,AVERAGE(Scores!$B35:M35)*programFactor,0)","v":18.375},{"$f":"IF(COUNT(Scores!$B35:M35)>0,MEDIAN(Scores!$B35:M35)*programFactor,0)","v":18},{"$f":"IF(getmode(Scores!$B35:M35)=\"\",\"\",getmode(Scores!$B35:M35)*programFactor)","v":10.5}]
[41,"Program",{"$f":" INDEX(program_table,A43,1)","v":"Range Sports: Cartridge Reloading"},{"$f":"SUM(Scores!B36:M36)","v":140},null,null,null,null,null,null,null,null,{"$f":"SUM(Scores!$B36:M36)*programFactor","v":210},{"$f":"IF(COUNT(Scores!$B36:M36)>0,AVERAGE(Scores!$B36:M36)*programFactor,0)","v":19.09090909090909},{"$f":"IF(COUNT(Scores!$B36:M36)>0,MEDIAN(Scores!$B36:M36)*programFactor,0)","v":21},{"$f":"IF(getmode(Scores!$B36:M36)=\"\",\"\",getmode(Scores!$B36:M36)*programFactor)","v":7.5}]
[42,"Program",{"$f":" INDEX(program_table,A44,1)","v":"Range Sports: Cowboy Action Shooting"},{"$f":"SUM(Scores!B37:M37)","v":170},null,null,null,null,null,null,null,null,{"$f":"SUM(Scores!$B37:M37)*programFactor","v":255},{"$f":"IF(COUNT(Scores!$B37:M37)>0,AVERAGE(Scores!$B37:M37)*programFactor,0)","v":23.181818181818183},{"$f":"IF(COUNT(Scores!$B37:M37)>0,MEDIAN(Scores!$B37:M37)*programFactor,0)","v":27},{"$f":"IF(getmode(Scores!$B37:M37)=\"\",\"\",getmode(Scores!$B37:M37)*programFactor)","v":30}]
[43,"Program",{"$f":" INDEX(program_table,A45,1)","v":"Range Sports: Field Archery"},{"$f":"SUM(Scores!B38:M38)","v":157},null,null,null,null,null,null,null,null,{"$f":"SUM(Scores!$B38:M38)*programFactor","v":235.5},{"$f":"IF(COUNT(Scores!$B38:M38)>0,AVERAGE(Scores!$B38:M38)*programFactor,0)","v":21.40909090909091},{"$f":"IF(COUNT(Scores!$B38:M38)>0,MEDIAN(Scores!$B38:M38)*programFactor,0)","v":22.5},{"$f":"IF(getmode(Scores!$B38:M38)=\"\",\"\",getmode(Scores!$B38:M38)*programFactor)","v":30}]
[44,"Program",{"$f":" INDEX(program_table,A46,1)","v":"Range Sports: Muzzleloader Shooting"},{"$f":"SUM(Scores!B39:M39)","v":129},null,null,null,null,null,null,null,null,{"$f":"SUM(Scores!$B39:M39)*programFactor","v":193.5},{"$f":"IF(COUNT(Scores!$B39:M39)>0,AVERAGE(Scores!$B39:M39)*programFactor,0)","v":19.350000000000001},{"$f":"IF(COUNT(Scores!$B39:M39)>0,MEDIAN(Scores!$B39:M39)*programFactor,0)","v":18},{"$f":"IF(getmode(Scores!$B39:M39)=\"\",\"\",getmode(Scores!$B39:M39)*programFactor)","v":10.5}]
[45,"Program",{"$f":" INDEX(program_table,A47,1)","v":"Range Sports: Rifle Shooting"},{"$f":"SUM(Scores!B40:M40)","v":101},null,null,null,null,null,null,null,null,{"$f":"SUM(Scores!$B40:M40)*programFactor","v":151.5},{"$f":"IF(COUNT(Scores!$B40:M40)>0,AVERAGE(Scores!$B40:M40)*programFactor,0)","v":12.625},{"$f":"IF(COUNT(Scores!$B40:M40)>0,MEDIAN(Scores!$B40:M40)*programFactor,0)","v":15},{"$f":"IF(getmode(Scores!$B40:M40)=\"\",\"\",getmode(Scores!$B40:M40)*programFactor)","v":15}]
[46,"Program",{"$f":" INDEX(program_table,A48,1)","v":"Range Sports: Shotgun Shooting"},{"$f":"SUM(Scores!B41:M41)","v":91},null,null,null,null,null,null,null,null,{"$f":"SUM(Scores!$B41:M41)*programFactor","v":136.5},{"$f":"IF(COUNT(Scores!$B41:M41)>0,AVERAGE(Scores!$B41:M41)*programFactor,0)","v":11.375},{"$f":"IF(COUNT(Scores!$B41:M41)>0,MEDIAN(Scores!$B41:M41)*programFactor,0)","v":9},{"$f":"IF(getmode(Scores!$B41:M41)=\"\",\"\",getmode(Scores!$B41:M41)*programFactor)","v":7.5}]
[47,"Program",{"$f":" INDEX(program_table,A49,1)","v":"Range Sports: Shotshell Reloading"},{"$f":"SUM(Scores!B42:M42)","v":135},null,null,null,null,null,null,null,null,{"$f":"SUM(Scores!$B42:M42)*programFactor","v":202.5},{"$f":"IF(COUNT(Scores!$B42:M42)>0,AVERAGE(Scores!$B42:M42)*programFactor,0)","v":18.40909090909091},{"$f":"IF(COUNT(Scores!$B42:M42)>0,MEDIAN(Scores!$B42:M42)*programFactor,0)","v":19.5},{"$f":"IF(getmode(Scores!$B42:M42)=\"\",\"\",getmode(Scores!$B42:M42)*programFactor)","v":19.5}]
[48,"Program",{"$f":" INDEX(program_table,A50,1)","v":"Range Sports: Tomahawk Throwing"},{"$f":"SUM(Scores!B43:M43)","v":138},null,null,null,null,null,null,null,null,{"$f":"SUM(Scores!$B43:M43)*programFactor","v":207},{"$f":"IF(COUNT(Scores!$B43:M43)>0,AVERAGE(Scores!$B43:M43)*programFactor,0)","v":18.818181818181817},{"$f":"IF(COUNT(Scores!$B43:M43)>0,MEDIAN(Scores!$B43:M43)*programFactor,0)","v":18},{"$f":"IF(getmode(Scores!$B43:M43)=\"\",\"\",getmode(Scores!$B43:M43)*programFactor)","v":15}]
[49,"Program",{"$f":" INDEX(program_table,A51,1)","v":"STEM: Archeology"},{"$f":"SUM(Scores!B50:M50)","v":138},null,null,null,null,null,null,null,null,{"$f":"SUM(Scores!$B50:M50)*programFactor","v":207},{"$f":"IF(COUNT(Scores!$B50:M50)>0,AVERAGE(Scores!$B50:M50)*programFactor,0)","v":18.818181818181817},{"$f":"IF(COUNT(Scores!$B50:M50)>0,MEDIAN(Scores!$B50:M50)*programFactor,0)","v":18},{"$f":"IF(getmode(Scores!$B50:M50)=\"\",\"\",getmode(Scores!$B50:M50)*programFactor)","v":15}]
[50,"Program",{"$f":" INDEX(program_table,A52,1)","v":"STEM: Astronomy"},{"$f":"SUM(Scores!B51:M51)","v":138},null,null,null,null,null,null,null,null,{"$f":"SUM(Scores!$B51:M51)*programFactor","v":207},{"$f":"IF(COUNT(Scores!$B51:M51)>0,AVERAGE(Scores!$B51:M51)*programFactor,0)","v":18.818181818181817},{"$f":"IF(COUNT(Scores!$B51:M51)>0,MEDIAN(Scores!$B51:M51)*programFactor,0)","v":18},{"$f":"IF(getmode(Scores!$B51:M51)=\"\",\"\",getmode(Scores!$B51:M51)*programFactor)","v":15}]
[51,"Program",{"$f":" INDEX(program_table,A53,1)","v":"STEM: Geology"},{"$f":"SUM(Scores!B52:M52)","v":61},null,null,null,null,null,null,null,null,{"$f":"SUM(Scores!$B52:M52)*programFactor","v":91.5},{"$f":"IF(COUNT(Scores!$B52:M52)>0,AVERAGE(Scores!$B52:M52)*programFactor,0)","v":9.1499999999999986},{"$f":"IF(COUNT(Scores!$B52:M52)>0,MEDIAN(Scores!$B52:M52)*programFactor,0)","v":7.5},{"$f":"IF(getmode(Scores!$B52:M52)=\"\",\"\",getmode(Scores!$B52:M52)*programFactor)","v":0}]
[52,"Program",{"$f":" INDEX(program_table,A54,1)","v":"Western Lore: Branding"},{"$f":"SUM(Scores!B53:M53)","v":157},null,null,null,null,null,null,31,null,{"$f":"SUM(Scores!$B53:M53)*programFactor","v":235.5},{"$f":"IF(COUNT(Scores!$B53:M53)>0,AVERAGE(Scores!$B53:M53)*programFactor,0)","v":23.549999999999997},{"$f":"IF(COUNT(Scores!$B53:M53)>0,MEDIAN(Scores!$B53:M53)*programFactor,0)","v":24.75},{"$f":"IF(getmode(Scores!$B53:M53)=\"\",\"\",getmode(Scores!$B53:M53)*programFactor)","v":30}]
[53,"Program",{"$f":" INDEX(program_table,A55,1)","v":"Western Lore: Cantina"},{"$f":"SUM(Scores!B54:M54)","v":89},null,null,null,null,null,null,null,null,{"$f":"SUM(Scores!$B54:M54)*programFactor","v":133.5},{"$f":"IF(COUNT(Scores!$B54:M54)>0,AVERAGE(Scores!$B54:M54)*programFactor,0)","v":16.6875},{"$f":"IF(COUNT(Scores!$B54:M54)>0,MEDIAN(Scores!$B54:M54)*programFactor,0)","v":15.75},{"$f":"IF(getmode(Scores!$B54:M54)=\"\",\"\",getmode(Scores!$B54:M54)*programFactor)","v":0}]
[54,"Program",{"$f":" INDEX(program_table,A56,1)","v":"Western Lore: Roping"},{"$f":"SUM(Scores!B55:M55)","v":190},null,null,null,null,null,null,31,null,{"$f":"SUM(Scores!$B55:M55)*programFactor","v":285},{"$f":"IF(COUNT(Scores!$B55:M55)>0,AVERAGE(Scores!$B55:M55)*programFactor,0)","v":25.90909090909091},{"$f":"IF(COUNT(Scores!$B55:M55)>0,MEDIAN(Scores!$B55:M55)*programFactor,0)","v":27},{"$f":"IF(getmode(Scores!$B55:M55)=\"\",\"\",getmode(Scores!$B55:M55)*programFactor)","v":30}]
[{"$f":"A56+1","v":55},"Peaks","Baldy Mountain",2]
[56,"Peaks","Mount Phillips",1.5]
[57,"Peaks","Tooth of Time",1.5]
[58,"Peaks","Inspiration Point",1]
[59,"Peaks","Trail Peak",1.5]
[60,"Peaks","Mountaineering",1.2]
[61,"Area","Rank 1",{"$f":"IF(UPPER(areaImportant)=\"Y\",INDEX(areaDefaults,Preferences!B7),0)","v":200},null,null,null,null,1,1000]
[62,"Area","Rank 2",{"$f":"IF(UPPER(areaImportant)=\"Y\",INDEX(areaDefaults,Preferences!B8),0)","v":150},null,null,null,null,2,600,{"$f":"IF(areaImportant=\"y\",\"Preferences setting is that area is important\", \"Preferences setting is that area is not important\")","v":"Preferences setting is that area is important"}]
[63,"Area","Rank 3",{"$f":"IF(UPPER(areaImportant)=\"Y\",INDEX(areaDefaults,Preferences!B9),0)","v":1000},null,null,null,null,3,200,{"$f":"IF(areaImportant=\"y\",\"These are the default values — MAKE CHANGES HERE\", \"\")","v":"These are the default values — MAKE CHANGES HERE"}]
[64,"Area","Rank 4",{"$f":"IF(UPPER(areaImportant)=\"Y\",INDEX(areaDefaults,Preferences!B10),0)","v":600},null,null,null,null,4,150]
[65,"Days Food",1,100]
[66,"Days Food",2,90]
[67,"Days Food",3,80]
[68,"Days Food",4,70]
[69,"Days Food",5,60]
[70,"Days Food",6,50]
[71,"Food from HQ",1,20]
[72,"Food from HQ",2,30]
[73,"Food from HQ",3,40]
[74,"Food from HQ",4,50]
[75,"Food from HQ",5,60]
[76,"Food from HQ",6,70]
[77,"Food from HQ",7,80]
[78,"Food from HQ",8,90]
[79,"Food from HQ",9,100]
[80,"Trail Camps",0,250]
[81,"Trail Camps",1,200]
[82,"Trail Camps",2,175]
[{"$f":"A84+1","v":83},"Trail Camps",3,150]
[{"$f":"A85+1","v":84},"Trail Camps",4,125]
[{"$f":"A86+1","v":85},"Trail Camps",5,100]
[{"$f":"A87+1","v":86},"Trail Camps",6,75]
[{"$f":"A88+1","v":87},"Trail Camps",7,50]
[88,"Trail Camps",8,25]
[89,"Dry Camps",0,300]
[90,"Dry Camps",1,250]
[91,"Dry Camps",2,225]
[92,"Dry Camps",3,200]
[93,"Dry Camps",4,150]
[94,"Dry Camps",5,100]
[95,"Dry Camps",6,50]
[96,"Dry Camps",7,20]
[97,"Total Camps",3,60]
[98,"Total Camps",4,70]
[99,"Total Camps",5,80]
[100,"Total Camps",6,90]
[101,"Total Camps",7,100]
[102,"Total Camps",8,75]
[103,"Total Camps",9,60]
[104,"Total Camps",10,50]
[105,"Difficulty","C",2500,null,null,null,null,null,null,"Match skill level with itinerary difficulty"]
[106,"Difficulty","R",2666.6666666666665,null,null,null,null,null,null,"Skill","C","R","S","SS"]
[107,"Difficulty","S",2833.333333333333,null,null,null,null,"maxSkill:",4000,1,{"$f":"maxSkill+maxDifficult","v":5000},{"$f":"L109-((L109-O109)/3)","v":3500},{"$f":"M109-((L109-O109)/3)","v":2000},{"$f":"difficultDelta","v":500}]
[108,"Difficulty","SS",3000,null,null,null,null,"maxDifficult:",1000,2,{"$f":"L109-((L$109-L$118)/9)","v":4500},{"$f":"L110-((L110-O110)/3)","v":3333.333333333333},{"$f":"M110-((L110-O110)/3)","v":2166.6666666666661},{"$f":"L117","v":1000}]
[109,"Max Altitude",0,20,null,null,null,null,"minDifficult:",500,3,{"$f":"L110-((L$109-L$118)/9)","v":4000},3166.6666666666665,2333.333333333333,{"$f":"L116","v":1500}]
[110,"Max Altitude",9000,30,null,null,null,null,null,null,4,3500,3000,2500,{"$f":"L115","v":2000}]
[111,"Max Altitude",9100,40,null,null,null,null,null,null,5,3000,2833.3333333333335,2666.666666666667,{"$f":"L114","v":2500}]
[112,"Max Altitude",9200,50,null,null,null,null,null,null,6,2500,2666.6666666666665,2833.333333333333,{"$f":"L113","v":3000}]
[113,"Max Altitude",9800,60,null,null,null,null,{"$f":"\"Your Crew is Level \" & skillLevel","v":"Your Crew is Level 6"},null,7,2000,2500,3000,{"$f":"L112","v":3500}]
[114,"Max Altitude",10000,70,null,null,null,null,"(from Preferences)",null,8,1500,2333.3333333333335,3166.666666666667,{"$f":"L111","v":4000}]
[115,"Max Altitude",10500,80,null,null,null,null,null,null,9,1000,2166.666666666667,3333.3333333333339,{"$f":"L110","v":4500}]
[116,"Max Altitude",10600,90,null,null,null,null,null,null,10,{"$f":"difficultDelta","v":500},2000,3500,{"$f":"L109","v":5000}]
[117,"Max Altitude",10800,100,null,null,null,null,null,null,null,"Challenging","Rugged","Strenuous","Super Strenuous"]
[118,"Max Altitude",11000,110]
[119,"Max Altitude",11800,120]
[120,"Max Altitude",12441,130]
[121,"Total Gain",0,40]
[122,"Total Gain",1500,50]
[123,"Total Gain",2000,60]
[124,"Total Gain",2500,70]
[125,"Total Gain",3000,80]
[126,"Total Gain",3500,90]
[127,"Total Gain",4000,100]
[128,"Total Gain",4500,90]
[129,"Total Gain",5000,80]
[130,"Total Gain",5500,70]
[131,"Total Gain",6000,60]
[132,"Total Gain",6500,50]
[133,"Daily Change",300,100]
[134,"Daily Change",600,300]
[135,"Daily Change",900,200]
[136,"Daily Change",1200,100]
[137,"Hike Out","n",0]
[138,"Hike Out","y",500]
[139,"Hike In","n",0]
[140,"Hike In","y",500]
[141,"Distance","Miles",100]
["These are used for code lookup puposes only.","Difficulty","C","Challenging"]
[null,"Difficulty","R","Rugged"]
[null,"Difficulty","S","Strenuous"]
[null,"Difficulty","SS","Super Strenuous"]
[null,"campType","D","Dry"]
[null,"campType","S","Staffed"]
[null,"campType","T","Trail"]
[null,"campType","X","No  Camping"]

{"sheet":"Detail Informaton","index":9,"n_rows":37,"n_cols":2,"rows_kept":37,"cut":false,"hidden":false,"merged":[[1,0,1,1],[2,0,2,1]]}
["This sheet provides more detailed information about this spreadsheet and may be useful for anyone wishing to modify it."]
["This spreadsheet makes extensive use of \"Protected\" and \"Hidden\" cells and \"Hidden\"  worksheets.  To \"unprotect\" or \"unhide\" any of these, put the cursor on a worksheet tab and right click it.  Click \"Unprotect Sheet...\" and select the worksheet to display.  There are no passwords locking any of the \"hidden\" or \"protected\" areas."]
["There are buttons that may be pressed to select the scoring to be used in the calculation.  These are \"Total\" for the total score, \"Average\" to select the average (or Mean) score, \"Median\" to select the most common score, or \"Mode\" (most frequently used score).  These control the actual score values used in calculation  Try all and see what the difference in the results is."]
[]
["There are a number of \"tabs\" or \"worksheets\".  The use of these is as follows:"]
["Visible:"]
["  Instructions","General use instructions for the user that does not want to make any changes to the spreadsheet."]
["  Preferences","A set of \"preferences\" that may be used to adjust the calculations based on information specific to the crew."]
["  Scores","The \"scores\" for each crewmember from the program survey form.  These are on the basis of 0 to 20."]
["  Results","The calculated \"result\" from fitting the \"scores\" to the itinerary information."]
["  Itinerary Chart","Graph of sorted itineraries — shows relative differences between selections"]
["  Program Chart","This is a graph showing what programs the crewmembers wish to participate in."]
["  Itinerary Details","This provides a snapshot of individual itineraries.  Enter the itinerary the snapship is desired for."]
["  Itinerary Xref Chart","This is the same chart that's in the in the TREKS book"]
["  Tables","This is the set of \"factors\" for each of the various metrics.  These may be modified by the user."]
["  Detail Information","This worksheet."]
["Hidden:  (Note that there are no passwords on these, the user may \"unhide\" them by right-clicking in the tab area)"]
["  Itinerary Camps","Much information updated annually by hand from the TREKS Book.  Information relating to itineraries is calculated from these entries."]
["  ItineraryPrograms","Programs available at camps.  This can be created automatically but must be checked & updated manually.  Can verify with the Itinerary Xref Chart.  This takes a lot of detailed work!"]
["  Descriptions","This is the textual description of each itinerary.  This is manually copied from the TREKS Book each year."]
["  Calculator","This brings the preferences, scores, factors from \"Tables\", and itinerary information together to calculate detailed preference values for each itinerary.  The sum of these is the \"Result\" for each itinerary."]
["  Itineraries","This is information relative to the current year's itineraries.  All is derived from tables in other worksheets."]
["  Programs","Table of Philmont's available programs.  These are specific to 12-Day (all), 9-Day (subset) and 7-Day (subset) treks."]
["  Camp Programs","This is a table of programs available at each staffed camp. Verified manually, used to develop basic info for ItineraryPrograms worksheet.  Does not often change from year to year."]
["  Camp Elevations","This is information relative to Philmont's camps.  It is used in the calculations and in the Itinerary Details printout.  Is a good source of camp names & UTM Coordinates/elevations."]
[]
["Information in the Visible tabs is generally either documented in the worksheet or is self-evident.  Information about the worksheets that may be useful is below."]
["  Scores","Clicking the \"Clear Scores\" button erases all scores for all 12 participants.  User should enter the participant names in row 1."]
["  Results","The left side shows the itineraries that best \"fit\" the crew's desires.  On the right is a table showing the programs the crew desired in preference order.  It indicates which programs are included in each of the top 6 itineraries. "]
["  Itinerary Details","Enter the itinerary number and expedition number to get information about the itinerary including daily information."]
["  Tables","If some of the areas are more important to your crew, you can change the factors used in the calculations here.  The factors are highlighted where arbitrary values were set based on the author's preferences, they may be modified to meet your crew.   Only make changes in the unlocked cells in the Value column or the Green boxes for Area or Skill/Difficulty.  You may navigate between these with the TAB key."]
["  Itineraries","This sheet has information about the current year's itineraries.  Key information is manually updated from the TREKS books (daily campsites, first food pickup day number, method of return to base, itineraries that cross US-64, peaks hiked, etc.)  Row 1 has the columns that must be updated annually highlighted in red."]
["  itineraryXrefChart","This conforms to the Cross Reference chart in the TREKS book showing itineraries that have programs.  It is based on information in the Itinerary Programs worksheet."]
["  Calculator","This calculates a preference value for each of the metrics.  There is nothing to modify here — the value calculated will be based on values from other worksheets and any modification desired to any metric should be made in those underlying sheets, not in this one."]
["  Camp Elevations","This worksheet is a list of all the camps with details about the camp.  Note that some of the camps are not used and the information may not be complete for them.  It doesn't matter because only the camps included in the current year's itineraries is ever referenced.  All are shown here for completeness.   It is a good source of camp names & UTM Coordinates/elevations."]
["  Descriptions","These descriptions are copied from the TREKS Book and are displayed on the Itinerary Details display."]
["  Camp Programs","This is a table of staffed camps with flags for the programs offered at each.  It is used to provide much of the program inclusion information in the Itineries worksheet."]

{"sheet":"itineraryCamps","index":10,"n_rows":30,"n_cols":117,"rows_kept":30,"cut":false,"hidden":true,"merged":[[1,36,1,45],[1,115,1,116],[1,85,1,94],[1,46,1,54],[1,55,1,64],[1,65,1,74],[1,75,1,84],[1,95,1,104],[1,105,1,114],[1,24,1,26],[28,30,28,35],[1,30,1,35],[1,1,1,3],[0,0,2,0],[1,4,1,13],[1,14,1,23],[1,27,1,29]]}
["(Enter Red columns manually)\n\n\nItinerary",1,{"$f":"B1+1","v":2},3,4,5,{"$f":"F1+1","v":6},{"$f":"G1+1","v":7},{"$f":"H1+1","v":8},{"$f":"I1+1","v":9},10,11,12,13,14,15,16,{"$f":"Q1+1","v":17},18,19,20,21,22,23,24,25,26,27,28,29,{"$f":"AD1+1","v":30},{"$f":"AE1+1","v":31},{"$f":"AF1+1","v":32},{"$f":"AG1+1","v":33},{"$f":"AH1+1","v":34},{"$f":"AI1+1","v":35},{"$f":"AJ1+1","v":36},{"$f":"AK1+1","v":37},{"$f":"AL1+1","v":38},{"$f":"AM1+1","v":39},{"$f":"AN1+1","v":40},{"$f":"AO1+1","v":41},{"$f":"AP1+1","v":42},{"$f":"AQ1+1","v":43},{"$f":"AR1+1","v":44},{"$f":"AS1+1","v":45},{"$f":"AT1+1","v":46},{"$f":"AU1+1","v":47},{"$f":"AV1+1","v":48},{"$f":"AW1+1","v":49},{"$f":"AX1+1","v":50},{"$f":"AY1+1","v":51},{"$f":"AZ1+1","v":52},{"$f":"BA1+1","v":53},{"$f":"BB1+1","v":54},{"$f":"BC1+1","v":55},{"$f":"BD1+1","v":56},{"$f":"BE1+1","v":57},{"$f":"BF1+1","v":58},{"$f":"BG1+1","v":59},{"$f":"BH1+1","v":60},{"$f":"BI1+1","v":61},{"$f":"BJ1+1","v":62},{"$f":"BK1+1","v":63},{"$f":"BL1+1","v":64},{"$f":"BM1+1","v":65},{"$f":"BN1+1","v":66},{"$f":"BO1+1","v":67},{"$f":"BP1+1","v":68},{"$f":"BQ1+1","v":69},{"$f":"BR1+1","v":70},{"$f":"BS1+1","v":71},{"$f":"BT1+1","v":72},{"$f":"BU1+1","v":73},{"$f":"BV1+1","v":74},{"$f":"BW1+1","v":75},{"$f":"BX1+1","v":76},{"$f":"BY1+1","v":77},{"$f":"BZ1+1","v":78},{"$f":"CA1+1","v":79},{"$f":"CB1+1","v":80},{"$f":"CC1+1","v":81},{"$f":"CD1+1","v":82},{"$f":"CE1+1","v":83},{"$f":"CF1+1","v":84},{"$f":"CG1+1","v":85},{"$f":"CH1+1","v":86},{"$f":"CI1+1","v":87},{"$f":"CJ1+1","v":88},{"$f":"CK1+1","v":89},{"$f":"CL1+1","v":90},{"$f":"CM1+1","v":91},{"$f":"CN1+1","v":92},{"$f":"CO1+1","v":93},{"$f":"CP1+1","v":94},{"$f":"CQ1+1","v":95},{"$f":"CR1+1","v":96},{"$f":"CS1+1","v":97},{"$f":"CT1+1","v":98},{"$f":"CU1+1","v":99},{"$f":"CV1+1","v":100},{"$f":"CW1+1","v":101},{"$f":"CX1+1","v":102},{"$f":"CY1+1","v":103},{"$f":"CZ1+1","v":104},{"$f":"DA1+1","v":105},{"$f":"DB1+1","v":106},{"$f":"DC1+1","v":107},{"$f":"DD1+1","v":108},{"$f":"DE1+1","v":109},{"$f":"DF1+1","v":110},{"$f":"DG1+1","v":111},{"$f":"DH1+1","v":112},{"$f":"DI1+1","v":113},{"$f":"DJ1+1","v":114},{"$f":"DK1+1","v":115}]
[null,"Itinerary Information",null,null,"Backcountry Camps by Itinerary Day",null,null,null,null,null,null,null,null,null,"Food Pickup's",null,null,null,null,null,null,null,null,null,"Start/End",null,null,"Cross US-64",null,null,"Peaks (Enter Manually)",null,null,null,null,null,"Camp Elevation",null,null,null,null,null,null,null,null,null,"Daily Elevation Change",null,null,null,null,null,null,null,null,"Staffed Camp",null,null,null,null,null,null,null,null,null,"Trail Camp",null,null,null,null,null,null,null,null,null,"Dry Camp",null,null,null,null,null,null,null,null,null,"Layovers",null,null,null,null,null,null,null,null,null,"Country",null,null,null,null,null,null,null,null,null,"Map",null,null,null,null,null,null,null,null,null,"Food Pickup Info"]
[null,"Itinerary Label","Difficulty","Distance","Day 2","Day 3","Day 4","Day 5","Day 6","Day 7","Day 8","Day 9","Day 10","Day 11",2,{"$f":"O3+1","v":3},{"$f":"P3+1","v":4},5,6,7,8,9,10,11,"Starting Trailhead","Ending Trailhead","Via Tooth","Day","Cross At","Direction","Baldy Mountain","Inspiration Point","Mt. Phillips","Mountaineering","Tooth of Time","Trail Peak",{"$f":"O3","v":2},3,4,5,6,7,8,9,10,11,"2 :: 3","3 :: 4","4 :: 5","5 :: 6","6 :: 7","7 :: 8","8 :: 9","9 :: 10","10 :: 11",2,3,4,5,6,7,8,9,10,11,2,3,4,5,6,7,8,9,10,11,2,3,4,5,6,7,8,9,10,11,2,3,4,5,6,7,8,9,10,11,2,3,4,5,6,7,8,9,10,11,2,3,4,5,6,7,8,9,10,11,"Days to 1st Food PU","Max Food Days"]
[{"$f":"itineraryNoPrefix & ROW()-3","v":"9-1"},null,"C",40,"Abreu","Lower Bonito","Beaubien","Black Mountain","Miners Park","Bear Caves","Urraca",null,null,null,"Camping HQ",null,"Phillips Junction",null,"Miners Park",null,null,null,null,null,"Zastrow","Lovers Leap",{"$f":"IF(Z4=\"Hike In\",\"y\",\"\")","v":""},null,null,null,{"$f":"IF(ItineraryPrograms!AD3=\"y\",\"y\",\"\")","v":""},{"$f":"IF(ItineraryPrograms!AE3=\"y\",\"y\",\"\")","v":"y"},{"$f":"IF(ItineraryPrograms!AF3=\"y\",\"y\",\"\")","v":""},null,{"$f":"checkTooth(AA4,LOWER(ItineraryPrograms!AH3))","v":""},null,{"$f":"IF(E4<>\"\",INDEX(Elevations,MATCH(E4,camps,0)),\"\")","v":7217},{"$f":"IF(F4<>\"\",INDEX(Elevations,MATCH(F4,camps,0)),\"\")","v":8962},{"$f":"IF(G4<>\"\",INDEX(Elevations,MATCH(G4,camps,0)),\"\")","v":9330},{"$f":"IF(H4<>\"\",INDEX(Elevations,MATCH(H4,camps,0)),\"\")","v":8991},{"$f":"IF(I4<>\"\",INDEX(Elevations,MATCH(I4,camps,0)),\"\")","v":7977},{"$f":"IF(J4<>\"\",INDEX(Elevations,MATCH(J4,camps,0)),\"\")","v":8423},{"$f":"IF(K4<>\"\",INDEX(Elevations,MATCH(K4,camps,0)),\"\")","v":7968},{"$f":"IF(L4<>\"\",INDEX(Elevations,MATCH(L4,camps,0)),\"\")","v":""},{"$f":"IF(M4<>\"\",INDEX(Elevations,MATCH(M4,camps,0)),\"\")","v":""},{"$f":"IF(N4<>\"\",INDEX(Elevations,MATCH(N4,camps,0)),\"\")","v":""},{"$f":"IF(AL4<>\"\",ABS(AK4-AL4),\"\")","v":1745},{"$f":"IF(AM4<>\"\",ABS(AL4-AM4),\"\")","v":368},339,1014,446,455,"","","",{"$f":"IF(INDEX(campsByItinerary,numericItinerary($A4),BD$3-1)=\"\",\"\",VLOOKUP(INDEX(campsByItinerary,numericItinerary($A4),BD$3-1),campInfo,8))","v":"Y"},{"$f":"IF(INDEX(campsByItinerary,numericItinerary($A4),BE$3-1)=\"\",\"\",VLOOKUP(INDEX(campsByItinerary,numericItinerary($A4),BE$3-1),campInfo,8))","v":""},{"$f":"IF(INDEX(campsByItinerary,numericItinerary($A4),BF$3-1)=\"\",\"\",VLOOKUP(INDEX(campsByItinerary,numericItinerary($A4),BF$3-1),campInfo,8))","v":"Y"},{"$f":"IF(INDEX(campsByItinerary,numericItinerary($A4),BG$3-1)=\"\",\"\",VLOOKUP(INDEX(campsByItinerary,numericItinerary($A4),BG$3-1),campInfo,8))","v":"Y"},{"$f":"IF(INDEX(campsByItinerary,numericItinerary($A4),BH$3-1)=\"\",\"\",VLOOKUP(INDEX(campsByItinerary,numericItinerary($A4),BH$3-1),campInfo,8))","v":"Y"},{"$f":"IF(INDEX(campsByItinerary,numericItinerary($A4),BI$3-1)=\"\",\"\",VLOOKUP(INDEX(campsByItinerary,numericItinerary($A4),BI$3-1),campInfo,8))","v":""},{"$f":"IF(INDEX(campsByItinerary,numericItinerary($A4),BJ$3-1)=\"\",\"\",VLOOKUP(INDEX(campsByItinerary,numericItinerary($A4),BJ$3-1),campInfo,8))","v":"Y"},{"$f":"IF(INDEX(campsByItinerary,numericItinerary($A4),BK$3-1)=\"\",\"\",VLOOKUP(INDEX(campsByItinerary,numericItinerary($A4),BK$3-1),campInfo,8))","v":""},{"$f":"IF(INDEX(campsByItinerary,numericItinerary($A4),BL$3-1)=\"\",\"\",VLOOKUP(INDEX(campsByItinerary,numericItinerary($A4),BL$3-1),campInfo,8))","v":""},{"$f":"IF(INDEX(campsByItinerary,numericItinerary($A4),BM$3-1)=\"\",\"\",VLOOKUP(INDEX(campsByItinerary,numericItinerary($A4),BM$3-1),campInfo,8))","v":""},{"$f":"IF(BD4=\"Y\",\"\",\"Y\")","v":""},{"$f":"IF(BE4=\"Y\",\"\",\"Y\")","v":"Y"},"","","","Y","","Y","Y","Y",{"$f":"IF(INDEX(campsByItinerary,numericItinerary($A4),BD$3-1)=\"\",\"\",VLOOKUP(INDEX(campsByItinerary,numericItinerary($A4),BD$3-1),campInfo,10))","v":""},{"$f":"IF(INDEX(campsByItinerary,numericItinerary($A4),BE$3-1)=\"\",\"\",VLOOKUP(INDEX(campsByItinerary,numericItinerary($A4),BE$3-1),campInfo,10))","v":""},{"$f":"IF(INDEX(campsByItinerary,numericItinerary($A4),BF$3-1)=\"\",\"\",VLOOKUP(INDEX(campsByItinerary,numericItinerary($A4),BF$3-1),campInfo,10))","v":""},{"$f":"IF(INDEX(campsByItinerary,numericItinerary($A4),BG$3-1)=\"\",\"\",VLOOKUP(INDEX(campsByItinerary,numericItinerary($A4),BG$3-1),campInfo,10))","v":""},{"$f":"IF(INDEX(campsByItinerary,numericItinerary($A4),BH$3-1)=\"\",\"\",VLOOKUP(INDEX(campsByItinerary,numericItinerary($A4),BH$3-1),campInfo,10))","v":""},{"$f":"IF(INDEX(campsByItinerary,numericItinerary($A4),BI$3-1)=\"\",\"\",VLOOKUP(INDEX(campsByItinerary,numericItinerary($A4),BI$3-1),campInfo,10))","v":""},{"$f":"IF(INDEX(campsByItinerary,numericItinerary($A4),BJ$3-1)=\"\",\"\",VLOOKUP(INDEX(campsByItinerary,numericItinerary($A4),BJ$3-1),campInfo,10))","v":""},{"$f":"IF(INDEX(campsByItinerary,numericItinerary($A4),BK$3-1)=\"\",\"\",VLOOKUP(INDEX(campsByItinerary,numericItinerary($A4),BK$3-1),campInfo,10))","v":""},{"$f":"IF(INDEX(campsByItinerary,numericItinerary($A4),BL$3-1)=\"\",\"\",VLOOKUP(INDEX(campsByItinerary,numericItinerary($A4),BL$3-1),campInfo,10))","v":""},{"$f":"IF(INDEX(campsByItinerary,numericItinerary($A4),BM$3-1)=\"\",\"\",VLOOKUP(INDEX(campsByItinerary,numericItinerary($A4),BM$3-1),campInfo,10))","v":""},null,{"$f":"IF(E4=F4,\"Y\",\"\")","v":""},{"$f":"IF(F4=G4,\"Y\",\"\")","v":""},{"$f":"IF(G4=H4,\"Y\",\"\")","v":""},{"$f":"IF(H4=I4,\"Y\",\"\")","v":""},{"$f":"IF(I4=J4,\"Y\",\"\")","v":""},{"$f":"IF(J4=K4,\"Y\",\"\")","v":""},{"$f":"IF(K4=L4,\"Y\",\"\")","v":""},{"$f":"IF(L4=M4,\"Y\",\"\")","v":"Y"},{"$f":"IF(M4=N4,\"Y\",\"\")","v":"Y"},{"$f":"INDEX(campsByItinerary,numericItinerary($A4),BD$3-1)","v":"Abreu"},{"$f":"IF(INDEX(campsByItinerary,numericItinerary($A4),BE$3-1)=\"\",\"\",VLOOKUP(INDEX(campsByItinerary,numericItinerary($A4),BE$3-1),campInfo,2))","v":"South"},{"$f":"IF(INDEX(campsByItinerary,numericItinerary($A4),BF$3-1)=\"\",\"\",VLOOKUP(INDEX(campsByItinerary,numericItinerary($A4),BF$3-1),campInfo,2))","v":"South"},{"$f":"IF(INDEX(campsByItinerary,numericItinerary($A4),BG$3-1)=\"\",\"\",VLOOKUP(INDEX(campsByItinerary,numericItinerary($A4),BG$3-1),campInfo,2))","v":"South"},{"$f":"IF(INDEX(campsByItinerary,numericItinerary($A4),BH$3-1)=\"\",\"\",VLOOKUP(INDEX(campsByItinerary,numericItinerary($A4),BH$3-1),campInfo,2))","v":"South"},{"$f":"IF(INDEX(campsByItinerary,numericItinerary($A4),BI$3-1)=\"\",\"\",VLOOKUP(INDEX(campsByItinerary,numericItinerary($A4),BI$3-1),campInfo,2))","v":"South"},{"$f":"IF(INDEX(campsByItinerary,numericItinerary($A4),BJ$3-1)=\"\",\"\",VLOOKUP(INDEX(campsByItinerary,numericItinerary($A4),BJ$3-1),campInfo,2))","v":"South"},{"$f":"IF(INDEX(campsByItinerary,numericItinerary($A4),BK$3-1)=\"\",\"\",VLOOKUP(INDEX(campsByItinerary,numericItinerary($A4),BK$3-1),campInfo,2))","v":""},{"$f":"IF(INDEX(campsByItinerary,numericItinerary($A4),BL$3-1)=\"\",\"\",VLOOKUP(INDEX(campsByItinerary,numericItinerary($A4),BL$3-1),campInfo,2))","v":""},{"$f":"IF(INDEX(campsByItinerary,numericItinerary($A4),BM$3-1)=\"\",\"\",VLOOKUP(INDEX(campsByItinerary,numericItinerary($A4),BM$3-1),campInfo,2))","v":""},{"$f":"IF(INDEX(campsByItinerary,numericItinerary($A4),BD$3-1)=\"\",\"\",VLOOKUP(INDEX(campsByItinerary,numericItinerary($A4),BD$3-1),campInfo,12))","v":"South"},{"$f":"IF(INDEX(campsByItinerary,numericItinerary($A4),BE$3-1)=\"\",\"\",VLOOKUP(INDEX(campsByItinerary,numericItinerary($A4),BE$3-1),campInfo,12))","v":"South"},{"$f":"IF(INDEX(campsByItinerary,numericItinerary($A4),BF$3-1)=\"\",\"\",VLOOKUP(INDEX(campsByItinerary,numericItinerary($A4),BF$3-1),campInfo,12))","v":"South"},{"$f":"IF(INDEX(campsByItinerary,numericItinerary($A4),BG$3-1)=\"\",\"\",VLOOKUP(INDEX(campsByItinerary,numericItinerary($A4),BG$3-1),campInfo,12))","v":"South"},{"$f":"IF(INDEX(campsByItinerary,numericItinerary($A4),BH$3-1)=\"\",\"\",VLOOKUP(INDEX(campsByItinerary,numericItinerary($A4),BH$3-1),campInfo,12))","v":"South"},{"$f":"IF(INDEX(campsByItinerary,numericItinerary($A4),BI$3-1)=\"\",\"\",VLOOKUP(INDEX(campsByItinerary,numericItinerary($A4),BI$3-1),campInfo,12))","v":"South"},{"$f":"IF(INDEX(campsByItinerary,numericItinerary($A4),BJ$3-1)=\"\",\"\",VLOOKUP(INDEX(campsByItinerary,numericItinerary($A4),BJ$3-1),campInfo,12))","v":"South"},{"$f":"IF(INDEX(campsByItinerary,numericItinerary($A4),BK$3-1)=\"\",\"\",VLOOKUP(INDEX(campsByItinerary,numericItinerary($A4),BK$3-1),campInfo,12))","v":""},{"$f":"IF(INDEX(campsByItinerary,numericItinerary($A4),BL$3-1)=\"\",\"\",VLOOKUP(INDEX(campsByItinerary,numericItinerary($A4),BL$3-1),campInfo,12))","v":""},{"$f":"IF(INDEX(campsByItinerary,numericItinerary($A4),BM$3-1)=\"\",\"\",VLOOKUP(INDEX(campsByItinerary,numericItinerary($A4),BM$3-1),campInfo,12))","v":""},{"$f":"getfoodPU(\"First\",numericItinerary($A4))","v":2},{"$f":"getfoodPU(\"Max\",numericItinerary($A4))","v":2}]
[{"$f":"itineraryNoPrefix & ROW()-3","v":"9-2"},null,"C",36,"Harlan","Devil's Wash Basin","Cimarroncita","New Dean","Ponil","Coyote Howl","House Canyon",null,null,null,"Camping HQ",null,"Ute Gulch",null,"Ponil",null,null,null,null,null,"Turkey Creek","Six Mile Gate",{"$f":"IF(Z5=\"Hike In\",\"y\",\"\")","v":""},5,"Bear Canyon","N",{"$f":"IF(ItineraryPrograms!AD4=\"y\",\"y\",\"\")","v":""},{"$f":"IF(ItineraryPrograms!AE4=\"y\",\"y\",\"\")","v":""},{"$f":"IF(ItineraryPrograms!AF4=\"y\",\"y\",\"\")","v":""},"y",{"$f":"checkTooth(AA5,LOWER(ItineraryPrograms!AH4))","v":""},null,7550,8515,7373,7724,7150,7560.52,7157,"","","",{"$f":"IF(AL5<>\"\",ABS(AK5-AL5),\"\")","v":965},{"$f":"IF(AM5<>\"\",ABS(AL5-AM5),\"\")","v":1142},{"$f":"IF(AN5<>\"\",ABS(AM5-AN5),\"\")","v":351},{"$f":"IF(AO5<>\"\",ABS(AN5-AO5),\"\")","v":574},{"$f":"IF(AP5<>\"\",ABS(AO5-AP5),\"\")","v":410.52000000000044},{"$f":"IF(AQ5<>\"\",ABS(AP5-AQ5),\"\")","v":403.52000000000044},{"$f":"IF(AR5<>\"\",ABS(AQ5-AR5),\"\")","v":""},{"$f":"IF(AS5<>\"\",ABS(AR5-AS5),\"\")","v":""},{"$f":"IF(AT5<>\"\",ABS(AS5-AT5),\"\")","v":""},{"$f":"IF(INDEX(campsByItinerary,numericItinerary($A5),BD$3-1)=\"\",\"\",VLOOKUP(INDEX(campsByItinerary,numericItinerary($A5),BD$3-1),campInfo,8))","v":"Y"},{"$f":"IF(INDEX(campsByItinerary,numericItinerary($A5),BE$3-1)=\"\",\"\",VLOOKUP(INDEX(campsByItinerary,numericItinerary($A5),BE$3-1),campInfo,8))","v":""},{"$f":"IF(INDEX(campsByItinerary,numericItinerary($A5),BF$3-1)=\"\",\"\",VLOOKUP(INDEX(campsByItinerary,numericItinerary($A5),BF$3-1),campInfo,8))","v":"Y"},{"$f":"IF(INDEX(campsByItinerary,numericItinerary($A5),BG$3-1)=\"\",\"\",VLOOKUP(INDEX(campsByItinerary,numericItinerary($A5),BG$3-1),campInfo,8))","v":""},{"$f":"IF(INDEX(campsByItinerary,numericItinerary($A5),BH$3-1)=\"\",\"\",VLOOKUP(INDEX(campsByItinerary,numericItinerary($A5),BH$3-1),campInfo,8))","v":"Y"},{"$f":"IF(INDEX(campsByItinerary,numericItinerary($A5),BI$3-1)=\"\",\"\",VLOOKUP(INDEX(campsByItinerary,numericItinerary($A5),BI$3-1),campInfo,8))","v":""},{"$f":"IF(INDEX(campsByItinerary,numericItinerary($A5),BJ$3-1)=\"\",\"\",VLOOKUP(INDEX(campsByItinerary,numericItinerary($A5),BJ$3-1),campInfo,8))","v":""},{"$f":"IF(INDEX(campsByItinerary,numericItinerary($A5),BK$3-1)=\"\",\"\",VLOOKUP(INDEX(campsByItinerary,numericItinerary($A5),BK$3-1),campInfo,8))","v":""},{"$f":"IF(INDEX(campsByItinerary,numericItinerary($A5),BL$3-1)=\"\",\"\",VLOOKUP(INDEX(campsByItinerary,numericItinerary($A5),BL$3-1),campInfo,8))","v":""},{"$f":"IF(INDEX(campsByItinerary,numericItinerary($A5),BM$3-1)=\"\",\"\",VLOOKUP(INDEX(campsByItinerary,numericItinerary($A5),BM$3-1),campInfo,8))","v":""},{"$f":"IF(BD5=\"Y\",\"\",\"Y\")","v":""},{"$f":"IF(BE5=\"Y\",\"\",\"Y\")","v":"Y"},{"$f":"IF(BF5=\"Y\",\"\",\"Y\")","v":""},{"$f":"IF(BG5=\"Y\",\"\",\"Y\")","v":"Y"},{"$f":"IF(BH5=\"Y\",\"\",\"Y\")","v":""},{"$f":"IF(BI5=\"Y\",\"\",\"Y\")","v":"Y"},{"$f":"IF(BJ5=\"Y\",\"\",\"Y\")","v":"Y"},{"$f":"IF(BK5=\"Y\",\"\",\"Y\")","v":"Y"},{"$f":"IF(BL5=\"Y\",\"\",\"Y\")","v":"Y"},{"$f":"IF(BM5=\"Y\",\"\",\"Y\")","v":"Y"},{"$f":"IF(INDEX(campsByItinerary,numericItinerary($A5),BD$3-1)=\"\",\"\",VLOOKUP(INDEX(campsByItinerary,numericItinerary($A5),BD$3-1),campInfo,10))","v":""},{"$f":"IF(INDEX(campsByItinerary,numericItinerary($A5),BE$3-1)=\"\",\"\",VLOOKUP(INDEX(campsByItinerary,numericItinerary($A5),BE$3-1),campInfo,10))","v":"Y"},{"$f":"IF(INDEX(campsByItinerary,numericItinerary($A5),BF$3-1)=\"\",\"\",VLOOKUP(INDEX(campsByItinerary,numericItinerary($A5),BF$3-1),campInfo,10))","v":""},{"$f":"IF(INDEX(campsByItinerary,numericItinerary($A5),BG$3-1)=\"\",\"\",VLOOKUP(INDEX(campsByItinerary,numericItinerary($A5),BG$3-1),campInfo,10))","v":""},{"$f":"IF(INDEX(campsByItinerary,numericItinerary($A5),BH$3-1)=\"\",\"\",VLOOKUP(INDEX(campsByItinerary,numericItinerary($A5),BH$3-1),campInfo,10))","v":""},{"$f":"IF(INDEX(campsByItinerary,numericItinerary($A5),BI$3-1)=\"\",\"\",VLOOKUP(INDEX(campsByItinerary,numericItinerary($A5),BI$3-1),campInfo,10))","v":""},{"$f":"IF(INDEX(campsByItinerary,numericItinerary($A5),BJ$3-1)=\"\",\"\",VLOOKUP(INDEX(campsByItinerary,numericItinerary($A5),BJ$3-1),campInfo,10))","v":""},{"$f":"IF(INDEX(campsByItinerary,numericItinerary($A5),BK$3-1)=\"\",\"\",VLOOKUP(INDEX(campsByItinerary,numericItinerary($A5),BK$3-1),campInfo,10))","v":""},{"$f":"IF(INDEX(campsByItinerary,numericItinerary($A5),BL$3-1)=\"\",\"\",VLOOKUP(INDEX(campsByItinerary,numericItinerary($A5),BL$3-1),campInfo,10))","v":""},{"$f":"IF(INDEX(campsByItinerary,numericItinerary($A5),BM$3-1)=\"\",\"\",VLOOKUP(INDEX(campsByItinerary,numericItinerary($A5),BM$3-1),campInfo,10))","v":""},null,"","","","","","","","Y","Y",{"$f":"INDEX(campsByItinerary,numericItinerary($A5),BD$3-1)","v":"Harlan"},{"$f":"IF(INDEX(campsByItinerary,numericItinerary($A5),BE$3-1)=\"\",\"\",VLOOKUP(INDEX(campsByItinerary,numericItinerary($A5),BE$3-1),campInfo,2))","v":"Central"},{"$f":"IF(INDEX(campsByItinerary,numericItinerary($A5),BF$3-1)=\"\",\"\",VLOOKUP(INDEX(campsByItinerary,numericItinerary($A5),BF$3-1),campInfo,2))","v":"Central"},{"$f":"IF(INDEX(campsByItinerary,numericItinerary($A5),BG$3-1)=\"\",\"\",VLOOKUP(INDEX(campsByItinerary,numericItinerary($A5),BG$3-1),campInfo,2))","v":"North"},{"$f":"IF(INDEX(campsByItinerary,numericItinerary($A5),BH$3-1)=\"\",\"\",VLOOKUP(INDEX(campsByItinerary,numericItinerary($A5),BH$3-1),campInfo,2))","v":"North"},{"$f":"IF(INDEX(campsByItinerary,numericItinerary($A5),BI$3-1)=\"\",\"\",VLOOKUP(INDEX(campsByItinerary,numericItinerary($A5),BI$3-1),campInfo,2))","v":"North"},{"$f":"IF(INDEX(campsByItinerary,numericItinerary($A5),BJ$3-1)=\"\",\"\",VLOOKUP(INDEX(campsByItinerary,numericItinerary($A5),BJ$3-1),campInfo,2))","v":"North"},{"$f":"IF(INDEX(campsByItinerary,numericItinerary($A5),BK$3-1)=\"\",\"\",VLOOKUP(INDEX(campsByItinerary,numericItinerary($A5),BK$3-1),campInfo,2))","v":""},{"$f":"IF(INDEX(campsByItinerary,numericItinerary($A5),BL$3-1)=\"\",\"\",VLOOKUP(INDEX(campsByItinerary,numericItinerary($A5),BL$3-1),campInfo,2))","v":""},{"$f":"IF(INDEX(campsByItinerary,numericItinerary($A5),BM$3-1)=\"\",\"\",VLOOKUP(INDEX(campsByItinerary,numericItinerary($A5),BM$3-1),campInfo,2))","v":""},{"$f":"IF(INDEX(campsByItinerary,numericItinerary($A5),BD$3-1)=\"\",\"\",VLOOKUP(INDEX(campsByItinerary,numericItinerary($A5),BD$3-1),campInfo,12))","v":"South"},{"$f":"IF(INDEX(campsByItinerary,numericItinerary($A5),BE$3-1)=\"\",\"\",VLOOKUP(INDEX(campsByItinerary,numericItinerary($A5),BE$3-1),campInfo,12))","v":"South"},{"$f":"IF(INDEX(campsByItinerary,numericItinerary($A5),BF$3-1)=\"\",\"\",VLOOKUP(INDEX(campsByItinerary,numericItinerary($A5),BF$3-1),campInfo,12))","v":"North & South"},{"$f":"IF(INDEX(campsByItinerary,numericItinerary($A5),BG$3-1)=\"\",\"\",VLOOKUP(INDEX(campsByItinerary,numericItinerary($A5),BG$3-1),campInfo,12))","v":"North"},{"$f":"IF(INDEX(campsByItinerary,numericItinerary($A5),BH$3-1)=\"\",\"\",VLOOKUP(INDEX(campsByItinerary,numericItinerary($A5),BH$3-1),campInfo,12))","v":"North"},{"$f":"IF(INDEX(campsByItinerary,numericItinerary($A5),BI$3-1)=\"\",\"\",VLOOKUP(INDEX(campsByItinerary,numericItinerary($A5),BI$3-1),campInfo,12))","v":"North"},{"$f":"IF(INDEX(campsByItinerary,numericItinerary($A5),BJ$3-1)=\"\",\"\",VLOOKUP(INDEX(campsByItinerary,numericItinerary($A5),BJ$3-1),campInfo,12))","v":"North"},{"$f":"IF(INDEX(campsByItinerary,numericItinerary($A5),BK$3-1)=\"\",\"\",VLOOKUP(INDEX(campsByItinerary,numericItinerary($A5),BK$3-1),campInfo,12))","v":""},{"$f":"IF(INDEX(campsByItinerary,numericItinerary($A5),BL$3-1)=\"\",\"\",VLOOKUP(INDEX(campsByItinerary,numericItinerary($A5),BL$3-1),campInfo,12))","v":""},{"$f":"IF(INDEX(campsByItinerary,numericItinerary($A5),BM$3-1)=\"\",\"\",VLOOKUP(INDEX(campsByItinerary,numericItinerary($A5),BM$3-1),campInfo,12))","v":""},{"$f":"getfoodPU(\"First\",numericItinerary($A5))","v":2},{"$f":"getfoodPU(\"Max\",numericItinerary($A5))","v":2}]
["9-3",null,"C",41,"Lovers Leap","Shaefers Pass","Clarks Fork","Hunting Lodge","Thunder Ridge","Sawmill","Minnette Meadows",null,null,null,"Camping HQ","Miners Park",null,null,null,null,"Ute Gulch",null,null,null,"Lovers Leap","Ute Park","",null,null,null,{"$f":"IF(ItineraryPrograms!AD5=\"y\",\"y\",\"\")","v":""},{"$f":"IF(ItineraryPrograms!AE5=\"y\",\"y\",\"\")","v":""},{"$f":"IF(ItineraryPrograms!AF5=\"y\",\"y\",\"\")","v":""},"y",{"$f":"checkTooth(AA6,LOWER(ItineraryPrograms!AH5))","v":"??"},null,7469,8724,7515,7776,10490,9193,7703,"","","",1255,1209,261,2714,1297,1490,"","","",{"$f":"IF(INDEX(campsByItinerary,numericItinerary($A6),BD$3-1)=\"\",\"\",VLOOKUP(INDEX(campsByItinerary,numericItinerary($A6),BD$3-1),campInfo,8))","v":""},{"$f":"IF(INDEX(campsByItinerary,numericItinerary($A6),BE$3-1)=\"\",\"\",VLOOKUP(INDEX(campsByItinerary,numericItinerary($A6),BE$3-1),campInfo,8))","v":""},{"$f":"IF(INDEX(campsByItinerary,numericItinerary($A6),BF$3-1)=\"\",\"\",VLOOKUP(INDEX(campsByItinerary,numericItinerary($A6),BF$3-1),campInfo,8))","v":"Y"},{"$f":"IF(INDEX(campsByItinerary,numericItinerary($A6),BG$3-1)=\"\",\"\",VLOOKUP(INDEX(campsByItinerary,numericItinerary($A6),BG$3-1),campInfo,8))","v":"N"},{"$f":"IF(INDEX(campsByItinerary,numericItinerary($A6),BH$3-1)=\"\",\"\",VLOOKUP(INDEX(campsByItinerary,numericItinerary($A6),BH$3-1),campInfo,8))","v":""},{"$f":"IF(INDEX(campsByItinerary,numericItinerary($A6),BI$3-1)=\"\",\"\",VLOOKUP(INDEX(campsByItinerary,numericItinerary($A6),BI$3-1),campInfo,8))","v":"Y"},{"$f":"IF(INDEX(campsByItinerary,numericItinerary($A6),BJ$3-1)=\"\",\"\",VLOOKUP(INDEX(campsByItinerary,numericItinerary($A6),BJ$3-1),campInfo,8))","v":""},{"$f":"IF(INDEX(campsByItinerary,numericItinerary($A6),BK$3-1)=\"\",\"\",VLOOKUP(INDEX(campsByItinerary,numericItinerary($A6),BK$3-1),campInfo,8))","v":""},{"$f":"IF(INDEX(campsByItinerary,numericItinerary($A6),BL$3-1)=\"\",\"\",VLOOKUP(INDEX(campsByItinerary,numericItinerary($A6),BL$3-1),campInfo,8))","v":""},{"$f":"IF(INDEX(campsByItinerary,numericItinerary($A6),BM$3-1)=\"\",\"\",VLOOKUP(INDEX(campsByItinerary,numericItinerary($A6),BM$3-1),campInfo,8))","v":""},"Y","Y","","Y","Y","","Y","Y","Y","Y",{"$f":"IF(INDEX(campsByItinerary,numericItinerary($A6),BD$3-1)=\"\",\"\",VLOOKUP(INDEX(campsByItinerary,numericItinerary($A6),BD$3-1),campInfo,10))","v":""},{"$f":"IF(INDEX(campsByItinerary,numericItinerary($A6),BE$3-1)=\"\",\"\",VLOOKUP(INDEX(campsByItinerary,numericItinerary($A6),BE$3-1),campInfo,10))","v":"Y"},{"$f":"IF(INDEX(campsByItinerary,numericItinerary($A6),BF$3-1)=\"\",\"\",VLOOKUP(INDEX(campsByItinerary,numericItinerary($A6),BF$3-1),campInfo,10))","v":""},{"$f":"IF(INDEX(campsByItinerary,numericItinerary($A6),BG$3-1)=\"\",\"\",VLOOKUP(INDEX(campsByItinerary,numericItinerary($A6),BG$3-1),campInfo,10))","v":""},{"$f":"IF(INDEX(campsByItinerary,numericItinerary($A6),BH$3-1)=\"\",\"\",VLOOKUP(INDEX(campsByItinerary,numericItinerary($A6),BH$3-1),campInfo,10))","v":"Y"},{"$f":"IF(INDEX(campsByItinerary,numericItinerary($A6),BI$3-1)=\"\",\"\",VLOOKUP(INDEX(campsByItinerary,numericItinerary($A6),BI$3-1),campInfo,10))","v":""},{"$f":"IF(INDEX(campsByItinerary,numericItinerary($A6),BJ$3-1)=\"\",\"\",VLOOKUP(INDEX(campsByItinerary,numericItinerary($A6),BJ$3-1),campInfo,10))","v":"Y"},{"$f":"IF(INDEX(campsByItinerary,numericItinerary($A6),BK$3-1)=\"\",\"\",VLOOKUP(INDEX(campsByItinerary,numericItinerary($A6),BK$3-1),campInfo,10))","v":""},{"$f":"IF(INDEX(campsByItinerary,numericItinerary($A6),BL$3-1)=\"\",\"\",VLOOKUP(INDEX(campsByItinerary,numericItinerary($A6),BL$3-1),campInfo,10))","v":""},{"$f":"IF(INDEX(campsByItinerary,numericItinerary($A6),BM$3-1)=\"\",\"\",VLOOKUP(INDEX(campsByItinerary,numericItinerary($A6),BM$3-1),campInfo,10))","v":""},null,"","","","","","","","Y","Y",{"$f":"INDEX(campsByItinerary,numericItinerary($A6),BD$3-1)","v":"Lovers Leap"},{"$f":"IF(INDEX(campsByItinerary,numericItinerary($A6),BE$3-1)=\"\",\"\",VLOOKUP(INDEX(campsByItinerary,numericItinerary($A6),BE$3-1),campInfo,2))","v":"Central"},{"$f":"IF(INDEX(campsByItinerary,numericItinerary($A6),BF$3-1)=\"\",\"\",VLOOKUP(INDEX(campsByItinerary,numericItinerary($A6),BF$3-1),campInfo,2))","v":"Central"},{"$f":"IF(INDEX(campsByItinerary,numericItinerary($A6),BG$3-1)=\"\",\"\",VLOOKUP(INDEX(campsByItinerary,numericItinerary($A6),BG$3-1),campInfo,2))","v":"Central"},{"$f":"IF(INDEX(campsByItinerary,numericItinerary($A6),BH$3-1)=\"\",\"\",VLOOKUP(INDEX(campsByItinerary,numericItinerary($A6),BH$3-1),campInfo,2))","v":"Central"},{"$f":"IF(INDEX(campsByItinerary,numericItinerary($A6),BI$3-1)=\"\",\"\",VLOOKUP(INDEX(campsByItinerary,numericItinerary($A6),BI$3-1),campInfo,2))","v":"Central"},{"$f":"IF(INDEX(campsByItinerary,numericItinerary($A6),BJ$3-1)=\"\",\"\",VLOOKUP(INDEX(campsByItinerary,numericItinerary($A6),BJ$3-1),campInfo,2))","v":"Central"},{"$f":"IF(INDEX(campsByItinerary,numericItinerary($A6),BK$3-1)=\"\",\"\",VLOOKUP(INDEX(campsByItinerary,numericItinerary($A6),BK$3-1),campInfo,2))","v":""},{"$f":"IF(INDEX(campsByItinerary,numericItinerary($A6),BL$3-1)=\"\",\"\",VLOOKUP(INDEX(campsByItinerary,numericItinerary($A6),BL$3-1),campInfo,2))","v":""},{"$f":"IF(INDEX(campsByItinerary,numericItinerary($A6),BM$3-1)=\"\",\"\",VLOOKUP(INDEX(campsByItinerary,numericItinerary($A6),BM$3-1),campInfo,2))","v":""},{"$f":"IF(INDEX(campsByItinerary,numericItinerary($A6),BD$3-1)=\"\",\"\",VLOOKUP(INDEX(campsByItinerary,numericItinerary($A6),BD$3-1),campInfo,12))","v":"South"},{"$f":"IF(INDEX(campsByItinerary,numericItinerary($A6),BE$3-1)=\"\",\"\",VLOOKUP(INDEX(campsByItinerary,numericItinerary($A6),BE$3-1),campInfo,12))","v":"South"},{"$f":"IF(INDEX(campsByItinerary,numericItinerary($A6),BF$3-1)=\"\",\"\",VLOOKUP(INDEX(campsByItinerary,numericItinerary($A6),BF$3-1),campInfo,12))","v":"South"},{"$f":"IF(INDEX(campsByItinerary,numericItinerary($A6),BG$3-1)=\"\",\"\",VLOOKUP(INDEX(campsByItinerary,numericItinerary($A6),BG$3-1),campInfo,12))","v":"South"},{"$f":"IF(INDEX(campsByItinerary,numericItinerary($A6),BH$3-1)=\"\",\"\",VLOOKUP(INDEX(campsByItinerary,numericItinerary($A6),BH$3-1),campInfo,12))","v":"South"},{"$f":"IF(INDEX(campsByItinerary,numericItinerary($A6),BI$3-1)=\"\",\"\",VLOOKUP(INDEX(campsByItinerary,numericItinerary($A6),BI$3-1),campInfo,12))","v":"South"},{"$f":"IF(INDEX(campsByItinerary,numericItinerary($A6),BJ$3-1)=\"\",\"\",VLOOKUP(INDEX(campsByItinerary,numericItinerary($A6),BJ$3-1),campInfo,12))","v":"South"},{"$f":"IF(INDEX(campsByItinerary,numericItinerary($A6),BK$3-1)=\"\",\"\",VLOOKUP(INDEX(campsByItinerary,numericItinerary($A6),BK$3-1),campInfo,12))","v":""},{"$f":"IF(INDEX(campsByItinerary,numericItinerary($A6),BL$3-1)=\"\",\"\",VLOOKUP(INDEX(campsByItinerary,numericItinerary($A6),BL$3-1),campInfo,12))","v":""},{"$f":"IF(INDEX(campsByItinerary,numericItinerary($A6),BM$3-1)=\"\",\"\",VLOOKUP(INDEX(campsByItinerary,numericItinerary($A6),BM$3-1),campInfo,12))","v":""},{"$f":"getfoodPU(\"First\",numericItinerary($A6))","v":1},{"$f":"getfoodPU(\"Max\",numericItinerary($A6))","v":5}]
["9-4",null,"R",42,"Abreu","Crater Lake","Beaubien","Porcupine","Red Hills","Black Mountain","Shaefers Pass",null,null,null,"Camping HQ",null,null,"Phillips Junction",null,null,null,null,null,null,"Zastrow","Hike In","y",null,null,null,{"$f":"IF(ItineraryPrograms!AD6=\"y\",\"y\",\"\")","v":""},{"$f":"IF(ItineraryPrograms!AE6=\"y\",\"y\",\"\")","v":""},{"$f":"IF(ItineraryPrograms!AF6=\"y\",\"y\",\"\")","v":""},"y",{"$f":"checkTooth(AA7,LOWER(ItineraryPrograms!AH6))","v":"y"},"y",7217,8398,9330,9152,10280,8991,8724,"","","",1181,932,178,1128,1289,267,"","","",{"$f":"IF(INDEX(campsByItinerary,numericItinerary($A7),BD$3-1)=\"\",\"\",VLOOKUP(INDEX(campsByItinerary,numericItinerary($A7),BD$3-1),campInfo,8))","v":"Y"},{"$f":"IF(INDEX(campsByItinerary,numericItinerary($A7),BE$3-1)=\"\",\"\",VLOOKUP(INDEX(campsByItinerary,numericItinerary($A7),BE$3-1),campInfo,8))","v":"Y"},{"$f":"IF(INDEX(campsByItinerary,numericItinerary($A7),BF$3-1)=\"\",\"\",VLOOKUP(INDEX(campsByItinerary,numericItinerary($A7),BF$3-1),campInfo,8))","v":"Y"},{"$f":"IF(INDEX(campsByItinerary,numericItinerary($A7),BG$3-1)=\"\",\"\",VLOOKUP(INDEX(campsByItinerary,numericItinerary($A7),BG$3-1),campInfo,8))","v":""},{"$f":"IF(INDEX(campsByItinerary,numericItinerary($A7),BH$3-1)=\"\",\"\",VLOOKUP(INDEX(campsByItinerary,numericItinerary($A7),BH$3-1),campInfo,8))","v":""},{"$f":"IF(INDEX(campsByItinerary,numericItinerary($A7),BI$3-1)=\"\",\"\",VLOOKUP(INDEX(campsByItinerary,numericItinerary($A7),BI$3-1),campInfo,8))","v":"Y"},{"$f":"IF(INDEX(campsByItinerary,numericItinerary($A7),BJ$3-1)=\"\",\"\",VLOOKUP(INDEX(campsByItinerary,numericItinerary($A7),BJ$3-1),campInfo,8))","v":""},{"$f":"IF(INDEX(campsByItinerary,numericItinerary($A7),BK$3-1)=\"\",\"\",VLOOKUP(INDEX(campsByItinerary,numericItinerary($A7),BK$3-1),campInfo,8))","v":""},{"$f":"IF(INDEX(campsByItinerary,numericItinerary($A7),BL$3-1)=\"\",\"\",VLOOKUP(INDEX(campsByItinerary,numericItinerary($A7),BL$3-1),campInfo,8))","v":""},{"$f":"IF(INDEX(campsByItinerary,numericItinerary($A7),BM$3-1)=\"\",\"\",VLOOKUP(INDEX(campsByItinerary,numericItinerary($A7),BM$3-1),campInfo,8))","v":""},"","","","Y","Y","","Y","Y","Y","Y",{"$f":"IF(INDEX(campsByItinerary,numericItinerary($A7),BD$3-1)=\"\",\"\",VLOOKUP(INDEX(campsByItinerary,numericItinerary($A7),BD$3-1),campInfo,10))","v":""},{"$f":"IF(INDEX(campsByItinerary,numericItinerary($A7),BE$3-1)=\"\",\"\",VLOOKUP(INDEX(campsByItinerary,numericItinerary($A7),BE$3-1),campInfo,10))","v":""},{"$f":"IF(INDEX(campsByItinerary,numericItinerary($A7),BF$3-1)=\"\",\"\",VLOOKUP(INDEX(campsByItinerary,numericItinerary($A7),BF$3-1),campInfo,10))","v":""},{"$f":"IF(INDEX(campsByItinerary,numericItinerary($A7),BG$3-1)=\"\",\"\",VLOOKUP(INDEX(campsByItinerary,numericItinerary($A7),BG$3-1),campInfo,10))","v":""},{"$f":"IF(INDEX(campsByItinerary,numericItinerary($A7),BH$3-1)=\"\",\"\",VLOOKUP(INDEX(campsByItinerary,numericItinerary($A7),BH$3-1),campInfo,10))","v":""},{"$f":"IF(INDEX(campsByItinerary,numericItinerary($A7),BI$3-1)=\"\",\"\",VLOOKUP(INDEX(campsByItinerary,numericItinerary($A7),BI$3-1),campInfo,10))","v":""},{"$f":"IF(INDEX(campsByItinerary,numericItinerary($A7),BJ$3-1)=\"\",\"\",VLOOKUP(INDEX(campsByItinerary,numericItinerary($A7),BJ$3-1),campInfo,10))","v":"Y"},{"$f":"IF(INDEX(campsByItinerary,numericItinerary($A7),BK$3-1)=\"\",\"\",VLOOKUP(INDEX(campsByItinerary,numericItinerary($A7),BK$3-1),campInfo,10))","v":""},{"$f":"IF(INDEX(campsByItinerary,numericItinerary($A7),BL$3-1)=\"\",\"\",VLOOKUP(INDEX(campsByItinerary,numericItinerary($A7),BL$3-1),campInfo,10))","v":""},{"$f":"IF(INDEX(campsByItinerary,numericItinerary($A7),BM$3-1)=\"\",\"\",VLOOKUP(INDEX(campsByItinerary,numericItinerary($A7),BM$3-1),campInfo,10))","v":""},null,"","","","","","","","Y","Y",{"$f":"INDEX(campsByItinerary,numericItinerary($A7),BD$3-1)","v":"Abreu"},{"$f":"IF(INDEX(campsByItinerary,numericItinerary($A7),BE$3-1)=\"\",\"\",VLOOKUP(INDEX(campsByItinerary,numericItinerary($A7),BE$3-1),campInfo,2))","v":"South"},{"$f":"IF(INDEX(campsByItinerary,numericItinerary($A7),BF$3-1)=\"\",\"\",VLOOKUP(INDEX(campsByItinerary,numericItinerary($A7),BF$3-1),campInfo,2))","v":"South"},{"$f":"IF(INDEX(campsByItinerary,numericItinerary($A7),BG$3-1)=\"\",\"\",VLOOKUP(INDEX(campsByItinerary,numericItinerary($A7),BG$3-1),campInfo,2))","v":"South"},{"$f":"IF(INDEX(campsByItinerary,numericItinerary($A7),BH$3-1)=\"\",\"\",VLOOKUP(INDEX(campsByItinerary,numericItinerary($A7),BH$3-1),campInfo,2))","v":"South"},{"$f":"IF(INDEX(campsByItinerary,numericItinerary($A7),BI$3-1)=\"\",\"\",VLOOKUP(INDEX(campsByItinerary,numericItinerary($A7),BI$3-1),campInfo,2))","v":"South"},{"$f":"IF(INDEX(campsByItinerary,numericItinerary($A7),BJ$3-1)=\"\",\"\",VLOOKUP(INDEX(campsByItinerary,numericItinerary($A7),BJ$3-1),campInfo,2))","v":"Central"},{"$f":"IF(INDEX(campsByItinerary,numericItinerary($A7),BK$3-1)=\"\",\"\",VLOOKUP(INDEX(campsByItinerary,numericItinerary($A7),BK$3-1),campInfo,2))","v":""},{"$f":"IF(INDEX(campsByItinerary,numericItinerary($A7),BL$3-1)=\"\",\"\",VLOOKUP(INDEX(campsByItinerary,numericItinerary($A7),BL$3-1),campInfo,2))","v":""},{"$f":"IF(INDEX(campsByItinerary,numericItinerary($A7),BM$3-1)=\"\",\"\",VLOOKUP(INDEX(campsByItinerary,numericItinerary($A7),BM$3-1),campInfo,2))","v":""},{"$f":"IF(INDEX(campsByItinerary,numericItinerary($A7),BD$3-1)=\"\",\"\",VLOOKUP(INDEX(campsByItinerary,numericItinerary($A7),BD$3-1),campInfo,12))","v":"South"},{"$f":"IF(INDEX(campsByItinerary,numericItinerary($A7),BE$3-1)=\"\",\"\",VLOOKUP(INDEX(campsByItinerary,numericItinerary($A7),BE$3-1),campInfo,12))","v":"South"},{"$f":"IF(INDEX(campsByItinerary,numericItinerary($A7),BF$3-1)=\"\",\"\",VLOOKUP(INDEX(campsByItinerary,numericItinerary($A7),BF$3-1),campInfo,12))","v":"South"},{"$f":"IF(INDEX(campsByItinerary,numericItinerary($A7),BG$3-1)=\"\",\"\",VLOOKUP(INDEX(campsByItinerary,numericItinerary($A7),BG$3-1),campInfo,12))","v":"South"},{"$f":"IF(INDEX(campsByItinerary,numericItinerary($A7),BH$3-1)=\"\",\"\",VLOOKUP(INDEX(campsByItinerary,numericItinerary($A7),BH$3-1),campInfo,12))","v":"South"},{"$f":"IF(INDEX(campsByItinerary,numericItinerary($A7),BI$3-1)=\"\",\"\",VLOOKUP(INDEX(campsByItinerary,numericItinerary($A7),BI$3-1),campInfo,12))","v":"South"},{"$f":"IF(INDEX(campsByItinerary,numericItinerary($A7),BJ$3-1)=\"\",\"\",VLOOKUP(INDEX(campsByItinerary,numericItinerary($A7),BJ$3-1),campInfo,12))","v":"South"},{"$f":"IF(INDEX(campsByItinerary,numericItinerary($A7),BK$3-1)=\"\",\"\",VLOOKUP(INDEX(campsByItinerary,numericItinerary($A7),BK$3-1),campInfo,12))","v":""},{"$f":"IF(INDEX(campsByItinerary,numericItinerary($A7),BL$3-1)=\"\",\"\",VLOOKUP(INDEX(campsByItinerary,numericItinerary($A7),BL$3-1),campInfo,12))","v":""},{"$f":"IF(INDEX(campsByItinerary,numericItinerary($A7),BM$3-1)=\"\",\"\",VLOOKUP(INDEX(campsByItinerary,numericItinerary($A7),BM$3-1),campInfo,12))","v":""},{"$f":"getfoodPU(\"First\",numericItinerary($A7))","v":3},{"$f":"getfoodPU(\"Max\",numericItinerary($A7))","v":3}]
["9-5",null,"R",36,"Indian Writings","Sioux","Flume Canyon","Head of Dean","Black Horse Mine","Black Horse Mine","Touch-Me-Not Creek",null,null,null,"Camping HQ",null,"Ponil",null,null,"Baldy Town",null,null,null,null,"Six Mile Gate","Maxwell","",null,null,null,{"$f":"IF(ItineraryPrograms!AD7=\"y\",\"y\",\"\")","v":"y"},{"$f":"IF(ItineraryPrograms!AE7=\"y\",\"y\",\"\")","v":""},{"$f":"IF(ItineraryPrograms!AF7=\"y\",\"y\",\"\")","v":""},"y",{"$f":"checkTooth(AA8,LOWER(ItineraryPrograms!AH7))","v":""},null,6979,7382,7715,8754,10750,10750,8855,"","","",403,333,1039,1996,0,1895,"","","",{"$f":"IF(INDEX(campsByItinerary,numericItinerary($A8),BD$3-1)=\"\",\"\",VLOOKUP(INDEX(campsByItinerary,numericItinerary($A8),BD$3-1),campInfo,8))","v":"Y"},{"$f":"IF(INDEX(campsByItinerary,numericItinerary($A8),BE$3-1)=\"\",\"\",VLOOKUP(INDEX(campsByItinerary,numericItinerary($A8),BE$3-1),campInfo,8))","v":""},{"$f":"IF(INDEX(campsByItinerary,numericItinerary($A8),BF$3-1)=\"\",\"\",VLOOKUP(INDEX(campsByItinerary,numericItinerary($A8),BF$3-1),campInfo,8))","v":""},{"$f":"IF(INDEX(campsByItinerary,numericItinerary($A8),BG$3-1)=\"\",\"\",VLOOKUP(INDEX(campsByItinerary,numericItinerary($A8),BG$3-1),campInfo,8))","v":"Y"},{"$f":"IF(INDEX(campsByItinerary,numericItinerary($A8),BH$3-1)=\"\",\"\",VLOOKUP(INDEX(campsByItinerary,numericItinerary($A8),BH$3-1),campInfo,8))","v":""},{"$f":"IF(INDEX(campsByItinerary,numericItinerary($A8),BI$3-1)=\"\",\"\",VLOOKUP(INDEX(campsByItinerary,numericItinerary($A8),BI$3-1),campInfo,8))","v":""},{"$f":"IF(INDEX(campsByItinerary,numericItinerary($A8),BJ$3-1)=\"\",\"\",VLOOKUP(INDEX(campsByItinerary,numericItinerary($A8),BJ$3-1),campInfo,8))","v":""},{"$f":"IF(INDEX(campsByItinerary,numericItinerary($A8),BK$3-1)=\"\",\"\",VLOOKUP(INDEX(campsByItinerary,numericItinerary($A8),BK$3-1),campInfo,8))","v":""},{"$f":"IF(INDEX(campsByItinerary,numericItinerary($A8),BL$3-1)=\"\",\"\",VLOOKUP(INDEX(campsByItinerary,numericItinerary($A8),BL$3-1),campInfo,8))","v":""},{"$f":"IF(INDEX(campsByItinerary,numericItinerary($A8),BM$3-1)=\"\",\"\",VLOOKUP(INDEX(campsByItinerary,numericItinerary($A8),BM$3-1),campInfo,8))","v":""},"","Y","Y","","Y","Y","Y","Y","Y","Y",{"$f":"IF(INDEX(campsByItinerary,numericItinerary($A8),BD$3-1)=\"\",\"\",VLOOKUP(INDEX(campsByItinerary,numericItinerary($A8),BD$3-1),campInfo,10))","v":""},{"$f":"IF(INDEX(campsByItinerary,numericItinerary($A8),BE$3-1)=\"\",\"\",VLOOKUP(INDEX(campsByItinerary,numericItinerary($A8),BE$3-1),campInfo,10))","v":""},{"$f":"IF(INDEX(campsByItinerary,numericItinerary($A8),BF$3-1)=\"\",\"\",VLOOKUP(INDEX(campsByItinerary,numericItinerary($A8),BF$3-1),campInfo,10))","v":""},{"$f":"IF(INDEX(campsByItinerary,numericItinerary($A8),BG$3-1)=\"\",\"\",VLOOKUP(INDEX(campsByItinerary,numericItinerary($A8),BG$3-1),campInfo,10))","v":""},{"$f":"IF(INDEX(campsByItinerary,numericItinerary($A8),BH$3-1)=\"\",\"\",VLOOKUP(INDEX(campsByItinerary,numericItinerary($A8),BH$3-1),campInfo,10))","v":"Y"},{"$f":"IF(INDEX(campsByItinerary,numericItinerary($A8),BI$3-1)=\"\",\"\",VLOOKUP(INDEX(campsByItinerary,numericItinerary($A8),BI$3-1),campInfo,10))","v":"Y"},{"$f":"IF(INDEX(campsByItinerary,numericItinerary($A8),BJ$3-1)=\"\",\"\",VLOOKUP(INDEX(campsByItinerary,numericItinerary($A8),BJ$3-1),campInfo,10))","v":""},{"$f":"IF(INDEX(campsByItinerary,numericItinerary($A8),BK$3-1)=\"\",\"\",VLOOKUP(INDEX(campsByItinerary,numericItinerary($A8),BK$3-1),campInfo,10))","v":""},{"$f":"IF(INDEX(campsByItinerary,numericItinerary($A8),BL$3-1)=\"\",\"\",VLOOKUP(INDEX(campsByItinerary,numericItinerary($A8),BL$3-1),campInfo,10))","v":""},{"$f":"IF(INDEX(campsByItinerary,numericItinerary($A8),BM$3-1)=\"\",\"\",VLOOKUP(INDEX(campsByItinerary,numericItinerary($A8),BM$3-1),campInfo,10))","v":""},null,"","","","","Y","","","Y","Y",{"$f":"INDEX(campsByItinerary,numericItinerary($A8),BD$3-1)","v":"Indian Writings"},{"$f":"IF(INDEX(campsByItinerary,numericItinerary($A8),BE$3-1)=\"\",\"\",VLOOKUP(INDEX(campsByItinerary,numericItinerary($A8),BE$3-1),campInfo,2))","v":"North"},{"$f":"IF(INDEX(campsByItinerary,numericItinerary($A8),BF$3-1)=\"\",\"\",VLOOKUP(INDEX(campsByItinerary,numericItinerary($A8),BF$3-1),campInfo,2))","v":"North"},{"$f":"IF(INDEX(campsByItinerary,numericItinerary($A8),BG$3-1)=\"\",\"\",VLOOKUP(INDEX(campsByItinerary,numericItinerary($A8),BG$3-1),campInfo,2))","v":"North"},{"$f":"IF(INDEX(campsByItinerary,numericItinerary($A8),BH$3-1)=\"\",\"\",VLOOKUP(INDEX(campsByItinerary,numericItinerary($A8),BH$3-1),campInfo,2))","v":"North"},{"$f":"IF(INDEX(campsByItinerary,numericItinerary($A8),BI$3-1)=\"\",\"\",VLOOKUP(INDEX(campsByItinerary,numericItinerary($A8),BI$3-1),campInfo,2))","v":"North"},{"$f":"IF(INDEX(campsByItinerary,numericItinerary($A8),BJ$3-1)=\"\",\"\",VLOOKUP(INDEX(campsByItinerary,numericItinerary($A8),BJ$3-1),campInfo,2))","v":"North"},{"$f":"IF(INDEX(campsByItinerary,numericItinerary($A8),BK$3-1)=\"\",\"\",VLOOKUP(INDEX(campsByItinerary,numericItinerary($A8),BK$3-1),campInfo,2))","v":""},{"$f":"IF(INDEX(campsByItinerary,numericItinerary($A8),BL$3-1)=\"\",\"\",VLOOKUP(INDEX(campsByItinerary,numericItinerary($A8),BL$3-1),campInfo,2))","v":""},{"$f":"IF(INDEX(campsByItinerary,numericItinerary($A8),BM$3-1)=\"\",\"\",VLOOKUP(INDEX(campsByItinerary,numericItinerary($A8),BM$3-1),campInfo,2))","v":""},{"$f":"IF(INDEX(campsByItinerary,numericItinerary($A8),BD$3-1)=\"\",\"\",VLOOKUP(INDEX(campsByItinerary,numericItinerary($A8),BD$3-1),campInfo,12))","v":"North"},{"$f":"IF(INDEX(campsByItinerary,numericItinerary($A8),BE$3-1)=\"\",\"\",VLOOKUP(INDEX(campsByItinerary,numericItinerary($A8),BE$3-1),campInfo,12))","v":"North"},{"$f":"IF(INDEX(campsByItinerary,numericItinerary($A8),BF$3-1)=\"\",\"\",VLOOKUP(INDEX(campsByItinerary,numericItinerary($A8),BF$3-1),campInfo,12))","v":"North"},{"$f":"IF(INDEX(campsByItinerary,numericItinerary($A8),BG$3-1)=\"\",\"\",VLOOKUP(INDEX(campsByItinerary,numericItinerary($A8),BG$3-1),campInfo,12))","v":"North"},{"$f":"IF(INDEX(campsByItinerary,numericItinerary($A8),BH$3-1)=\"\",\"\",VLOOKUP(INDEX(campsByItinerary,numericItinerary($A8),BH$3-1),campInfo,12))","v":"North"},{"$f":"IF(INDEX(campsByItinerary,numericItinerary($A8),BI$3-1)=\"\",\"\",VLOOKUP(INDEX(campsByItinerary,numericItinerary($A8),BI$3-1),campInfo,12))","v":"North"},{"$f":"IF(INDEX(campsByItinerary,numericItinerary($A8),BJ$3-1)=\"\",\"\",VLOOKUP(INDEX(campsByItinerary,numericItinerary($A8),BJ$3-1),campInfo,12))","v":"North"},{"$f":"IF(INDEX(campsByItinerary,numericItinerary($A8),BK$3-1)=\"\",\"\",VLOOKUP(INDEX(campsByItinerary,numericItinerary($A8),BK$3-1),campInfo,12))","v":""},{"$f":"IF(INDEX(campsByItinerary,numericItinerary($A8),BL$3-1)=\"\",\"\",VLOOKUP(INDEX(campsByItinerary,numericItinerary($A8),BL$3-1),campInfo,12))","v":""},{"$f":"IF(INDEX(campsByItinerary,numericItinerary($A8),BM$3-1)=\"\",\"\",VLOOKUP(INDEX(campsByItinerary,numericItinerary($A8),BM$3-1),campInfo,12))","v":""},{"$f":"getfoodPU(\"First\",numericItinerary($A8))","v":2},{"$f":"getfoodPU(\"Max\",numericItinerary($A8))","v":2}]
["9-6",null,"R",62,"Indian Writings","Dan Beard","Ring Place","Iris Park","Rich Cabins","Head of Dean","Bluestem",null,null,null,"Camping HQ",null,"Ring Place",null,"Rich Cabins",null,null,null,null,null,"Six Mile Gate","Ponil","",null,null,null,{"$f":"IF(ItineraryPrograms!AD8=\"y\",\"y\",\"\")","v":""},{"$f":"IF(ItineraryPrograms!AE8=\"y\",\"y\",\"\")","v":""},{"$f":"IF(ItineraryPrograms!AF8=\"y\",\"y\",\"\")","v":""},"y",{"$f":"checkTooth(AA9,LOWER(ItineraryPrograms!AH8))","v":""},null,6979,7896,8124,8571,7728,8754,7495,"","","",917,228,447,843,1026,1259,"","","",{"$f":"IF(INDEX(campsByItinerary,numericItinerary($A9),BD$3-1)=\"\",\"\",VLOOKUP(INDEX(campsByItinerary,numericItinerary($A9),BD$3-1),campInfo,8))","v":"Y"},{"$f":"IF(INDEX(campsByItinerary,numericItinerary($A9),BE$3-1)=\"\",\"\",VLOOKUP(INDEX(campsByItinerary,numericItinerary($A9),BE$3-1),campInfo,8))","v":"Y"},{"$f":"IF(INDEX(campsByItinerary,numericItinerary($A9),BF$3-1)=\"\",\"\",VLOOKUP(INDEX(campsByItinerary,numericItinerary($A9),BF$3-1),campInfo,8))","v":"Y"},{"$f":"IF(INDEX(campsByItinerary,numericItinerary($A9),BG$3-1)=\"\",\"\",VLOOKUP(INDEX(campsByItinerary,numericItinerary($A9),BG$3-1),campInfo,8))","v":""},{"$f":"IF(INDEX(campsByItinerary,numericItinerary($A9),BH$3-1)=\"\",\"\",VLOOKUP(INDEX(campsByItinerary,numericItinerary($A9),BH$3-1),campInfo,8))","v":"Y"},{"$f":"IF(INDEX(campsByItinerary,numericItinerary($A9),BI$3-1)=\"\",\"\",VLOOKUP(INDEX(campsByItinerary,numericItinerary($A9),BI$3-1),campInfo,8))","v":"Y"},{"$f":"IF(INDEX(campsByItinerary,numericItinerary($A9),BJ$3-1)=\"\",\"\",VLOOKUP(INDEX(campsByItinerary,numericItinerary($A9),BJ$3-1),campInfo,8))","v":""},{"$f":"IF(INDEX(campsByItinerary,numericItinerary($A9),BK$3-1)=\"\",\"\",VLOOKUP(INDEX(campsByItinerary,numericItinerary($A9),BK$3-1),campInfo,8))","v":""},{"$f":"IF(INDEX(campsByItinerary,numericItinerary($A9),BL$3-1)=\"\",\"\",VLOOKUP(INDEX(campsByItinerary,numericItinerary($A9),BL$3-1),campInfo,8))","v":""},{"$f":"IF(INDEX(campsByItinerary,numericItinerary($A9),BM$3-1)=\"\",\"\",VLOOKUP(INDEX(campsByItinerary,numericItinerary($A9),BM$3-1),campInfo,8))","v":""},"","","","Y","","","Y","Y","Y","Y",{"$f":"IF(INDEX(campsByItinerary,numericItinerary($A9),BD$3-1)=\"\",\"\",VLOOKUP(INDEX(campsByItinerary,numericItinerary($A9),BD$3-1),campInfo,10))","v":""},{"$f":"IF(INDEX(campsByItinerary,numericItinerary($A9),BE$3-1)=\"\",\"\",VLOOKUP(INDEX(campsByItinerary,numericItinerary($A9),BE$3-1),campInfo,10))","v":""},{"$f":"IF(INDEX(campsByItinerary,numericItinerary($A9),BF$3-1)=\"\",\"\",VLOOKUP(INDEX(campsByItinerary,numericItinerary($A9),BF$3-1),campInfo,10))","v":""},{"$f":"IF(INDEX(campsByItinerary,numericItinerary($A9),BG$3-1)=\"\",\"\",VLOOKUP(INDEX(campsByItinerary,numericItinerary($A9),BG$3-1),campInfo,10))","v":""},{"$f":"IF(INDEX(campsByItinerary,numericItinerary($A9),BH$3-1)=\"\",\"\",VLOOKUP(INDEX(campsByItinerary,numericItinerary($A9),BH$3-1),campInfo,10))","v":""},{"$f":"IF(INDEX(campsByItinerary,numericItinerary($A9),BI$3-1)=\"\",\"\",VLOOKUP(INDEX(campsByItinerary,numericItinerary($A9),BI$3-1),campInfo,10))","v":""},{"$f":"IF(INDEX(campsByItinerary,numericItinerary($A9),BJ$3-1)=\"\",\"\",VLOOKUP(INDEX(campsByItinerary,numericItinerary($A9),BJ$3-1),campInfo,10))","v":"Y"},{"$f":"IF(INDEX(campsByItinerary,numericItinerary($A9),BK$3-1)=\"\",\"\",VLOOKUP(INDEX(campsByItinerary,numericItinerary($A9),BK$3-1),campInfo,10))","v":""},{"$f":"IF(INDEX(campsByItinerary,numericItinerary($A9),BL$3-1)=\"\",\"\",VLOOKUP(INDEX(campsByItinerary,numericItinerary($A9),BL$3-1),campInfo,10))","v":""},{"$f":"IF(INDEX(campsByItinerary,numericItinerary($A9),BM$3-1)=\"\",\"\",VLOOKUP(INDEX(campsByItinerary,numericItinerary($A9),BM$3-1),campInfo,10))","v":""},null,"","","","","","","","Y","Y",{"$f":"INDEX(campsByItinerary,numericItinerary($A9),BD$3-1)","v":"Indian Writings"},{"$f":"IF(INDEX(campsByItinerary,numericItinerary($A9),BE$3-1)=\"\",\"\",VLOOKUP(INDEX(campsByItinerary,numericItinerary($A9),BE$3-1),campInfo,2))","v":"North"},{"$f":"IF(INDEX(campsByItinerary,numericItinerary($A9),BF$3-1)=\"\",\"\",VLOOKUP(INDEX(campsByItinerary,numericItinerary($A9),BF$3-1),campInfo,2))","v":"Valle Vidal"},{"$f":"IF(INDEX(campsByItinerary,numericItinerary($A9),BG$3-1)=\"\",\"\",VLOOKUP(INDEX(campsByItinerary,numericItinerary($A9),BG$3-1),campInfo,2))","v":"Valle Vidal"},{"$f":"IF(INDEX(campsByItinerary,numericItinerary($A9),BH$3-1)=\"\",\"\",VLOOKUP(INDEX(campsByItinerary,numericItinerary($A9),BH$3-1),campInfo,2))","v":"Valle Vidal"},{"$f":"IF(INDEX(campsByItinerary,numericItinerary($A9),BI$3-1)=\"\",\"\",VLOOKUP(INDEX(campsByItinerary,numericItinerary($A9),BI$3-1),campInfo,2))","v":"North"},{"$f":"IF(INDEX(campsByItinerary,numericItinerary($A9),BJ$3-1)=\"\",\"\",VLOOKUP(INDEX(campsByItinerary,numericItinerary($A9),BJ$3-1),campInfo,2))","v":"North"},{"$f":"IF(INDEX(campsByItinerary,numericItinerary($A9),BK$3-1)=\"\",\"\",VLOOKUP(INDEX(campsByItinerary,numericItinerary($A9),BK$3-1),campInfo,2))","v":""},{"$f":"IF(INDEX(campsByItinerary,numericItinerary($A9),BL$3-1)=\"\",\"\",VLOOKUP(INDEX(campsByItinerary,numericItinerary($A9),BL$3-1),campInfo,2))","v":""},{"$f":"IF(INDEX(campsByItinerary,numericItinerary($A9),BM$3-1)=\"\",\"\",VLOOKUP(INDEX(campsByItinerary,numericItinerary($A9),BM$3-1),campInfo,2))","v":""},{"$f":"IF(INDEX(campsByItinerary,numericItinerary($A9),BD$3-1)=\"\",\"\",VLOOKUP(INDEX(campsByItinerary,numericItinerary($A9),BD$3-1),campInfo,12))","v":"North"},{"$f":"IF(INDEX(campsByItinerary,numericItinerary($A9),BE$3-1)=\"\",\"\",VLOOKUP(INDEX(campsByItinerary,numericItinerary($A9),BE$3-1),campInfo,12))","v":"North"},{"$f":"IF(INDEX(campsByItinerary,numericItinerary($A9),BF$3-1)=\"\",\"\",VLOOKUP(INDEX(campsByItinerary,numericItinerary($A9),BF$3-1),campInfo,12))","v":"North"},{"$f":"IF(INDEX(campsByItinerary,numericItinerary($A9),BG$3-1)=\"\",\"\",VLOOKUP(INDEX(campsByItinerary,numericItinerary($A9),BG$3-1),campInfo,12))","v":"North"},{"$f":"IF(INDEX(campsByItinerary,numericItinerary($A9),BH$3-1)=\"\",\"\",VLOOKUP(INDEX(campsByItinerary,numericItinerary($A9),BH$3-1),campInfo,12))","v":"North"},{"$f":"IF(INDEX(campsByItinerary,numericItinerary($A9),BI$3-1)=\"\",\"\",VLOOKUP(INDEX(campsByItinerary,numericItinerary($A9),BI$3-1),campInfo,12))","v":"North"},{"$f":"IF(INDEX(campsByItinerary,numericItinerary($A9),BJ$3-1)=\"\",\"\",VLOOKUP(INDEX(campsByItinerary,numericItinerary($A9),BJ$3-1),campInfo,12))","v":"North"},{"$f":"IF(INDEX(campsByItinerary,numericItinerary($A9),BK$3-1)=\"\",\"\",VLOOKUP(INDEX(campsByItinerary,numericItinerary($A9),BK$3-1),campInfo,12))","v":""},{"$f":"IF(INDEX(campsByItinerary,numericItinerary($A9),BL$3-1)=\"\",\"\",VLOOKUP(INDEX(campsByItinerary,numericItinerary($A9),BL$3-1),campInfo,12))","v":""},{"$f":"IF(INDEX(campsByItinerary,numericItinerary($A9),BM$3-1)=\"\",\"\",VLOOKUP(INDEX(campsByItinerary,numericItinerary($A9),BM$3-1),campInfo,12))","v":""},{"$f":"getfoodPU(\"First\",numericItinerary($A9))","v":2},{"$f":"getfoodPU(\"Max\",numericItinerary($A9))","v":2}]
["9-7",null,"S",42,"Harlan","Deer Lake","Cimarroncito","Lamberts Mine","Comanche Peak","Sawmill","Cimarroncita",null,null,null,"Camping HQ",null,"Ute Gulch",null,null,null,null,null,null,null,"Webster","Ute Park","",null,null,null,{"$f":"IF(ItineraryPrograms!AD9=\"y\",\"y\",\"\")","v":""},{"$f":"IF(ItineraryPrograms!AE9=\"y\",\"y\",\"\")","v":""},{"$f":"IF(ItineraryPrograms!AF9=\"y\",\"y\",\"\")","v":"y"},"y",{"$f":"checkTooth(AA10,LOWER(ItineraryPrograms!AH9))","v":""},null,7550,8280,8137,8957,11070,9193,7373,"","","",730,143,820,2113,1877,1820,"","","",{"$f":"IF(INDEX(campsByItinerary,numericItinerary($A10),BD$3-1)=\"\",\"\",VLOOKUP(INDEX(campsByItinerary,numericItinerary($A10),BD$3-1),campInfo,8))","v":"Y"},{"$f":"IF(INDEX(campsByItinerary,numericItinerary($A10),BE$3-1)=\"\",\"\",VLOOKUP(INDEX(campsByItinerary,numericItinerary($A10),BE$3-1),campInfo,8))","v":""},{"$f":"IF(INDEX(campsByItinerary,numericItinerary($A10),BF$3-1)=\"\",\"\",VLOOKUP(INDEX(campsByItinerary,numericItinerary($A10),BF$3-1),campInfo,8))","v":"Y"},{"$f":"IF(INDEX(campsByItinerary,numericItinerary($A10),BG$3-1)=\"\",\"\",VLOOKUP(INDEX(campsByItinerary,numericItinerary($A10),BG$3-1),campInfo,8))","v":""},{"$f":"IF(INDEX(campsByItinerary,numericItinerary($A10),BH$3-1)=\"\",\"\",VLOOKUP(INDEX(campsByItinerary,numericItinerary($A10),BH$3-1),campInfo,8))","v":""},{"$f":"IF(INDEX(campsByItinerary,numericItinerary($A10),BI$3-1)=\"\",\"\",VLOOKUP(INDEX(campsByItinerary,numericItinerary($A10),BI$3-1),campInfo,8))","v":"Y"},{"$f":"IF(INDEX(campsByItinerary,numericItinerary($A10),BJ$3-1)=\"\",\"\",VLOOKUP(INDEX(campsByItinerary,numericItinerary($A10),BJ$3-1),campInfo,8))","v":"Y"},{"$f":"IF(INDEX(campsByItinerary,numericItinerary($A10),BK$3-1)=\"\",\"\",VLOOKUP(INDEX(campsByItinerary,numericItinerary($A10),BK$3-1),campInfo,8))","v":""},{"$f":"IF(INDEX(campsByItinerary,numericItinerary($A10),BL$3-1)=\"\",\"\",VLOOKUP(INDEX(campsByItinerary,numericItinerary($A10),BL$3-1),campInfo,8))","v":""},{"$f":"IF(INDEX(campsByItinerary,numericItinerary($A10),BM$3-1)=\"\",\"\",VLOOKUP(INDEX(campsByItinerary,numericItinerary($A10),BM$3-1),campInfo,8))","v":""},"","Y","","Y","Y","","","Y","Y","Y",{"$f":"IF(INDEX(campsByItinerary,numericItinerary($A10),BD$3-1)=\"\",\"\",VLOOKUP(INDEX(campsByItinerary,numericItinerary($A10),BD$3-1),campInfo,10))","v":""},{"$f":"IF(INDEX(campsByItinerary,numericItinerary($A10),BE$3-1)=\"\",\"\",VLOOKUP(INDEX(campsByItinerary,numericItinerary($A10),BE$3-1),campInfo,10))","v":""},{"$f":"IF(INDEX(campsByItinerary,numericItinerary($A10),BF$3-1)=\"\",\"\",VLOOKUP(INDEX(campsByItinerary,numericItinerary($A10),BF$3-1),campInfo,10))","v":""},{"$f":"IF(INDEX(campsByItinerary,numericItinerary($A10),BG$3-1)=\"\",\"\",VLOOKUP(INDEX(campsByItinerary,numericItinerary($A10),BG$3-1),campInfo,10))","v":""},{"$f":"IF(INDEX(campsByItinerary,numericItinerary($A10),BH$3-1)=\"\",\"\",VLOOKUP(INDEX(campsByItinerary,numericItinerary($A10),BH$3-1),campInfo,10))","v":"Y"},{"$f":"IF(INDEX(campsByItinerary,numericItinerary($A10),BI$3-1)=\"\",\"\",VLOOKUP(INDEX(campsByItinerary,numericItinerary($A10),BI$3-1),campInfo,10))","v":""},{"$f":"IF(INDEX(campsByItinerary,numericItinerary($A10),BJ$3-1)=\"\",\"\",VLOOKUP(INDEX(campsByItinerary,numericItinerary($A10),BJ$3-1),campInfo,10))","v":""},{"$f":"IF(INDEX(campsByItinerary,numericItinerary($A10),BK$3-1)=\"\",\"\",VLOOKUP(INDEX(campsByItinerary,numericItinerary($A10),BK$3-1),campInfo,10))","v":""},{"$f":"IF(INDEX(campsByItinerary,numericItinerary($A10),BL$3-1)=\"\",\"\",VLOOKUP(INDEX(campsByItinerary,numericItinerary($A10),BL$3-1),campInfo,10))","v":""},{"$f":"IF(INDEX(campsByItinerary,numericItinerary($A10),BM$3-1)=\"\",\"\",VLOOKUP(INDEX(campsByItinerary,numericItinerary($A10),BM$3-1),campInfo,10))","v":""},null,"","","","","","","","Y","Y",{"$f":"INDEX(campsByItinerary,numericItinerary($A10),BD$3-1)","v":"Harlan"},{"$f":"IF(INDEX(campsByItinerary,numericItinerary($A10),BE$3-1)=\"\",\"\",VLOOKUP(INDEX(campsByItinerary,numericItinerary($A10),BE$3-1),campInfo,2))","v":"Central"},{"$f":"IF(INDEX(campsByItinerary,numericItinerary($A10),BF$3-1)=\"\",\"\",VLOOKUP(INDEX(campsByItinerary,numericItinerary($A10),BF$3-1),campInfo,2))","v":"Central"},{"$f":"IF(INDEX(campsByItinerary,numericItinerary($A10),BG$3-1)=\"\",\"\",VLOOKUP(INDEX(campsByItinerary,numericItinerary($A10),BG$3-1),campInfo,2))","v":"Central"},{"$f":"IF(INDEX(campsByItinerary,numericItinerary($A10),BH$3-1)=\"\",\"\",VLOOKUP(INDEX(campsByItinerary,numericItinerary($A10),BH$3-1),campInfo,2))","v":"Central"},{"$f":"IF(INDEX(campsByItinerary,numericItinerary($A10),BI$3-1)=\"\",\"\",VLOOKUP(INDEX(campsByItinerary,numericItinerary($A10),BI$3-1),campInfo,2))","v":"Central"},{"$f":"IF(INDEX(campsByItinerary,numericItinerary($A10),BJ$3-1)=\"\",\"\",VLOOKUP(INDEX(campsByItinerary,numericItinerary($A10),BJ$3-1),campInfo,2))","v":"Central"},{"$f":"IF(INDEX(campsByItinerary,numericItinerary($A10),BK$3-1)=\"\",\"\",VLOOKUP(INDEX(campsByItinerary,numericItinerary($A10),BK$3-1),campInfo,2))","v":""},{"$f":"IF(INDEX(campsByItinerary,numericItinerary($A10),BL$3-1)=\"\",\"\",VLOOKUP(INDEX(campsByItinerary,numericItinerary($A10),BL$3-1),campInfo,2))","v":""},{"$f":"IF(INDEX(campsByItinerary,numericItinerary($A10),BM$3-1)=\"\",\"\",VLOOKUP(INDEX(campsByItinerary,numericItinerary($A10),BM$3-1),campInfo,2))","v":""},{"$f":"IF(INDEX(campsByItinerary,numericItinerary($A10),BD$3-1)=\"\",\"\",VLOOKUP(INDEX(campsByItinerary,numericItinerary($A10),BD$3-1),campInfo,12))","v":"South"},{"$f":"IF(INDEX(campsByItinerary,numericItinerary($A10),BE$3-1)=\"\",\"\",VLOOKUP(INDEX(campsByItinerary,numericItinerary($A10),BE$3-1),campInfo,12))","v":"South"},{"$f":"IF(INDEX(campsByItinerary,numericItinerary($A10),BF$3-1)=\"\",\"\",VLOOKUP(INDEX(campsByItinerary,numericItinerary($A10),BF$3-1),campInfo,12))","v":"South"},{"$f":"IF(INDEX(campsByItinerary,numericItinerary($A10),BG$3-1)=\"\",\"\",VLOOKUP(INDEX(campsByItinerary,numericItinerary($A10),BG$3-1),campInfo,12))","v":"South"},{"$f":"IF(INDEX(campsByItinerary,numericItinerary($A10),BH$3-1)=\"\",\"\",VLOOKUP(INDEX(campsByItinerary,numericItinerary($A10),BH$3-1),campInfo,12))","v":"South"},{"$f":"IF(INDEX(campsByItinerary,numericItinerary($A10),BI$3-1)=\"\",\"\",VLOOKUP(INDEX(campsByItinerary,numericItinerary($A10),BI$3-1),campInfo,12))","v":"South"},{"$f":"IF(INDEX(campsByItinerary,numericItinerary($A10),BJ$3-1)=\"\",\"\",VLOOKUP(INDEX(campsByItinerary,numericItinerary($A10),BJ$3-1),campInfo,12))","v":"North & South"},{"$f":"IF(INDEX(campsByItinerary,numericItinerary($A10),BK$3-1)=\"\",\"\",VLOOKUP(INDEX(campsByItinerary,numericItinerary($A10),BK$3-1),campInfo,12))","v":""},{"$f":"IF(INDEX(campsByItinerary,numericItinerary($A10),BL$3-1)=\"\",\"\",VLOOKUP(INDEX(campsByItinerary,numericItinerary($A10),BL$3-1),campInfo,12))","v":""},{"$f":"IF(INDEX(campsByItinerary,numericItinerary($A10),BM$3-1)=\"\",\"\",VLOOKUP(INDEX(campsByItinerary,numericItinerary($A10),BM$3-1),campInfo,12))","v":""},{"$f":"getfoodPU(\"First\",numericItinerary($A10))","v":2},{"$f":"getfoodPU(\"Max\",numericItinerary($A10))","v":4}]
["9-8",null,"S",44,"Old Abreu","Fish Camp","Apache Springs","Beaubien","Bear Caves","Urraca","Stockade Ridge",null,null,null,"Camping HQ",null,"Apache Springs","Phillips Junction",null,null,null,null,null,null,"Zastrow","Lovers Leap","",null,null,null,{"$f":"IF(ItineraryPrograms!AD10=\"y\",\"y\",\"\")","v":""},{"$f":"IF(ItineraryPrograms!AE10=\"y\",\"y\",\"\")","v":"y"},{"$f":"IF(ItineraryPrograms!AF10=\"y\",\"y\",\"\")","v":""},null,"y","y",7375,8564,9409,9330,8423,7968,7519,"","","",1189,845,79,907,455,449,"","","",{"$f":"IF(INDEX(campsByItinerary,numericItinerary($A11),BD$3-1)=\"\",\"\",VLOOKUP(INDEX(campsByItinerary,numericItinerary($A11),BD$3-1),campInfo,8))","v":""},{"$f":"IF(INDEX(campsByItinerary,numericItinerary($A11),BE$3-1)=\"\",\"\",VLOOKUP(INDEX(campsByItinerary,numericItinerary($A11),BE$3-1),campInfo,8))","v":"N"},{"$f":"IF(INDEX(campsByItinerary,numericItinerary($A11),BF$3-1)=\"\",\"\",VLOOKUP(INDEX(campsByItinerary,numericItinerary($A11),BF$3-1),campInfo,8))","v":"Y"},{"$f":"IF(INDEX(campsByItinerary,numericItinerary($A11),BG$3-1)=\"\",\"\",VLOOKUP(INDEX(campsByItinerary,numericItinerary($A11),BG$3-1),campInfo,8))","v":"Y"},{"$f":"IF(INDEX(campsByItinerary,numericItinerary($A11),BH$3-1)=\"\",\"\",VLOOKUP(INDEX(campsByItinerary,numericItinerary($A11),BH$3-1),campInfo,8))","v":""},{"$f":"IF(INDEX(campsByItinerary,numericItinerary($A11),BI$3-1)=\"\",\"\",VLOOKUP(INDEX(campsByItinerary,numericItinerary($A11),BI$3-1),campInfo,8))","v":"Y"},{"$f":"IF(INDEX(campsByItinerary,numericItinerary($A11),BJ$3-1)=\"\",\"\",VLOOKUP(INDEX(campsByItinerary,numericItinerary($A11),BJ$3-1),campInfo,8))","v":""},{"$f":"IF(INDEX(campsByItinerary,numericItinerary($A11),BK$3-1)=\"\",\"\",VLOOKUP(INDEX(campsByItinerary,numericItinerary($A11),BK$3-1),campInfo,8))","v":""},{"$f":"IF(INDEX(campsByItinerary,numericItinerary($A11),BL$3-1)=\"\",\"\",VLOOKUP(INDEX(campsByItinerary,numericItinerary($A11),BL$3-1),campInfo,8))","v":""},{"$f":"IF(INDEX(campsByItinerary,numericItinerary($A11),BM$3-1)=\"\",\"\",VLOOKUP(INDEX(campsByItinerary,numericItinerary($A11),BM$3-1),campInfo,8))","v":""},"Y","Y","","","Y","","Y","Y","Y","Y",{"$f":"IF(INDEX(campsByItinerary,numericItinerary($A11),BD$3-1)=\"\",\"\",VLOOKUP(INDEX(campsByItinerary,numericItinerary($A11),BD$3-1),campInfo,10))","v":""},{"$f":"IF(INDEX(campsByItinerary,numericItinerary($A11),BE$3-1)=\"\",\"\",VLOOKUP(INDEX(campsByItinerary,numericItinerary($A11),BE$3-1),campInfo,10))","v":""},{"$f":"IF(INDEX(campsByItinerary,numericItinerary($A11),BF$3-1)=\"\",\"\",VLOOKUP(INDEX(campsByItinerary,numericItinerary($A11),BF$3-1),campInfo,10))","v":""},{"$f":"IF(INDEX(campsByItinerary,numericItinerary($A11),BG$3-1)=\"\",\"\",VLOOKUP(INDEX(campsByItinerary,numericItinerary($A11),BG$3-1),campInfo,10))","v":""},{"$f":"IF(INDEX(campsByItinerary,numericItinerary($A11),BH$3-1)=\"\",\"\",VLOOKUP(INDEX(campsByItinerary,numericItinerary($A11),BH$3-1),campInfo,10))","v":""},{"$f":"IF(INDEX(campsByItinerary,numericItinerary($A11),BI$3-1)=\"\",\"\",VLOOKUP(INDEX(campsByItinerary,numericItinerary($A11),BI$3-1),campInfo,10))","v":""},{"$f":"IF(INDEX(campsByItinerary,numericItinerary($A11),BJ$3-1)=\"\",\"\",VLOOKUP(INDEX(campsByItinerary,numericItinerary($A11),BJ$3-1),campInfo,10))","v":"Y"},{"$f":"IF(INDEX(campsByItinerary,numericItinerary($A11),BK$3-1)=\"\",\"\",VLOOKUP(INDEX(campsByItinerary,numericItinerary($A11),BK$3-1),campInfo,10))","v":""},{"$f":"IF(INDEX(campsByItinerary,numericItinerary($A11),BL$3-1)=\"\",\"\",VLOOKUP(INDEX(campsByItinerary,numericItinerary($A11),BL$3-1),campInfo,10))","v":""},{"$f":"IF(INDEX(campsByItinerary,numericItinerary($A11),BM$3-1)=\"\",\"\",VLOOKUP(INDEX(campsByItinerary,numericItinerary($A11),BM$3-1),campInfo,10))","v":""},null,"","","","","","","","Y","Y",{"$f":"INDEX(campsByItinerary,numericItinerary($A11),BD$3-1)","v":"Old Abreu"},{"$f":"IF(INDEX(campsByItinerary,numericItinerary($A11),BE$3-1)=\"\",\"\",VLOOKUP(INDEX(campsByItinerary,numericItinerary($A11),BE$3-1),campInfo,2))","v":"South"},{"$f":"IF(INDEX(campsByItinerary,numericItinerary($A11),BF$3-1)=\"\",\"\",VLOOKUP(INDEX(campsByItinerary,numericItinerary($A11),BF$3-1),campInfo,2))","v":"South"},{"$f":"IF(INDEX(campsByItinerary,numericItinerary($A11),BG$3-1)=\"\",\"\",VLOOKUP(INDEX(campsByItinerary,numericItinerary($A11),BG$3-1),campInfo,2))","v":"South"},{"$f":"IF(INDEX(campsByItinerary,numericItinerary($A11),BH$3-1)=\"\",\"\",VLOOKUP(INDEX(campsByItinerary,numericItinerary($A11),BH$3-1),campInfo,2))","v":"South"},{"$f":"IF(INDEX(campsByItinerary,numericItinerary($A11),BI$3-1)=\"\",\"\",VLOOKUP(INDEX(campsByItinerary,numericItinerary($A11),BI$3-1),campInfo,2))","v":"South"},{"$f":"IF(INDEX(campsByItinerary,numericItinerary($A11),BJ$3-1)=\"\",\"\",VLOOKUP(INDEX(campsByItinerary,numericItinerary($A11),BJ$3-1),campInfo,2))","v":"South"},{"$f":"IF(INDEX(campsByItinerary,numericItinerary($A11),BK$3-1)=\"\",\"\",VLOOKUP(INDEX(campsByItinerary,numericItinerary($A11),BK$3-1),campInfo,2))","v":""},{"$f":"IF(INDEX(campsByItinerary,numericItinerary($A11),BL$3-1)=\"\",\"\",VLOOKUP(INDEX(campsByItinerary,numericItinerary($A11),BL$3-1),campInfo,2))","v":""},{"$f":"IF(INDEX(campsByItinerary,numericItinerary($A11),BM$3-1)=\"\",\"\",VLOOKUP(INDEX(campsByItinerary,numericItinerary($A11),BM$3-1),campInfo,2))","v":""},{"$f":"IF(INDEX(campsByItinerary,numericItinerary($A11),BD$3-1)=\"\",\"\",VLOOKUP(INDEX(campsByItinerary,numericItinerary($A11),BD$3-1),campInfo,12))","v":"South"},{"$f":"IF(INDEX(campsByItinerary,numericItinerary($A11),BE$3-1)=\"\",\"\",VLOOKUP(INDEX(campsByItinerary,numericItinerary($A11),BE$3-1),campInfo,12))","v":"South"},{"$f":"IF(INDEX(campsByItinerary,numericItinerary($A11),BF$3-1)=\"\",\"\",VLOOKUP(INDEX(campsByItinerary,numericItinerary($A11),BF$3-1),campInfo,12))","v":"South"},{"$f":"IF(INDEX(campsByItinerary,numericItinerary($A11),BG$3-1)=\"\",\"\",VLOOKUP(INDEX(campsByItinerary,numericItinerary($A11),BG$3-1),campInfo,12))","v":"South"},{"$f":"IF(INDEX(campsByItinerary,numericItinerary($A11),BH$3-1)=\"\",\"\",VLOOKUP(INDEX(campsByItinerary,numericItinerary($A11),BH$3-1),campInfo,12))","v":"South"},{"$f":"IF(INDEX(campsByItinerary,numericItinerary($A11),BI$3-1)=\"\",\"\",VLOOKUP(INDEX(campsByItinerary,numericItinerary($A11),BI$3-1),campInfo,12))","v":"South"},{"$f":"IF(INDEX(campsByItinerary,numericItinerary($A11),BJ$3-1)=\"\",\"\",VLOOKUP(INDEX(campsByItinerary,numericItinerary($A11),BJ$3-1),campInfo,12))","v":"South"},{"$f":"IF(INDEX(campsByItinerary,numericItinerary($A11),BK$3-1)=\"\",\"\",VLOOKUP(INDEX(campsByItinerary,numericItinerary($A11),BK$3-1),campInfo,12))","v":""},{"$f":"IF(INDEX(campsByItinerary,numericItinerary($A11),BL$3-1)=\"\",\"\",VLOOKUP(INDEX(campsByItinerary,numericItinerary($A11),BL$3-1),campInfo,12))","v":""},{"$f":"IF(INDEX(campsByItinerary,numericItinerary($A11),BM$3-1)=\"\",\"\",VLOOKUP(INDEX(campsByItinerary,numericItinerary($A11),BM$3-1),campInfo,12))","v":""},{"$f":"getfoodPU(\"First\",numericItinerary($A11))","v":2},{"$f":"getfoodPU(\"Max\",numericItinerary($A11))","v":2}]
["9-9",null,"S",42,"Carson Meadows","Fish Camp","Beaubien","Crooked Creek","Mount Phillips","Cyphers Mine","Hunting Lodge",null,null,null,"Camping HQ",null,null,"Phillips Junction",null,null,null,null,null,null,"Zastrow","Webster","",null,null,null,{"$f":"IF(ItineraryPrograms!AD11=\"y\",\"y\",\"\")","v":""},{"$f":"IF(ItineraryPrograms!AE11=\"y\",\"y\",\"\")","v":""},{"$f":"IF(ItineraryPrograms!AF11=\"y\",\"y\",\"\")","v":"y"},"y",{"$f":"checkTooth(AA12,LOWER(ItineraryPrograms!AH11))","v":""},null,7758,8564,9330,9360,11650,9302,7776,"","","",806,766,30,2290,2348,1526,"","","",{"$f":"IF(INDEX(campsByItinerary,numericItinerary($A12),BD$3-1)=\"\",\"\",VLOOKUP(INDEX(campsByItinerary,numericItinerary($A12),BD$3-1),campInfo,8))","v":"N"},{"$f":"IF(INDEX(campsByItinerary,numericItinerary($A12),BE$3-1)=\"\",\"\",VLOOKUP(INDEX(campsByItinerary,numericItinerary($A12),BE$3-1),campInfo,8))","v":"N"},{"$f":"IF(INDEX(campsByItinerary,numericItinerary($A12),BF$3-1)=\"\",\"\",VLOOKUP(INDEX(campsByItinerary,numericItinerary($A12),BF$3-1),campInfo,8))","v":"Y"},{"$f":"IF(INDEX(campsByItinerary,numericItinerary($A12),BG$3-1)=\"\",\"\",VLOOKUP(INDEX(campsByItinerary,numericItinerary($A12),BG$3-1),campInfo,8))","v":"Y"},{"$f":"IF(INDEX(campsByItinerary,numericItinerary($A12),BH$3-1)=\"\",\"\",VLOOKUP(INDEX(campsByItinerary,numericItinerary($A12),BH$3-1),campInfo,8))","v":""},{"$f":"IF(INDEX(campsByItinerary,numericItinerary($A12),BI$3-1)=\"\",\"\",VLOOKUP(INDEX(campsByItinerary,numericItinerary($A12),BI$3-1),campInfo,8))","v":"Y"},{"$f":"IF(INDEX(campsByItinerary,numericItinerary($A12),BJ$3-1)=\"\",\"\",VLOOKUP(INDEX(campsByItinerary,numericItinerary($A12),BJ$3-1),campInfo,8))","v":"N"},{"$f":"IF(INDEX(campsByItinerary,numericItinerary($A12),BK$3-1)=\"\",\"\",VLOOKUP(INDEX(campsByItinerary,numericItinerary($A12),BK$3-1),campInfo,8))","v":""},{"$f":"IF(INDEX(campsByItinerary,numericItinerary($A12),BL$3-1)=\"\",\"\",VLOOKUP(INDEX(campsByItinerary,numericItinerary($A12),BL$3-1),campInfo,8))","v":""},{"$f":"IF(INDEX(campsByItinerary,numericItinerary($A12),BM$3-1)=\"\",\"\",VLOOKUP(INDEX(campsByItinerary,numericItinerary($A12),BM$3-1),campInfo,8))","v":""},"Y","Y","","","Y","","Y","Y","Y","Y",{"$f":"IF(INDEX(campsByItinerary,numericItinerary($A12),BD$3-1)=\"\",\"\",VLOOKUP(INDEX(campsByItinerary,numericItinerary($A12),BD$3-1),campInfo,10))","v":""},{"$f":"IF(INDEX(campsByItinerary,numericItinerary($A12),BE$3-1)=\"\",\"\",VLOOKUP(INDEX(campsByItinerary,numericItinerary($A12),BE$3-1),campInfo,10))","v":""},{"$f":"IF(INDEX(campsByItinerary,numericItinerary($A12),BF$3-1)=\"\",\"\",VLOOKUP(INDEX(campsByItinerary,numericItinerary($A12),BF$3-1),campInfo,10))","v":""},{"$f":"IF(INDEX(campsByItinerary,numericItinerary($A12),BG$3-1)=\"\",\"\",VLOOKUP(INDEX(campsByItinerary,numericItinerary($A12),BG$3-1),campInfo,10))","v":""},{"$f":"IF(INDEX(campsByItinerary,numericItinerary($A12),BH$3-1)=\"\",\"\",VLOOKUP(INDEX(campsByItinerary,numericItinerary($A12),BH$3-1),campInfo,10))","v":"Y"},{"$f":"IF(INDEX(campsByItinerary,numericItinerary($A12),BI$3-1)=\"\",\"\",VLOOKUP(INDEX(campsByItinerary,numericItinerary($A12),BI$3-1),campInfo,10))","v":""},{"$f":"IF(INDEX(campsByItinerary,numericItinerary($A12),BJ$3-1)=\"\",\"\",VLOOKUP(INDEX(campsByItinerary,numericItinerary($A12),BJ$3-1),campInfo,10))","v":""},{"$f":"IF(INDEX(campsByItinerary,numericItinerary($A12),BK$3-1)=\"\",\"\",VLOOKUP(INDEX(campsByItinerary,numericItinerary($A12),BK$3-1),campInfo,10))","v":""},{"$f":"IF(INDEX(campsByItinerary,numericItinerary($A12),BL$3-1)=\"\",\"\",VLOOKUP(INDEX(campsByItinerary,numericItinerary($A12),BL$3-1),campInfo,10))","v":""},{"$f":"IF(INDEX(campsByItinerary,numericItinerary($A12),BM$3-1)=\"\",\"\",VLOOKUP(INDEX(campsByItinerary,numericItinerary($A12),BM$3-1),campInfo,10))","v":""},null,"","","","","","","","Y","Y",{"$f":"INDEX(campsByItinerary,numericItinerary($A12),BD$3-1)","v":"Carson Meadows"},{"$f":"IF(INDEX(campsByItinerary,numericItinerary($A12),BE$3-1)=\"\",\"\",VLOOKUP(INDEX(campsByItinerary,numericItinerary($A12),BE$3-1),campInfo,2))","v":"South"},{"$f":"IF(INDEX(campsByItinerary,numericItinerary($A12),BF$3-1)=\"\",\"\",VLOOKUP(INDEX(campsByItinerary,numericItinerary($A12),BF$3-1),campInfo,2))","v":"South"},{"$f":"IF(INDEX(campsByItinerary,numericItinerary($A12),BG$3-1)=\"\",\"\",VLOOKUP(INDEX(campsByItinerary,numericItinerary($A12),BG$3-1),campInfo,2))","v":"South"},{"$f":"IF(INDEX(campsByItinerary,numericItinerary($A12),BH$3-1)=\"\",\"\",VLOOKUP(INDEX(campsByItinerary,numericItinerary($A12),BH$3-1),campInfo,2))","v":"Central"},{"$f":"IF(INDEX(campsByItinerary,numericItinerary($A12),BI$3-1)=\"\",\"\",VLOOKUP(INDEX(campsByItinerary,numericItinerary($A12),BI$3-1),campInfo,2))","v":"Central"},{"$f":"IF(INDEX(campsByItinerary,numericItinerary($A12),BJ$3-1)=\"\",\"\",VLOOKUP(INDEX(campsByItinerary,numericItinerary($A12),BJ$3-1),campInfo,2))","v":"Central"},{"$f":"IF(INDEX(campsByItinerary,numericItinerary($A12),BK$3-1)=\"\",\"\",VLOOKUP(INDEX(campsByItinerary,numericItinerary($A12),BK$3-1),campInfo,2))","v":""},{"$f":"IF(INDEX(campsByItinerary,numericItinerary($A12),BL$3-1)=\"\",\"\",VLOOKUP(INDEX(campsByItinerary,numericItinerary($A12),BL$3-1),campInfo,2))","v":""},{"$f":"IF(INDEX(campsByItinerary,numericItinerary($A12),BM$3-1)=\"\",\"\",VLOOKUP(INDEX(campsByItinerary,numericItinerary($A12),BM$3-1),campInfo,2))","v":""},{"$f":"IF(INDEX(campsByItinerary,numericItinerary($A12),BD$3-1)=\"\",\"\",VLOOKUP(INDEX(campsByItinerary,numericItinerary($A12),BD$3-1),campInfo,12))","v":"South"},{"$f":"IF(INDEX(campsByItinerary,numericItinerary($A12),BE$3-1)=\"\",\"\",VLOOKUP(INDEX(campsByItinerary,numericItinerary($A12),BE$3-1),campInfo,12))","v":"South"},{"$f":"IF(INDEX(campsByItinerary,numericItinerary($A12),BF$3-1)=\"\",\"\",VLOOKUP(INDEX(campsByItinerary,numericItinerary($A12),BF$3-1),campInfo,12))","v":"South"},{"$f":"IF(INDEX(campsByItinerary,numericItinerary($A12),BG$3-1)=\"\",\"\",VLOOKUP(INDEX(campsByItinerary,numericItinerary($A12),BG$3-1),campInfo,12))","v":"South"},{"$f":"IF(INDEX(campsByItinerary,numericItinerary($A12),BH$3-1)=\"\",\"\",VLOOKUP(INDEX(campsByItinerary,numericItinerary($A12),BH$3-1),campInfo,12))","v":"South"},{"$f":"IF(INDEX(campsByItinerary,numericItinerary($A12),BI$3-1)=\"\",\"\",VLOOKUP(INDEX(campsByItinerary,numericItinerary($A12),BI$3-1),campInfo,12))","v":"South"},{"$f":"IF(INDEX(campsByItinerary,numericItinerary($A12),BJ$3-1)=\"\",\"\",VLOOKUP(INDEX(campsByItinerary,numericItinerary($A12),BJ$3-1),campInfo,12))","v":"South"},{"$f":"IF(INDEX(campsByItinerary,numericItinerary($A12),BK$3-1)=\"\",\"\",VLOOKUP(INDEX(campsByItinerary,numericItinerary($A12),BK$3-1),campInfo,12))","v":""},{"$f":"IF(INDEX(campsByItinerary,numericItinerary($A12),BL$3-1)=\"\",\"\",VLOOKUP(INDEX(campsByItinerary,numericItinerary($A12),BL$3-1),campInfo,12))","v":""},{"$f":"IF(INDEX(campsByItinerary,numericItinerary($A12),BM$3-1)=\"\",\"\",VLOOKUP(INDEX(campsByItinerary,numericItinerary($A12),BM$3-1),campInfo,12))","v":""},{"$f":"getfoodPU(\"First\",numericItinerary($A12))","v":3},{"$f":"getfoodPU(\"Max\",numericItinerary($A12))","v":3}]
["9-10",null,"SS",53,"McBride Canyon","Metcalf Station","Dean Skyline","Pueblano","Copper Park","Copper Park","Miranda",null,null,null,"Camping HQ",null,"Ponil",null,null,"Baldy Town",null,null,null,null,"Six Mile Gate","Maxwell","",null,null,null,{"$f":"IF(ItineraryPrograms!AD12=\"y\",\"y\",\"\")","v":"y"},{"$f":"IF(ItineraryPrograms!AE12=\"y\",\"y\",\"\")","v":""},{"$f":"IF(ItineraryPrograms!AF12=\"y\",\"y\",\"\")","v":""},"y",{"$f":"checkTooth(AA13,LOWER(ItineraryPrograms!AH12))","v":""},null,7105,7220,7967,8069,10530,10530,8898,"","","",115,747,102,2461,0,1632,"","","",{"$f":"IF(INDEX(campsByItinerary,numericItinerary($A13),BD$3-1)=\"\",\"\",VLOOKUP(INDEX(campsByItinerary,numericItinerary($A13),BD$3-1),campInfo,8))","v":""},{"$f":"IF(INDEX(campsByItinerary,numericItinerary($A13),BE$3-1)=\"\",\"\",VLOOKUP(INDEX(campsByItinerary,numericItinerary($A13),BE$3-1),campInfo,8))","v":"Y"},{"$f":"IF(INDEX(campsByItinerary,numericItinerary($A13),BF$3-1)=\"\",\"\",VLOOKUP(INDEX(campsByItinerary,numericItinerary($A13),BF$3-1),campInfo,8))","v":""},{"$f":"IF(INDEX(campsByItinerary,numericItinerary($A13),BG$3-1)=\"\",\"\",VLOOKUP(INDEX(campsByItinerary,numericItinerary($A13),BG$3-1),campInfo,8))","v":"Y"},{"$f":"IF(INDEX(campsByItinerary,numericItinerary($A13),BH$3-1)=\"\",\"\",VLOOKUP(INDEX(campsByItinerary,numericItinerary($A13),BH$3-1),campInfo,8))","v":""},{"$f":"IF(INDEX(campsByItinerary,numericItinerary($A13),BI$3-1)=\"\",\"\",VLOOKUP(INDEX(campsByItinerary,numericItinerary($A13),BI$3-1),campInfo,8))","v":""},{"$f":"IF(INDEX(campsByItinerary,numericItinerary($A13),BJ$3-1)=\"\",\"\",VLOOKUP(INDEX(campsByItinerary,numericItinerary($A13),BJ$3-1),campInfo,8))","v":"Y"},{"$f":"IF(INDEX(campsByItinerary,numericItinerary($A13),BK$3-1)=\"\",\"\",VLOOKUP(INDEX(campsByItinerary,numericItinerary($A13),BK$3-1),campInfo,8))","v":""},{"$f":"IF(INDEX(campsByItinerary,numericItinerary($A13),BL$3-1)=\"\",\"\",VLOOKUP(INDEX(campsByItinerary,numericItinerary($A13),BL$3-1),campInfo,8))","v":""},{"$f":"IF(INDEX(campsByItinerary,numericItinerary($A13),BM$3-1)=\"\",\"\",VLOOKUP(INDEX(campsByItinerary,numericItinerary($A13),BM$3-1),campInfo,8))","v":""},"Y","","Y","","Y","Y","","Y","Y","Y",{"$f":"IF(INDEX(campsByItinerary,numericItinerary($A13),BD$3-1)=\"\",\"\",VLOOKUP(INDEX(campsByItinerary,numericItinerary($A13),BD$3-1),campInfo,10))","v":"Y"},{"$f":"IF(INDEX(campsByItinerary,numericItinerary($A13),BE$3-1)=\"\",\"\",VLOOKUP(INDEX(campsByItinerary,numericItinerary($A13),BE$3-1),campInfo,10))","v":""},{"$f":"IF(INDEX(campsByItinerary,numericItinerary($A13),BF$3-1)=\"\",\"\",VLOOKUP(INDEX(campsByItinerary,numericItinerary($A13),BF$3-1),campInfo,10))","v":"Y"},{"$f":"IF(INDEX(campsByItinerary,numericItinerary($A13),BG$3-1)=\"\",\"\",VLOOKUP(INDEX(campsByItinerary,numericItinerary($A13),BG$3-1),campInfo,10))","v":""},{"$f":"IF(INDEX(campsByItinerary,numericItinerary($A13),BH$3-1)=\"\",\"\",VLOOKUP(INDEX(campsByItinerary,numericItinerary($A13),BH$3-1),campInfo,10))","v":""},{"$f":"IF(INDEX(campsByItinerary,numericItinerary($A13),BI$3-1)=\"\",\"\",VLOOKUP(INDEX(campsByItinerary,numericItinerary($A13),BI$3-1),campInfo,10))","v":""},{"$f":"IF(INDEX(campsByItinerary,numericItinerary($A13),BJ$3-1)=\"\",\"\",VLOOKUP(INDEX(campsByItinerary,numericItinerary($A13),BJ$3-1),campInfo,10))","v":""},{"$f":"IF(INDEX(campsByItinerary,numericItinerary($A13),BK$3-1)=\"\",\"\",VLOOKUP(INDEX(campsByItinerary,numericItinerary($A13),BK$3-1),campInfo,10))","v":""},{"$f":"IF(INDEX(campsByItinerary,numericItinerary($A13),BL$3-1)=\"\",\"\",VLOOKUP(INDEX(campsByItinerary,numericItinerary($A13),BL$3-1),campInfo,10))","v":""},{"$f":"IF(INDEX(campsByItinerary,numericItinerary($A13),BM$3-1)=\"\",\"\",VLOOKUP(INDEX(campsByItinerary,numericItinerary($A13),BM$3-1),campInfo,10))","v":""},null,"","","","","Y","","","Y","Y",{"$f":"INDEX(campsByItinerary,numericItinerary($A13),BD$3-1)","v":"McBride Canyon"},{"$f":"IF(INDEX(campsByItinerary,numericItinerary($A13),BE$3-1)=\"\",\"\",VLOOKUP(INDEX(campsByItinerary,numericItinerary($A13),BE$3-1),campInfo,2))","v":"North"},{"$f":"IF(INDEX(campsByItinerary,numericItinerary($A13),BF$3-1)=\"\",\"\",VLOOKUP(INDEX(campsByItinerary,numericItinerary($A13),BF$3-1),campInfo,2))","v":"North"},{"$f":"IF(INDEX(campsByItinerary,numericItinerary($A13),BG$3-1)=\"\",\"\",VLOOKUP(INDEX(campsByItinerary,numericItinerary($A13),BG$3-1),campInfo,2))","v":"North"},{"$f":"IF(INDEX(campsByItinerary,numericItinerary($A13),BH$3-1)=\"\",\"\",VLOOKUP(INDEX(campsByItinerary,numericItinerary($A13),BH$3-1),campInfo,2))","v":"North"},{"$f":"IF(INDEX(campsByItinerary,numericItinerary($A13),BI$3-1)=\"\",\"\",VLOOKUP(INDEX(campsByItinerary,numericItinerary($A13),BI$3-1),campInfo,2))","v":"North"},{"$f":"IF(INDEX(campsByItinerary,numericItinerary($A13),BJ$3-1)=\"\",\"\",VLOOKUP(INDEX(campsByItinerary,numericItinerary($A13),BJ$3-1),campInfo,2))","v":"North"},{"$f":"IF(INDEX(campsByItinerary,numericItinerary($A13),BK$3-1)=\"\",\"\",VLOOKUP(INDEX(campsByItinerary,numericItinerary($A13),BK$3-1),campInfo,2))","v":""},{"$f":"IF(INDEX(campsByItinerary,numericItinerary($A13),BL$3-1)=\"\",\"\",VLOOKUP(INDEX(campsByItinerary,numericItinerary($A13),BL$3-1),campInfo,2))","v":""},{"$f":"IF(INDEX(campsByItinerary,numericItinerary($A13),BM$3-1)=\"\",\"\",VLOOKUP(INDEX(campsByItinerary,numericItinerary($A13),BM$3-1),campInfo,2))","v":""},{"$f":"IF(INDEX(campsByItinerary,numericItinerary($A13),BD$3-1)=\"\",\"\",VLOOKUP(INDEX(campsByItinerary,numericItinerary($A13),BD$3-1),campInfo,12))","v":"North"},{"$f":"IF(INDEX(campsByItinerary,numericItinerary($A13),BE$3-1)=\"\",\"\",VLOOKUP(INDEX(campsByItinerary,numericItinerary($A13),BE$3-1),campInfo,12))","v":"North"},{"$f":"IF(INDEX(campsByItinerary,numericItinerary($A13),BF$3-1)=\"\",\"\",VLOOKUP(INDEX(campsByItinerary,numericItinerary($A13),BF$3-1),campInfo,12))","v":"North"},{"$f":"IF(INDEX(campsByItinerary,numericItinerary($A13),BG$3-1)=\"\",\"\",VLOOKUP(INDEX(campsByItinerary,numericItinerary($A13),BG$3-1),campInfo,12))","v":"North"},{"$f":"IF(INDEX(campsByItinerary,numericItinerary($A13),BH$3-1)=\"\",\"\",VLOOKUP(INDEX(campsByItinerary,numericItinerary($A13),BH$3-1),campInfo,12))","v":"North"},{"$f":"IF(INDEX(campsByItinerary,numericItinerary($A13),BI$3-1)=\"\",\"\",VLOOKUP(INDEX(campsByItinerary,numericItinerary($A13),BI$3-1),campInfo,12))","v":"North"},{"$f":"IF(INDEX(campsByItinerary,numericItinerary($A13),BJ$3-1)=\"\",\"\",VLOOKUP(INDEX(campsByItinerary,numericItinerary($A13),BJ$3-1),campInfo,12))","v":"North"},{"$f":"IF(INDEX(campsByItinerary,numericItinerary($A13),BK$3-1)=\"\",\"\",VLOOKUP(INDEX(campsByItinerary,numericItinerary($A13),BK$3-1),campInfo,12))","v":""},{"$f":"IF(INDEX(campsByItinerary,numericItinerary($A13),BL$3-1)=\"\",\"\",VLOOKUP(INDEX(campsByItinerary,numericItinerary($A13),BL$3-1),campInfo,12))","v":""},{"$f":"IF(INDEX(campsByItinerary,numericItinerary($A13),BM$3-1)=\"\",\"\",VLOOKUP(INDEX(campsByItinerary,numericItinerary($A13),BM$3-1),campInfo,12))","v":""},{"$f":"getfoodPU(\"First\",numericItinerary($A13))","v":2},{"$f":"getfoodPU(\"Max\",numericItinerary($A13))","v":2}]
["9-11",null,"SS",53,"House Canyon","Cottonwood","Rich Cabins","Upper Greenwood","Copper Park","Copper Park","Touch-Me-Not Creek",null,null,null,"Camping HQ",null,"Rich Cabins",null,null,"Baldy Town",null,null,null,null,"Six Mile Gate","Maxwell","",null,null,null,{"$f":"IF(ItineraryPrograms!AD13=\"y\",\"y\",\"\")","v":"y"},{"$f":"IF(ItineraryPrograms!AE13=\"y\",\"y\",\"\")","v":""},{"$f":"IF(ItineraryPrograms!AF13=\"y\",\"y\",\"\")","v":""},null,{"$f":"checkTooth(AA14,LOWER(ItineraryPrograms!AH13))","v":""},null,7157,7373,7728,10262.665999999999,10530,10530,8855,"","","",216,355,2534.6659999999993,267.33400000000074,0,1675,"","","",{"$f":"IF(INDEX(campsByItinerary,numericItinerary($A14),BD$3-1)=\"\",\"\",VLOOKUP(INDEX(campsByItinerary,numericItinerary($A14),BD$3-1),campInfo,8))","v":""},{"$f":"IF(INDEX(campsByItinerary,numericItinerary($A14),BE$3-1)=\"\",\"\",VLOOKUP(INDEX(campsByItinerary,numericItinerary($A14),BE$3-1),campInfo,8))","v":""},{"$f":"IF(INDEX(campsByItinerary,numericItinerary($A14),BF$3-1)=\"\",\"\",VLOOKUP(INDEX(campsByItinerary,numericItinerary($A14),BF$3-1),campInfo,8))","v":"Y"},{"$f":"IF(INDEX(campsByItinerary,numericItinerary($A14),BG$3-1)=\"\",\"\",VLOOKUP(INDEX(campsByItinerary,numericItinerary($A14),BG$3-1),campInfo,8))","v":""},{"$f":"IF(INDEX(campsByItinerary,numericItinerary($A14),BH$3-1)=\"\",\"\",VLOOKUP(INDEX(campsByItinerary,numericItinerary($A14),BH$3-1),campInfo,8))","v":""},{"$f":"IF(INDEX(campsByItinerary,numericItinerary($A14),BI$3-1)=\"\",\"\",VLOOKUP(INDEX(campsByItinerary,numericItinerary($A14),BI$3-1),campInfo,8))","v":""},{"$f":"IF(INDEX(campsByItinerary,numericItinerary($A14),BJ$3-1)=\"\",\"\",VLOOKUP(INDEX(campsByItinerary,numericItinerary($A14),BJ$3-1),campInfo,8))","v":""},{"$f":"IF(INDEX(campsByItinerary,numericItinerary($A14),BK$3-1)=\"\",\"\",VLOOKUP(INDEX(campsByItinerary,numericItinerary($A14),BK$3-1),campInfo,8))","v":""},{"$f":"IF(INDEX(campsByItinerary,numericItinerary($A14),BL$3-1)=\"\",\"\",VLOOKUP(INDEX(campsByItinerary,numericItinerary($A14),BL$3-1),campInfo,8))","v":""},{"$f":"IF(INDEX(campsByItinerary,numericItinerary($A14),BM$3-1)=\"\",\"\",VLOOKUP(INDEX(campsByItinerary,numericItinerary($A14),BM$3-1),campInfo,8))","v":""},"Y","Y","","Y","Y","Y","Y","Y","Y","Y",{"$f":"IF(INDEX(campsByItinerary,numericItinerary($A14),BD$3-1)=\"\",\"\",VLOOKUP(INDEX(campsByItinerary,numericItinerary($A14),BD$3-1),campInfo,10))","v":""},{"$f":"IF(INDEX(campsByItinerary,numericItinerary($A14),BE$3-1)=\"\",\"\",VLOOKUP(INDEX(campsByItinerary,numericItinerary($A14),BE$3-1),campInfo,10))","v":""},{"$f":"IF(INDEX(campsByItinerary,numericItinerary($A14),BF$3-1)=\"\",\"\",VLOOKUP(INDEX(campsByItinerary,numericItinerary($A14),BF$3-1),campInfo,10))","v":""},{"$f":"IF(INDEX(campsByItinerary,numericItinerary($A14),BG$3-1)=\"\",\"\",VLOOKUP(INDEX(campsByItinerary,numericItinerary($A14),BG$3-1),campInfo,10))","v":""},{"$f":"IF(INDEX(campsByItinerary,numericItinerary($A14),BH$3-1)=\"\",\"\",VLOOKUP(INDEX(campsByItinerary,numericItinerary($A14),BH$3-1),campInfo,10))","v":""},{"$f":"IF(INDEX(campsByItinerary,numericItinerary($A14),BI$3-1)=\"\",\"\",VLOOKUP(INDEX(campsByItinerary,numericItinerary($A14),BI$3-1),campInfo,10))","v":""},{"$f":"IF(INDEX(campsByItinerary,numericItinerary($A14),BJ$3-1)=\"\",\"\",VLOOKUP(INDEX(campsByItinerary,numericItinerary($A14),BJ$3-1),campInfo,10))","v":""},{"$f":"IF(INDEX(campsByItinerary,numericItinerary($A14),BK$3-1)=\"\",\"\",VLOOKUP(INDEX(campsByItinerary,numericItinerary($A14),BK$3-1),campInfo,10))","v":""},{"$f":"IF(INDEX(campsByItinerary,numericItinerary($A14),BL$3-1)=\"\",\"\",VLOOKUP(INDEX(campsByItinerary,numericItinerary($A14),BL$3-1),campInfo,10))","v":""},{"$f":"IF(INDEX(campsByItinerary,numericItinerary($A14),BM$3-1)=\"\",\"\",VLOOKUP(INDEX(campsByItinerary,numericItinerary($A14),BM$3-1),campInfo,10))","v":""},null,"","","","","Y","","","Y","Y",{"$f":"INDEX(campsByItinerary,numericItinerary($A14),BD$3-1)","v":"House Canyon"},{"$f":"IF(INDEX(campsByItinerary,numericItinerary($A14),BE$3-1)=\"\",\"\",VLOOKUP(INDEX(campsByItinerary,numericItinerary($A14),BE$3-1),campInfo,2))","v":"North"},{"$f":"IF(INDEX(campsByItinerary,numericItinerary($A14),BF$3-1)=\"\",\"\",VLOOKUP(INDEX(campsByItinerary,numericItinerary($A14),BF$3-1),campInfo,2))","v":"Valle Vidal"},{"$f":"IF(INDEX(campsByItinerary,numericItinerary($A14),BG$3-1)=\"\",\"\",VLOOKUP(INDEX(campsByItinerary,numericItinerary($A14),BG$3-1),campInfo,2))","v":"Valle Vidal"},{"$f":"IF(INDEX(campsByItinerary,numericItinerary($A14),BH$3-1)=\"\",\"\",VLOOKUP(INDEX(campsByItinerary,numericItinerary($A14),BH$3-1),campInfo,2))","v":"North"},{"$f":"IF(INDEX(campsByItinerary,numericItinerary($A14),BI$3-1)=\"\",\"\",VLOOKUP(INDEX(campsByItinerary,numericItinerary($A14),BI$3-1),campInfo,2))","v":"North"},{"$f":"IF(INDEX(campsByItinerary,numericItinerary($A14),BJ$3-1)=\"\",\"\",VLOOKUP(INDEX(campsByItinerary,numericItinerary($A14),BJ$3-1),campInfo,2))","v":"North"},{"$f":"IF(INDEX(campsByItinerary,numericItinerary($A14),BK$3-1)=\"\",\"\",VLOOKUP(INDEX(campsByItinerary,numericItinerary($A14),BK$3-1),campInfo,2))","v":""},{"$f":"IF(INDEX(campsByItinerary,numericItinerary($A14),BL$3-1)=\"\",\"\",VLOOKUP(INDEX(campsByItinerary,numericItinerary($A14),BL$3-1),campInfo,2))","v":""},{"$f":"IF(INDEX(campsByItinerary,numericItinerary($A14),BM$3-1)=\"\",\"\",VLOOKUP(INDEX(campsByItinerary,numericItinerary($A14),BM$3-1),campInfo,2))","v":""},{"$f":"IF(INDEX(campsByItinerary,numericItinerary($A14),BD$3-1)=\"\",\"\",VLOOKUP(INDEX(campsByItinerary,numericItinerary($A14),BD$3-1),campInfo,12))","v":"North"},{"$f":"IF(INDEX(campsByItinerary,numericItinerary($A14),BE$3-1)=\"\",\"\",VLOOKUP(INDEX(campsByItinerary,numericItinerary($A14),BE$3-1),campInfo,12))","v":"North"},{"$f":"IF(INDEX(campsByItinerary,numericItinerary($A14),BF$3-1)=\"\",\"\",VLOOKUP(INDEX(campsByItinerary,numericItinerary($A14),BF$3-1),campInfo,12))","v":"North"},{"$f":"IF(INDEX(campsByItinerary,numericItinerary($A14),BG$3-1)=\"\",\"\",VLOOKUP(INDEX(campsByItinerary,numericItinerary($A14),BG$3-1),campInfo,12))","v":"North"},{"$f":"IF(INDEX(campsByItinerary,numericItinerary($A14),BH$3-1)=\"\",\"\",VLOOKUP(INDEX(campsByItinerary,numericItinerary($A14),BH$3-1),campInfo,12))","v":"North"},{"$f":"IF(INDEX(campsByItinerary,numericItinerary($A14),BI$3-1)=\"\",\"\",VLOOKUP(INDEX(campsByItinerary,numericItinerary($A14),BI$3-1),campInfo,12))","v":"North"},{"$f":"IF(INDEX(campsByItinerary,numericItinerary($A14),BJ$3-1)=\"\",\"\",VLOOKUP(INDEX(campsByItinerary,numericItinerary($A14),BJ$3-1),campInfo,12))","v":"North"},{"$f":"IF(INDEX(campsByItinerary,numericItinerary($A14),BK$3-1)=\"\",\"\",VLOOKUP(INDEX(campsByItinerary,numericItinerary($A14),BK$3-1),campInfo,12))","v":""},{"$f":"IF(INDEX(campsByItinerary,numericItinerary($A14),BL$3-1)=\"\",\"\",VLOOKUP(INDEX(campsByItinerary,numericItinerary($A14),BL$3-1),campInfo,12))","v":""},{"$f":"IF(INDEX(campsByItinerary,numericItinerary($A14),BM$3-1)=\"\",\"\",VLOOKUP(INDEX(campsByItinerary,numericItinerary($A14),BM$3-1),campInfo,12))","v":""},{"$f":"getfoodPU(\"First\",numericItinerary($A14))","v":2},{"$f":"getfoodPU(\"Max\",numericItinerary($A14))","v":2}]
["9-12",null,"SS",57,"Harlan","Devil's Wash Basin","Sawmill","Mount Phillips","Porcupine","Beaubien","Shaefers Pass",null,null,null,"Camping HQ",null,"Ute Gulch",null,null,"Phillips Junction",null,null,null,null,"Turkey Creek","Hike In","y",null,null,null,{"$f":"IF(ItineraryPrograms!AD14=\"y\",\"y\",\"\")","v":""},{"$f":"IF(ItineraryPrograms!AE14=\"y\",\"y\",\"\")","v":""},{"$f":"IF(ItineraryPrograms!AF14=\"y\",\"y\",\"\")","v":"y"},"y",{"$f":"checkTooth(AA15,LOWER(ItineraryPrograms!AH14))","v":"y"},"y",7550,8515,9193,11650,9152,9330,8724,"","","",965,678,2457,2498,178,606,"","","",{"$f":"IF(INDEX(campsByItinerary,numericItinerary($A15),BD$3-1)=\"\",\"\",VLOOKUP(INDEX(campsByItinerary,numericItinerary($A15),BD$3-1),campInfo,8))","v":"Y"},{"$f":"IF(INDEX(campsByItinerary,numericItinerary($A15),BE$3-1)=\"\",\"\",VLOOKUP(INDEX(campsByItinerary,numericItinerary($A15),BE$3-1),campInfo,8))","v":""},{"$f":"IF(INDEX(campsByItinerary,numericItinerary($A15),BF$3-1)=\"\",\"\",VLOOKUP(INDEX(campsByItinerary,numericItinerary($A15),BF$3-1),campInfo,8))","v":"Y"},{"$f":"IF(INDEX(campsByItinerary,numericItinerary($A15),BG$3-1)=\"\",\"\",VLOOKUP(INDEX(campsByItinerary,numericItinerary($A15),BG$3-1),campInfo,8))","v":""},{"$f":"IF(INDEX(campsByItinerary,numericItinerary($A15),BH$3-1)=\"\",\"\",VLOOKUP(INDEX(campsByItinerary,numericItinerary($A15),BH$3-1),campInfo,8))","v":""},{"$f":"IF(INDEX(campsByItinerary,numericItinerary($A15),BI$3-1)=\"\",\"\",VLOOKUP(INDEX(campsByItinerary,numericItinerary($A15),BI$3-1),campInfo,8))","v":"Y"},{"$f":"IF(INDEX(campsByItinerary,numericItinerary($A15),BJ$3-1)=\"\",\"\",VLOOKUP(INDEX(campsByItinerary,numericItinerary($A15),BJ$3-1),campInfo,8))","v":""},{"$f":"IF(INDEX(campsByItinerary,numericItinerary($A15),BK$3-1)=\"\",\"\",VLOOKUP(INDEX(campsByItinerary,numericItinerary($A15),BK$3-1),campInfo,8))","v":""},{"$f":"IF(INDEX(campsByItinerary,numericItinerary($A15),BL$3-1)=\"\",\"\",VLOOKUP(INDEX(campsByItinerary,numericItinerary($A15),BL$3-1),campInfo,8))","v":""},{"$f":"IF(INDEX(campsByItinerary,numericItinerary($A15),BM$3-1)=\"\",\"\",VLOOKUP(INDEX(campsByItinerary,numericItinerary($A15),BM$3-1),campInfo,8))","v":""},"","Y","","Y","Y","","Y","Y","Y","Y",{"$f":"IF(INDEX(campsByItinerary,numericItinerary($A15),BD$3-1)=\"\",\"\",VLOOKUP(INDEX(campsByItinerary,numericItinerary($A15),BD$3-1),campInfo,10))","v":""},{"$f":"IF(INDEX(campsByItinerary,numericItinerary($A15),BE$3-1)=\"\",\"\",VLOOKUP(INDEX(campsByItinerary,numericItinerary($A15),BE$3-1),campInfo,10))","v":"Y"},{"$f":"IF(INDEX(campsByItinerary,numericItinerary($A15),BF$3-1)=\"\",\"\",VLOOKUP(INDEX(campsByItinerary,numericItinerary($A15),BF$3-1),campInfo,10))","v":""},{"$f":"IF(INDEX(campsByItinerary,numericItinerary($A15),BG$3-1)=\"\",\"\",VLOOKUP(INDEX(campsByItinerary,numericItinerary($A15),BG$3-1),campInfo,10))","v":"Y"},{"$f":"IF(INDEX(campsByItinerary,numericItinerary($A15),BH$3-1)=\"\",\"\",VLOOKUP(INDEX(campsByItinerary,numericItinerary($A15),BH$3-1),campInfo,10))","v":""},{"$f":"IF(INDEX(campsByItinerary,numericItinerary($A15),BI$3-1)=\"\",\"\",VLOOKUP(INDEX(campsByItinerary,numericItinerary($A15),BI$3-1),campInfo,10))","v":""},{"$f":"IF(INDEX(campsByItinerary,numericItinerary($A15),BJ$3-1)=\"\",\"\",VLOOKUP(INDEX(campsByItinerary,numericItinerary($A15),BJ$3-1),campInfo,10))","v":"Y"},{"$f":"IF(INDEX(campsByItinerary,numericItinerary($A15),BK$3-1)=\"\",\"\",VLOOKUP(INDEX(campsByItinerary,numericItinerary($A15),BK$3-1),campInfo,10))","v":""},{"$f":"IF(INDEX(campsByItinerary,numericItinerary($A15),BL$3-1)=\"\",\"\",VLOOKUP(INDEX(campsByItinerary,numericItinerary($A15),BL$3-1),campInfo,10))","v":""},{"$f":"IF(INDEX(campsByItinerary,numericItinerary($A15),BM$3-1)=\"\",\"\",VLOOKUP(INDEX(campsByItinerary,numericItinerary($A15),BM$3-1),campInfo,10))","v":""},null,"","","","","","","","Y","Y",{"$f":"INDEX(campsByItinerary,numericItinerary($A15),BD$3-1)","v":"Harlan"},{"$f":"IF(INDEX(campsByItinerary,numericItinerary($A15),BE$3-1)=\"\",\"\",VLOOKUP(INDEX(campsByItinerary,numericItinerary($A15),BE$3-1),campInfo,2))","v":"Central"},{"$f":"IF(INDEX(campsByItinerary,numericItinerary($A15),BF$3-1)=\"\",\"\",VLOOKUP(INDEX(campsByItinerary,numericItinerary($A15),BF$3-1),campInfo,2))","v":"Central"},{"$f":"IF(INDEX(campsByItinerary,numericItinerary($A15),BG$3-1)=\"\",\"\",VLOOKUP(INDEX(campsByItinerary,numericItinerary($A15),BG$3-1),campInfo,2))","v":"Central"},{"$f":"IF(INDEX(campsByItinerary,numericItinerary($A15),BH$3-1)=\"\",\"\",VLOOKUP(INDEX(campsByItinerary,numericItinerary($A15),BH$3-1),campInfo,2))","v":"South"},{"$f":"IF(INDEX(campsByItinerary,numericItinerary($A15),BI$3-1)=\"\",\"\",VLOOKUP(INDEX(campsByItinerary,numericItinerary($A15),BI$3-1),campInfo,2))","v":"South"},{"$f":"IF(INDEX(campsByItinerary,numericItinerary($A15),BJ$3-1)=\"\",\"\",VLOOKUP(INDEX(campsByItinerary,numericItinerary($A15),BJ$3-1),campInfo,2))","v":"Central"},{"$f":"IF(INDEX(campsByItinerary,numericItinerary($A15),BK$3-1)=\"\",\"\",VLOOKUP(INDEX(campsByItinerary,numericItinerary($A15),BK$3-1),campInfo,2))","v":""},{"$f":"IF(INDEX(campsByItinerary,numericItinerary($A15),BL$3-1)=\"\",\"\",VLOOKUP(INDEX(campsByItinerary,numericItinerary($A15),BL$3-1),campInfo,2))","v":""},{"$f":"IF(INDEX(campsByItinerary,numericItinerary($A15),BM$3-1)=\"\",\"\",VLOOKUP(INDEX(campsByItinerary,numericItinerary($A15),BM$3-1),campInfo,2))","v":""},{"$f":"IF(INDEX(campsByItinerary,numericItinerary($A15),BD$3-1)=\"\",\"\",VLOOKUP(INDEX(campsByItinerary,numericItinerary($A15),BD$3-1),campInfo,12))","v":"South"},{"$f":"IF(INDEX(campsByItinerary,numericItinerary($A15),BE$3-1)=\"\",\"\",VLOOKUP(INDEX(campsByItinerary,numericItinerary($A15),BE$3-1),campInfo,12))","v":"South"},{"$f":"IF(INDEX(campsByItinerary,numericItinerary($A15),BF$3-1)=\"\",\"\",VLOOKUP(INDEX(campsByItinerary,numericItinerary($A15),BF$3-1),campInfo,12))","v":"South"},{"$f":"IF(INDEX(campsByItinerary,numericItinerary($A15),BG$3-1)=\"\",\"\",VLOOKUP(INDEX(campsByItinerary,numericItinerary($A15),BG$3-1),campInfo,12))","v":"South"},{"$f":"IF(INDEX(campsByItinerary,numericItinerary($A15),BH$3-1)=\"\",\"\",VLOOKUP(INDEX(campsByItinerary,numericItinerary($A15),BH$3-1),campInfo,12))","v":"South"},{"$f":"IF(INDEX(campsByItinerary,numericItinerary($A15),BI$3-1)=\"\",\"\",VLOOKUP(INDEX(campsByItinerary,numericItinerary($A15),BI$3-1),campInfo,12))","v":"South"},{"$f":"IF(INDEX(campsByItinerary,numericItinerary($A15),BJ$3-1)=\"\",\"\",VLOOKUP(INDEX(campsByItinerary,numericItinerary($A15),BJ$3-1),campInfo,12))","v":"South"},{"$f":"IF(INDEX(campsByItinerary,numericItinerary($A15),BK$3-1)=\"\",\"\",VLOOKUP(INDEX(campsByItinerary,numericItinerary($A15),BK$3-1),campInfo,12))","v":""},{"$f":"IF(INDEX(campsByItinerary,numericItinerary($A15),BL$3-1)=\"\",\"\",VLOOKUP(INDEX(campsByItinerary,numericItinerary($A15),BL$3-1),campInfo,12))","v":""},{"$f":"IF(INDEX(campsByItinerary,numericItinerary($A15),BM$3-1)=\"\",\"\",VLOOKUP(INDEX(campsByItinerary,numericItinerary($A15),BM$3-1),campInfo,12))","v":""},{"$f":"getfoodPU(\"First\",numericItinerary($A15))","v":2},{"$f":"getfoodPU(\"Max\",numericItinerary($A15))","v":2}]
[null,null,null,null,null,null,null,null,null,null,null,null,null,null,null,null,null,null,null,null,null,null,null,null,null,null,null,null,null,null,null,null,null,null,null,null,"","","","","","","","","","","","","","","","","","",""]
[null,null,null,null,null,null,null,null,null,null,null,null,null,null,null,null,null,null,null,null,null,null,null,null,null,null,null,null,null,null,null,null,null,null,null,null,"","","","","","","","","","","","","","","","","","",""]
[null,null,null,null,null,null,null,null,null,null,null,null,null,null,null,null,null,null,null,null,null,null,null,null,null,null,null,null,null,null,null,null,null,null,null,null,"","","","","","","","","","","","","","","","","","",""]
[null,null,null,null,null,null,null,null,null,null,null,null,null,null,null,null,null,null,null,null,null,null,null,null,null,null,null,null,null,null,null,null,null,null,null,null,"","","","","","","","","","","","","","","","","","",""]
[null,null,null,null,null,null,null,null,null,null,null,null,null,null,null,null,null,null,null,null,null,null,null,null,null,null,null,null,null,null,null,null,null,null,null,null,"","","","","","","","","","","","","","","","","","",""]
[null,null,null,null,null,null,null,null,null,null,null,null,null,null,null,null,null,null,null,null,null,null,null,null,null,null,null,null,null,null,null,null,null,null,null,null,"","","","","","","","","","","","","","","","","","",""]
[null,null,null,null,null,null,null,null,null,null,null,null,null,null,null,null,null,null,null,null,null,null,null,null,null,null,null,null,null,null,null,null,null,null,null,null,"","","","","","","","","","","","","","","","","","",""]
[null,null,null,null,null,null,null,null,null,null,null,null,null,null,null,null,null,null,null,null,null,null,null,null,null,null,null,null,null,null,null,null,null,null,null,null,"","","","","","","","","","","","","","","","","","",""]
[null,null,null,null,null,null,null,null,null,null,null,null,null,null,null,null,null,null,null,null,null,null,null,null,null,null,null,null,null,null,null,null,null,null,null,null,"","","","","","","","","","","","","","","","","","",""]
[null,null,null,null,null,null,null,null,null,null,null,null,null,null,null,null,null,null,null,null,null,null,null,null,null,null,null,null,null,null,null,null,null,null,null,null,"","","","","","","","","","","","","","","","","","",""]
[null,null,null,null,null,null,null,null,null,null,null,null,null,null,null,null,null,null,null,null,null,null,null,null,null,null,null,null,null,null,null,null,null,null,null,null,"","","","","","","","","","","","","","","","","","",""]
[null,null,null,null,null,null,null,null,null,null,null,null,null,null,null,null,null,null,null,null,null,null,null,null,null,null,null,null,null,null,null,null,null,null,null,null,"","","","","","","","","","","","","","","","","","",""]
[null,null,null,null,null,null,null,null,null,null,null,null,null,null,null,null,null,null,null,null,null,null,null,null,null,null,null,null,null,null,{"$f":"COUNTIF(AE4:AE27,\"y\")","v":3},{"$f":"COUNTIF(AF4:AF27,\"y\")","v":2},3,9,3,3]
[null,null,null,null,null,null,null,null,null,null,null,null,null,null,null,null,null,null,null,null,null,null,null,null,null,null,null,null,null,null,"Mountaineering includes itineraries that climb Big Red, Black Mountain, Bonito Peak, Comanche Peak, Hart Mountain, Little Costilla Peak, Lookout Peak, or Shaefers Peak.",null,null,null,null,null," ",null,null,null,null,null,null,null,null,null,null,null,null,null,null,null,null,null,null,null,null,null,null,null,null,null,null,null,null,null,null,null,null,null,null,null,null,null,null,null,null,null,null,null,null,null,null,null,null,null,null,null,null,null,null,null,null,null,null,null,null,null,null,null,null,null,null,null,null,null,null,null,null,null,null,null,null,"Min",{"$f":"MIN(foodPUfirst)","v":1},{"$f":"MIN(foodPUdays)","v":2}]
[null,null,null,null,null,null,null,null,null,null,null,null,null,null,null,null,null,null,null,null,null,null,null,null,null,null,null,null,null,null,null,null,null,null,null,null," ",null,null,null,null,null,null,null,null,null,null,null,null,null,null,null,null,null,null,null,null,null,null,null,null,null,null,null,null,null,null,null,null,null,null,null,null,null,null,null,null,null,null,null,null,null,null,null,null,null,null,null,null,null,null,null,null,null,null,null,null,null,null,null,null,null,null,null,null,null,null,null,null,null,null,null,null,"Max",{"$f":"MAX(DL5:DL27)","v":3},{"$f":"MAX(foodPUdays)","v":5}]

{"sheet":"ItineraryPrograms","index":11,"n_rows":29,"n_cols":58,"rows_kept":29,"cut":false,"hidden":true,"merged":[[0,0,1,0]]}
["Itinerary",null,1,{"$f":"C1+1","v":2},{"$f":"D1+1","v":3},4,5,6,7,8,9,10,11,12,13,14,15,16,17,18,19,20,21,22,23,24,25,26,27,28,29,30,31,32,33,34,35,36,37,38,39,40,41,42,43,44,45,46,47,48,{"$f":"AX1+1","v":49},{"$f":"AY1+1","v":50},{"$f":"AZ1+1","v":51},{"$f":"BA1+1","v":52},{"$f":"BB1+1","v":53},{"$f":"BC1+1","v":54},{"$f":"BD1+1","v":55},{"$f":"BE1+1","v":56}]
[null,null,{"$f":"INDEX(program_table,C1,1)","v":"Climbing: Bouldering Gym"},"Climbing: Climbing Wall/Tower",{"$f":"INDEX(program_table,E1,1)","v":"Climbing: Crate Stacking"},"Climbing: Rock Climbing","COPE: High Challenge Course","COPE: Initiative Games","COPE: Low Challenge Course","Ecology: Demonstration Forest","Ecology: Self-Guided Fishing","Evening: Advisor Coffee","Evening: Campfire Show","Evening: Chuckwagon Dinner","Historical: Adobe Brick-Making","Historical: Blacksmithing","Historical: Cabin Restoration","Historical: Cabin/House Tour","Historical: Crafting","Historical: Crosscut & Tie Making","Historical: Flint Knapping","Historical: Fur Trapper Rendezvous","Historical: Gold Panning","Historical: Mine Tour","Historical: Petroglyph Tour","Historical: Pump Car Rides","Historical: Railroad Construction","Historical: Spar Pole Climbing","Landmarks: Baldy Mountain","Landmarks: Inspiration Point","Landmarks: Mount Phillips","Landmarks: Mountaineering","Landmarks: Tooth of Time","Landmarks: Trail Peak","Livestock: Animal Husbandry","Livestock: Burro Packing","Livestock: Chicken Tending","Livestock: Horse Rides","Low Impact Camping","Range Sports: 3D Archery","Range Sports: Aerial Archery","Range Sports: Atlatl Throwing","Range Sports: Cartridge Reloading","Range Sports: Cowboy Action Shooting","Range Sports: Field Archery","Range Sports: Muzzleloader Shooting","Range Sports: Rifle Shooting","Range Sports: Shotgun Shooting","Range Sports: Shotshell Reloading","Range Sports: Tomahawk Throwing",{"$f":"INDEX(program_table,AY1,1)","v":"STEM: Archeology"},"STEM: Astronomy","STEM: Geology",{"$f":"INDEX(program_table,BB1,1)","v":"Western Lore: Branding"},"Western Lore: Cantina","Western Lore: Roping",{"$error":"#REF!"},{"$error":"#REF!"}]
[{"$f":"Itineraries!A3","v":"9-1"},{"$f":"COUNTIF(C3:BF3,\"y\")","v":23},"y","y","y","y","y","y","y",null,"y","N","y","y","y","y","y",null,"y","y","y",null,null,null,null,null,null,null,null,null,"Y",null,null,null,null,"y",null,"y","N",null,null,null,null,null,null,null,"y",null,null,null,null,null,null,null,"y","y","y"]
[{"$f":"Itineraries!A4","v":"9-2"},{"$f":"COUNTIF(C4:BF4,\"y\")","v":14},null,null,null,null,null,null,null,null,null,null,"y","y","y",null,null,null,null,null,null,null,null,null,null,"y",null,null,null,null,null,null,null,null,null,null,"N",null,"y",null,"y","y",null,null,"y","y",null,null,"y","y",null,null,null,null,"y","y","y"]
[{"$f":"Itineraries!A5","v":"9-3"},15,"y",null,null,null,null,null,null,"y","N",null,"y","y","y",null,null,null,null,null,null,null,null,"y",null,null,null,null,null,null,null,null,null,"Y",null,null,null,null,"y",null,"y",null,null,"y",null,"y",null,"y",null,null,null,null,null,"y","y",null,"y"]
[{"$f":"Itineraries!A6","v":"9-4"},{"$f":"COUNTIF(C6:BF6,\"y\")","v":19},null,null,null,null,null,null,null,null,"y","N","y","y","y","y","y","y","y","y","y",null,null,null,null,null,null,null,"y",null,null,null,null,"Y",null,"y",null,"y","y",null,null,null,null,null,null,null,"y",null,null,null,null,null,null,null,"y","y","y"]
[{"$f":"Itineraries!A7","v":"9-5"},18,null,null,null,null,null,"y","y",null,null,null,"y",null,null,null,"y",null,null,null,"y",null,"y","y",null,"y",null,null,null,"Y",null,null,"Y",null,null,null,"y",null,null,null,null,null,"y",null,null,null,null,null,null,null,"y","y","N","y","y","y","y","N"]
[{"$f":"Itineraries!A8","v":"9-6"},16,null,null,null,null,null,"y","y",null,null,null,"y","y",null,null,null,null,"y",null,"y",null,null,null,null,"y",null,null,null,null,null,null,null,null,null,"y",null,"y",null,"y",null,null,"y",null,null,null,null,null,null,null,null,"y","y","N","y","y","y","N"]
[{"$f":"Itineraries!A9","v":"9-7"},13,"y",null,null,"y",null,null,null,null,null,null,"y",null,null,null,"y",null,null,null,null,null,null,"y",null,null,null,null,null,null,null,"Y",null,null,null,null,null,null,null,null,"y","y",null,"y",null,"y",null,"y","y","y"]
[{"$f":"Itineraries!A10","v":"9-8"},22,null,null,null,null,"y","y","y",null,"y",null,"y","y","y","y",null,null,"y","y","y","y",null,null,null,null,null,null,null,null,"Y",null,"Y","Y",null,"y",null,"y","N",null,"y","y",null,null,null,null,null,null,null,null,null,null,null,null,"y","y","y"]
[{"$f":"Itineraries!A11","v":"9-9"},21,null,null,null,null,null,null,null,"y","y",null,"y","y","y","y","y","y","y","y",null,null,null,"y","y",null,null,null,null,null,null,"Y","Y",null,null,"y",null,"y","N",null,null,null,null,null,null,null,null,null,null,null,"y",null,null,"y","y","y","y"]
[{"$f":"Itineraries!A12","v":"9-10"},19,null,null,null,null,null,null,null,null,null,null,"y","y",null,null,"y",null,null,null,"y",null,"y","y",null,"y","y","y","y","Y",null,null,"Y",null,null,null,"N",null,null,null,null,null,null,null,null,null,"y",null,null,null,"y","y",null,"y","y","y","y"]
[{"$f":"Itineraries!A13","v":"9-11"},17,null,null,null,null,null,null,"y",null,null,null,"y","y",null,null,"y",null,"y",null,null,null,"y","y",null,"y",null,"y",null,"Y",null,null,"Y",null,null,"y",null,"y",null,"y",null,null,null,null,null,null,null,null,null,null,"y","y",null,"y"]
[{"$f":"Itineraries!A14","v":"9-12"},16,null,null,null,null,null,null,null,null,"y",null,"y","y","y",null,null,null,null,null,null,null,null,null,null,null,null,null,null,null,null,"Y","Y","Y","Y","y",null,null,"N",null,null,null,null,"y",null,null,null,"y","y","y","y",null,null,null,"y",null,"y"]
[]
[]
[]
[]
[]
[]
[]
[]
[]
[]
[]
[]
[null,null,{"$f":"COUNTIF(C3:C26,\"y\")","v":3},1,1,2,2,4,5,2,5,0,12,10,7,4,7,2,6,4,6,1,3,6,1,5,1,2,2,3,2,3,6,4,{"$f":"COUNTIF(AI3:AI26,\"y\")","v":1},7,1,6,3,2,4,3,2,3,1,3,3,3,3,3,5,4,1,5,10,8,10,0]
[null,null,{"$f":"C2","v":"Climbing: Bouldering Gym"},"Climbing: Climbing Wall/Tower","Climbing: Crate Stacking","Climbing: Rock Climbing","COPE: High Challenge Course","COPE: Initiative Games","COPE: Low Challenge Course","Ecology: Demonstration Forest","Ecology: Self-Guided Fishing","Evening: Advisor Coffee","Evening: Campfire Show","Evening: Chuckwagon Dinner","Historical: Adobe Brick-Making","Historical: Blacksmithing","Historical: Cabin Restoration","Historical: Cabin/House Tour","Historical: Crafting","Historical: Crosscut & Tie Making","Historical: Flint Knapping","Historical: Fur Trapper Rendezvous","Historical: Gold Panning","Historical: Mine Tour","Historical: Petroglyph Tour","Historical: Pump Car Rides","Historical: Railroad Construction","Historical: Spar Pole Climbing","Landmarks: Baldy Mountain","Landmarks: Inspiration Point","Landmarks: Mount Phillips","Landmarks: Mountaineering",{"$f":"AG2","v":"Landmarks: Tooth of Time"},{"$f":"AH2","v":"Landmarks: Trail Peak"},"Livestock: Animal Husbandry","Livestock: Burro Packing","Livestock: Chicken Tending","Livestock: Horse Rides","Low Impact Camping","Range Sports: 3D Archery","Range Sports: Aerial Archery","Range Sports: Atlatl Throwing",{"$f":"AQ2","v":"Range Sports: Cartridge Reloading"},"Range Sports: Cowboy Action Shooting","Range Sports: Field Archery","Range Sports: Muzzleloader Shooting",{"$f":"AU2","v":"Range Sports: Rifle Shooting"},"Range Sports: Shotgun Shooting","Range Sports: Shotshell Reloading",{"$f":"AX2","v":"Range Sports: Tomahawk Throwing"},"STEM: Archeology","STEM: Astronomy","STEM: Geology","Western Lore: Branding","Western Lore: Cantina","Western Lore: Roping",{"$error":"#REF!"},{"$error":"#REF!"}]
[null,null,null,null,null,null,null,null,null,null,null,null,null,null,null,null,null,null,null,null,null,null,null,null,null,null,null,null,null,null,null,null,null,null,null,null,null,null,0]

{"sheet":"Descriptions","index":12,"n_rows":25,"n_cols":4,"rows_kept":25,"cut":false,"hidden":true,"merged":[]}
["Length","Itinerary","Description"," "]
[{"$f":"LEN(C2)","v":389},{"$f":"Itineraries!A3","v":"9-1"},"This program-focused itinerary visits many of the staffed camps located in Philmont's South Country while exploring this region's beautiful meadows, riverways, and mesas. Plenty of time is provided for exploring all of the activities offered at each camp or for exploring side hikes to nearby peaks or viewpoints. This trek would be an excellent way to explore Philmont for the first time!"," "]
[{"$f":"LEN(C3)","v":495},{"$f":"Itineraries!A4","v":"9-2"},"This itinerary provides plenty of opportunity for program while exploring the impacts of wildfire on the landscape. You'll start by traversing the 2018 Ute Park Fire scar culminating in your reforestation project at Cimarroncita. From there you'll cross over ridges, past Black Jack's famous hideout, and into the Ponil Country, a landscape affected by a massive fire in 2002. Hike over Hart Peak and find yourself in North Ponil Canyon, filled with pre-historic petroglyphs and dinosaur tracks!"," "]
[454,{"$f":"Itineraries!A5","v":"9-3"},"This South to North trek provides plenty of time for backcountry staffed camp program while visiting a wide variety of Philmont landscapes. Enjoy walking through the meadows surrounding Lovers Leap before heading up into the mountains on Tooth of Time Ridge. If time allows, take a side-hike to one of the Summits before crossing by Cimarroncito Reservoir and heading into Philmont's western mountains and north into the 2018 Ute Park Fire recovery zone."," "]
[466,{"$f":"Itineraries!A6","v":"9-4"},"If you're looking to bag some peaks while still having some time for program, this itinerary might be for you. It starts with lots of lower-elevation program opportunities before heading up in elevation to more and more peaks and viewpoints of Philmont's beautiful south country. You'll have plenty of opportunities to add more peaks or walk along meadows and streamside trails. Finally everything wraps up with the iconic hike into base camp on Tooth of Time Ridge!"," "]
[433,{"$f":"Itineraries!A7","v":"9-5"},"Watch the landscape evolve as your traverse Philmont's north country in this nine day trek. You'll start exploring pre-history in the North Ponil Canyon with dinosaurs and petroglyphs, before moving into cowboys, loggers, fur trappers, and miners as you ascend into Baldy Country. You'll be amazed when you look back at the wide variety of scenic landscapes you've experienced and all of the historic people that have traversed them!"," "]
[477,{"$f":"Itineraries!A8","v":"9-6"},"Explore further north than any other nine day itinerary in this trek. You'll get to experience the Valle Vidal of the Carson National Forest and the Elliot Barker Wildlife Area while still having plenty of opportunities for program steeped in rich history. You'll start at the confluence of the North and Middle Ponil rivers and head far up canyons and into the valleys north of Philmont before turning around to head back south over Wilson Mesa back towards the Ponil Country."," "]
[534,{"$f":"Itineraries!A9","v":"9-7"},"This itinerary spends significant time in the central country of Philmont in and around the 2018 Ute Park Fire recovery area with opportunities to learn about the ecology and effects of catastrophic forest fires and a chance to assist with the reforestation of this area. It also provides multiple opportunities for high adventure programs with a little bit of mining history thrown in. Crews hiking this trek should be prepared to hike early and keep an eye on weather while traversing exposed areas and canyons in the recovery area."," "]
[483,{"$f":"Itineraries!A10","v":"9-8"},"This large loop of Philmont's South Country will expose your crew to much of the scenery this portion of the ranch has to offer while still offering a very wide variety of program opportunities. However, with higher mileage, crews must practice good teamwork and discipline to take advantage of these opportunities. Choose this itinerary if your crew is looking for a bit of a challenge, but still is interested in a good mix of high adventure and historical interpretation programs."," "]
[687,{"$f":"Itineraries!A11","v":"9-9"},"Choose this strenuous itinerary to follow in the footsteps of New Mexican settlers pushing further and further into the mountains that now make up Philmont. You'll start in the Rayado valley and push up the river until crossing over into the breathtaking Beaubien Meadow and pushing up to Mount Phillips, the highest point on the trek. From there you'll follow ridges and watercourses back down just on the southern edge of the 2018 Ute Park Fire area. There are program opportunities spread throughout this trek, but to take advantage of them, particularly those up at higher elevation, you'll need to make sure your crew is working together smoothly and prepared for some early starts."," "]
[479,{"$f":"Itineraries!A12","v":"9-10"},"If your crew is up to the mileage and elevation gain, this itinerary is a powerhouse of north country history and viewpoints. Your crew will get the opportunity to take part in programs that tell the story of early resource extraction in this region from early fur trapping to logging, mining, and the railroads that supported them, but only if your crew is motivated and well-prepared to put in the miles and gain over 10,000 feet of elevation over a relatively short timeframe!"," "]
[725,{"$f":"Itineraries!A13","v":"9-11"},"This itinerary puts in the miles to traverse the many landscapes that Philmont and our northern neighbors have to offer. You'll start by exploring the historic wonders of the North Ponil canyon before crossing over to the middle Ponil and Greenwood Canyons. The rivers here delineate the boundary between the Greenwood Tract of the UU Bar Ranch and the Valle Vidal of the Carson National Forest and offer a true wilderness experience. From here you'll quickly ascend to the high summit of Baldy Mountain and overlook all of the land you had previously hiked over. While you will check-in with quite a few staffed camps, know that your time spent at each will be limited as you quickly move across this breathtaking landscape!"," "]
[501,{"$f":"Itineraries!A14","v":"9-12"},"This nine day itinerary provides wonderful rewards for high-performing crews willing to meet the challenge. It starts out by traversing the 2018 Ute Park burn scar to quickly gain elevation leading up to Mount Phillips. From there it descends rivers and meadows before gaining elevation once again, culminating at the Summit of the iconic Tooth of Time. Along the way there are brief stops at many different staffed camps with opportunities for program, but only if your crew's hiking schedule allows."," "]
[null,null,null," "]
[null,null,null," "]
[null,null,null," "]
[null,null,null," "]
[null,null,null," "]
[null,null,null," "]
[null,null,null," "]
[null,null,null," "]
[null,null,null," "]
[null,null,null," "]
[null,null,null," "]
[null,null,null," "]

{"sheet":"Calculator","index":13,"n_rows":35,"n_cols":80,"rows_kept":35,"cut":false,"hidden":true,"merged":[[29,0,29,1]]}
["Calculate Individual Values Based on Tables & Scores",null,null,null,null,null,null,null,null,null,null,null,null,null,null,null,null,null,null,null,null,null,null,null,1,{"$f":"Y1+1","v":2},{"$f":"Z1+1","v":3},4,5,6,7,8,9,10,11,12,13,14,15,16,17,18,19,20,21,22,23,24,25,26,27,28,29,30,31,32,33,34,35,36,37,{"$f":"BI1+1","v":38},{"$f":"BJ1+1","v":39},{"$f":"BK1+1","v":40},{"$f":"BL1+1","v":41},42,{"$f":"BN1+1","v":43},{"$f":"BO1+1","v":44},{"$f":"BP1+1","v":45},{"$f":"BQ1+1","v":46},{"$f":"BR1+1","v":47},{"$f":"BS1+1","v":48},{"$f":"BT1+1","v":49},{"$f":"BU1+1","v":50},{"$f":"BV1+1","v":51},{"$f":"BW1+1","v":52},{"$f":"BX1+1","v":53},{"$f":"BY1+1","v":54},{"$f":"BZ1+1","v":55},{"$f":"CA1+1","v":56}]
[{"$f":"Itineraries!A2","v":"Itinerary"},"Ranking","Difficulty","Distance","Food from HQ","Days Food","Trail Camps","Dry Camps","Total Camps","Max Altitude","Total Gain","Daily Change","Hike Out","Hike In","Landmarks: Baldy Mountain","Landmarks: Mount Phillips","Landmarks: Tooth of Time","Landmarks: Inspiration Point","Landmarks: Trail Peak","Landmarks: Mountaineering","South","Central","North","Valle Vidal",{"$f":"INDEX(program_table,Y$1)","v":"Climbing: Bouldering Gym"},{"$f":"INDEX(program_table,Z$1)","v":"Climbing: Climbing Wall/Tower"},{"$f":"INDEX(program_table,AA$1)","v":"Climbing: Crate Stacking"},{"$f":"INDEX(program_table,AB$1)","v":"Climbing: Rock Climbing"},{"$f":"INDEX(program_table,AC$1)","v":"COPE: High Challenge Course"},{"$f":"INDEX(program_table,AD$1)","v":"COPE: Initiative Games"},{"$f":"INDEX(program_table,AE$1)","v":"COPE: Low Challenge Course"},{"$f":"INDEX(program_table,AF$1)","v":"Ecology: Demonstration Forest"},{"$f":"INDEX(program_table,AG$1)","v":"Ecology: Self-Guided Fishing"},{"$f":"INDEX(program_table,AH$1)","v":"Evening: Advisor Coffee"},{"$f":"INDEX(program_table,AI$1)","v":"Evening: Campfire Show"},{"$f":"INDEX(program_table,AJ$1)","v":"Evening: Chuckwagon Dinner"},{"$f":"INDEX(program_table,AK$1)","v":"Historical: Adobe Brick-Making"},{"$f":"INDEX(program_table,AL$1)","v":"Historical: Blacksmithing"},{"$f":"INDEX(program_table,AM$1)","v":"Historical: Cabin Restoration"},{"$f":"INDEX(program_table,AN$1)","v":"Historical: Cabin/House Tour"},{"$f":"INDEX(program_table,AO$1)","v":"Historical: Crafting"},{"$f":"INDEX(program_table,AP$1)","v":"Historical: Crosscut & Tie Making"},{"$f":"INDEX(program_table,AQ$1)","v":"Historical: Flint Knapping"},{"$f":"INDEX(program_table,AR$1)","v":"Historical: Fur Trapper Rendezvous"},{"$f":"INDEX(program_table,AS$1)","v":"Historical: Gold Panning"},{"$f":"INDEX(program_table,AT$1)","v":"Historical: Mine Tour"},{"$f":"INDEX(program_table,AU$1)","v":"Historical: Petroglyph Tour"},{"$f":"INDEX(program_table,AV$1)","v":"Historical: Pump Car Rides"},{"$f":"INDEX(program_table,AW$1)","v":"Historical: Railroad Construction"},{"$f":"INDEX(program_table,AX$1)","v":"Historical: Spar Pole Climbing"},{"$f":"INDEX(program_table,AY$1)","v":"Landmarks: Baldy Mountain"},{"$f":"INDEX(program_table,AZ$1)","v":"Landmarks: Inspiration Point"},{"$f":"INDEX(program_table,BA$1)","v":"Landmarks: Mount Phillips"},{"$f":"INDEX(program_table,BB$1)","v":"Landmarks: Mountaineering"},{"$f":"INDEX(program_table,BC$1)","v":"Landmarks: Tooth of Time"},{"$f":"INDEX(program_table,BD$1)","v":"Landmarks: Trail Peak"},{"$f":"INDEX(program_table,BE$1)","v":"Livestock: Animal Husbandry"},{"$f":"INDEX(program_table,BF$1)","v":"Livestock: Burro Packing"},{"$f":"INDEX(program_table,BG$1)","v":"Livestock: Chicken Tending"},{"$f":"INDEX(program_table,BH$1)","v":"Livestock: Horse Rides"},{"$f":"INDEX(program_table,BI$1)","v":"Low Impact Camping"},{"$f":"INDEX(program_table,BJ$1)","v":"Range Sports: 3D Archery"},{"$f":"INDEX(program_table,BK$1)","v":"Range Sports: Aerial Archery"},{"$f":"INDEX(program_table,BL$1)","v":"Range Sports: Atlatl Throwing"},{"$f":"INDEX(program_table,BM$1)","v":"Range Sports: Cartridge Reloading"},{"$f":"INDEX(program_table,BN$1)","v":"Range Sports: Cowboy Action Shooting"},{"$f":"INDEX(program_table,BO$1)","v":"Range Sports: Field Archery"},{"$f":"INDEX(program_table,BP$1)","v":"Range Sports: Muzzleloader Shooting"},{"$f":"INDEX(program_table,BQ$1)","v":"Range Sports: Rifle Shooting"},{"$f":"INDEX(program_table,BR$1)","v":"Range Sports: Shotgun Shooting"},{"$f":"INDEX(program_table,BS$1)","v":"Range Sports: Shotshell Reloading"},{"$f":"INDEX(program_table,BT$1)","v":"Range Sports: Tomahawk Throwing"},{"$f":"INDEX(program_table,BU$1)","v":"STEM: Archeology"},{"$f":"INDEX(program_table,BV$1)","v":"STEM: Astronomy"},{"$f":"INDEX(program_table,BW$1)","v":"STEM: Geology"},{"$f":"INDEX(program_table,BX$1)","v":"Western Lore: Branding"},{"$f":"INDEX(program_table,BY$1)","v":"Western Lore: Cantina"},{"$f":"INDEX(program_table,BZ$1)","v":"Western Lore: Roping"},{"$f":"INDEX(program_table,CA$1)","v":{"$error":"#REF!"}},{"$f":"INDEX(program_table,CB$1)","v":{"$error":"#REF!"}}]
[{"$f":"Itineraries!A3","v":"9-1"},{"$f":"SUM(C3:BU3)","v":11089.25},{"$f":"getScoreFactor(C$2,itineraryCamps!C4)","v":2500},{"$f":"getScoreFactor(D$2,\"Miles\") *itineraryCamps!D4","v":4000},{"$f":"getScoreFactor(E$2,Itineraries!B3)","v":30},{"$f":"getScoreFactor(F$2,Itineraries!C3)","v":90},{"$f":"getScoreFactor(G$2,Itineraries!D3)","v":100},{"$f":"getScoreFactor(H$2,Itineraries!E3)","v":100},{"$f":"getScoreFactor(I$2,Itineraries!G3)","v":75},{"$f":"getScoreFactor(J$2,Itineraries!J3)","v":50},{"$f":"getScoreFactor(K$2,Itineraries!K3)","v":60},{"$f":"getScoreFactor(L$2,Itineraries!L3)","v":300},{"$f":"IF(INDEX(startingTA,numericItinerary($A3))=$M$2,getScoreFactor(M$2,\"y\"),getScoreFactor(M$2,\"n\"))","v":0},{"$f":"IF(INDEX(endingTA,numericItinerary($A3))=$N$2,getScoreFactor(N$2,\"y\"),getScoreFactor(N$2,\"n\"))","v":0},{"$f":"IF(INDEX(baldyMountainHike,numericItinerary($A3))=\"\",\"\",getPeakScore(O$2))","v":""},{"$f":"IF(INDEX(mountPhillipsHike,numericItinerary($A3))=\"\",\"\",getPeakScore(P$2))","v":""},{"$f":"IF(INDEX(toothOfTimeHike,numericItinerary($A3))=\"\",\"\",getPeakScore(Q$2))","v":""},{"$f":"IF(INDEX(inspirationPointHike,numericItinerary($A3))=\"\",\"\",getPeakScore(Q$2))","v":303.75},{"$f":"IF(INDEX(trailPeakHike,numericItinerary($A3))=\"\",\"\",getPeakScore(S$2))","v":""},{"$f":"IF(INDEX(mountaineeringHike,numericItinerary($A3))=\"\",\"\",getPeakScore(T$2))","v":""},{"$f":"IF(areaImportant<>\"y\",\"\",IF(Itineraries!P3<>\"Y\",\"\",getareascore(U$2)))","v":200},{"$f":"IF(areaImportant<>\"y\",\"\",IF(Itineraries!Q3<>\"Y\",\"\",getareascore(V$2)))","v":""},{"$f":"IF(areaImportant<>\"y\",\"\",IF(Itineraries!R3<>\"Y\",\"\",getareascore(W$2)))","v":""},{"$f":"IF(areaImportant<>\"y\",\"\",IF(Itineraries!S3<>\"Y\",\"\",getareascore(X$2)))","v":""},{"$f":"IF(ItineraryPrograms!C3=\"y\",getScoreFactor(\"Program\",Y$2),\"\")","v":228},{"$f":"IF(ItineraryPrograms!D3=\"y\",getScoreFactor(\"Program\",Z$2),\"\")","v":337.5},{"$f":"IF(ItineraryPrograms!E3=\"y\",getScoreFactor(\"Program\",AA$2),\"\")","v":114},{"$f":"IF(ItineraryPrograms!F3=\"y\",getScoreFactor(\"Program\",AB$2),\"\")","v":282},{"$f":"IF(ItineraryPrograms!G3=\"y\",getScoreFactor(\"Program\",AC$2),\"\")","v":162},{"$f":"IF(ItineraryPrograms!H3=\"y\",getScoreFactor(\"Program\",AD$2),\"\")","v":166.5},{"$f":"IF(ItineraryPrograms!I3=\"y\",getScoreFactor(\"Program\",AE$2),\"\")","v":166.5},{"$f":"IF(ItineraryPrograms!J3=\"y\",getScoreFactor(\"Program\",AF$2),\"\")","v":""},{"$f":"IF(ItineraryPrograms!K3=\"y\",getScoreFactor(\"Program\",AG$2),\"\")","v":130.5},{"$f":"IF(ItineraryPrograms!L3=\"y\",getScoreFactor(\"Program\",AH$2),\"\")","v":""},{"$f":"IF(ItineraryPrograms!M3=\"y\",getScoreFactor(\"Program\",AI$2),\"\")","v":109.5},{"$f":"IF(ItineraryPrograms!N3=\"y\",getScoreFactor(\"Program\",AJ$2),\"\")","v":109.5},{"$f":"IF(ItineraryPrograms!O3=\"y\",getScoreFactor(\"Program\",AK$2),\"\")","v":111},{"$f":"IF(ItineraryPrograms!P3=\"y\",getScoreFactor(\"Program\",AL$2),\"\")","v":114},{"$f":"IF(ItineraryPrograms!Q3=\"y\",getScoreFactor(\"Program\",AM$2),\"\")","v":123},{"$f":"IF(ItineraryPrograms!R3=\"y\",getScoreFactor(\"Program\",AN$2),\"\")","v":""},{"$f":"IF(ItineraryPrograms!S3=\"y\",getScoreFactor(\"Program\",AO$2),\"\")","v":106.5},{"$f":"IF(ItineraryPrograms!T3=\"y\",getScoreFactor(\"Program\",AP$2),\"\")","v":145.5},{"$f":"IF(ItineraryPrograms!U3=\"y\",getScoreFactor(\"Program\",AQ$2),\"\")","v":93},{"$f":"IF(ItineraryPrograms!V3=\"y\",getScoreFactor(\"Program\",AR$2),\"\")","v":""},{"$f":"IF(ItineraryPrograms!W3=\"y\",getScoreFactor(\"Program\",AS$2),\"\")","v":""},{"$f":"IF(ItineraryPrograms!X3=\"y\",getScoreFactor(\"Program\",AT$2),\"\")","v":""},{"$f":"IF(ItineraryPrograms!Y3=\"y\",getScoreFactor(\"Program\",AU$2),\"\")","v":""},{"$f":"IF(ItineraryPrograms!Z3=\"y\",getScoreFactor(\"Program\",AV$2),\"\")","v":""},{"$f":"IF(ItineraryPrograms!AA3=\"y\",getScoreFactor(\"Program\",AW$2),\"\")","v":""},{"$f":"IF(ItineraryPrograms!AB3=\"y\",getScoreFactor(\"Program\",AX$2),\"\")","v":""},{"$f":"IF(ItineraryPrograms!AC3=\"y\",getScoreFactor(\"Program\",AY$2),\"\")","v":""},{"$f":"IF(ItineraryPrograms!AD3=\"y\",getScoreFactor(\"Program\",AZ$2),\"\")","v":""},{"$f":"IF(ItineraryPrograms!AE3=\"y\",getScoreFactor(\"Program\",BA$2),\"\")","v":154.5},{"$f":"IF(ItineraryPrograms!AF3=\"y\",getScoreFactor(\"Program\",BB$2),\"\")","v":""},{"$f":"IF(ItineraryPrograms!AG3=\"y\",getScoreFactor(\"Program\",BC$2),\"\")","v":""},{"$f":"IF(ItineraryPrograms!AH3=\"y\",getScoreFactor(\"Program\",BD$2),\"\")","v":""},{"$f":"IF(ItineraryPrograms!AI3=\"y\",getScoreFactor(\"Program\",BE$2),\"\")","v":""},{"$f":"IF(ItineraryPrograms!AJ3=\"y\",getScoreFactor(\"Program\",BF$2),\"\")","v":220.5},{"$f":"IF(ItineraryPrograms!AK3=\"y\",getScoreFactor(\"Program\",BG$2),\"\")","v":""},{"$f":"IF(ItineraryPrograms!AL3=\"y\",getScoreFactor(\"Program\",BH$2),\"\")","v":255},{"$f":"IF(ItineraryPrograms!AM3=\"y\",getScoreFactor(\"Program\",BI$2),\"\")","v":""},{"$f":"IF(ItineraryPrograms!AN3=\"y\",getScoreFactor(\"Program\",BJ$2),\"\")","v":""},{"$f":"IF(ItineraryPrograms!AO3=\"y\",getScoreFactor(\"Program\",BK$2),\"\")","v":""},{"$f":"IF(ItineraryPrograms!AP3=\"y\",getScoreFactor(\"Program\",BL$2),\"\")","v":""},{"$f":"IF(ItineraryPrograms!AQ3=\"y\",getScoreFactor(\"Program\",BM$2),\"\")","v":""},{"$f":"IF(ItineraryPrograms!AR3=\"y\",getScoreFactor(\"Program\",BN$2),\"\")","v":""},{"$f":"IF(ItineraryPrograms!AS3=\"y\",getScoreFactor(\"Program\",BO$2),\"\")","v":""},{"$f":"IF(ItineraryPrograms!AT3=\"y\",getScoreFactor(\"Program\",BP$2),\"\")","v":""},{"$f":"IF(ItineraryPrograms!AU3=\"y\",getScoreFactor(\"Program\",BQ$2),\"\")","v":151.5},{"$f":"IF(ItineraryPrograms!AV3=\"y\",getScoreFactor(\"Program\",BR$2),\"\")","v":""},{"$f":"IF(ItineraryPrograms!AW3=\"y\",getScoreFactor(\"Program\",BS$2),\"\")","v":""},{"$f":"IF(ItineraryPrograms!AX3=\"y\",getScoreFactor(\"Program\",BT$2),\"\")","v":""},{"$f":"IF(ItineraryPrograms!AY3=\"y\",getScoreFactor(\"Program\",BU$2),\"\")","v":""},{"$f":"IF(ItineraryPrograms!AZ3=\"y\",getScoreFactor(\"Program\",BV$2),\"\")","v":""},{"$f":"IF(ItineraryPrograms!BA3=\"y\",getScoreFactor(\"Program\",BW$2),\"\")","v":""},{"$f":"IF(ItineraryPrograms!BB3=\"y\",getScoreFactor(\"Program\",BX$2),\"\")","v":""},{"$f":"IF(ItineraryPrograms!BC3=\"y\",getScoreFactor(\"Program\",BY$2),\"\")","v":133.5},{"$f":"IF(ItineraryPrograms!BD3=\"y\",getScoreFactor(\"Program\",BZ$2),\"\")","v":285},{"$f":"IF(ItineraryPrograms!BE3=\"y\",getScoreFactor(\"Program\",CA$2),\"\")","v":{"$error":"#VALUE!"}},{"$f":"IF(ItineraryPrograms!BF3=\"y\",getScoreFactor(\"Program\",CB$2),\"\")","v":""}]
[{"$f":"Itineraries!A4","v":"9-2"},{"$f":"SUM(C4:BU4)","v":10262},{"$f":"getScoreFactor(C$2,itineraryCamps!C5)","v":2500},{"$f":"getScoreFactor(D$2,\"Miles\") *itineraryCamps!D5","v":3600},{"$f":"getScoreFactor(E$2,Itineraries!B4)","v":30},{"$f":"getScoreFactor(F$2,Itineraries!C4)","v":90},{"$f":"getScoreFactor(G$2,Itineraries!E4)","v":50},{"$f":"getScoreFactor(H$2,Itineraries!H4)","v":250},{"$f":"getScoreFactor(I$2,Itineraries!G4)","v":75},{"$f":"getScoreFactor(J$2,Itineraries!J4)","v":20},{"$f":"getScoreFactor(K$2,Itineraries!K4)","v":40},{"$f":"getScoreFactor(L$2,Itineraries!L4)","v":300},{"$f":"IF(INDEX(startingTA,numericItinerary($A4))=$M$2,getScoreFactor(M$2,\"y\"),getScoreFactor(M$2,\"n\"))","v":0},{"$f":"IF(INDEX(endingTA,numericItinerary($A4))=$N$2,getScoreFactor(N$2,\"y\"),getScoreFactor(N$2,\"n\"))","v":0},{"$f":"IF(INDEX(baldyMountainHike,numericItinerary($A4))=\"\",\"\",getPeakScore(O$2))","v":""},{"$f":"IF(INDEX(mountPhillipsHike,numericItinerary($A4))=\"\",\"\",getPeakScore(P$2))","v":""},{"$f":"IF(INDEX(toothOfTimeHike,numericItinerary($A4))=\"\",\"\",getPeakScore(Q$2))","v":""},{"$f":"IF(INDEX(inspirationPointHike,numericItinerary($A4))=\"\",\"\",getPeakScore(Q$2))","v":""},{"$f":"IF(INDEX(trailPeakHike,numericItinerary($A4))=\"\",\"\",getPeakScore(S$2))","v":""},{"$f":"IF(INDEX(mountaineeringHike,numericItinerary($A4))=\"\",\"\",getPeakScore(T$2))","v":189},{"$f":"IF(areaImportant<>\"y\",\"\",IF(Itineraries!P4<>\"Y\",\"\",getareascore(U$2)))","v":""},{"$f":"IF(areaImportant<>\"y\",\"\",IF(Itineraries!Q4<>\"Y\",\"\",getareascore(V$2)))","v":150},{"$f":"IF(areaImportant<>\"y\",\"\",IF(Itineraries!R4<>\"Y\",\"\",getareascore(W$2)))","v":1000},{"$f":"IF(areaImportant<>\"y\",\"\",IF(Itineraries!S4<>\"Y\",\"\",getareascore(X$2)))","v":""},{"$f":"IF(ItineraryPrograms!C4=\"y\",getScoreFactor(\"Program\",Y$2),\"\")","v":""},{"$f":"IF(ItineraryPrograms!D4=\"y\",getScoreFactor(\"Program\",Z$2),\"\")","v":""},{"$f":"IF(ItineraryPrograms!E4=\"y\",getScoreFactor(\"Program\",AA$2),\"\")","v":""},{"$f":"IF(ItineraryPrograms!F4=\"y\",getScoreFactor(\"Program\",AB$2),\"\")","v":""},{"$f":"IF(ItineraryPrograms!G4=\"y\",getScoreFactor(\"Program\",AC$2),\"\")","v":""},{"$f":"IF(ItineraryPrograms!H4=\"y\",getScoreFactor(\"Program\",AD$2),\"\")","v":""},{"$f":"IF(ItineraryPrograms!I4=\"y\",getScoreFactor(\"Program\",AE$2),\"\")","v":""},{"$f":"IF(ItineraryPrograms!J4=\"y\",getScoreFactor(\"Program\",AF$2),\"\")","v":""},{"$f":"IF(ItineraryPrograms!K4=\"y\",getScoreFactor(\"Program\",AG$2),\"\")","v":""},{"$f":"IF(ItineraryPrograms!L4=\"y\",getScoreFactor(\"Program\",AH$2),\"\")","v":""},{"$f":"IF(ItineraryPrograms!M4=\"y\",getScoreFactor(\"Program\",AI$2),\"\")","v":109.5},{"$f":"IF(ItineraryPrograms!N4=\"y\",getScoreFactor(\"Program\",AJ$2),\"\")","v":109.5},{"$f":"IF(ItineraryPrograms!O4=\"y\",getScoreFactor(\"Program\",AK$2),\"\")","v":111},{"$f":"IF(ItineraryPrograms!P4=\"y\",getScoreFactor(\"Program\",AL$2),\"\")","v":""},{"$f":"IF(ItineraryPrograms!Q4=\"y\",getScoreFactor(\"Program\",AM$2),\"\")","v":""},{"$f":"IF(ItineraryPrograms!R4=\"y\",getScoreFactor(\"Program\",AN$2),\"\")","v":""},{"$f":"IF(ItineraryPrograms!S4=\"y\",getScoreFactor(\"Program\",AO$2),\"\")","v":""},{"$f":"IF(ItineraryPrograms!T4=\"y\",getScoreFactor(\"Program\",AP$2),\"\")","v":""},{"$f":"IF(ItineraryPrograms!U4=\"y\",getScoreFactor(\"Program\",AQ$2),\"\")","v":""},{"$f":"IF(ItineraryPrograms!V4=\"y\",getScoreFactor(\"Program\",AR$2),\"\")","v":""},{"$f":"IF(ItineraryPrograms!W4=\"y\",getScoreFactor(\"Program\",AS$2),\"\")","v":""},{"$f":"IF(ItineraryPrograms!X4=\"y\",getScoreFactor(\"Program\",AT$2),\"\")","v":""},{"$f":"IF(ItineraryPrograms!Y4=\"y\",getScoreFactor(\"Program\",AU$2),\"\")","v":""},{"$f":"IF(ItineraryPrograms!Z4=\"y\",getScoreFactor(\"Program\",AV$2),\"\")","v":162},{"$f":"IF(ItineraryPrograms!AA4=\"y\",getScoreFactor(\"Program\",AW$2),\"\")","v":""},{"$f":"IF(ItineraryPrograms!AB4=\"y\",getScoreFactor(\"Program\",AX$2),\"\")","v":""},{"$f":"IF(ItineraryPrograms!AC4=\"y\",getScoreFactor(\"Program\",AY$2),\"\")","v":""},{"$f":"IF(ItineraryPrograms!AD4=\"y\",getScoreFactor(\"Program\",AZ$2),\"\")","v":""},{"$f":"IF(ItineraryPrograms!AE4=\"y\",getScoreFactor(\"Program\",BA$2),\"\")","v":""},{"$f":"IF(ItineraryPrograms!AF4=\"y\",getScoreFactor(\"Program\",BB$2),\"\")","v":""},{"$f":"IF(ItineraryPrograms!AG4=\"y\",getScoreFactor(\"Program\",BC$2),\"\")","v":""},{"$f":"IF(ItineraryPrograms!AH4=\"y\",getScoreFactor(\"Program\",BD$2),\"\")","v":""},{"$f":"IF(ItineraryPrograms!AI4=\"y\",getScoreFactor(\"Program\",BE$2),\"\")","v":""},{"$f":"IF(ItineraryPrograms!AJ4=\"y\",getScoreFactor(\"Program\",BF$2),\"\")","v":""},{"$f":"IF(ItineraryPrograms!AK4=\"y\",getScoreFactor(\"Program\",BG$2),\"\")","v":""},{"$f":"IF(ItineraryPrograms!AL4=\"y\",getScoreFactor(\"Program\",BH$2),\"\")","v":""},{"$f":"IF(ItineraryPrograms!AM4=\"y\",getScoreFactor(\"Program\",BI$2),\"\")","v":235.5},{"$f":"IF(ItineraryPrograms!AN4=\"y\",getScoreFactor(\"Program\",BJ$2),\"\")","v":""},{"$f":"IF(ItineraryPrograms!AO4=\"y\",getScoreFactor(\"Program\",BK$2),\"\")","v":181.5},{"$f":"IF(ItineraryPrograms!AP4=\"y\",getScoreFactor(\"Program\",BL$2),\"\")","v":220.5},{"$f":"IF(ItineraryPrograms!AQ4=\"y\",getScoreFactor(\"Program\",BM$2),\"\")","v":""},{"$f":"IF(ItineraryPrograms!AR4=\"y\",getScoreFactor(\"Program\",BN$2),\"\")","v":""},{"$f":"IF(ItineraryPrograms!AS4=\"y\",getScoreFactor(\"Program\",BO$2),\"\")","v":235.5},{"$f":"IF(ItineraryPrograms!AT4=\"y\",getScoreFactor(\"Program\",BP$2),\"\")","v":193.5},{"$f":"IF(ItineraryPrograms!AU4=\"y\",getScoreFactor(\"Program\",BQ$2),\"\")","v":""},{"$f":"IF(ItineraryPrograms!AV4=\"y\",getScoreFactor(\"Program\",BR$2),\"\")","v":""},{"$f":"IF(ItineraryPrograms!AW4=\"y\",getScoreFactor(\"Program\",BS$2),\"\")","v":202.5},{"$f":"IF(ItineraryPrograms!AX4=\"y\",getScoreFactor(\"Program\",BT$2),\"\")","v":207},{"$f":"IF(ItineraryPrograms!AY4=\"y\",getScoreFactor(\"Program\",BU$2),\"\")","v":""},{"$f":"IF(ItineraryPrograms!AZ4=\"y\",getScoreFactor(\"Program\",BV$2),\"\")","v":""},{"$f":"IF(ItineraryPrograms!BA4=\"y\",getScoreFactor(\"Program\",BW$2),\"\")","v":""},{"$f":"IF(ItineraryPrograms!BB4=\"y\",getScoreFactor(\"Program\",BX$2),\"\")","v":""},{"$f":"IF(ItineraryPrograms!BC4=\"y\",getScoreFactor(\"Program\",BY$2),\"\")","v":133.5},{"$f":"IF(ItineraryPrograms!BD4=\"y\",getScoreFactor(\"Program\",BZ$2),\"\")","v":285},{"$f":"IF(ItineraryPrograms!BE4=\"y\",getScoreFactor(\"Program\",CA$2),\"\")","v":{"$error":"#VALUE!"}},{"$f":"IF(ItineraryPrograms!BF4=\"y\",getScoreFactor(\"Program\",CB$2),\"\")","v":""}]
[{"$f":"Itineraries!A5","v":"9-3"},9679.25,{"$f":"getScoreFactor(C$2,itineraryCamps!C6)","v":2500},{"$f":"getScoreFactor(D$2,\"Miles\") *itineraryCamps!D6","v":4100},{"$f":"getScoreFactor(E$2,Itineraries!B5)","v":20},{"$f":"getScoreFactor(F$2,Itineraries!C5)","v":60},{"$f":"getScoreFactor(G$2,Itineraries!E5)","v":25},{"$f":"getScoreFactor(H$2,Itineraries!H5)","v":200},{"$f":"getScoreFactor(I$2,Itineraries!G5)","v":75},{"$f":"getScoreFactor(J$2,Itineraries!J5)","v":70},{"$f":"getScoreFactor(K$2,Itineraries!K5)","v":80},{"$f":"getScoreFactor(L$2,Itineraries!L5)","v":0},{"$f":"IF(INDEX(startingTA,numericItinerary($A5))=$M$2,getScoreFactor(M$2,\"y\"),getScoreFactor(M$2,\"n\"))","v":0},{"$f":"IF(INDEX(endingTA,numericItinerary($A5))=$N$2,getScoreFactor(N$2,\"y\"),getScoreFactor(N$2,\"n\"))","v":0},{"$f":"IF(INDEX(baldyMountainHike,numericItinerary($A5))=\"\",\"\",getPeakScore(O$2))","v":""},{"$f":"IF(INDEX(mountPhillipsHike,numericItinerary($A5))=\"\",\"\",getPeakScore(P$2))","v":""},{"$f":"IF(INDEX(toothOfTimeHike,numericItinerary($A5))=\"\",\"\",getPeakScore(Q$2))","v":303.75},{"$f":"IF(INDEX(inspirationPointHike,numericItinerary($A5))=\"\",\"\",getPeakScore(Q$2))","v":""},{"$f":"IF(INDEX(trailPeakHike,numericItinerary($A5))=\"\",\"\",getPeakScore(S$2))","v":""},{"$f":"IF(INDEX(mountaineeringHike,numericItinerary($A5))=\"\",\"\",getPeakScore(T$2))","v":189},{"$f":"IF(areaImportant<>\"y\",\"\",IF(Itineraries!P5<>\"Y\",\"\",getareascore(U$2)))","v":""},{"$f":"IF(areaImportant<>\"y\",\"\",IF(Itineraries!Q5<>\"Y\",\"\",getareascore(V$2)))","v":150},{"$f":"IF(areaImportant<>\"y\",\"\",IF(Itineraries!R5<>\"Y\",\"\",getareascore(W$2)))","v":""},{"$f":"IF(areaImportant<>\"y\",\"\",IF(Itineraries!S5<>\"Y\",\"\",getareascore(X$2)))","v":""},{"$f":"IF(ItineraryPrograms!C5=\"y\",getScoreFactor(\"Program\",Y$2),\"\")","v":228},{"$f":"IF(ItineraryPrograms!D5=\"y\",getScoreFactor(\"Program\",Z$2),\"\")","v":""},{"$f":"IF(ItineraryPrograms!E5=\"y\",getScoreFactor(\"Program\",AA$2),\"\")","v":""},{"$f":"IF(ItineraryPrograms!F5=\"y\",getScoreFactor(\"Program\",AB$2),\"\")","v":""},{"$f":"IF(ItineraryPrograms!G5=\"y\",getScoreFactor(\"Program\",AC$2),\"\")","v":""},{"$f":"IF(ItineraryPrograms!H5=\"y\",getScoreFactor(\"Program\",AD$2),\"\")","v":""},{"$f":"IF(ItineraryPrograms!I5=\"y\",getScoreFactor(\"Program\",AE$2),\"\")","v":""},{"$f":"IF(ItineraryPrograms!J5=\"y\",getScoreFactor(\"Program\",AF$2),\"\")","v":126},{"$f":"IF(ItineraryPrograms!K5=\"y\",getScoreFactor(\"Program\",AG$2),\"\")","v":""},{"$f":"IF(ItineraryPrograms!L5=\"y\",getScoreFactor(\"Program\",AH$2),\"\")","v":""},{"$f":"IF(ItineraryPrograms!M5=\"y\",getScoreFactor(\"Program\",AI$2),\"\")","v":109.5},{"$f":"IF(ItineraryPrograms!N5=\"y\",getScoreFactor(\"Program\",AJ$2),\"\")","v":109.5},{"$f":"IF(ItineraryPrograms!O5=\"y\",getScoreFactor(\"Program\",AK$2),\"\")","v":111},{"$f":"IF(ItineraryPrograms!P5=\"y\",getScoreFactor(\"Program\",AL$2),\"\")","v":""},{"$f":"IF(ItineraryPrograms!Q5=\"y\",getScoreFactor(\"Program\",AM$2),\"\")","v":""},{"$f":"IF(ItineraryPrograms!R5=\"y\",getScoreFactor(\"Program\",AN$2),\"\")","v":""},{"$f":"IF(ItineraryPrograms!S5=\"y\",getScoreFactor(\"Program\",AO$2),\"\")","v":""},{"$f":"IF(ItineraryPrograms!T5=\"y\",getScoreFactor(\"Program\",AP$2),\"\")","v":""},{"$f":"IF(ItineraryPrograms!U5=\"y\",getScoreFactor(\"Program\",AQ$2),\"\")","v":""},{"$f":"IF(ItineraryPrograms!V5=\"y\",getScoreFactor(\"Program\",AR$2),\"\")","v":""},{"$f":"IF(ItineraryPrograms!W5=\"y\",getScoreFactor(\"Program\",AS$2),\"\")","v":""},{"$f":"IF(ItineraryPrograms!X5=\"y\",getScoreFactor(\"Program\",AT$2),\"\")","v":129},{"$f":"IF(ItineraryPrograms!Y5=\"y\",getScoreFactor(\"Program\",AU$2),\"\")","v":""},{"$f":"IF(ItineraryPrograms!Z5=\"y\",getScoreFactor(\"Program\",AV$2),\"\")","v":""},{"$f":"IF(ItineraryPrograms!AA5=\"y\",getScoreFactor(\"Program\",AW$2),\"\")","v":""},{"$f":"IF(ItineraryPrograms!AB5=\"y\",getScoreFactor(\"Program\",AX$2),\"\")","v":""},{"$f":"IF(ItineraryPrograms!AC5=\"y\",getScoreFactor(\"Program\",AY$2),\"\")","v":""},{"$f":"IF(ItineraryPrograms!AD5=\"y\",getScoreFactor(\"Program\",AZ$2),\"\")","v":""},{"$f":"IF(ItineraryPrograms!AE5=\"y\",getScoreFactor(\"Program\",BA$2),\"\")","v":""},{"$f":"IF(ItineraryPrograms!AF5=\"y\",getScoreFactor(\"Program\",BB$2),\"\")","v":""},{"$f":"IF(ItineraryPrograms!AG5=\"y\",getScoreFactor(\"Program\",BC$2),\"\")","v":""},{"$f":"IF(ItineraryPrograms!AH5=\"y\",getScoreFactor(\"Program\",BD$2),\"\")","v":91.5},{"$f":"IF(ItineraryPrograms!AI5=\"y\",getScoreFactor(\"Program\",BE$2),\"\")","v":""},{"$f":"IF(ItineraryPrograms!AJ5=\"y\",getScoreFactor(\"Program\",BF$2),\"\")","v":""},{"$f":"IF(ItineraryPrograms!AK5=\"y\",getScoreFactor(\"Program\",BG$2),\"\")","v":""},{"$f":"IF(ItineraryPrograms!AL5=\"y\",getScoreFactor(\"Program\",BH$2),\"\")","v":""},{"$f":"IF(ItineraryPrograms!AM5=\"y\",getScoreFactor(\"Program\",BI$2),\"\")","v":235.5},{"$f":"IF(ItineraryPrograms!AN5=\"y\",getScoreFactor(\"Program\",BJ$2),\"\")","v":""},{"$f":"IF(ItineraryPrograms!AO5=\"y\",getScoreFactor(\"Program\",BK$2),\"\")","v":181.5},{"$f":"IF(ItineraryPrograms!AP5=\"y\",getScoreFactor(\"Program\",BL$2),\"\")","v":""},{"$f":"IF(ItineraryPrograms!AQ5=\"y\",getScoreFactor(\"Program\",BM$2),\"\")","v":""},{"$f":"IF(ItineraryPrograms!AR5=\"y\",getScoreFactor(\"Program\",BN$2),\"\")","v":255},{"$f":"IF(ItineraryPrograms!AS5=\"y\",getScoreFactor(\"Program\",BO$2),\"\")","v":""},{"$f":"IF(ItineraryPrograms!AT5=\"y\",getScoreFactor(\"Program\",BP$2),\"\")","v":193.5},{"$f":"IF(ItineraryPrograms!AU5=\"y\",getScoreFactor(\"Program\",BQ$2),\"\")","v":""},{"$f":"IF(ItineraryPrograms!AV5=\"y\",getScoreFactor(\"Program\",BR$2),\"\")","v":136.5},{"$f":"IF(ItineraryPrograms!AW5=\"y\",getScoreFactor(\"Program\",BS$2),\"\")","v":""},{"$f":"IF(ItineraryPrograms!AX5=\"y\",getScoreFactor(\"Program\",BT$2),\"\")","v":""},{"$f":"IF(ItineraryPrograms!AY5=\"y\",getScoreFactor(\"Program\",BU$2),\"\")","v":""},{"$f":"IF(ItineraryPrograms!AZ5=\"y\",getScoreFactor(\"Program\",BV$2),\"\")","v":""},{"$f":"IF(ItineraryPrograms!BA5=\"y\",getScoreFactor(\"Program\",BW$2),\"\")","v":""},{"$f":"IF(ItineraryPrograms!BB5=\"y\",getScoreFactor(\"Program\",BX$2),\"\")","v":235.5},{"$f":"IF(ItineraryPrograms!BC5=\"y\",getScoreFactor(\"Program\",BY$2),\"\")","v":133.5},{"$f":"IF(ItineraryPrograms!BD5=\"y\",getScoreFactor(\"Program\",BZ$2),\"\")","v":""},{"$f":"IF(ItineraryPrograms!BE5=\"y\",getScoreFactor(\"Program\",CA$2),\"\")","v":{"$error":"#VALUE!"}},{"$f":"IF(ItineraryPrograms!BF5=\"y\",getScoreFactor(\"Program\",CB$2),\"\")","v":""}]
[{"$f":"Itineraries!A6","v":"9-4"},11543.416666666666,{"$f":"getScoreFactor(C$2,itineraryCamps!C7)","v":2666.6666666666665},{"$f":"getScoreFactor(D$2,\"Miles\") *itineraryCamps!D7","v":4200},{"$f":"getScoreFactor(E$2,Itineraries!B6)","v":40},{"$f":"getScoreFactor(F$2,Itineraries!C6)","v":80},{"$f":"getScoreFactor(G$2,Itineraries!E6)","v":75},{"$f":"getScoreFactor(H$2,Itineraries!H6)","v":250},{"$f":"getScoreFactor(I$2,Itineraries!G6)","v":75},{"$f":"getScoreFactor(J$2,Itineraries!J6)","v":70},{"$f":"getScoreFactor(K$2,Itineraries!K6)","v":80},{"$f":"getScoreFactor(L$2,Itineraries!L6)","v":300},{"$f":"IF(INDEX(startingTA,numericItinerary($A6))=$M$2,getScoreFactor(M$2,\"y\"),getScoreFactor(M$2,\"n\"))","v":0},{"$f":"IF(INDEX(endingTA,numericItinerary($A6))=$N$2,getScoreFactor(N$2,\"y\"),getScoreFactor(N$2,\"n\"))","v":500},{"$f":"IF(INDEX(baldyMountainHike,numericItinerary($A6))=\"\",\"\",getPeakScore(O$2))","v":""},{"$f":"IF(INDEX(mountPhillipsHike,numericItinerary($A6))=\"\",\"\",getPeakScore(P$2))","v":""},{"$f":"IF(INDEX(toothOfTimeHike,numericItinerary($A6))=\"\",\"\",getPeakScore(Q$2))","v":303.75},{"$f":"IF(INDEX(inspirationPointHike,numericItinerary($A6))=\"\",\"\",getPeakScore(Q$2))","v":""},{"$f":"IF(INDEX(trailPeakHike,numericItinerary($A6))=\"\",\"\",getPeakScore(S$2))","v":91.5},{"$f":"IF(INDEX(mountaineeringHike,numericItinerary($A6))=\"\",\"\",getPeakScore(T$2))","v":189},{"$f":"IF(areaImportant<>\"y\",\"\",IF(Itineraries!P6<>\"Y\",\"\",getareascore(U$2)))","v":200},{"$f":"IF(areaImportant<>\"y\",\"\",IF(Itineraries!Q6<>\"Y\",\"\",getareascore(V$2)))","v":150},{"$f":"IF(areaImportant<>\"y\",\"\",IF(Itineraries!R6<>\"Y\",\"\",getareascore(W$2)))","v":""},{"$f":"IF(areaImportant<>\"y\",\"\",IF(Itineraries!S6<>\"Y\",\"\",getareascore(X$2)))","v":""},{"$f":"IF(ItineraryPrograms!C6=\"y\",getScoreFactor(\"Program\",Y$2),\"\")","v":""},{"$f":"IF(ItineraryPrograms!D6=\"y\",getScoreFactor(\"Program\",Z$2),\"\")","v":""},{"$f":"IF(ItineraryPrograms!E6=\"y\",getScoreFactor(\"Program\",AA$2),\"\")","v":""},{"$f":"IF(ItineraryPrograms!F6=\"y\",getScoreFactor(\"Program\",AB$2),\"\")","v":""},{"$f":"IF(ItineraryPrograms!G6=\"y\",getScoreFactor(\"Program\",AC$2),\"\")","v":""},{"$f":"IF(ItineraryPrograms!H6=\"y\",getScoreFactor(\"Program\",AD$2),\"\")","v":""},{"$f":"IF(ItineraryPrograms!I6=\"y\",getScoreFactor(\"Program\",AE$2),\"\")","v":""},{"$f":"IF(ItineraryPrograms!J6=\"y\",getScoreFactor(\"Program\",AF$2),\"\")","v":""},{"$f":"IF(ItineraryPrograms!K6=\"y\",getScoreFactor(\"Program\",AG$2),\"\")","v":130.5},{"$f":"IF(ItineraryPrograms!L6=\"y\",getScoreFactor(\"Program\",AH$2),\"\")","v":""},{"$f":"IF(ItineraryPrograms!M6=\"y\",getScoreFactor(\"Program\",AI$2),\"\")","v":109.5},{"$f":"IF(ItineraryPrograms!N6=\"y\",getScoreFactor(\"Program\",AJ$2),\"\")","v":109.5},{"$f":"IF(ItineraryPrograms!O6=\"y\",getScoreFactor(\"Program\",AK$2),\"\")","v":111},{"$f":"IF(ItineraryPrograms!P6=\"y\",getScoreFactor(\"Program\",AL$2),\"\")","v":114},{"$f":"IF(ItineraryPrograms!Q6=\"y\",getScoreFactor(\"Program\",AM$2),\"\")","v":123},{"$f":"IF(ItineraryPrograms!R6=\"y\",getScoreFactor(\"Program\",AN$2),\"\")","v":126},{"$f":"IF(ItineraryPrograms!S6=\"y\",getScoreFactor(\"Program\",AO$2),\"\")","v":106.5},{"$f":"IF(ItineraryPrograms!T6=\"y\",getScoreFactor(\"Program\",AP$2),\"\")","v":145.5},{"$f":"IF(ItineraryPrograms!U6=\"y\",getScoreFactor(\"Program\",AQ$2),\"\")","v":93},{"$f":"IF(ItineraryPrograms!V6=\"y\",getScoreFactor(\"Program\",AR$2),\"\")","v":""},{"$f":"IF(ItineraryPrograms!W6=\"y\",getScoreFactor(\"Program\",AS$2),\"\")","v":""},{"$f":"IF(ItineraryPrograms!X6=\"y\",getScoreFactor(\"Program\",AT$2),\"\")","v":""},{"$f":"IF(ItineraryPrograms!Y6=\"y\",getScoreFactor(\"Program\",AU$2),\"\")","v":""},{"$f":"IF(ItineraryPrograms!Z6=\"y\",getScoreFactor(\"Program\",AV$2),\"\")","v":""},{"$f":"IF(ItineraryPrograms!AA6=\"y\",getScoreFactor(\"Program\",AW$2),\"\")","v":""},{"$f":"IF(ItineraryPrograms!AB6=\"y\",getScoreFactor(\"Program\",AX$2),\"\")","v":""},{"$f":"IF(ItineraryPrograms!AC6=\"y\",getScoreFactor(\"Program\",AY$2),\"\")","v":150},{"$f":"IF(ItineraryPrograms!AD6=\"y\",getScoreFactor(\"Program\",AZ$2),\"\")","v":""},{"$f":"IF(ItineraryPrograms!AE6=\"y\",getScoreFactor(\"Program\",BA$2),\"\")","v":""},{"$f":"IF(ItineraryPrograms!AF6=\"y\",getScoreFactor(\"Program\",BB$2),\"\")","v":""},{"$f":"IF(ItineraryPrograms!AG6=\"y\",getScoreFactor(\"Program\",BC$2),\"\")","v":""},{"$f":"IF(ItineraryPrograms!AH6=\"y\",getScoreFactor(\"Program\",BD$2),\"\")","v":91.5},{"$f":"IF(ItineraryPrograms!AI6=\"y\",getScoreFactor(\"Program\",BE$2),\"\")","v":""},{"$f":"IF(ItineraryPrograms!AJ6=\"y\",getScoreFactor(\"Program\",BF$2),\"\")","v":220.5},{"$f":"IF(ItineraryPrograms!AK6=\"y\",getScoreFactor(\"Program\",BG$2),\"\")","v":""},{"$f":"IF(ItineraryPrograms!AL6=\"y\",getScoreFactor(\"Program\",BH$2),\"\")","v":255},{"$f":"IF(ItineraryPrograms!AM6=\"y\",getScoreFactor(\"Program\",BI$2),\"\")","v":235.5},{"$f":"IF(ItineraryPrograms!AN6=\"y\",getScoreFactor(\"Program\",BJ$2),\"\")","v":""},{"$f":"IF(ItineraryPrograms!AO6=\"y\",getScoreFactor(\"Program\",BK$2),\"\")","v":""},{"$f":"IF(ItineraryPrograms!AP6=\"y\",getScoreFactor(\"Program\",BL$2),\"\")","v":""},{"$f":"IF(ItineraryPrograms!AQ6=\"y\",getScoreFactor(\"Program\",BM$2),\"\")","v":""},{"$f":"IF(ItineraryPrograms!AR6=\"y\",getScoreFactor(\"Program\",BN$2),\"\")","v":""},{"$f":"IF(ItineraryPrograms!AS6=\"y\",getScoreFactor(\"Program\",BO$2),\"\")","v":""},{"$f":"IF(ItineraryPrograms!AT6=\"y\",getScoreFactor(\"Program\",BP$2),\"\")","v":""},{"$f":"IF(ItineraryPrograms!AU6=\"y\",getScoreFactor(\"Program\",BQ$2),\"\")","v":151.5},{"$f":"IF(ItineraryPrograms!AV6=\"y\",getScoreFactor(\"Program\",BR$2),\"\")","v":""},{"$f":"IF(ItineraryPrograms!AW6=\"y\",getScoreFactor(\"Program\",BS$2),\"\")","v":""},{"$f":"IF(ItineraryPrograms!AX6=\"y\",getScoreFactor(\"Program\",BT$2),\"\")","v":""},{"$f":"IF(ItineraryPrograms!AY6=\"y\",getScoreFactor(\"Program\",BU$2),\"\")","v":""},{"$f":"IF(ItineraryPrograms!AZ6=\"y\",getScoreFactor(\"Program\",BV$2),\"\")","v":""},{"$f":"IF(ItineraryPrograms!BA6=\"y\",getScoreFactor(\"Program\",BW$2),\"\")","v":""},{"$f":"IF(ItineraryPrograms!BB6=\"y\",getScoreFactor(\"Program\",BX$2),\"\")","v":""},{"$f":"IF(ItineraryPrograms!BC6=\"y\",getScoreFactor(\"Program\",BY$2),\"\")","v":133.5},{"$f":"IF(ItineraryPrograms!BD6=\"y\",getScoreFactor(\"Program\",BZ$2),\"\")","v":285},{"$f":"IF(ItineraryPrograms!BE6=\"y\",getScoreFactor(\"Program\",CA$2),\"\")","v":{"$error":"#VALUE!"}},{"$f":"IF(ItineraryPrograms!BF6=\"y\",getScoreFactor(\"Program\",CB$2),\"\")","v":""}]
[{"$f":"Itineraries!A7","v":"9-5"},10674.166666666666,{"$f":"getScoreFactor(C$2,itineraryCamps!C8)","v":2666.6666666666665},{"$f":"getScoreFactor(D$2,\"Miles\") *itineraryCamps!D8","v":3600},{"$f":"getScoreFactor(E$2,Itineraries!B7)","v":30},{"$f":"getScoreFactor(F$2,Itineraries!C7)","v":90},{"$f":"getScoreFactor(G$2,Itineraries!E7)","v":25},{"$f":"getScoreFactor(H$2,Itineraries!H7)","v":225},{"$f":"getScoreFactor(I$2,Itineraries!G7)","v":100},{"$f":"getScoreFactor(J$2,Itineraries!J7)","v":90},{"$f":"getScoreFactor(K$2,Itineraries!K7)","v":90},{"$f":"getScoreFactor(L$2,Itineraries!L7)","v":200},{"$f":"IF(INDEX(startingTA,numericItinerary($A7))=$M$2,getScoreFactor(M$2,\"y\"),getScoreFactor(M$2,\"n\"))","v":0},{"$f":"IF(INDEX(endingTA,numericItinerary($A7))=$N$2,getScoreFactor(N$2,\"y\"),getScoreFactor(N$2,\"n\"))","v":0},{"$f":"IF(INDEX(baldyMountainHike,numericItinerary($A7))=\"\",\"\",getPeakScore(O$2))","v":300},{"$f":"IF(INDEX(mountPhillipsHike,numericItinerary($A7))=\"\",\"\",getPeakScore(P$2))","v":""},{"$f":"IF(INDEX(toothOfTimeHike,numericItinerary($A7))=\"\",\"\",getPeakScore(Q$2))","v":""},{"$f":"IF(INDEX(inspirationPointHike,numericItinerary($A7))=\"\",\"\",getPeakScore(Q$2))","v":""},{"$f":"IF(INDEX(trailPeakHike,numericItinerary($A7))=\"\",\"\",getPeakScore(S$2))","v":""},{"$f":"IF(INDEX(mountaineeringHike,numericItinerary($A7))=\"\",\"\",getPeakScore(T$2))","v":189},{"$f":"IF(areaImportant<>\"y\",\"\",IF(Itineraries!P7<>\"Y\",\"\",getareascore(U$2)))","v":""},{"$f":"IF(areaImportant<>\"y\",\"\",IF(Itineraries!Q7<>\"Y\",\"\",getareascore(V$2)))","v":""},{"$f":"IF(areaImportant<>\"y\",\"\",IF(Itineraries!R7<>\"Y\",\"\",getareascore(W$2)))","v":1000},{"$f":"IF(areaImportant<>\"y\",\"\",IF(Itineraries!S7<>\"Y\",\"\",getareascore(X$2)))","v":""},{"$f":"IF(ItineraryPrograms!C7=\"y\",getScoreFactor(\"Program\",Y$2),\"\")","v":""},{"$f":"IF(ItineraryPrograms!D7=\"y\",getScoreFactor(\"Program\",Z$2),\"\")","v":""},{"$f":"IF(ItineraryPrograms!E7=\"y\",getScoreFactor(\"Program\",AA$2),\"\")","v":""},{"$f":"IF(ItineraryPrograms!F7=\"y\",getScoreFactor(\"Program\",AB$2),\"\")","v":""},{"$f":"IF(ItineraryPrograms!G7=\"y\",getScoreFactor(\"Program\",AC$2),\"\")","v":""},{"$f":"IF(ItineraryPrograms!H7=\"y\",getScoreFactor(\"Program\",AD$2),\"\")","v":166.5},{"$f":"IF(ItineraryPrograms!I7=\"y\",getScoreFactor(\"Program\",AE$2),\"\")","v":166.5},{"$f":"IF(ItineraryPrograms!J7=\"y\",getScoreFactor(\"Program\",AF$2),\"\")","v":""},{"$f":"IF(ItineraryPrograms!K7=\"y\",getScoreFactor(\"Program\",AG$2),\"\")","v":""},{"$f":"IF(ItineraryPrograms!L7=\"y\",getScoreFactor(\"Program\",AH$2),\"\")","v":""},{"$f":"IF(ItineraryPrograms!M7=\"y\",getScoreFactor(\"Program\",AI$2),\"\")","v":109.5},{"$f":"IF(ItineraryPrograms!N7=\"y\",getScoreFactor(\"Program\",AJ$2),\"\")","v":""},{"$f":"IF(ItineraryPrograms!O7=\"y\",getScoreFactor(\"Program\",AK$2),\"\")","v":""},{"$f":"IF(ItineraryPrograms!P7=\"y\",getScoreFactor(\"Program\",AL$2),\"\")","v":""},{"$f":"IF(ItineraryPrograms!Q7=\"y\",getScoreFactor(\"Program\",AM$2),\"\")","v":123},{"$f":"IF(ItineraryPrograms!R7=\"y\",getScoreFactor(\"Program\",AN$2),\"\")","v":""},{"$f":"IF(ItineraryPrograms!S7=\"y\",getScoreFactor(\"Program\",AO$2),\"\")","v":""},{"$f":"IF(ItineraryPrograms!T7=\"y\",getScoreFactor(\"Program\",AP$2),\"\")","v":""},{"$f":"IF(ItineraryPrograms!U7=\"y\",getScoreFactor(\"Program\",AQ$2),\"\")","v":93},{"$f":"IF(ItineraryPrograms!V7=\"y\",getScoreFactor(\"Program\",AR$2),\"\")","v":""},{"$f":"IF(ItineraryPrograms!W7=\"y\",getScoreFactor(\"Program\",AS$2),\"\")","v":114},{"$f":"IF(ItineraryPrograms!X7=\"y\",getScoreFactor(\"Program\",AT$2),\"\")","v":129},{"$f":"IF(ItineraryPrograms!Y7=\"y\",getScoreFactor(\"Program\",AU$2),\"\")","v":""},{"$f":"IF(ItineraryPrograms!Z7=\"y\",getScoreFactor(\"Program\",AV$2),\"\")","v":162},{"$f":"IF(ItineraryPrograms!AA7=\"y\",getScoreFactor(\"Program\",AW$2),\"\")","v":""},{"$f":"IF(ItineraryPrograms!AB7=\"y\",getScoreFactor(\"Program\",AX$2),\"\")","v":""},{"$f":"IF(ItineraryPrograms!AC7=\"y\",getScoreFactor(\"Program\",AY$2),\"\")","v":""},{"$f":"IF(ItineraryPrograms!AD7=\"y\",getScoreFactor(\"Program\",AZ$2),\"\")","v":175.5},{"$f":"IF(ItineraryPrograms!AE7=\"y\",getScoreFactor(\"Program\",BA$2),\"\")","v":""},{"$f":"IF(ItineraryPrograms!AF7=\"y\",getScoreFactor(\"Program\",BB$2),\"\")","v":""},{"$f":"IF(ItineraryPrograms!AG7=\"y\",getScoreFactor(\"Program\",BC$2),\"\")","v":202.5},{"$f":"IF(ItineraryPrograms!AH7=\"y\",getScoreFactor(\"Program\",BD$2),\"\")","v":""},{"$f":"IF(ItineraryPrograms!AI7=\"y\",getScoreFactor(\"Program\",BE$2),\"\")","v":""},{"$f":"IF(ItineraryPrograms!AJ7=\"y\",getScoreFactor(\"Program\",BF$2),\"\")","v":""},{"$f":"IF(ItineraryPrograms!AK7=\"y\",getScoreFactor(\"Program\",BG$2),\"\")","v":210},{"$f":"IF(ItineraryPrograms!AL7=\"y\",getScoreFactor(\"Program\",BH$2),\"\")","v":""},{"$f":"IF(ItineraryPrograms!AM7=\"y\",getScoreFactor(\"Program\",BI$2),\"\")","v":""},{"$f":"IF(ItineraryPrograms!AN7=\"y\",getScoreFactor(\"Program\",BJ$2),\"\")","v":""},{"$f":"IF(ItineraryPrograms!AO7=\"y\",getScoreFactor(\"Program\",BK$2),\"\")","v":""},{"$f":"IF(ItineraryPrograms!AP7=\"y\",getScoreFactor(\"Program\",BL$2),\"\")","v":""},{"$f":"IF(ItineraryPrograms!AQ7=\"y\",getScoreFactor(\"Program\",BM$2),\"\")","v":210},{"$f":"IF(ItineraryPrograms!AR7=\"y\",getScoreFactor(\"Program\",BN$2),\"\")","v":""},{"$f":"IF(ItineraryPrograms!AS7=\"y\",getScoreFactor(\"Program\",BO$2),\"\")","v":""},{"$f":"IF(ItineraryPrograms!AT7=\"y\",getScoreFactor(\"Program\",BP$2),\"\")","v":""},{"$f":"IF(ItineraryPrograms!AU7=\"y\",getScoreFactor(\"Program\",BQ$2),\"\")","v":""},{"$f":"IF(ItineraryPrograms!AV7=\"y\",getScoreFactor(\"Program\",BR$2),\"\")","v":""},{"$f":"IF(ItineraryPrograms!AW7=\"y\",getScoreFactor(\"Program\",BS$2),\"\")","v":""},{"$f":"IF(ItineraryPrograms!AX7=\"y\",getScoreFactor(\"Program\",BT$2),\"\")","v":""},{"$f":"IF(ItineraryPrograms!AY7=\"y\",getScoreFactor(\"Program\",BU$2),\"\")","v":207},{"$f":"IF(ItineraryPrograms!AZ7=\"y\",getScoreFactor(\"Program\",BV$2),\"\")","v":207},{"$f":"IF(ItineraryPrograms!BA7=\"y\",getScoreFactor(\"Program\",BW$2),\"\")","v":""},{"$f":"IF(ItineraryPrograms!BB7=\"y\",getScoreFactor(\"Program\",BX$2),\"\")","v":235.5},{"$f":"IF(ItineraryPrograms!BC7=\"y\",getScoreFactor(\"Program\",BY$2),\"\")","v":133.5},{"$f":"IF(ItineraryPrograms!BD7=\"y\",getScoreFactor(\"Program\",BZ$2),\"\")","v":285},{"$f":"IF(ItineraryPrograms!BE7=\"y\",getScoreFactor(\"Program\",CA$2),\"\")","v":{"$error":"#VALUE!"}},{"$f":"IF(ItineraryPrograms!BF7=\"y\",getScoreFactor(\"Program\",CB$2),\"\")","v":""}]
[{"$f":"Itineraries!A8","v":"9-6"},13363.166666666666,{"$f":"getScoreFactor(C$2,itineraryCamps!C9)","v":2666.6666666666665},{"$f":"getScoreFactor(D$2,\"Miles\") *itineraryCamps!D9","v":6200},{"$f":"getScoreFactor(E$2,Itineraries!B8)","v":30},{"$f":"getScoreFactor(F$2,Itineraries!C8)","v":90},{"$f":"getScoreFactor(G$2,Itineraries!E8)","v":100},{"$f":"getScoreFactor(H$2,Itineraries!H8)","v":250},{"$f":"getScoreFactor(I$2,Itineraries!G8)","v":75},{"$f":"getScoreFactor(J$2,Itineraries!J8)","v":20},{"$f":"getScoreFactor(K$2,Itineraries!K8)","v":50},{"$f":"getScoreFactor(L$2,Itineraries!L8)","v":300},{"$f":"IF(INDEX(startingTA,numericItinerary($A8))=$M$2,getScoreFactor(M$2,\"y\"),getScoreFactor(M$2,\"n\"))","v":0},{"$f":"IF(INDEX(endingTA,numericItinerary($A8))=$N$2,getScoreFactor(N$2,\"y\"),getScoreFactor(N$2,\"n\"))","v":0},{"$f":"IF(INDEX(baldyMountainHike,numericItinerary($A8))=\"\",\"\",getPeakScore(O$2))","v":""},{"$f":"IF(INDEX(mountPhillipsHike,numericItinerary($A8))=\"\",\"\",getPeakScore(P$2))","v":""},{"$f":"IF(INDEX(toothOfTimeHike,numericItinerary($A8))=\"\",\"\",getPeakScore(Q$2))","v":""},{"$f":"IF(INDEX(inspirationPointHike,numericItinerary($A8))=\"\",\"\",getPeakScore(Q$2))","v":""},{"$f":"IF(INDEX(trailPeakHike,numericItinerary($A8))=\"\",\"\",getPeakScore(S$2))","v":""},{"$f":"IF(INDEX(mountaineeringHike,numericItinerary($A8))=\"\",\"\",getPeakScore(T$2))","v":189},{"$f":"IF(areaImportant<>\"y\",\"\",IF(Itineraries!P8<>\"Y\",\"\",getareascore(U$2)))","v":""},{"$f":"IF(areaImportant<>\"y\",\"\",IF(Itineraries!Q8<>\"Y\",\"\",getareascore(V$2)))","v":""},{"$f":"IF(areaImportant<>\"y\",\"\",IF(Itineraries!R8<>\"Y\",\"\",getareascore(W$2)))","v":1000},{"$f":"IF(areaImportant<>\"y\",\"\",IF(Itineraries!S8<>\"Y\",\"\",getareascore(X$2)))","v":600},{"$f":"IF(ItineraryPrograms!C8=\"y\",getScoreFactor(\"Program\",Y$2),\"\")","v":""},{"$f":"IF(ItineraryPrograms!D8=\"y\",getScoreFactor(\"Program\",Z$2),\"\")","v":""},{"$f":"IF(ItineraryPrograms!E8=\"y\",getScoreFactor(\"Program\",AA$2),\"\")","v":""},{"$f":"IF(ItineraryPrograms!F8=\"y\",getScoreFactor(\"Program\",AB$2),\"\")","v":""},{"$f":"IF(ItineraryPrograms!G8=\"y\",getScoreFactor(\"Program\",AC$2),\"\")","v":""},{"$f":"IF(ItineraryPrograms!H8=\"y\",getScoreFactor(\"Program\",AD$2),\"\")","v":166.5},{"$f":"IF(ItineraryPrograms!I8=\"y\",getScoreFactor(\"Program\",AE$2),\"\")","v":166.5},{"$f":"IF(ItineraryPrograms!J8=\"y\",getScoreFactor(\"Program\",AF$2),\"\")","v":""},{"$f":"IF(ItineraryPrograms!K8=\"y\",getScoreFactor(\"Program\",AG$2),\"\")","v":""},{"$f":"IF(ItineraryPrograms!L8=\"y\",getScoreFactor(\"Program\",AH$2),\"\")","v":""},{"$f":"IF(ItineraryPrograms!M8=\"y\",getScoreFactor(\"Program\",AI$2),\"\")","v":109.5},{"$f":"IF(ItineraryPrograms!N8=\"y\",getScoreFactor(\"Program\",AJ$2),\"\")","v":109.5},{"$f":"IF(ItineraryPrograms!O8=\"y\",getScoreFactor(\"Program\",AK$2),\"\")","v":""},{"$f":"IF(ItineraryPrograms!P8=\"y\",getScoreFactor(\"Program\",AL$2),\"\")","v":""},{"$f":"IF(ItineraryPrograms!Q8=\"y\",getScoreFactor(\"Program\",AM$2),\"\")","v":""},{"$f":"IF(ItineraryPrograms!R8=\"y\",getScoreFactor(\"Program\",AN$2),\"\")","v":""},{"$f":"IF(ItineraryPrograms!S8=\"y\",getScoreFactor(\"Program\",AO$2),\"\")","v":106.5},{"$f":"IF(ItineraryPrograms!T8=\"y\",getScoreFactor(\"Program\",AP$2),\"\")","v":""},{"$f":"IF(ItineraryPrograms!U8=\"y\",getScoreFactor(\"Program\",AQ$2),\"\")","v":93},{"$f":"IF(ItineraryPrograms!V8=\"y\",getScoreFactor(\"Program\",AR$2),\"\")","v":""},{"$f":"IF(ItineraryPrograms!W8=\"y\",getScoreFactor(\"Program\",AS$2),\"\")","v":""},{"$f":"IF(ItineraryPrograms!X8=\"y\",getScoreFactor(\"Program\",AT$2),\"\")","v":""},{"$f":"IF(ItineraryPrograms!Y8=\"y\",getScoreFactor(\"Program\",AU$2),\"\")","v":""},{"$f":"IF(ItineraryPrograms!Z8=\"y\",getScoreFactor(\"Program\",AV$2),\"\")","v":162},{"$f":"IF(ItineraryPrograms!AA8=\"y\",getScoreFactor(\"Program\",AW$2),\"\")","v":""},{"$f":"IF(ItineraryPrograms!AB8=\"y\",getScoreFactor(\"Program\",AX$2),\"\")","v":""},{"$f":"IF(ItineraryPrograms!AC8=\"y\",getScoreFactor(\"Program\",AY$2),\"\")","v":""},{"$f":"IF(ItineraryPrograms!AD8=\"y\",getScoreFactor(\"Program\",AZ$2),\"\")","v":""},{"$f":"IF(ItineraryPrograms!AE8=\"y\",getScoreFactor(\"Program\",BA$2),\"\")","v":""},{"$f":"IF(ItineraryPrograms!AF8=\"y\",getScoreFactor(\"Program\",BB$2),\"\")","v":""},{"$f":"IF(ItineraryPrograms!AG8=\"y\",getScoreFactor(\"Program\",BC$2),\"\")","v":""},{"$f":"IF(ItineraryPrograms!AH8=\"y\",getScoreFactor(\"Program\",BD$2),\"\")","v":""},{"$f":"IF(ItineraryPrograms!AI8=\"y\",getScoreFactor(\"Program\",BE$2),\"\")","v":""},{"$f":"IF(ItineraryPrograms!AJ8=\"y\",getScoreFactor(\"Program\",BF$2),\"\")","v":220.5},{"$f":"IF(ItineraryPrograms!AK8=\"y\",getScoreFactor(\"Program\",BG$2),\"\")","v":""},{"$f":"IF(ItineraryPrograms!AL8=\"y\",getScoreFactor(\"Program\",BH$2),\"\")","v":255},{"$f":"IF(ItineraryPrograms!AM8=\"y\",getScoreFactor(\"Program\",BI$2),\"\")","v":""},{"$f":"IF(ItineraryPrograms!AN8=\"y\",getScoreFactor(\"Program\",BJ$2),\"\")","v":193.5},{"$f":"IF(ItineraryPrograms!AO8=\"y\",getScoreFactor(\"Program\",BK$2),\"\")","v":""},{"$f":"IF(ItineraryPrograms!AP8=\"y\",getScoreFactor(\"Program\",BL$2),\"\")","v":""},{"$f":"IF(ItineraryPrograms!AQ8=\"y\",getScoreFactor(\"Program\",BM$2),\"\")","v":210},{"$f":"IF(ItineraryPrograms!AR8=\"y\",getScoreFactor(\"Program\",BN$2),\"\")","v":""},{"$f":"IF(ItineraryPrograms!AS8=\"y\",getScoreFactor(\"Program\",BO$2),\"\")","v":""},{"$f":"IF(ItineraryPrograms!AT8=\"y\",getScoreFactor(\"Program\",BP$2),\"\")","v":""},{"$f":"IF(ItineraryPrograms!AU8=\"y\",getScoreFactor(\"Program\",BQ$2),\"\")","v":""},{"$f":"IF(ItineraryPrograms!AV8=\"y\",getScoreFactor(\"Program\",BR$2),\"\")","v":""},{"$f":"IF(ItineraryPrograms!AW8=\"y\",getScoreFactor(\"Program\",BS$2),\"\")","v":""},{"$f":"IF(ItineraryPrograms!AX8=\"y\",getScoreFactor(\"Program\",BT$2),\"\")","v":""},{"$f":"IF(ItineraryPrograms!AY8=\"y\",getScoreFactor(\"Program\",BU$2),\"\")","v":""},{"$f":"IF(ItineraryPrograms!AZ8=\"y\",getScoreFactor(\"Program\",BV$2),\"\")","v":207},{"$f":"IF(ItineraryPrograms!BA8=\"y\",getScoreFactor(\"Program\",BW$2),\"\")","v":91.5},{"$f":"IF(ItineraryPrograms!BB8=\"y\",getScoreFactor(\"Program\",BX$2),\"\")","v":""},{"$f":"IF(ItineraryPrograms!BC8=\"y\",getScoreFactor(\"Program\",BY$2),\"\")","v":133.5},{"$f":"IF(ItineraryPrograms!BD8=\"y\",getScoreFactor(\"Program\",BZ$2),\"\")","v":285},{"$f":"IF(ItineraryPrograms!BE8=\"y\",getScoreFactor(\"Program\",CA$2),\"\")","v":{"$error":"#VALUE!"}},{"$f":"IF(ItineraryPrograms!BF8=\"y\",getScoreFactor(\"Program\",CB$2),\"\")","v":""}]
[{"$f":"Itineraries!A9","v":"9-7"},10761.083333333332,{"$f":"getScoreFactor(C$2,itineraryCamps!C10)","v":2833.333333333333},{"$f":"getScoreFactor(D$2,\"Miles\") *itineraryCamps!D10","v":4200},{"$f":"getScoreFactor(E$2,Itineraries!B9)","v":30},{"$f":"getScoreFactor(F$2,Itineraries!C9)","v":70},{"$f":"getScoreFactor(G$2,Itineraries!E9)","v":75},{"$f":"getScoreFactor(H$2,Itineraries!H9)","v":250},{"$f":"getScoreFactor(I$2,Itineraries!G9)","v":75},{"$f":"getScoreFactor(J$2,Itineraries!J9)","v":110},{"$f":"getScoreFactor(K$2,Itineraries!K9)","v":90},{"$f":"getScoreFactor(L$2,Itineraries!L9)","v":0},{"$f":"IF(INDEX(startingTA,numericItinerary($A9))=$M$2,getScoreFactor(M$2,\"y\"),getScoreFactor(M$2,\"n\"))","v":0},{"$f":"IF(INDEX(endingTA,numericItinerary($A9))=$N$2,getScoreFactor(N$2,\"y\"),getScoreFactor(N$2,\"n\"))","v":0},{"$f":"IF(INDEX(baldyMountainHike,numericItinerary($A9))=\"\",\"\",getPeakScore(O$2))","v":""},{"$f":"IF(INDEX(mountPhillipsHike,numericItinerary($A9))=\"\",\"\",getPeakScore(P$2))","v":231.75},{"$f":"IF(INDEX(toothOfTimeHike,numericItinerary($A9))=\"\",\"\",getPeakScore(Q$2))","v":""},{"$f":"IF(INDEX(inspirationPointHike,numericItinerary($A9))=\"\",\"\",getPeakScore(Q$2))","v":""},{"$f":"IF(INDEX(trailPeakHike,numericItinerary($A9))=\"\",\"\",getPeakScore(S$2))","v":""},{"$f":"IF(INDEX(mountaineeringHike,numericItinerary($A9))=\"\",\"\",getPeakScore(T$2))","v":189},{"$f":"IF(areaImportant<>\"y\",\"\",IF(Itineraries!P9<>\"Y\",\"\",getareascore(U$2)))","v":""},{"$f":"IF(areaImportant<>\"y\",\"\",IF(Itineraries!Q9<>\"Y\",\"\",getareascore(V$2)))","v":150},{"$f":"IF(areaImportant<>\"y\",\"\",IF(Itineraries!R9<>\"Y\",\"\",getareascore(W$2)))","v":""},{"$f":"IF(areaImportant<>\"y\",\"\",IF(Itineraries!S9<>\"Y\",\"\",getareascore(X$2)))","v":""},{"$f":"IF(ItineraryPrograms!C9=\"y\",getScoreFactor(\"Program\",Y$2),\"\")","v":228},{"$f":"IF(ItineraryPrograms!D9=\"y\",getScoreFactor(\"Program\",Z$2),\"\")","v":""},{"$f":"IF(ItineraryPrograms!E9=\"y\",getScoreFactor(\"Program\",AA$2),\"\")","v":""},{"$f":"IF(ItineraryPrograms!F9=\"y\",getScoreFactor(\"Program\",AB$2),\"\")","v":282},{"$f":"IF(ItineraryPrograms!G9=\"y\",getScoreFactor(\"Program\",AC$2),\"\")","v":""},{"$f":"IF(ItineraryPrograms!H9=\"y\",getScoreFactor(\"Program\",AD$2),\"\")","v":""},{"$f":"IF(ItineraryPrograms!I9=\"y\",getScoreFactor(\"Program\",AE$2),\"\")","v":""},{"$f":"IF(ItineraryPrograms!J9=\"y\",getScoreFactor(\"Program\",AF$2),\"\")","v":""},{"$f":"IF(ItineraryPrograms!K9=\"y\",getScoreFactor(\"Program\",AG$2),\"\")","v":""},{"$f":"IF(ItineraryPrograms!L9=\"y\",getScoreFactor(\"Program\",AH$2),\"\")","v":""},{"$f":"IF(ItineraryPrograms!M9=\"y\",getScoreFactor(\"Program\",AI$2),\"\")","v":109.5},{"$f":"IF(ItineraryPrograms!N9=\"y\",getScoreFactor(\"Program\",AJ$2),\"\")","v":""},{"$f":"IF(ItineraryPrograms!O9=\"y\",getScoreFactor(\"Program\",AK$2),\"\")","v":""},{"$f":"IF(ItineraryPrograms!P9=\"y\",getScoreFactor(\"Program\",AL$2),\"\")","v":""},{"$f":"IF(ItineraryPrograms!Q9=\"y\",getScoreFactor(\"Program\",AM$2),\"\")","v":123},{"$f":"IF(ItineraryPrograms!R9=\"y\",getScoreFactor(\"Program\",AN$2),\"\")","v":""},{"$f":"IF(ItineraryPrograms!S9=\"y\",getScoreFactor(\"Program\",AO$2),\"\")","v":""},{"$f":"IF(ItineraryPrograms!T9=\"y\",getScoreFactor(\"Program\",AP$2),\"\")","v":""},{"$f":"IF(ItineraryPrograms!U9=\"y\",getScoreFactor(\"Program\",AQ$2),\"\")","v":""},{"$f":"IF(ItineraryPrograms!V9=\"y\",getScoreFactor(\"Program\",AR$2),\"\")","v":""},{"$f":"IF(ItineraryPrograms!W9=\"y\",getScoreFactor(\"Program\",AS$2),\"\")","v":""},{"$f":"IF(ItineraryPrograms!X9=\"y\",getScoreFactor(\"Program\",AT$2),\"\")","v":129},{"$f":"IF(ItineraryPrograms!Y9=\"y\",getScoreFactor(\"Program\",AU$2),\"\")","v":""},{"$f":"IF(ItineraryPrograms!Z9=\"y\",getScoreFactor(\"Program\",AV$2),\"\")","v":""},{"$f":"IF(ItineraryPrograms!AA9=\"y\",getScoreFactor(\"Program\",AW$2),\"\")","v":""},{"$f":"IF(ItineraryPrograms!AB9=\"y\",getScoreFactor(\"Program\",AX$2),\"\")","v":""},{"$f":"IF(ItineraryPrograms!AC9=\"y\",getScoreFactor(\"Program\",AY$2),\"\")","v":""},{"$f":"IF(ItineraryPrograms!AD9=\"y\",getScoreFactor(\"Program\",AZ$2),\"\")","v":""},{"$f":"IF(ItineraryPrograms!AE9=\"y\",getScoreFactor(\"Program\",BA$2),\"\")","v":""},{"$f":"IF(ItineraryPrograms!AF9=\"y\",getScoreFactor(\"Program\",BB$2),\"\")","v":189},{"$f":"IF(ItineraryPrograms!AG9=\"y\",getScoreFactor(\"Program\",BC$2),\"\")","v":""},{"$f":"IF(ItineraryPrograms!AH9=\"y\",getScoreFactor(\"Program\",BD$2),\"\")","v":""},{"$f":"IF(ItineraryPrograms!AI9=\"y\",getScoreFactor(\"Program\",BE$2),\"\")","v":""},{"$f":"IF(ItineraryPrograms!AJ9=\"y\",getScoreFactor(\"Program\",BF$2),\"\")","v":""},{"$f":"IF(ItineraryPrograms!AK9=\"y\",getScoreFactor(\"Program\",BG$2),\"\")","v":""},{"$f":"IF(ItineraryPrograms!AL9=\"y\",getScoreFactor(\"Program\",BH$2),\"\")","v":""},{"$f":"IF(ItineraryPrograms!AM9=\"y\",getScoreFactor(\"Program\",BI$2),\"\")","v":""},{"$f":"IF(ItineraryPrograms!AN9=\"y\",getScoreFactor(\"Program\",BJ$2),\"\")","v":""},{"$f":"IF(ItineraryPrograms!AO9=\"y\",getScoreFactor(\"Program\",BK$2),\"\")","v":181.5},{"$f":"IF(ItineraryPrograms!AP9=\"y\",getScoreFactor(\"Program\",BL$2),\"\")","v":220.5},{"$f":"IF(ItineraryPrograms!AQ9=\"y\",getScoreFactor(\"Program\",BM$2),\"\")","v":""},{"$f":"IF(ItineraryPrograms!AR9=\"y\",getScoreFactor(\"Program\",BN$2),\"\")","v":255},{"$f":"IF(ItineraryPrograms!AS9=\"y\",getScoreFactor(\"Program\",BO$2),\"\")","v":""},{"$f":"IF(ItineraryPrograms!AT9=\"y\",getScoreFactor(\"Program\",BP$2),\"\")","v":193.5},{"$f":"IF(ItineraryPrograms!AU9=\"y\",getScoreFactor(\"Program\",BQ$2),\"\")","v":""},{"$f":"IF(ItineraryPrograms!AV9=\"y\",getScoreFactor(\"Program\",BR$2),\"\")","v":136.5},{"$f":"IF(ItineraryPrograms!AW9=\"y\",getScoreFactor(\"Program\",BS$2),\"\")","v":202.5},{"$f":"IF(ItineraryPrograms!AX9=\"y\",getScoreFactor(\"Program\",BT$2),\"\")","v":207},{"$f":"IF(ItineraryPrograms!AY9=\"y\",getScoreFactor(\"Program\",BU$2),\"\")","v":""},{"$f":"IF(ItineraryPrograms!AZ9=\"y\",getScoreFactor(\"Program\",BV$2),\"\")","v":""},{"$f":"IF(ItineraryPrograms!BA9=\"y\",getScoreFactor(\"Program\",BW$2),\"\")","v":""},{"$f":"IF(ItineraryPrograms!BB9=\"y\",getScoreFactor(\"Program\",BX$2),\"\")","v":""},{"$f":"IF(ItineraryPrograms!BC9=\"y\",getScoreFactor(\"Program\",BY$2),\"\")","v":""},{"$f":"IF(ItineraryPrograms!BD9=\"y\",getScoreFactor(\"Program\",BZ$2),\"\")","v":""},{"$f":"IF(ItineraryPrograms!BE9=\"y\",getScoreFactor(\"Program\",CA$2),\"\")","v":""},{"$f":"IF(ItineraryPrograms!BF9=\"y\",getScoreFactor(\"Program\",CB$2),\"\")","v":""}]
[{"$f":"Itineraries!A10","v":"9-8"},11933.833333333332,{"$f":"getScoreFactor(C$2,itineraryCamps!C11)","v":2833.333333333333},{"$f":"getScoreFactor(D$2,\"Miles\") *itineraryCamps!D11","v":4400},{"$f":"getScoreFactor(E$2,Itineraries!B10)","v":30},{"$f":"getScoreFactor(F$2,Itineraries!C10)","v":90},{"$f":"getScoreFactor(G$2,Itineraries!E10)","v":50},{"$f":"getScoreFactor(H$2,Itineraries!H10)","v":250},{"$f":"getScoreFactor(I$2,Itineraries!G10)","v":75},{"$f":"getScoreFactor(J$2,Itineraries!J10)","v":50},{"$f":"getScoreFactor(K$2,Itineraries!K10)","v":60},{"$f":"getScoreFactor(L$2,Itineraries!L10)","v":300},{"$f":"IF(INDEX(startingTA,numericItinerary($A10))=$M$2,getScoreFactor(M$2,\"y\"),getScoreFactor(M$2,\"n\"))","v":0},{"$f":"IF(INDEX(endingTA,numericItinerary($A10))=$N$2,getScoreFactor(N$2,\"y\"),getScoreFactor(N$2,\"n\"))","v":0},{"$f":"IF(INDEX(baldyMountainHike,numericItinerary($A10))=\"\",\"\",getPeakScore(O$2))","v":""},{"$f":"IF(INDEX(mountPhillipsHike,numericItinerary($A10))=\"\",\"\",getPeakScore(P$2))","v":""},{"$f":"IF(INDEX(toothOfTimeHike,numericItinerary($A10))=\"\",\"\",getPeakScore(Q$2))","v":303.75},{"$f":"IF(INDEX(inspirationPointHike,numericItinerary($A10))=\"\",\"\",getPeakScore(Q$2))","v":303.75},{"$f":"IF(INDEX(trailPeakHike,numericItinerary($A10))=\"\",\"\",getPeakScore(S$2))","v":91.5},{"$f":"IF(INDEX(mountaineeringHike,numericItinerary($A10))=\"\",\"\",getPeakScore(T$2))","v":""},{"$f":"IF(areaImportant<>\"y\",\"\",IF(Itineraries!P10<>\"Y\",\"\",getareascore(U$2)))","v":200},{"$f":"IF(areaImportant<>\"y\",\"\",IF(Itineraries!Q10<>\"Y\",\"\",getareascore(V$2)))","v":""},{"$f":"IF(areaImportant<>\"y\",\"\",IF(Itineraries!R10<>\"Y\",\"\",getareascore(W$2)))","v":""},{"$f":"IF(areaImportant<>\"y\",\"\",IF(Itineraries!S10<>\"Y\",\"\",getareascore(X$2)))","v":""},{"$f":"IF(ItineraryPrograms!C10=\"y\",getScoreFactor(\"Program\",Y$2),\"\")","v":""},{"$f":"IF(ItineraryPrograms!D10=\"y\",getScoreFactor(\"Program\",Z$2),\"\")","v":""},{"$f":"IF(ItineraryPrograms!E10=\"y\",getScoreFactor(\"Program\",AA$2),\"\")","v":""},{"$f":"IF(ItineraryPrograms!F10=\"y\",getScoreFactor(\"Program\",AB$2),\"\")","v":""},{"$f":"IF(ItineraryPrograms!G10=\"y\",getScoreFactor(\"Program\",AC$2),\"\")","v":162},{"$f":"IF(ItineraryPrograms!H10=\"y\",getScoreFactor(\"Program\",AD$2),\"\")","v":166.5},{"$f":"IF(ItineraryPrograms!I10=\"y\",getScoreFactor(\"Program\",AE$2),\"\")","v":166.5},{"$f":"IF(ItineraryPrograms!J10=\"y\",getScoreFactor(\"Program\",AF$2),\"\")","v":""},{"$f":"IF(ItineraryPrograms!K10=\"y\",getScoreFactor(\"Program\",AG$2),\"\")","v":130.5},{"$f":"IF(ItineraryPrograms!L10=\"y\",getScoreFactor(\"Program\",AH$2),\"\")","v":""},{"$f":"IF(ItineraryPrograms!M10=\"y\",getScoreFactor(\"Program\",AI$2),\"\")","v":109.5},{"$f":"IF(ItineraryPrograms!N10=\"y\",getScoreFactor(\"Program\",AJ$2),\"\")","v":109.5},{"$f":"IF(ItineraryPrograms!O10=\"y\",getScoreFactor(\"Program\",AK$2),\"\")","v":111},{"$f":"IF(ItineraryPrograms!P10=\"y\",getScoreFactor(\"Program\",AL$2),\"\")","v":114},{"$f":"IF(ItineraryPrograms!Q10=\"y\",getScoreFactor(\"Program\",AM$2),\"\")","v":""},{"$f":"IF(ItineraryPrograms!R10=\"y\",getScoreFactor(\"Program\",AN$2),\"\")","v":""},{"$f":"IF(ItineraryPrograms!S10=\"y\",getScoreFactor(\"Program\",AO$2),\"\")","v":106.5},{"$f":"IF(ItineraryPrograms!T10=\"y\",getScoreFactor(\"Program\",AP$2),\"\")","v":145.5},{"$f":"IF(ItineraryPrograms!U10=\"y\",getScoreFactor(\"Program\",AQ$2),\"\")","v":93},{"$f":"IF(ItineraryPrograms!V10=\"y\",getScoreFactor(\"Program\",AR$2),\"\")","v":156},{"$f":"IF(ItineraryPrograms!W10=\"y\",getScoreFactor(\"Program\",AS$2),\"\")","v":""},{"$f":"IF(ItineraryPrograms!X10=\"y\",getScoreFactor(\"Program\",AT$2),\"\")","v":""},{"$f":"IF(ItineraryPrograms!Y10=\"y\",getScoreFactor(\"Program\",AU$2),\"\")","v":""},{"$f":"IF(ItineraryPrograms!Z10=\"y\",getScoreFactor(\"Program\",AV$2),\"\")","v":""},{"$f":"IF(ItineraryPrograms!AA10=\"y\",getScoreFactor(\"Program\",AW$2),\"\")","v":""},{"$f":"IF(ItineraryPrograms!AB10=\"y\",getScoreFactor(\"Program\",AX$2),\"\")","v":""},{"$f":"IF(ItineraryPrograms!AC10=\"y\",getScoreFactor(\"Program\",AY$2),\"\")","v":""},{"$f":"IF(ItineraryPrograms!AD10=\"y\",getScoreFactor(\"Program\",AZ$2),\"\")","v":""},{"$f":"IF(ItineraryPrograms!AE10=\"y\",getScoreFactor(\"Program\",BA$2),\"\")","v":154.5},{"$f":"IF(ItineraryPrograms!AF10=\"y\",getScoreFactor(\"Program\",BB$2),\"\")","v":""},{"$f":"IF(ItineraryPrograms!AG10=\"y\",getScoreFactor(\"Program\",BC$2),\"\")","v":202.5},{"$f":"IF(ItineraryPrograms!AH10=\"y\",getScoreFactor(\"Program\",BD$2),\"\")","v":91.5},{"$f":"IF(ItineraryPrograms!AI10=\"y\",getScoreFactor(\"Program\",BE$2),\"\")","v":""},{"$f":"IF(ItineraryPrograms!AJ10=\"y\",getScoreFactor(\"Program\",BF$2),\"\")","v":220.5},{"$f":"IF(ItineraryPrograms!AK10=\"y\",getScoreFactor(\"Program\",BG$2),\"\")","v":""},{"$f":"IF(ItineraryPrograms!AL10=\"y\",getScoreFactor(\"Program\",BH$2),\"\")","v":255},{"$f":"IF(ItineraryPrograms!AM10=\"y\",getScoreFactor(\"Program\",BI$2),\"\")","v":""},{"$f":"IF(ItineraryPrograms!AN10=\"y\",getScoreFactor(\"Program\",BJ$2),\"\")","v":""},{"$f":"IF(ItineraryPrograms!AO10=\"y\",getScoreFactor(\"Program\",BK$2),\"\")","v":181.5},{"$f":"IF(ItineraryPrograms!AP10=\"y\",getScoreFactor(\"Program\",BL$2),\"\")","v":220.5},{"$f":"IF(ItineraryPrograms!AQ10=\"y\",getScoreFactor(\"Program\",BM$2),\"\")","v":""},{"$f":"IF(ItineraryPrograms!AR10=\"y\",getScoreFactor(\"Program\",BN$2),\"\")","v":""},{"$f":"IF(ItineraryPrograms!AS10=\"y\",getScoreFactor(\"Program\",BO$2),\"\")","v":""},{"$f":"IF(ItineraryPrograms!AT10=\"y\",getScoreFactor(\"Program\",BP$2),\"\")","v":""},{"$f":"IF(ItineraryPrograms!AU10=\"y\",getScoreFactor(\"Program\",BQ$2),\"\")","v":""},{"$f":"IF(ItineraryPrograms!AV10=\"y\",getScoreFactor(\"Program\",BR$2),\"\")","v":""},{"$f":"IF(ItineraryPrograms!AW10=\"y\",getScoreFactor(\"Program\",BS$2),\"\")","v":""},{"$f":"IF(ItineraryPrograms!AX10=\"y\",getScoreFactor(\"Program\",BT$2),\"\")","v":""},{"$f":"IF(ItineraryPrograms!AY10=\"y\",getScoreFactor(\"Program\",BU$2),\"\")","v":""},{"$f":"IF(ItineraryPrograms!AZ10=\"y\",getScoreFactor(\"Program\",BV$2),\"\")","v":""},{"$f":"IF(ItineraryPrograms!BA10=\"y\",getScoreFactor(\"Program\",BW$2),\"\")","v":""},{"$f":"IF(ItineraryPrograms!BB10=\"y\",getScoreFactor(\"Program\",BX$2),\"\")","v":""},{"$f":"IF(ItineraryPrograms!BC10=\"y\",getScoreFactor(\"Program\",BY$2),\"\")","v":133.5},{"$f":"IF(ItineraryPrograms!BD10=\"y\",getScoreFactor(\"Program\",BZ$2),\"\")","v":285},{"$f":"IF(ItineraryPrograms!BE10=\"y\",getScoreFactor(\"Program\",CA$2),\"\")","v":{"$error":"#VALUE!"}},{"$f":"IF(ItineraryPrograms!BF10=\"y\",getScoreFactor(\"Program\",CB$2),\"\")","v":""}]
[{"$f":"Itineraries!A11","v":"9-9"},11007.083333333332,{"$f":"getScoreFactor(C$2,itineraryCamps!C12)","v":2833.333333333333},{"$f":"getScoreFactor(D$2,\"Miles\") *itineraryCamps!D12","v":4200},{"$f":"getScoreFactor(E$2,Itineraries!B11)","v":40},{"$f":"getScoreFactor(F$2,Itineraries!C11)","v":80},{"$f":"getScoreFactor(G$2,Itineraries!E11)","v":50},{"$f":"getScoreFactor(H$2,Itineraries!H11)","v":250},{"$f":"getScoreFactor(I$2,Itineraries!G11)","v":75},{"$f":"getScoreFactor(J$2,Itineraries!J11)","v":110},{"$f":"getScoreFactor(K$2,Itineraries!K11)","v":90},{"$f":"getScoreFactor(L$2,Itineraries!L11)","v":0},{"$f":"IF(INDEX(startingTA,numericItinerary($A11))=$M$2,getScoreFactor(M$2,\"y\"),getScoreFactor(M$2,\"n\"))","v":0},{"$f":"IF(INDEX(endingTA,numericItinerary($A11))=$N$2,getScoreFactor(N$2,\"y\"),getScoreFactor(N$2,\"n\"))","v":0},{"$f":"IF(INDEX(baldyMountainHike,numericItinerary($A11))=\"\",\"\",getPeakScore(O$2))","v":""},{"$f":"IF(INDEX(mountPhillipsHike,numericItinerary($A11))=\"\",\"\",getPeakScore(P$2))","v":231.75},{"$f":"IF(INDEX(toothOfTimeHike,numericItinerary($A11))=\"\",\"\",getPeakScore(Q$2))","v":""},{"$f":"IF(INDEX(inspirationPointHike,numericItinerary($A11))=\"\",\"\",getPeakScore(Q$2))","v":""},{"$f":"IF(INDEX(trailPeakHike,numericItinerary($A11))=\"\",\"\",getPeakScore(S$2))","v":""},{"$f":"IF(INDEX(mountaineeringHike,numericItinerary($A11))=\"\",\"\",getPeakScore(T$2))","v":189},{"$f":"IF(areaImportant<>\"y\",\"\",IF(Itineraries!P11<>\"Y\",\"\",getareascore(U$2)))","v":200},{"$f":"IF(areaImportant<>\"y\",\"\",IF(Itineraries!Q11<>\"Y\",\"\",getareascore(V$2)))","v":150},{"$f":"IF(areaImportant<>\"y\",\"\",IF(Itineraries!R11<>\"Y\",\"\",getareascore(W$2)))","v":""},{"$f":"IF(areaImportant<>\"y\",\"\",IF(Itineraries!S11<>\"Y\",\"\",getareascore(X$2)))","v":""},{"$f":"IF(ItineraryPrograms!C11=\"y\",getScoreFactor(\"Program\",Y$2),\"\")","v":""},{"$f":"IF(ItineraryPrograms!D11=\"y\",getScoreFactor(\"Program\",Z$2),\"\")","v":""},{"$f":"IF(ItineraryPrograms!E11=\"y\",getScoreFactor(\"Program\",AA$2),\"\")","v":""},{"$f":"IF(ItineraryPrograms!F11=\"y\",getScoreFactor(\"Program\",AB$2),\"\")","v":""},{"$f":"IF(ItineraryPrograms!G11=\"y\",getScoreFactor(\"Program\",AC$2),\"\")","v":""},{"$f":"IF(ItineraryPrograms!H11=\"y\",getScoreFactor(\"Program\",AD$2),\"\")","v":""},{"$f":"IF(ItineraryPrograms!I11=\"y\",getScoreFactor(\"Program\",AE$2),\"\")","v":""},{"$f":"IF(ItineraryPrograms!J11=\"y\",getScoreFactor(\"Program\",AF$2),\"\")","v":126},{"$f":"IF(ItineraryPrograms!K11=\"y\",getScoreFactor(\"Program\",AG$2),\"\")","v":130.5},{"$f":"IF(ItineraryPrograms!L11=\"y\",getScoreFactor(\"Program\",AH$2),\"\")","v":""},{"$f":"IF(ItineraryPrograms!M11=\"y\",getScoreFactor(\"Program\",AI$2),\"\")","v":109.5},{"$f":"IF(ItineraryPrograms!N11=\"y\",getScoreFactor(\"Program\",AJ$2),\"\")","v":109.5},{"$f":"IF(ItineraryPrograms!O11=\"y\",getScoreFactor(\"Program\",AK$2),\"\")","v":111},{"$f":"IF(ItineraryPrograms!P11=\"y\",getScoreFactor(\"Program\",AL$2),\"\")","v":114},{"$f":"IF(ItineraryPrograms!Q11=\"y\",getScoreFactor(\"Program\",AM$2),\"\")","v":123},{"$f":"IF(ItineraryPrograms!R11=\"y\",getScoreFactor(\"Program\",AN$2),\"\")","v":126},{"$f":"IF(ItineraryPrograms!S11=\"y\",getScoreFactor(\"Program\",AO$2),\"\")","v":106.5},{"$f":"IF(ItineraryPrograms!T11=\"y\",getScoreFactor(\"Program\",AP$2),\"\")","v":145.5},{"$f":"IF(ItineraryPrograms!U11=\"y\",getScoreFactor(\"Program\",AQ$2),\"\")","v":""},{"$f":"IF(ItineraryPrograms!V11=\"y\",getScoreFactor(\"Program\",AR$2),\"\")","v":""},{"$f":"IF(ItineraryPrograms!W11=\"y\",getScoreFactor(\"Program\",AS$2),\"\")","v":""},{"$f":"IF(ItineraryPrograms!X11=\"y\",getScoreFactor(\"Program\",AT$2),\"\")","v":129},{"$f":"IF(ItineraryPrograms!Y11=\"y\",getScoreFactor(\"Program\",AU$2),\"\")","v":103.5},{"$f":"IF(ItineraryPrograms!Z11=\"y\",getScoreFactor(\"Program\",AV$2),\"\")","v":""},{"$f":"IF(ItineraryPrograms!AA11=\"y\",getScoreFactor(\"Program\",AW$2),\"\")","v":""},{"$f":"IF(ItineraryPrograms!AB11=\"y\",getScoreFactor(\"Program\",AX$2),\"\")","v":""},{"$f":"IF(ItineraryPrograms!AC11=\"y\",getScoreFactor(\"Program\",AY$2),\"\")","v":""},{"$f":"IF(ItineraryPrograms!AD11=\"y\",getScoreFactor(\"Program\",AZ$2),\"\")","v":""},{"$f":"IF(ItineraryPrograms!AE11=\"y\",getScoreFactor(\"Program\",BA$2),\"\")","v":""},{"$f":"IF(ItineraryPrograms!AF11=\"y\",getScoreFactor(\"Program\",BB$2),\"\")","v":189},{"$f":"IF(ItineraryPrograms!AG11=\"y\",getScoreFactor(\"Program\",BC$2),\"\")","v":202.5},{"$f":"IF(ItineraryPrograms!AH11=\"y\",getScoreFactor(\"Program\",BD$2),\"\")","v":""},{"$f":"IF(ItineraryPrograms!AI11=\"y\",getScoreFactor(\"Program\",BE$2),\"\")","v":""},{"$f":"IF(ItineraryPrograms!AJ11=\"y\",getScoreFactor(\"Program\",BF$2),\"\")","v":220.5},{"$f":"IF(ItineraryPrograms!AK11=\"y\",getScoreFactor(\"Program\",BG$2),\"\")","v":""},{"$f":"IF(ItineraryPrograms!AL11=\"y\",getScoreFactor(\"Program\",BH$2),\"\")","v":255},{"$f":"IF(ItineraryPrograms!AM11=\"y\",getScoreFactor(\"Program\",BI$2),\"\")","v":""},{"$f":"IF(ItineraryPrograms!AN11=\"y\",getScoreFactor(\"Program\",BJ$2),\"\")","v":""},{"$f":"IF(ItineraryPrograms!AO11=\"y\",getScoreFactor(\"Program\",BK$2),\"\")","v":""},{"$f":"IF(ItineraryPrograms!AP11=\"y\",getScoreFactor(\"Program\",BL$2),\"\")","v":""},{"$f":"IF(ItineraryPrograms!AQ11=\"y\",getScoreFactor(\"Program\",BM$2),\"\")","v":""},{"$f":"IF(ItineraryPrograms!AR11=\"y\",getScoreFactor(\"Program\",BN$2),\"\")","v":""},{"$f":"IF(ItineraryPrograms!AS11=\"y\",getScoreFactor(\"Program\",BO$2),\"\")","v":""},{"$f":"IF(ItineraryPrograms!AT11=\"y\",getScoreFactor(\"Program\",BP$2),\"\")","v":""},{"$f":"IF(ItineraryPrograms!AU11=\"y\",getScoreFactor(\"Program\",BQ$2),\"\")","v":""},{"$f":"IF(ItineraryPrograms!AV11=\"y\",getScoreFactor(\"Program\",BR$2),\"\")","v":""},{"$f":"IF(ItineraryPrograms!AW11=\"y\",getScoreFactor(\"Program\",BS$2),\"\")","v":""},{"$f":"IF(ItineraryPrograms!AX11=\"y\",getScoreFactor(\"Program\",BT$2),\"\")","v":""},{"$f":"IF(ItineraryPrograms!AY11=\"y\",getScoreFactor(\"Program\",BU$2),\"\")","v":207},{"$f":"IF(ItineraryPrograms!AZ11=\"y\",getScoreFactor(\"Program\",BV$2),\"\")","v":""},{"$f":"IF(ItineraryPrograms!BA11=\"y\",getScoreFactor(\"Program\",BW$2),\"\")","v":""},{"$f":"IF(ItineraryPrograms!BB11=\"y\",getScoreFactor(\"Program\",BX$2),\"\")","v":235.5},{"$f":"IF(ItineraryPrograms!BC11=\"y\",getScoreFactor(\"Program\",BY$2),\"\")","v":133.5},{"$f":"IF(ItineraryPrograms!BD11=\"y\",getScoreFactor(\"Program\",BZ$2),\"\")","v":285},{"$f":"IF(ItineraryPrograms!BE11=\"y\",getScoreFactor(\"Program\",CA$2),\"\")","v":{"$error":"#VALUE!"}},{"$f":"IF(ItineraryPrograms!BF11=\"y\",getScoreFactor(\"Program\",CB$2),\"\")","v":""}]
[{"$f":"Itineraries!A12","v":"9-10"},12817,{"$f":"getScoreFactor(C$2,itineraryCamps!C13)","v":3000},{"$f":"getScoreFactor(D$2,\"Miles\") *itineraryCamps!D13","v":5300},{"$f":"getScoreFactor(E$2,Itineraries!B12)","v":30},{"$f":"getScoreFactor(F$2,Itineraries!C12)","v":90},{"$f":"getScoreFactor(G$2,Itineraries!E12)","v":50},{"$f":"getScoreFactor(H$2,Itineraries!H12)","v":225},{"$f":"getScoreFactor(I$2,Itineraries!G12)","v":100},{"$f":"getScoreFactor(J$2,Itineraries!J12)","v":80},{"$f":"getScoreFactor(K$2,Itineraries!K12)","v":80},{"$f":"getScoreFactor(L$2,Itineraries!L12)","v":300},{"$f":"IF(INDEX(startingTA,numericItinerary($A12))=$M$2,getScoreFactor(M$2,\"y\"),getScoreFactor(M$2,\"n\"))","v":0},{"$f":"IF(INDEX(endingTA,numericItinerary($A12))=$N$2,getScoreFactor(N$2,\"y\"),getScoreFactor(N$2,\"n\"))","v":0},{"$f":"IF(INDEX(baldyMountainHike,numericItinerary($A12))=\"\",\"\",getPeakScore(O$2))","v":300},{"$f":"IF(INDEX(mountPhillipsHike,numericItinerary($A12))=\"\",\"\",getPeakScore(P$2))","v":""},{"$f":"IF(INDEX(toothOfTimeHike,numericItinerary($A12))=\"\",\"\",getPeakScore(Q$2))","v":""},{"$f":"IF(INDEX(inspirationPointHike,numericItinerary($A12))=\"\",\"\",getPeakScore(Q$2))","v":""},{"$f":"IF(INDEX(trailPeakHike,numericItinerary($A12))=\"\",\"\",getPeakScore(S$2))","v":""},{"$f":"IF(INDEX(mountaineeringHike,numericItinerary($A12))=\"\",\"\",getPeakScore(T$2))","v":189},{"$f":"IF(areaImportant<>\"y\",\"\",IF(Itineraries!P12<>\"Y\",\"\",getareascore(U$2)))","v":""},{"$f":"IF(areaImportant<>\"y\",\"\",IF(Itineraries!Q12<>\"Y\",\"\",getareascore(V$2)))","v":""},{"$f":"IF(areaImportant<>\"y\",\"\",IF(Itineraries!R12<>\"Y\",\"\",getareascore(W$2)))","v":1000},{"$f":"IF(areaImportant<>\"y\",\"\",IF(Itineraries!S12<>\"Y\",\"\",getareascore(X$2)))","v":""},{"$f":"IF(ItineraryPrograms!C12=\"y\",getScoreFactor(\"Program\",Y$2),\"\")","v":""},{"$f":"IF(ItineraryPrograms!D12=\"y\",getScoreFactor(\"Program\",Z$2),\"\")","v":""},{"$f":"IF(ItineraryPrograms!E12=\"y\",getScoreFactor(\"Program\",AA$2),\"\")","v":""},{"$f":"IF(ItineraryPrograms!F12=\"y\",getScoreFactor(\"Program\",AB$2),\"\")","v":""},{"$f":"IF(ItineraryPrograms!G12=\"y\",getScoreFactor(\"Program\",AC$2),\"\")","v":""},{"$f":"IF(ItineraryPrograms!H12=\"y\",getScoreFactor(\"Program\",AD$2),\"\")","v":""},{"$f":"IF(ItineraryPrograms!I12=\"y\",getScoreFactor(\"Program\",AE$2),\"\")","v":""},{"$f":"IF(ItineraryPrograms!J12=\"y\",getScoreFactor(\"Program\",AF$2),\"\")","v":""},{"$f":"IF(ItineraryPrograms!K12=\"y\",getScoreFactor(\"Program\",AG$2),\"\")","v":""},{"$f":"IF(ItineraryPrograms!L12=\"y\",getScoreFactor(\"Program\",AH$2),\"\")","v":""},{"$f":"IF(ItineraryPrograms!M12=\"y\",getScoreFactor(\"Program\",AI$2),\"\")","v":109.5},{"$f":"IF(ItineraryPrograms!N12=\"y\",getScoreFactor(\"Program\",AJ$2),\"\")","v":109.5},{"$f":"IF(ItineraryPrograms!O12=\"y\",getScoreFactor(\"Program\",AK$2),\"\")","v":""},{"$f":"IF(ItineraryPrograms!P12=\"y\",getScoreFactor(\"Program\",AL$2),\"\")","v":""},{"$f":"IF(ItineraryPrograms!Q12=\"y\",getScoreFactor(\"Program\",AM$2),\"\")","v":123},{"$f":"IF(ItineraryPrograms!R12=\"y\",getScoreFactor(\"Program\",AN$2),\"\")","v":""},{"$f":"IF(ItineraryPrograms!S12=\"y\",getScoreFactor(\"Program\",AO$2),\"\")","v":""},{"$f":"IF(ItineraryPrograms!T12=\"y\",getScoreFactor(\"Program\",AP$2),\"\")","v":""},{"$f":"IF(ItineraryPrograms!U12=\"y\",getScoreFactor(\"Program\",AQ$2),\"\")","v":93},{"$f":"IF(ItineraryPrograms!V12=\"y\",getScoreFactor(\"Program\",AR$2),\"\")","v":""},{"$f":"IF(ItineraryPrograms!W12=\"y\",getScoreFactor(\"Program\",AS$2),\"\")","v":114},{"$f":"IF(ItineraryPrograms!X12=\"y\",getScoreFactor(\"Program\",AT$2),\"\")","v":129},{"$f":"IF(ItineraryPrograms!Y12=\"y\",getScoreFactor(\"Program\",AU$2),\"\")","v":""},{"$f":"IF(ItineraryPrograms!Z12=\"y\",getScoreFactor(\"Program\",AV$2),\"\")","v":162},{"$f":"IF(ItineraryPrograms!AA12=\"y\",getScoreFactor(\"Program\",AW$2),\"\")","v":201},{"$f":"IF(ItineraryPrograms!AB12=\"y\",getScoreFactor(\"Program\",AX$2),\"\")","v":145.5},{"$f":"IF(ItineraryPrograms!AC12=\"y\",getScoreFactor(\"Program\",AY$2),\"\")","v":150},{"$f":"IF(ItineraryPrograms!AD12=\"y\",getScoreFactor(\"Program\",AZ$2),\"\")","v":175.5},{"$f":"IF(ItineraryPrograms!AE12=\"y\",getScoreFactor(\"Program\",BA$2),\"\")","v":""},{"$f":"IF(ItineraryPrograms!AF12=\"y\",getScoreFactor(\"Program\",BB$2),\"\")","v":""},{"$f":"IF(ItineraryPrograms!AG12=\"y\",getScoreFactor(\"Program\",BC$2),\"\")","v":202.5},{"$f":"IF(ItineraryPrograms!AH12=\"y\",getScoreFactor(\"Program\",BD$2),\"\")","v":""},{"$f":"IF(ItineraryPrograms!AI12=\"y\",getScoreFactor(\"Program\",BE$2),\"\")","v":""},{"$f":"IF(ItineraryPrograms!AJ12=\"y\",getScoreFactor(\"Program\",BF$2),\"\")","v":""},{"$f":"IF(ItineraryPrograms!AK12=\"y\",getScoreFactor(\"Program\",BG$2),\"\")","v":""},{"$f":"IF(ItineraryPrograms!AL12=\"y\",getScoreFactor(\"Program\",BH$2),\"\")","v":""},{"$f":"IF(ItineraryPrograms!AM12=\"y\",getScoreFactor(\"Program\",BI$2),\"\")","v":""},{"$f":"IF(ItineraryPrograms!AN12=\"y\",getScoreFactor(\"Program\",BJ$2),\"\")","v":""},{"$f":"IF(ItineraryPrograms!AO12=\"y\",getScoreFactor(\"Program\",BK$2),\"\")","v":""},{"$f":"IF(ItineraryPrograms!AP12=\"y\",getScoreFactor(\"Program\",BL$2),\"\")","v":""},{"$f":"IF(ItineraryPrograms!AQ12=\"y\",getScoreFactor(\"Program\",BM$2),\"\")","v":""},{"$f":"IF(ItineraryPrograms!AR12=\"y\",getScoreFactor(\"Program\",BN$2),\"\")","v":""},{"$f":"IF(ItineraryPrograms!AS12=\"y\",getScoreFactor(\"Program\",BO$2),\"\")","v":""},{"$f":"IF(ItineraryPrograms!AT12=\"y\",getScoreFactor(\"Program\",BP$2),\"\")","v":""},{"$f":"IF(ItineraryPrograms!AU12=\"y\",getScoreFactor(\"Program\",BQ$2),\"\")","v":151.5},{"$f":"IF(ItineraryPrograms!AV12=\"y\",getScoreFactor(\"Program\",BR$2),\"\")","v":""},{"$f":"IF(ItineraryPrograms!AW12=\"y\",getScoreFactor(\"Program\",BS$2),\"\")","v":""},{"$f":"IF(ItineraryPrograms!AX12=\"y\",getScoreFactor(\"Program\",BT$2),\"\")","v":""},{"$f":"IF(ItineraryPrograms!AY12=\"y\",getScoreFactor(\"Program\",BU$2),\"\")","v":207},{"$f":"IF(ItineraryPrograms!AZ12=\"y\",getScoreFactor(\"Program\",BV$2),\"\")","v":207},{"$f":"IF(ItineraryPrograms!BA12=\"y\",getScoreFactor(\"Program\",BW$2),\"\")","v":""},{"$f":"IF(ItineraryPrograms!BB12=\"y\",getScoreFactor(\"Program\",BX$2),\"\")","v":235.5},{"$f":"IF(ItineraryPrograms!BC12=\"y\",getScoreFactor(\"Program\",BY$2),\"\")","v":133.5},{"$f":"IF(ItineraryPrograms!BD12=\"y\",getScoreFactor(\"Program\",BZ$2),\"\")","v":285},{"$f":"IF(ItineraryPrograms!BE12=\"y\",getScoreFactor(\"Program\",CA$2),\"\")","v":{"$error":"#VALUE!"}},{"$f":"IF(ItineraryPrograms!BF12=\"y\",getScoreFactor(\"Program\",CB$2),\"\")","v":""}]
[{"$f":"Itineraries!A13","v":"9-11"},13599.5,{"$f":"getScoreFactor(C$2,itineraryCamps!C14)","v":3000},{"$f":"getScoreFactor(D$2,\"Miles\") *itineraryCamps!D14","v":5300},{"$f":"getScoreFactor(E$2,Itineraries!B13)","v":30},{"$f":"getScoreFactor(F$2,Itineraries!C13)","v":90},{"$f":"getScoreFactor(G$2,Itineraries!E13)","v":0},{"$f":"getScoreFactor(H$2,Itineraries!H13)","v":300},{"$f":"getScoreFactor(I$2,Itineraries!G13)","v":100},{"$f":"getScoreFactor(J$2,Itineraries!J13)","v":80},{"$f":"getScoreFactor(K$2,Itineraries!K13)","v":80},{"$f":"getScoreFactor(L$2,Itineraries!L13)","v":300},{"$f":"IF(INDEX(startingTA,numericItinerary($A13))=$M$2,getScoreFactor(M$2,\"y\"),getScoreFactor(M$2,\"n\"))","v":0},{"$f":"IF(INDEX(endingTA,numericItinerary($A13))=$N$2,getScoreFactor(N$2,\"y\"),getScoreFactor(N$2,\"n\"))","v":0},{"$f":"IF(INDEX(baldyMountainHike,numericItinerary($A13))=\"\",\"\",getPeakScore(O$2))","v":300},{"$f":"IF(INDEX(mountPhillipsHike,numericItinerary($A13))=\"\",\"\",getPeakScore(P$2))","v":""},{"$f":"IF(INDEX(toothOfTimeHike,numericItinerary($A13))=\"\",\"\",getPeakScore(Q$2))","v":""},{"$f":"IF(INDEX(inspirationPointHike,numericItinerary($A13))=\"\",\"\",getPeakScore(Q$2))","v":""},{"$f":"IF(INDEX(trailPeakHike,numericItinerary($A13))=\"\",\"\",getPeakScore(S$2))","v":""},{"$f":"IF(INDEX(mountaineeringHike,numericItinerary($A13))=\"\",\"\",getPeakScore(T$2))","v":""},{"$f":"IF(areaImportant<>\"y\",\"\",IF(Itineraries!P13<>\"Y\",\"\",getareascore(U$2)))","v":""},{"$f":"IF(areaImportant<>\"y\",\"\",IF(Itineraries!Q13<>\"Y\",\"\",getareascore(V$2)))","v":""},{"$f":"IF(areaImportant<>\"y\",\"\",IF(Itineraries!R13<>\"Y\",\"\",getareascore(W$2)))","v":1000},{"$f":"IF(areaImportant<>\"y\",\"\",IF(Itineraries!S13<>\"Y\",\"\",getareascore(X$2)))","v":600},{"$f":"IF(ItineraryPrograms!C13=\"y\",getScoreFactor(\"Program\",Y$2),\"\")","v":""},{"$f":"IF(ItineraryPrograms!D13=\"y\",getScoreFactor(\"Program\",Z$2),\"\")","v":""},{"$f":"IF(ItineraryPrograms!E13=\"y\",getScoreFactor(\"Program\",AA$2),\"\")","v":""},{"$f":"IF(ItineraryPrograms!F13=\"y\",getScoreFactor(\"Program\",AB$2),\"\")","v":""},{"$f":"IF(ItineraryPrograms!G13=\"y\",getScoreFactor(\"Program\",AC$2),\"\")","v":""},{"$f":"IF(ItineraryPrograms!H13=\"y\",getScoreFactor(\"Program\",AD$2),\"\")","v":""},{"$f":"IF(ItineraryPrograms!I13=\"y\",getScoreFactor(\"Program\",AE$2),\"\")","v":166.5},{"$f":"IF(ItineraryPrograms!J13=\"y\",getScoreFactor(\"Program\",AF$2),\"\")","v":""},{"$f":"IF(ItineraryPrograms!K13=\"y\",getScoreFactor(\"Program\",AG$2),\"\")","v":""},{"$f":"IF(ItineraryPrograms!L13=\"y\",getScoreFactor(\"Program\",AH$2),\"\")","v":""},{"$f":"IF(ItineraryPrograms!M13=\"y\",getScoreFactor(\"Program\",AI$2),\"\")","v":109.5},{"$f":"IF(ItineraryPrograms!N13=\"y\",getScoreFactor(\"Program\",AJ$2),\"\")","v":109.5},{"$f":"IF(ItineraryPrograms!O13=\"y\",getScoreFactor(\"Program\",AK$2),\"\")","v":""},{"$f":"IF(ItineraryPrograms!P13=\"y\",getScoreFactor(\"Program\",AL$2),\"\")","v":""},{"$f":"IF(ItineraryPrograms!Q13=\"y\",getScoreFactor(\"Program\",AM$2),\"\")","v":123},{"$f":"IF(ItineraryPrograms!R13=\"y\",getScoreFactor(\"Program\",AN$2),\"\")","v":""},{"$f":"IF(ItineraryPrograms!S13=\"y\",getScoreFactor(\"Program\",AO$2),\"\")","v":106.5},{"$f":"IF(ItineraryPrograms!T13=\"y\",getScoreFactor(\"Program\",AP$2),\"\")","v":""},{"$f":"IF(ItineraryPrograms!U13=\"y\",getScoreFactor(\"Program\",AQ$2),\"\")","v":""},{"$f":"IF(ItineraryPrograms!V13=\"y\",getScoreFactor(\"Program\",AR$2),\"\")","v":""},{"$f":"IF(ItineraryPrograms!W13=\"y\",getScoreFactor(\"Program\",AS$2),\"\")","v":114},{"$f":"IF(ItineraryPrograms!X13=\"y\",getScoreFactor(\"Program\",AT$2),\"\")","v":129},{"$f":"IF(ItineraryPrograms!Y13=\"y\",getScoreFactor(\"Program\",AU$2),\"\")","v":""},{"$f":"IF(ItineraryPrograms!Z13=\"y\",getScoreFactor(\"Program\",AV$2),\"\")","v":162},{"$f":"IF(ItineraryPrograms!AA13=\"y\",getScoreFactor(\"Program\",AW$2),\"\")","v":""},{"$f":"IF(ItineraryPrograms!AB13=\"y\",getScoreFactor(\"Program\",AX$2),\"\")","v":145.5},{"$f":"IF(ItineraryPrograms!AC13=\"y\",getScoreFactor(\"Program\",AY$2),\"\")","v":""},{"$f":"IF(ItineraryPrograms!AD13=\"y\",getScoreFactor(\"Program\",AZ$2),\"\")","v":175.5},{"$f":"IF(ItineraryPrograms!AE13=\"y\",getScoreFactor(\"Program\",BA$2),\"\")","v":""},{"$f":"IF(ItineraryPrograms!AF13=\"y\",getScoreFactor(\"Program\",BB$2),\"\")","v":""},{"$f":"IF(ItineraryPrograms!AG13=\"y\",getScoreFactor(\"Program\",BC$2),\"\")","v":202.5},{"$f":"IF(ItineraryPrograms!AH13=\"y\",getScoreFactor(\"Program\",BD$2),\"\")","v":""},{"$f":"IF(ItineraryPrograms!AI13=\"y\",getScoreFactor(\"Program\",BE$2),\"\")","v":""},{"$f":"IF(ItineraryPrograms!AJ13=\"y\",getScoreFactor(\"Program\",BF$2),\"\")","v":220.5},{"$f":"IF(ItineraryPrograms!AK13=\"y\",getScoreFactor(\"Program\",BG$2),\"\")","v":""},{"$f":"IF(ItineraryPrograms!AL13=\"y\",getScoreFactor(\"Program\",BH$2),\"\")","v":255},{"$f":"IF(ItineraryPrograms!AM13=\"y\",getScoreFactor(\"Program\",BI$2),\"\")","v":""},{"$f":"IF(ItineraryPrograms!AN13=\"y\",getScoreFactor(\"Program\",BJ$2),\"\")","v":193.5},{"$f":"IF(ItineraryPrograms!AO13=\"y\",getScoreFactor(\"Program\",BK$2),\"\")","v":""},{"$f":"IF(ItineraryPrograms!AP13=\"y\",getScoreFactor(\"Program\",BL$2),\"\")","v":""},{"$f":"IF(ItineraryPrograms!AQ13=\"y\",getScoreFactor(\"Program\",BM$2),\"\")","v":""},{"$f":"IF(ItineraryPrograms!AR13=\"y\",getScoreFactor(\"Program\",BN$2),\"\")","v":""},{"$f":"IF(ItineraryPrograms!AS13=\"y\",getScoreFactor(\"Program\",BO$2),\"\")","v":""},{"$f":"IF(ItineraryPrograms!AT13=\"y\",getScoreFactor(\"Program\",BP$2),\"\")","v":""},{"$f":"IF(ItineraryPrograms!AU13=\"y\",getScoreFactor(\"Program\",BQ$2),\"\")","v":""},{"$f":"IF(ItineraryPrograms!AV13=\"y\",getScoreFactor(\"Program\",BR$2),\"\")","v":""},{"$f":"IF(ItineraryPrograms!AW13=\"y\",getScoreFactor(\"Program\",BS$2),\"\")","v":""},{"$f":"IF(ItineraryPrograms!AX13=\"y\",getScoreFactor(\"Program\",BT$2),\"\")","v":""},{"$f":"IF(ItineraryPrograms!AY13=\"y\",getScoreFactor(\"Program\",BU$2),\"\")","v":207},{"$f":"IF(ItineraryPrograms!AZ13=\"y\",getScoreFactor(\"Program\",BV$2),\"\")","v":207},{"$f":"IF(ItineraryPrograms!BA13=\"y\",getScoreFactor(\"Program\",BW$2),\"\")","v":""},{"$f":"IF(ItineraryPrograms!BB13=\"y\",getScoreFactor(\"Program\",BX$2),\"\")","v":235.5},{"$f":"IF(ItineraryPrograms!BC13=\"y\",getScoreFactor(\"Program\",BY$2),\"\")","v":""},{"$f":"IF(ItineraryPrograms!BD13=\"y\",getScoreFactor(\"Program\",BZ$2),\"\")","v":""},{"$f":"IF(ItineraryPrograms!BE13=\"y\",getScoreFactor(\"Program\",CA$2),\"\")","v":""},{"$f":"IF(ItineraryPrograms!BF13=\"y\",getScoreFactor(\"Program\",CB$2),\"\")","v":""}]
[{"$f":"Itineraries!A14","v":"9-12"},{"$f":"SUM(C14:BU14)","v":13374.5},{"$f":"getScoreFactor(C$2,itineraryCamps!C15)","v":3000},{"$f":"getScoreFactor(D$2,\"Miles\") *itineraryCamps!D15","v":5700},{"$f":"getScoreFactor(E$2,Itineraries!B14)","v":30},{"$f":"getScoreFactor(F$2,Itineraries!C14)","v":90},{"$f":"getScoreFactor(G$2,Itineraries!E14)","v":50},{"$f":"getScoreFactor(H$2,Itineraries!H14)","v":200},{"$f":"getScoreFactor(I$2,Itineraries!G14)","v":75},{"$f":"getScoreFactor(J$2,Itineraries!J14)","v":110},{"$f":"getScoreFactor(K$2,Itineraries!K14)","v":100},{"$f":"getScoreFactor(L$2,Itineraries!L14)","v":0},{"$f":"IF(INDEX(startingTA,numericItinerary($A14))=$M$2,getScoreFactor(M$2,\"y\"),getScoreFactor(M$2,\"n\"))","v":0},{"$f":"IF(INDEX(endingTA,numericItinerary($A14))=$N$2,getScoreFactor(N$2,\"y\"),getScoreFactor(N$2,\"n\"))","v":500},{"$f":"IF(INDEX(baldyMountainHike,numericItinerary($A14))=\"\",\"\",getPeakScore(O$2))","v":""},{"$f":"IF(INDEX(mountPhillipsHike,numericItinerary($A14))=\"\",\"\",getPeakScore(P$2))","v":231.75},{"$f":"IF(INDEX(toothOfTimeHike,numericItinerary($A14))=\"\",\"\",getPeakScore(Q$2))","v":303.75},{"$f":"IF(INDEX(inspirationPointHike,numericItinerary($A14))=\"\",\"\",getPeakScore(Q$2))","v":""},{"$f":"IF(INDEX(trailPeakHike,numericItinerary($A14))=\"\",\"\",getPeakScore(S$2))","v":91.5},{"$f":"IF(INDEX(mountaineeringHike,numericItinerary($A14))=\"\",\"\",getPeakScore(T$2))","v":189},{"$f":"IF(areaImportant<>\"y\",\"\",IF(Itineraries!P14<>\"Y\",\"\",getareascore(U$2)))","v":200},{"$f":"IF(areaImportant<>\"y\",\"\",IF(Itineraries!Q14<>\"Y\",\"\",getareascore(V$2)))","v":150},{"$f":"IF(areaImportant<>\"y\",\"\",IF(Itineraries!R14<>\"Y\",\"\",getareascore(W$2)))","v":""},{"$f":"IF(areaImportant<>\"y\",\"\",IF(Itineraries!S14<>\"Y\",\"\",getareascore(X$2)))","v":""},{"$f":"IF(ItineraryPrograms!C14=\"y\",getScoreFactor(\"Program\",Y$2),\"\")","v":""},{"$f":"IF(ItineraryPrograms!D14=\"y\",getScoreFactor(\"Program\",Z$2),\"\")","v":""},{"$f":"IF(ItineraryPrograms!E14=\"y\",getScoreFactor(\"Program\",AA$2),\"\")","v":""},{"$f":"IF(ItineraryPrograms!F14=\"y\",getScoreFactor(\"Program\",AB$2),\"\")","v":""},{"$f":"IF(ItineraryPrograms!G14=\"y\",getScoreFactor(\"Program\",AC$2),\"\")","v":""},{"$f":"IF(ItineraryPrograms!H14=\"y\",getScoreFactor(\"Program\",AD$2),\"\")","v":""},{"$f":"IF(ItineraryPrograms!I14=\"y\",getScoreFactor(\"Program\",AE$2),\"\")","v":""},{"$f":"IF(ItineraryPrograms!J14=\"y\",getScoreFactor(\"Program\",AF$2),\"\")","v":""},{"$f":"IF(ItineraryPrograms!K14=\"y\",getScoreFactor(\"Program\",AG$2),\"\")","v":130.5},{"$f":"IF(ItineraryPrograms!L14=\"y\",getScoreFactor(\"Program\",AH$2),\"\")","v":""},{"$f":"IF(ItineraryPrograms!M14=\"y\",getScoreFactor(\"Program\",AI$2),\"\")","v":109.5},{"$f":"IF(ItineraryPrograms!N14=\"y\",getScoreFactor(\"Program\",AJ$2),\"\")","v":109.5},{"$f":"IF(ItineraryPrograms!O14=\"y\",getScoreFactor(\"Program\",AK$2),\"\")","v":111},{"$f":"IF(ItineraryPrograms!P14=\"y\",getScoreFactor(\"Program\",AL$2),\"\")","v":""},{"$f":"IF(ItineraryPrograms!Q14=\"y\",getScoreFactor(\"Program\",AM$2),\"\")","v":""},{"$f":"IF(ItineraryPrograms!R14=\"y\",getScoreFactor(\"Program\",AN$2),\"\")","v":""},{"$f":"IF(ItineraryPrograms!S14=\"y\",getScoreFactor(\"Program\",AO$2),\"\")","v":""},{"$f":"IF(ItineraryPrograms!T14=\"y\",getScoreFactor(\"Program\",AP$2),\"\")","v":""},{"$f":"IF(ItineraryPrograms!U14=\"y\",getScoreFactor(\"Program\",AQ$2),\"\")","v":""},{"$f":"IF(ItineraryPrograms!V14=\"y\",getScoreFactor(\"Program\",AR$2),\"\")","v":""},{"$f":"IF(ItineraryPrograms!W14=\"y\",getScoreFactor(\"Program\",AS$2),\"\")","v":""},{"$f":"IF(ItineraryPrograms!X14=\"y\",getScoreFactor(\"Program\",AT$2),\"\")","v":""},{"$f":"IF(ItineraryPrograms!Y14=\"y\",getScoreFactor(\"Program\",AU$2),\"\")","v":""},{"$f":"IF(ItineraryPrograms!Z14=\"y\",getScoreFactor(\"Program\",AV$2),\"\")","v":""},{"$f":"IF(ItineraryPrograms!AA14=\"y\",getScoreFactor(\"Program\",AW$2),\"\")","v":""},{"$f":"IF(ItineraryPrograms!AB14=\"y\",getScoreFactor(\"Program\",AX$2),\"\")","v":""},{"$f":"IF(ItineraryPrograms!AC14=\"y\",getScoreFactor(\"Program\",AY$2),\"\")","v":""},{"$f":"IF(ItineraryPrograms!AD14=\"y\",getScoreFactor(\"Program\",AZ$2),\"\")","v":""},{"$f":"IF(ItineraryPrograms!AE14=\"y\",getScoreFactor(\"Program\",BA$2),\"\")","v":""},{"$f":"IF(ItineraryPrograms!AF14=\"y\",getScoreFactor(\"Program\",BB$2),\"\")","v":189},{"$f":"IF(ItineraryPrograms!AG14=\"y\",getScoreFactor(\"Program\",BC$2),\"\")","v":202.5},{"$f":"IF(ItineraryPrograms!AH14=\"y\",getScoreFactor(\"Program\",BD$2),\"\")","v":91.5},{"$f":"IF(ItineraryPrograms!AI14=\"y\",getScoreFactor(\"Program\",BE$2),\"\")","v":181.5},{"$f":"IF(ItineraryPrograms!AJ14=\"y\",getScoreFactor(\"Program\",BF$2),\"\")","v":220.5},{"$f":"IF(ItineraryPrograms!AK14=\"y\",getScoreFactor(\"Program\",BG$2),\"\")","v":""},{"$f":"IF(ItineraryPrograms!AL14=\"y\",getScoreFactor(\"Program\",BH$2),\"\")","v":""},{"$f":"IF(ItineraryPrograms!AM14=\"y\",getScoreFactor(\"Program\",BI$2),\"\")","v":""},{"$f":"IF(ItineraryPrograms!AN14=\"y\",getScoreFactor(\"Program\",BJ$2),\"\")","v":""},{"$f":"IF(ItineraryPrograms!AO14=\"y\",getScoreFactor(\"Program\",BK$2),\"\")","v":""},{"$f":"IF(ItineraryPrograms!AP14=\"y\",getScoreFactor(\"Program\",BL$2),\"\")","v":""},{"$f":"IF(ItineraryPrograms!AQ14=\"y\",getScoreFactor(\"Program\",BM$2),\"\")","v":""},{"$f":"IF(ItineraryPrograms!AR14=\"y\",getScoreFactor(\"Program\",BN$2),\"\")","v":255},{"$f":"IF(ItineraryPrograms!AS14=\"y\",getScoreFactor(\"Program\",BO$2),\"\")","v":""},{"$f":"IF(ItineraryPrograms!AT14=\"y\",getScoreFactor(\"Program\",BP$2),\"\")","v":""},{"$f":"IF(ItineraryPrograms!AU14=\"y\",getScoreFactor(\"Program\",BQ$2),\"\")","v":""},{"$f":"IF(ItineraryPrograms!AV14=\"y\",getScoreFactor(\"Program\",BR$2),\"\")","v":136.5},{"$f":"IF(ItineraryPrograms!AW14=\"y\",getScoreFactor(\"Program\",BS$2),\"\")","v":202.5},{"$f":"IF(ItineraryPrograms!AX14=\"y\",getScoreFactor(\"Program\",BT$2),\"\")","v":207},{"$f":"IF(ItineraryPrograms!AY14=\"y\",getScoreFactor(\"Program\",BU$2),\"\")","v":207},{"$f":"IF(ItineraryPrograms!AZ14=\"y\",getScoreFactor(\"Program\",BV$2),\"\")","v":""},{"$f":"IF(ItineraryPrograms!BA14=\"y\",getScoreFactor(\"Program\",BW$2),\"\")","v":""},{"$f":"IF(ItineraryPrograms!BB14=\"y\",getScoreFactor(\"Program\",BX$2),\"\")","v":""},{"$f":"IF(ItineraryPrograms!BC14=\"y\",getScoreFactor(\"Program\",BY$2),\"\")","v":133.5},{"$f":"IF(ItineraryPrograms!BD14=\"y\",getScoreFactor(\"Program\",BZ$2),\"\")","v":""},{"$f":"IF(ItineraryPrograms!BE14=\"y\",getScoreFactor(\"Program\",CA$2),\"\")","v":{"$error":"#VALUE!"}},{"$f":"IF(ItineraryPrograms!BF14=\"y\",getScoreFactor(\"Program\",CB$2),\"\")","v":""}]
[]
[]
[]
[]
[]
[]
[]
[]
[]
[]
[]
[]
[]
[null,null,{"$f":"\"Distances \"  & MAX(D3:D26)/mileageFactor & \" to \" & MIN(D3:D26)/mileageFactor& \" miles\"","v":"Distances 62 to 36 miles"}]
[]
["Custom Properties"]
["revision","2025_1-0"]
["trekYear","2025"]
["nDays",9]
["nItineraries",12]
["itineraryNoPrefix","9-"]

{"sheet":"Itineraries","index":14,"n_rows":29,"n_cols":19,"rows_kept":29,"cut":false,"hidden":true,"merged":[[0,12,0,14],[0,15,0,18],[27,0,28,0]]}
[null,null,null,null,null,null,null,null,null,null,null,null,"Maps",null,null,"Region"]
["Itinerary","Days Food from Base","Max Days Food","Staffed Camps","Trail Camps","Layovers","Total Camps","Dry Camps","Min Altitude","Max Altitude","Total Gain","Average Daily Change","South","North","Valle Vidal","South","Central","North","Valle Vidal"]
[{"$f":"itineraryCamps!A4","v":"9-1"},{"$f":"itineraryCamps!DL4","v":2},{"$f":"itineraryCamps!DM4","v":2},{"$f":"countcamps(itineraryStaff,numericItinerary($A3))","v":5},{"$f":"countcamps(itineraryTrail,numericItinerary($A3))","v":5},{"$f":"countcamps(itineraryLayover,numericItinerary($A3))","v":2},{"$f":"D3+E3-F3","v":8},{"$f":"countcamps(itineraryDry,numericItinerary($A3))","v":0},{"$f":"MIN(itineraryCamps!AK4:AT4)","v":7217},{"$f":"MAX(itineraryCamps!AK4:AT4)","v":9330},{"$f":"J3-I3","v":2113},{"$f":"AVERAGE(itineraryCamps!AU4:BC4)","v":727.83333333333337},{"$f":"contains(M$2,numericItinerary($A3),itineraryMaps)","v":"Y"},{"$f":"contains(N$2,numericItinerary($A3),itineraryMaps)","v":""},{"$f":"contains(O$2,numericItinerary($A3),itineraryMaps)","v":""},{"$f":"contains(P$2,numericItinerary($A3),itineraryCountry)","v":"Y"},{"$f":"contains(Q$2,numericItinerary($A3),itineraryCountry)","v":""},{"$f":"contains(R$2,numericItinerary($A3),itineraryCountry)","v":""},{"$f":"contains(S$2,numericItinerary($A3),itineraryCountry)","v":""}]
[{"$f":"itineraryCamps!A5","v":"9-2"},{"$f":"itineraryCamps!DL5","v":2},{"$f":"itineraryCamps!DM5","v":2},{"$f":"countcamps(itineraryStaff,numericItinerary($A4))","v":3},{"$f":"countcamps(itineraryTrail,numericItinerary($A4))","v":7},{"$f":"countcamps(itineraryLayover,numericItinerary($A4))","v":2},{"$f":"D4+E4-F4","v":8},{"$f":"countcamps(itineraryDry,numericItinerary($A4))","v":1},{"$f":"MIN(itineraryCamps!AK5:AT5)","v":7150},{"$f":"MAX(itineraryCamps!AK5:AT5)","v":8515},{"$f":"J4-I4","v":1365},{"$f":"AVERAGE(itineraryCamps!AU5:BC5)","v":641.00666666666677},{"$f":"contains(M$2,numericItinerary($A4),itineraryMaps)","v":"Y"},{"$f":"contains(N$2,numericItinerary($A4),itineraryMaps)","v":"Y"},{"$f":"contains(O$2,numericItinerary($A4),itineraryMaps)","v":""},{"$f":"contains(P$2,numericItinerary($A4),itineraryCountry)","v":""},{"$f":"contains(Q$2,numericItinerary($A4),itineraryCountry)","v":"Y"},{"$f":"contains(R$2,numericItinerary($A4),itineraryCountry)","v":"Y"},{"$f":"contains(S$2,numericItinerary($A4),itineraryCountry)","v":""}]
[{"$f":"itineraryCamps!A6","v":"9-3"},{"$f":"itineraryCamps!DL6","v":1},{"$f":"itineraryCamps!DM6","v":5},{"$f":"countcamps(itineraryStaff,numericItinerary($A5))","v":2},{"$f":"countcamps(itineraryTrail,numericItinerary($A5))","v":8},{"$f":"countcamps(itineraryLayover,numericItinerary($A5))","v":2},8,{"$f":"countcamps(itineraryDry,numericItinerary($A5))","v":3},{"$f":"MIN(itineraryCamps!AK6:AT6)","v":7469},{"$f":"MAX(itineraryCamps!AK6:AT6)","v":10490},3021,{"$f":"AVERAGE(itineraryCamps!AU6:BC6)","v":1371},{"$f":"contains(M$2,numericItinerary($A5),itineraryMaps)","v":"Y"},{"$f":"contains(N$2,numericItinerary($A5),itineraryMaps)","v":""},{"$f":"contains(O$2,numericItinerary($A5),itineraryMaps)","v":""},{"$f":"contains(P$2,numericItinerary($A5),itineraryCountry)","v":""},{"$f":"contains(Q$2,numericItinerary($A5),itineraryCountry)","v":"Y"},{"$f":"contains(R$2,numericItinerary($A5),itineraryCountry)","v":""},{"$f":"contains(S$2,numericItinerary($A5),itineraryCountry)","v":""}]
[{"$f":"itineraryCamps!A7","v":"9-4"},{"$f":"itineraryCamps!DL7","v":3},{"$f":"itineraryCamps!DM7","v":3},{"$f":"countcamps(itineraryStaff,numericItinerary($A6))","v":4},{"$f":"countcamps(itineraryTrail,numericItinerary($A6))","v":6},{"$f":"countcamps(itineraryLayover,numericItinerary($A6))","v":2},8,{"$f":"countcamps(itineraryDry,numericItinerary($A6))","v":1},{"$f":"MIN(itineraryCamps!AK7:AT7)","v":7217},{"$f":"MAX(itineraryCamps!AK7:AT7)","v":10280},3063,{"$f":"AVERAGE(itineraryCamps!AU7:BC7)","v":829.16666666666663},{"$f":"contains(M$2,numericItinerary($A6),itineraryMaps)","v":"Y"},{"$f":"contains(N$2,numericItinerary($A6),itineraryMaps)","v":""},{"$f":"contains(O$2,numericItinerary($A6),itineraryMaps)","v":""},{"$f":"contains(P$2,numericItinerary($A6),itineraryCountry)","v":"Y"},{"$f":"contains(Q$2,numericItinerary($A6),itineraryCountry)","v":"Y"},{"$f":"contains(R$2,numericItinerary($A6),itineraryCountry)","v":""},{"$f":"contains(S$2,numericItinerary($A6),itineraryCountry)","v":""}]
[{"$f":"itineraryCamps!A8","v":"9-5"},{"$f":"itineraryCamps!DL8","v":2},{"$f":"itineraryCamps!DM8","v":2},{"$f":"countcamps(itineraryStaff,numericItinerary($A7))","v":2},{"$f":"countcamps(itineraryTrail,numericItinerary($A7))","v":8},{"$f":"countcamps(itineraryLayover,numericItinerary($A7))","v":3},7,{"$f":"countcamps(itineraryDry,numericItinerary($A7))","v":2},{"$f":"MIN(itineraryCamps!AK8:AT8)","v":6979},{"$f":"MAX(itineraryCamps!AK8:AT8)","v":10750},3771,{"$f":"AVERAGE(itineraryCamps!AU8:BC8)","v":944.33333333333337},{"$f":"contains(M$2,numericItinerary($A7),itineraryMaps)","v":""},{"$f":"contains(N$2,numericItinerary($A7),itineraryMaps)","v":"Y"},{"$f":"contains(O$2,numericItinerary($A7),itineraryMaps)","v":""},{"$f":"contains(P$2,numericItinerary($A7),itineraryCountry)","v":""},{"$f":"contains(Q$2,numericItinerary($A7),itineraryCountry)","v":""},{"$f":"contains(R$2,numericItinerary($A7),itineraryCountry)","v":"Y"},{"$f":"contains(S$2,numericItinerary($A7),itineraryCountry)","v":""}]
[{"$f":"itineraryCamps!A9","v":"9-6"},{"$f":"itineraryCamps!DL9","v":2},{"$f":"itineraryCamps!DM9","v":2},{"$f":"countcamps(itineraryStaff,numericItinerary($A8))","v":5},{"$f":"countcamps(itineraryTrail,numericItinerary($A8))","v":5},{"$f":"countcamps(itineraryLayover,numericItinerary($A8))","v":2},8,{"$f":"countcamps(itineraryDry,numericItinerary($A8))","v":1},{"$f":"MIN(itineraryCamps!AK9:AT9)","v":6979},{"$f":"MAX(itineraryCamps!AK9:AT9)","v":8754},1775,{"$f":"AVERAGE(itineraryCamps!AU9:BC9)","v":786.66666666666663},{"$f":"contains(M$2,numericItinerary($A8),itineraryMaps)","v":""},{"$f":"contains(N$2,numericItinerary($A8),itineraryMaps)","v":"Y"},{"$f":"contains(O$2,numericItinerary($A8),itineraryMaps)","v":""},{"$f":"contains(P$2,numericItinerary($A8),itineraryCountry)","v":""},{"$f":"contains(Q$2,numericItinerary($A8),itineraryCountry)","v":""},{"$f":"contains(R$2,numericItinerary($A8),itineraryCountry)","v":"Y"},{"$f":"contains(S$2,numericItinerary($A8),itineraryCountry)","v":"Y"}]
[{"$f":"itineraryCamps!A10","v":"9-7"},{"$f":"itineraryCamps!DL10","v":2},{"$f":"itineraryCamps!DM10","v":4},{"$f":"countcamps(itineraryStaff,numericItinerary($A9))","v":4},{"$f":"countcamps(itineraryTrail,numericItinerary($A9))","v":6},{"$f":"countcamps(itineraryLayover,numericItinerary($A9))","v":2},8,{"$f":"countcamps(itineraryDry,numericItinerary($A9))","v":1},{"$f":"MIN(itineraryCamps!AK10:AT10)","v":7373},{"$f":"MAX(itineraryCamps!AK10:AT10)","v":11070},3697,{"$f":"AVERAGE(itineraryCamps!AU10:BC10)","v":1250.5},{"$f":"contains(M$2,numericItinerary($A9),itineraryMaps)","v":"Y"},{"$f":"contains(N$2,numericItinerary($A9),itineraryMaps)","v":"Y"},{"$f":"contains(O$2,numericItinerary($A9),itineraryMaps)","v":""},{"$f":"contains(P$2,numericItinerary($A9),itineraryCountry)","v":""},{"$f":"contains(Q$2,numericItinerary($A9),itineraryCountry)","v":"Y"},{"$f":"contains(R$2,numericItinerary($A9),itineraryCountry)","v":""},{"$f":"contains(S$2,numericItinerary($A9),itineraryCountry)","v":""}]
[{"$f":"itineraryCamps!A11","v":"9-8"},{"$f":"itineraryCamps!DL11","v":2},{"$f":"itineraryCamps!DM11","v":2},{"$f":"countcamps(itineraryStaff,numericItinerary($A10))","v":3},{"$f":"countcamps(itineraryTrail,numericItinerary($A10))","v":7},{"$f":"countcamps(itineraryLayover,numericItinerary($A10))","v":2},8,{"$f":"countcamps(itineraryDry,numericItinerary($A10))","v":1},{"$f":"MIN(itineraryCamps!AK11:AT11)","v":7375},{"$f":"MAX(itineraryCamps!AK11:AT11)","v":9409},2034,{"$f":"AVERAGE(itineraryCamps!AU11:BC11)","v":654},{"$f":"contains(M$2,numericItinerary($A10),itineraryMaps)","v":"Y"},{"$f":"contains(N$2,numericItinerary($A10),itineraryMaps)","v":""},{"$f":"contains(O$2,numericItinerary($A10),itineraryMaps)","v":""},{"$f":"contains(P$2,numericItinerary($A10),itineraryCountry)","v":"Y"},{"$f":"contains(Q$2,numericItinerary($A10),itineraryCountry)","v":""},{"$f":"contains(R$2,numericItinerary($A10),itineraryCountry)","v":""},{"$f":"contains(S$2,numericItinerary($A10),itineraryCountry)","v":""}]
[{"$f":"itineraryCamps!A12","v":"9-9"},{"$f":"itineraryCamps!DL12","v":3},{"$f":"itineraryCamps!DM12","v":3},{"$f":"countcamps(itineraryStaff,numericItinerary($A11))","v":3},{"$f":"countcamps(itineraryTrail,numericItinerary($A11))","v":7},{"$f":"countcamps(itineraryLayover,numericItinerary($A11))","v":2},8,{"$f":"countcamps(itineraryDry,numericItinerary($A11))","v":1},{"$f":"MIN(itineraryCamps!AK12:AT12)","v":7758},{"$f":"MAX(itineraryCamps!AK12:AT12)","v":11650},3892,{"$f":"AVERAGE(itineraryCamps!AU12:BC12)","v":1294.3333333333333},{"$f":"contains(M$2,numericItinerary($A11),itineraryMaps)","v":"Y"},{"$f":"contains(N$2,numericItinerary($A11),itineraryMaps)","v":""},{"$f":"contains(O$2,numericItinerary($A11),itineraryMaps)","v":""},{"$f":"contains(P$2,numericItinerary($A11),itineraryCountry)","v":"Y"},{"$f":"contains(Q$2,numericItinerary($A11),itineraryCountry)","v":"Y"},{"$f":"contains(R$2,numericItinerary($A11),itineraryCountry)","v":""},{"$f":"contains(S$2,numericItinerary($A11),itineraryCountry)","v":""}]
[{"$f":"itineraryCamps!A13","v":"9-10"},{"$f":"itineraryCamps!DL13","v":2},{"$f":"itineraryCamps!DM13","v":2},{"$f":"countcamps(itineraryStaff,numericItinerary($A12))","v":3},{"$f":"countcamps(itineraryTrail,numericItinerary($A12))","v":7},{"$f":"countcamps(itineraryLayover,numericItinerary($A12))","v":3},7,{"$f":"countcamps(itineraryDry,numericItinerary($A12))","v":2},{"$f":"MIN(itineraryCamps!AK13:AT13)","v":7105},{"$f":"MAX(itineraryCamps!AK13:AT13)","v":10530},3425,{"$f":"AVERAGE(itineraryCamps!AU13:BC13)","v":842.83333333333337},{"$f":"contains(M$2,numericItinerary($A12),itineraryMaps)","v":""},{"$f":"contains(N$2,numericItinerary($A12),itineraryMaps)","v":"Y"},{"$f":"contains(O$2,numericItinerary($A12),itineraryMaps)","v":""},{"$f":"contains(P$2,numericItinerary($A12),itineraryCountry)","v":""},{"$f":"contains(Q$2,numericItinerary($A12),itineraryCountry)","v":""},{"$f":"contains(R$2,numericItinerary($A12),itineraryCountry)","v":"Y"},{"$f":"contains(S$2,numericItinerary($A12),itineraryCountry)","v":""}]
[{"$f":"itineraryCamps!A14","v":"9-11"},{"$f":"itineraryCamps!DL14","v":2},{"$f":"itineraryCamps!DM14","v":2},{"$f":"countcamps(itineraryStaff,numericItinerary($A13))","v":1},{"$f":"countcamps(itineraryTrail,numericItinerary($A13))","v":9},{"$f":"countcamps(itineraryLayover,numericItinerary($A13))","v":3},7,{"$f":"countcamps(itineraryDry,numericItinerary($A13))","v":0},{"$f":"MIN(itineraryCamps!AK14:AT14)","v":7157},{"$f":"MAX(itineraryCamps!AK14:AT14)","v":10530},3373,{"$f":"AVERAGE(itineraryCamps!AU14:BC14)","v":841.33333333333337},{"$f":"contains(M$2,numericItinerary($A13),itineraryMaps)","v":""},{"$f":"contains(N$2,numericItinerary($A13),itineraryMaps)","v":"Y"},{"$f":"contains(O$2,numericItinerary($A13),itineraryMaps)","v":""},{"$f":"contains(P$2,numericItinerary($A13),itineraryCountry)","v":""},{"$f":"contains(Q$2,numericItinerary($A13),itineraryCountry)","v":""},{"$f":"contains(R$2,numericItinerary($A13),itineraryCountry)","v":"Y"},{"$f":"contains(S$2,numericItinerary($A13),itineraryCountry)","v":"Y"}]
[{"$f":"itineraryCamps!A15","v":"9-12"},{"$f":"itineraryCamps!DL15","v":2},{"$f":"itineraryCamps!DM15","v":2},{"$f":"countcamps(itineraryStaff,numericItinerary($A14))","v":3},{"$f":"countcamps(itineraryTrail,numericItinerary($A14))","v":7},{"$f":"countcamps(itineraryLayover,numericItinerary($A14))","v":2},8,{"$f":"countcamps(itineraryDry,numericItinerary($A14))","v":3},{"$f":"MIN(itineraryCamps!AK15:AT15)","v":7550},{"$f":"MAX(itineraryCamps!AK15:AT15)","v":11650},4100,{"$f":"AVERAGE(itineraryCamps!AU15:BC15)","v":1230.3333333333333},{"$f":"contains(M$2,numericItinerary($A14),itineraryMaps)","v":"Y"},{"$f":"contains(N$2,numericItinerary($A14),itineraryMaps)","v":""},{"$f":"contains(O$2,numericItinerary($A14),itineraryMaps)","v":""},{"$f":"contains(P$2,numericItinerary($A14),itineraryCountry)","v":"Y"},{"$f":"contains(Q$2,numericItinerary($A14),itineraryCountry)","v":"Y"},{"$f":"contains(R$2,numericItinerary($A14),itineraryCountry)","v":""},{"$f":"contains(S$2,numericItinerary($A14),itineraryCountry)","v":""}]
[]
[]
[]
[]
[]
[]
[]
[]
[]
[]
[]
[]
[]
["Min/Max nCamps",{"$f":"MIN(B3:B26)","v":1},2,1,5,2,7,0]
[null,{"$f":"MAX(B3:B26)","v":3},5,5,9,3,8,3]

{"sheet":"Programs","index":15,"n_rows":64,"n_cols":8,"rows_kept":64,"cut":false,"hidden":true,"merged":[[0,2,54,2]]}
["#",{"$f":"\"Programs (\" & MAX(A:A) & \")\"","v":"Programs (54)"},null,"Old Program Name/Comments",null,{"$f":"MAX(A:A)","v":54},null,"Note:  Evening: Abreu Family Dinner & Wheeled: Mountain Biking removed - not on 9-Day itineraries"]
[{"$f":"ROW()-1","v":1},"Climbing: Bouldering Gym",null,"Part of Rock Climbing & Rappelling"]
[{"$f":"ROW()-1","v":2},"Climbing: Climbing Wall/Tower",null,"Part of Rock Climbing & Rappelling"]
[3,"Climbing: Crate Stacking",null,"Part of Rock Climbing & Rappelling (Miners Park only)"]
[4,"Climbing: Rock Climbing",null,"Rock Climbing & Rappelling"]
[5,"COPE: High Challenge Course",null,"High Ropes & Climbing Tower"]
[6,"COPE: Initiative Games",null,"Challenge Events"]
[7,"COPE: Low Challenge Course",null,"Challenge Events"]
[8,"Ecology: Demonstration Forest",null,"Demonstration Forest"]
[9,"Ecology: Self-Guided Fishing",null,"Fishing (used to include Fly Tying @ Fish Camp but not available in 2025 due to Fish Camp restoration"]
[10,"Evening: Advisor Coffee",null,"Was not listed as a program"]
[11,"Evening: Campfire Show",null,"Campfire (evening)"]
[12,"Evening: Chuckwagon Dinner",null,"Chuckwagon Dinner"]
[13,"Historical: Adobe Brick-Making",null,"New Mexican Homestead"]
[14,"Historical: Blacksmithing",null,"Blacksmithing"]
[15,"Historical: Cabin Restoration",null,"Was not a program prior to 2025"]
[16,"Historical: Cabin/House Tour",null,"Lodge/Cabin Tours"]
[17,"Historical: Crafting",null,"Was not a program prior to 2025"]
[18,"Historical: Crosscut & Tie Making",null,"Tie Making & Crosscut Saws"]
[19,"Historical: Flint Knapping",null,"Jacarilla Apache Life"]
[20,"Historical: Fur Trapper Rendezvous",null,"Mountain Man Rendezvous / Fur Trapper Rendezvous (@ Miranda)"]
[21,"Historical: Gold Panning",null,"Gold Mining & Panning"]
[22,"Historical: Mine Tour",null,"Mine Tour"]
[23,"Historical: Petroglyph Tour",null,"Petroglyph Tour"]
[24,"Historical: Pump Car Rides",null,"Not listed as separate program - was included in Railroading"]
[25,"Historical: Railroad Construction",null,"Railroading"]
[26,"Historical: Spar Pole Climbing",null,"Spar Pole Climbing"]
[27,"Landmarks: Baldy Mountain",null,"Baldy Mountain Hike"]
[28,"Landmarks: Inspiration Point",null,"Inspiration Point Hike; In 2025 TREKS book as \"Landmarks: Viewpoint Hike\""]
[29,"Landmarks: Mount Phillips",null,"Was not listed as a program - was included in itinerary descriptions"]
[30,"Landmarks: Mountaineering",null,"Big Red, Black Mountain, Comanche Peak, Hart Peak, Lookout Peak, Little Costilla"]
[31,"Landmarks: Tooth of Time",null,"Tooth of Time"]
[32,"Landmarks: Trail Peak",null,"Was not listed as a program - was included in itinerary descriptions"]
[33,"Livestock: Animal Husbandry",null,"Included in Homesteading"]
[34,"Livestock: Burro Packing",null,"Burro Packing"]
[35,"Livestock: Chicken Tending",null,"Included in Homesteading"]
[36,"Livestock: Horse Rides",null,"Horse Rides"]
[37,"Low Impact Camping",null,"Low Impact Camping"]
[38,"Range Sports: 3D Archery",null,"Archery - 3 Dimensional"]
[39,"Range Sports: Aerial Archery",null,"Also known as \"Sporting Arrows\".  Available 2025 at Apache Springs & Cimarroncita"]
[40,"Range Sports: Atlatl Throwing",null,"Atlatl (Dart-Throwing)"]
[41,"Range Sports: Cartridge Reloading",null,"Not listed as separate program - was included in Shooting/Reloading - .30-06"]
[42,"Range Sports: Cowboy Action Shooting",null,"Cowboy Action Shooting"]
[43,"Range Sports: Field Archery",null,"Also known as \"3D Archery\".  Available 2025 at Apache Springs & Cimarroncita"]
[44,"Range Sports: Muzzleloader Shooting",null,"Muzzle Loading Rifle"]
[45,"Range Sports: Rifle Shooting",null,"Shooting/Reloading - .30-06"]
[46,"Range Sports: Shotgun Shooting",null,"Shotgun Shooting/Reloaing - 12 Gauge"]
[47,"Range Sports: Shotshell Reloading",null,"Not listed as separate program - was included in Shotgun Shooting/Reloaing - 12 Gauge"]
[48,"Range Sports: Tomahawk Throwing",null,"Tomahawk Throwing"]
[49,"STEM: Archeology",null,"Archaeology"]
[50,"STEM: Astronomy",null,"Astronomy"]
[51,"STEM: Geology",null,"Typically was part of Gold Mining & Panning"]
[52,"Western Lore: Branding",null,"Western Lore/Branding"]
[53,"Western Lore: Cantina",null,"Cantina"]
[54,"Western Lore: Roping",null,"Included in Western Lore/Branding"]
[null,null,null,"Programs available in prior years not listed and/or not available in 2025"]
[null,null,null,"Post Civil War Encampment (Black Mountain Camp)"]
[null,null,null,"Rocky Mountain Fur Company (Clear Creek Camp)"]
[null,null,null,"Search & Rescue/Wilderness Medicine (Carson Meadows & various Valle Vidal camps in priors years) — no longer offered"]
[null,null,null,"Bouldering — was at Chase Cow Camp, no longer offered"]
[null,null,null,"Historic Chase Ranch — no longer offered"]
[null,null,null,"Hunter Safety — was at Cimarroncita, no longer offered"]
[null,null,null,"Kit Carson/Rayado Rancho — offered as separate visit outside of trek"]
[null,null,null,"Laser Shot Shooting Range — was at Cimarroncita, no longer offered"]

{"sheet":"Camp Programs","index":16,"n_rows":53,"n_cols":58,"rows_kept":53,"cut":false,"hidden":true,"merged":[[0,0,1,0],[0,1,1,1]]}
["These are the programs available at camps.  Used to create the default programs for itineraries in itineraryPrograms worksheet.\n\n\nStaffed Camp","# Programs",1,{"$f":"C1+1","v":2},{"$f":"D1+1","v":3},4,5,6,7,8,9,10,11,12,13,14,15,16,17,18,19,20,21,22,23,24,25,26,27,28,29,30,31,32,33,{"$f":"AI1+1","v":34},35,36,37,38,39,40,41,42,43,{"$f":"AS1+1","v":44},45,{"$f":"AU1+1","v":46},{"$f":"AV1+1","v":47},{"$f":"AW1+1","v":48},{"$f":"AX1+1","v":49},{"$f":"AY1+1","v":50},{"$f":"AZ1+1","v":51},{"$f":"BA1+1","v":52},{"$f":"BB1+1","v":53},{"$f":"BC1+1","v":54},{"$f":"BD1+1","v":55},{"$f":"BE1+1","v":56}]
[null,null,{"$f":"INDEX(program_table,C1)","v":"Climbing: Bouldering Gym"},{"$f":"INDEX(program_table,D1)","v":"Climbing: Climbing Wall/Tower"},{"$f":"INDEX(program_table,E1)","v":"Climbing: Crate Stacking"},{"$f":"INDEX(program_table,F1)","v":"Climbing: Rock Climbing"},{"$f":"INDEX(program_table,G1)","v":"COPE: High Challenge Course"},{"$f":"INDEX(program_table,H1)","v":"COPE: Initiative Games"},{"$f":"INDEX(program_table,I1)","v":"COPE: Low Challenge Course"},{"$f":"INDEX(program_table,J1)","v":"Ecology: Demonstration Forest"},{"$f":"INDEX(program_table,K1)","v":"Ecology: Self-Guided Fishing"},{"$f":"INDEX(program_table,L1)","v":"Evening: Advisor Coffee"},{"$f":"INDEX(program_table,M1)","v":"Evening: Campfire Show"},{"$f":"INDEX(program_table,N1)","v":"Evening: Chuckwagon Dinner"},{"$f":"INDEX(program_table,O1)","v":"Historical: Adobe Brick-Making"},{"$f":"INDEX(program_table,P1)","v":"Historical: Blacksmithing"},{"$f":"INDEX(program_table,Q1)","v":"Historical: Cabin Restoration"},{"$f":"INDEX(program_table,R1)","v":"Historical: Cabin/House Tour"},{"$f":"INDEX(program_table,S1)","v":"Historical: Crafting"},{"$f":"INDEX(program_table,T1)","v":"Historical: Crosscut & Tie Making"},{"$f":"INDEX(program_table,U1)","v":"Historical: Flint Knapping"},{"$f":"INDEX(program_table,V1)","v":"Historical: Fur Trapper Rendezvous"},{"$f":"INDEX(program_table,W1)","v":"Historical: Gold Panning"},{"$f":"INDEX(program_table,X1)","v":"Historical: Mine Tour"},{"$f":"INDEX(program_table,Y1)","v":"Historical: Petroglyph Tour"},{"$f":"INDEX(program_table,Z1)","v":"Historical: Pump Car Rides"},{"$f":"INDEX(program_table,AA1)","v":"Historical: Railroad Construction"},{"$f":"INDEX(program_table,AB1)","v":"Historical: Spar Pole Climbing"},{"$f":"INDEX(program_table,AC1)","v":"Landmarks: Baldy Mountain"},{"$f":"INDEX(program_table,AD1)","v":"Landmarks: Inspiration Point"},{"$f":"INDEX(program_table,AE1)","v":"Landmarks: Mount Phillips"},{"$f":"INDEX(program_table,AF1)","v":"Landmarks: Mountaineering"},{"$f":"INDEX(program_table,AG1)","v":"Landmarks: Tooth of Time"},{"$f":"INDEX(program_table,AH1)","v":"Landmarks: Trail Peak"},{"$f":"INDEX(program_table,AI1)","v":"Livestock: Animal Husbandry"},{"$f":"INDEX(program_table,AJ1)","v":"Livestock: Burro Packing"},{"$f":"INDEX(program_table,AK1)","v":"Livestock: Chicken Tending"},{"$f":"INDEX(program_table,AL1)","v":"Livestock: Horse Rides"},{"$f":"INDEX(program_table,AM1)","v":"Low Impact Camping"},{"$f":"INDEX(program_table,AN1)","v":"Range Sports: 3D Archery"},{"$f":"INDEX(program_table,AO1)","v":"Range Sports: Aerial Archery"},{"$f":"INDEX(program_table,AP1)","v":"Range Sports: Atlatl Throwing"},{"$f":"INDEX(program_table,AQ1)","v":"Range Sports: Cartridge Reloading"},{"$f":"INDEX(program_table,AR1)","v":"Range Sports: Cowboy Action Shooting"},{"$f":"INDEX(program_table,AS1)","v":"Range Sports: Field Archery"},{"$f":"INDEX(program_table,AT1)","v":"Range Sports: Muzzleloader Shooting"},{"$f":"INDEX(program_table,AU1)","v":"Range Sports: Rifle Shooting"},{"$f":"INDEX(program_table,AV1)","v":"Range Sports: Shotgun Shooting"},{"$f":"INDEX(program_table,AW1)","v":"Range Sports: Shotshell Reloading"},{"$f":"INDEX(program_table,AX1)","v":"Range Sports: Tomahawk Throwing"},{"$f":"INDEX(program_table,AY1)","v":"STEM: Archeology"},{"$f":"INDEX(program_table,AZ1)","v":"STEM: Astronomy"},{"$f":"INDEX(program_table,BA1)","v":"STEM: Geology"},{"$f":"INDEX(program_table,BB1)","v":"Western Lore: Branding"},{"$f":"INDEX(program_table,BC1)","v":"Western Lore: Cantina"},{"$f":"INDEX(program_table,BD1)","v":"Western Lore: Roping"},{"$f":"INDEX(program_table,BE1)","v":{"$error":"#REF!"}},{"$f":"INDEX(program_table,BF1)","v":{"$error":"#REF!"}}]
["Abreu",{"$f":"COUNTIF(C3:BF3,\"y\")","v":9},null,null,null,null,null,null,null,null,"y","y","y",null,null,"y",null,null,"y","y",null,null,null,null,null,null,null,null,null,null,null,null,null,null,null,"y",null,"y",null,null,null,null,null,null,null,null,null,null,null,null,null,null,null,null,null,"y"]
["Anasazi",0]
["Apache Springs",4,null,null,null,null,null,null,null,null,null,null,"y",null,null,null,null,null,null,null,null,"y",null,null,null,null,null,null,null,null,null,null,null,null,null,null,null,null,null,null,"y","y"]
["Baldy Town",3,null,null,null,null,null,null,null,null,null,null,"y",null,null,null,null,null,null,null,null,null,null,"y",null,null,null,null,null,null,null,null,null,null,null,null,null,null,null,null,null,null,null,null,null,null,null,null,null,null,null,null,null,"y"]
["Beatty Lakes",1,null,null,null,null,null,null,null,null,null,null,null,null,null,null,null,null,null,null,null,null,null,null,null,null,null,null,null,null,null,null,null,null,null,null,null,null,null,"y"]
["Beaubien",6,null,null,null,null,null,null,null,null,null,null,"y","y","y",null,null,null,null,null,null,null,null,null,null,null,null,null,null,null,null,null,null,null,null,null,null,null,"y",null,null,null,null,null,null,null,null,null,null,null,null,null,null,null,"y",null,"y"]
["Black Mountain",4,null,null,null,null,null,null,null,null,null,null,"y",null,null,null,"y",null,null,null,null,null,null,null,null,null,null,null,null,null,null,null,null,null,null,"y",null,null,null,null,null,null,null,null,null,null,"y"]
["Carson Meadows",0]
["Chase Cow",0]
["Chase Ranch",0]
["Cimarroncita",4,null,null,null,null,null,null,null,null,null,null,"y",null,null,null,null,null,null,null,null,null,null,null,null,null,null,null,null,null,null,null,null,null,null,null,null,null,null,null,"y","y",null,null,null,"y"]
["Cimarroncito",3,"y",null,null,"y",null,null,null,null,null,null,"y"]
["Clarks Fork",6,null,null,null,null,null,null,null,null,null,null,"y","y","y",null,null,null,null,null,null,null,null,null,null,null,null,null,null,null,null,null,null,null,null,null,null,null,"y",null,null,null,null,null,null,null,null,null,null,null,null,null,null,null,"y",null,"y"]
["Clear Creek",4,null,null,null,null,null,null,null,null,null,null,"y",null,null,null,null,null,"y",null,null,null,null,null,null,null,null,null,null,null,null,null,null,null,null,null,null,null,null,null,null,null,null,null,null,null,"y",null,null,null,"y"]
["COPE Course",2,null,"y",null,null,"y"]
["Crater Lake",4,null,null,null,null,null,null,null,null,null,null,"y","y",null,null,null,null,null,null,"y",null,null,null,null,null,null,null,"y"]
["Crooked Creek",5,null,null,null,null,null,null,null,null,null,null,"y",null,null,null,null,"y","y",null,null,null,null,null,null,null,null,null,null,null,null,null,null,null,null,"y",null,"y"]
["Cyphers Mine",6,null,null,null,null,null,null,null,null,null,null,"y","y",null,null,"y",null,null,null,null,null,null,"y","y",null,null,null,null,null,null,null,null,null,null,null,null,null,null,null,null,null,null,null,null,null,null,null,null,null,null,null,null,"y"]
["Dan Beard",3,null,null,null,null,null,"y","y",null,null,null,"y"]
["Dean Cow",2,null,null,null,"y",null,null,null,null,null,null,"y"]
["Demonstration Forest",1,null,null,null,null,null,null,null,"y"]
["Fish Camp",1,null,null,null,null,null,null,null,null,"y"]
["French Henry",3,null,null,null,null,null,null,null,null,null,null,null,null,null,null,"y",null,null,null,null,null,null,"y",null,null,null,null,null,null,null,null,null,null,null,null,null,null,null,null,null,null,null,null,null,null,null,null,null,null,null,null,null,"y"]
["Garcia Cow",0]
["Greenwood Canyon",1,null,null,null,null,null,null,null,null,null,null,null,null,null,null,null,null,null,null,null,null,null,null,null,null,null,null,null,null,null,null,null,null,null,null,null,null,null,"y"]
["Harlan",3,null,null,null,null,null,null,null,null,null,null,"y",null,null,null,null,null,null,null,null,null,null,null,null,null,null,null,null,null,null,null,null,null,null,null,null,null,null,null,null,null,null,null,null,null,null,null,"y","y"]
["Head of Dean",3,null,null,null,null,null,"y","y",null,null,null,"y"]
["Hunting Lodge",1,null,null,null,null,null,null,null,null,"y"]
["Indian Writings",4,null,null,null,null,null,null,null,null,null,null,"y",null,null,null,null,null,null,null,null,null,null,null,null,"y",null,null,null,null,null,null,null,null,null,null,null,null,null,null,null,null,"y",null,null,null,null,null,null,null,null,"y"]
["Iris Park",1,null,null,null,null,null,null,null,null,null,null,null,null,null,null,null,null,null,null,null,null,null,null,null,null,null,null,null,null,null,null,null,null,null,null,null,null,null,"y"]
["Kit Carson",0]
["Little Costilla",0]
["Metcalf Station",{"$f":"COUNTIF(C35:BF35,\"y\")","v":5},null,null,null,null,null,null,null,null,null,null,"y","y",null,null,"y",null,null,null,null,null,null,null,null,null,"y","y"]
["Middle Ponil",1,null,null,null,null,null,null,null,null,null,null,null,null,null,null,null,null,null,null,null,null,null,null,null,null,null,null,null,null,null,null,null,null,null,null,null,null,null,"y"]
["Miners Park",5,"y","y","y","y",null,null,null,null,null,null,"y"]
["Miranda",5,null,null,null,null,null,null,null,null,null,null,"y",null,null,null,null,null,null,null,null,null,"y",null,null,null,null,null,null,null,null,null,null,null,null,null,"y",null,null,null,null,null,null,null,null,null,"y",null,null,null,"y"]
["Phillips Junction",3,null,null,null,null,null,null,null,null,"y",null,"y",null,null,null,null,null,null,null,null,null,null,null,null,null,null,null,null,null,null,null,null,null,null,null,null,null,null,"y"]
["Ponil",9,null,null,null,null,null,null,null,null,null,null,"y","y","y",null,null,null,null,null,null,null,null,null,null,null,null,null,null,null,null,null,null,null,null,null,"y",null,"y",null,null,null,null,null,"y",null,null,null,null,null,null,null,null,null,"y","y","y"]
["Pueblano",4,null,null,null,null,null,null,null,null,null,null,"y","y",null,null,null,null,null,null,"y",null,null,null,null,null,null,null,"y"]
["Rayado",0]
["Rich Cabins",6,null,null,null,null,null,null,null,null,null,null,"y","y",null,null,null,null,"y",null,null,null,null,null,null,null,null,null,null,null,null,null,null,null,null,"y",null,"y",null,"y"]
["Ring Place",4,null,null,null,null,null,null,null,null,null,null,"y",null,null,null,null,null,null,null,null,null,null,null,null,null,null,null,null,null,null,null,null,null,null,null,null,null,null,"y",null,null,null,null,null,null,null,null,null,null,null,null,"y",null,null,null,null,"y"]
["Santa Claus",0]
["Sawmill",3,null,null,null,null,null,null,null,null,null,null,"y",null,null,null,null,null,null,null,null,null,null,null,null,null,null,null,null,null,null,null,null,null,null,null,null,null,null,null,null,null,null,"y",null,null,null,"y"]
["Seally Canyon",0]
["Upper Greenwood",0]
["Urraca",5,null,null,null,null,null,"y","y",null,null,null,"y","y",null,null,null,null,null,null,null,null,null,null,null,null,null,null,null,null,"y"]
["Ute Gulch",0]
["Whiteman Vega",3,null,null,null,null,null,null,null,null,null,null,"y",null,null,null,null,null,null,null,null,null,null,null,null,null,null,null,null,null,null,null,null,null,null,null,null,null,null,"y",null,null,null,null,null,null,null,null,null,null,null,null,null,null,null,null,null,"y"]
["Zastrow",0]
[null,null,{"$f":"COUNTIF(C3:C52,\"y\")","v":2},{"$f":"COUNTIF(D3:D52,\"y\")","v":2},1,3,1,3,3,1,4,1,28,9,3,1,4,1,4,1,2,1,1,3,1,1,1,1,2,0,1,0,0,0,0,4,2,3,3,8,2,2,1,1,1,1,3,1,1,1,2,1,1,3,3,2,3,2]

{"sheet":"Camp Elevations","index":17,"n_rows":171,"n_cols":14,"rows_kept":171,"cut":false,"hidden":true,"merged":[[170,3,170,12],[103,13,104,13]]}
["Added","CAMP NAME","Country","Easting","Northing","ELEVATION ","Commissary","Trading Post","Staffed","Trail Camp","Dry Camp","Showers","campMap"]
[null,"Abreu","South",498586,4025999,7217,"","","Y","","","Y","South"]
[null,"Agua Fria","South",488935,4026589,8726,"","","","Y","","","South"]
[null,"Aguila","South",497862,4028279,8282,"","","","Y","","","South"]
[2019,"American Creek","South",481557.83,4035889.24,9815,null,null,"","Y","",null,"South"]
[null,"Anasazi","North",501736,4051171,6911,"","","","Y","","","North"]
[null,"Apache Springs","South",487072,4026937,9409,"Y","","Y","","","","South"]
[2019,"Arrowhead","South",496899.66,4035172.06,7644,null,null,"","Y","Y",null,"South"]
[null,"Aspen Springs","Central",494588,4039845,7912,"","","","Y","","","South"]
[2021,"Azurite","North",482386.37579999998,4054351.6874000002,10640,null,null,"","Y","Y",null,"North"]
[null,"Backache Springs","South",502047,4027556,7688,"","","","Y","","","South"]
[null,"Baldy Skyline","North",487283.46,4052136.12,9140,"","","","Y","","","North"]
[null,"Baldy Town","North",482894,4053456,9851,"Y","Y","Y","","","Y","North"]
[null,"Base","Central",503848,4034364,6696,"","","","Y","","","South"]
[null,"Bear Canyon","South",487881,4028169,9288,"","","","Y","","","South"]
[null,"Bear Caves","South",496976,4028855,8423,"","","","Y","","","South"]
[2021,"Bear Creek",{"$f":"C15","v":"South"},{"$f":"D15","v":487881},4028169,9288,"","","","Y","","","South","Renamed from Bear Canyon"]
[null,"Beatty Lakes","Valle Vidal",489314.61,4064668.2415999998,8178.6580000000004,"","","","Y","Y","","North"]
[null,"Beaubien","South",490738,4030941,9330,"","","Y","","","Y","South"]
[null,"Bent","North",494100,4054501,7319,"","","","Y","","","North"]
[null,"Black Horse","North",483104,4051686,9619,"","","","Y","","","North"]
[2021,"Black Horse Creek",{"$f":"C21","v":"North"},{"$f":"D21","v":483104},4051686,9619,"","","","Y","","","North","Renamed from Black Horse"]
[2021,"Black Horse Mine","North",482367.65720000002,4052309.574,10750,null,null,"","Y","Y",null,"North"]
[null,"Black Jacks","North",496177,4047265,8211,"","","","Y","","","North"]
[null,"Black Mountain","South",491634,4033045,8991,"","","Y","","","","South"]
[2022,"Bluestem","North",495101.6764,4051329.0962,7495,null,null,"","Y","Y",null,"North"]
[null,"Bonita Cow","South",null,null,9120,"","","","Y","","","South"]
[null,"Buck Creek","South",488296,4029577,9131,"","","","Y","","","South"]
[null,"Camping HQ",{"$f":"C14","v":"Central"},{"$f":"D14","v":503848},4034364,6696,"","","","Y","","","South","Same as BASE"]
[null,"Campos Heck","North",502454,4047467,7081,"","","","Y","","","North"]
[null,"Carson Meadows","South",497851,4024826,7758,"","","N","","","","South","Not used 2024, trail 2025"]
[null,"Cathedral Rock","Central",495619,4037883,7550,"","","","Y","","","South"]
[null,"Chase Canyon","North",503643,4053267,7192,"","","","Y","","","North"]
[2019,"Chase Cow","North",504488.58,4052426.91,7177,null,null,"Y","","",null,"North"]
[null,"Chase Ranch","North",506771,4045397,6552,"","","Y","","Y","","North"]
[null,"Cimarron River","Central",494007,4046488,7282,"","","","Y","","","South"]
[2021,"Cimarroncita","Central",492337.15110000002,4045746.6666999999,7373,null,null,"Y","","",null,"North & South"]
[null,"Cimarroncito","Central",494139,4039271,8137,"","","Y","","","Y","South"]
[null,"Clarks Fork","Central",495699,4035985.55,7515,"","","Y","","","Y","South"]
[null,"Clear Creek","Central",483477,4036332,10240,"","","Y","","","","South"]
[null,"Comanche Creek","South",485656.75,4033365.26,9600,"","","","Y","","","South"]
[null,"Comanche Peak","Central",487608,4037237,11070,"","","","Y","Y","","South"]
[null,"Cook Canyon","North",494194,4058460,7731,"","","","Y","","","North"]
[null,"Copper Park","North",481903,4055101,10530,"","","","Y","","","North"]
[null,"Cottonwood","North",500105,4056884,7373,"","","","Y","","","North"]
[2023,"Coyote Howl","North",500561.82,4054185.0869999998,7560.52,"","","","Y","","","North"]
[null,"Crags","South",494334,4024631,8058,"","","","Y","","","South"]
[null,"Crater Lake","South",495609,4028935,8398,"","","Y","","","","South"]
[null,"Crooked Creek","South",486794,4031067,9360,"","","Y","","","","South"]
[null,"Cyphers Mine","Central",489568,4037662,9302,"","","Y","","","Y","South"]
[null,"Dan Beard","North",492056,4059215,7896,"","","Y","","","","North"]
[2019,"Daves Lake","South",491347.09,4025665.43,9453,null,null,"","Y","",null,"South"]
[null,"Dean Cow","North",500102,4046769,7232,"","","Y","","","Y","North"]
[null,"Dean Cutoff","North",495546.39,4052340.91,7320,"","","","Y","","","North"]
[null,"Dean Heck","North",504413,4044305,6758,"","","","Y","","","North"]
[2019,"Dean Skyline","North",495667.97,4051680.85,7967,null,null,"","Y","Y",null,"North"]
[null,"Deer Lake","Central",497685,4040333,8280,"","","","Y","","","South"]
[null,"Deer Lake Mesa","Central",495433,4042810,8324,"","","","Y","","","South"]
[null,"Demonstration Forest","South",494670,4037285,7720,"","","","Y","Y","","South"]
[null,"Devil's Wash Basin","Central",494932,4042281,8515,"","","","Y","Y","","South"]
[2020,"Divide","South",488258.43,4036088.88,10509,null,null,"","Y","Y",null,"South"]
[null,"Elkhorn","North",492424,4051874,8496,"","","","Y","","","North"]
[null,"Ewells Park","North",484643,4053169,9373,"","","","Y","","","North"]
[null,"Fish Camp","South",490787,4026964,8564,"","","N","","","","South","Not staffed 2025"]
[null,"Flume Canyon","North",492186,4053281,7715,"","","","Y","","","North"]
[null,"French Henry","North",483471,4054519,9635,"","","Y","","","","North"]
[2019,"Garcia Cow","South",483495.8,4027944.67,9855,null,null,"Y","","",null,"South"]
[null,"Greenwood Canyon","Valle Vidal",483891.64,4061375.92,8300,"","","","Y","","","North"]
[null,"Harlan","Central",498402,4041184,7550,"","","Y","","","","South"]
[null,"Hawkeye","Central",494791,4046280,7586,"","","","Y","Y","","South"]
[null,"Head of Dean","North",489268,4051641,8754,"","","Y","","","","North"]
[2021,"Heck Meadow","South",498379.26270000002,4035918.4079,7085,null,null,"","Y","Y",null,"South"]
[null,"Hells Fire Canyon","North",506048,4049722,6837,"","","","Y","","","North"]
[2020,"Herradura","South",498970.27,4030120,7465,"","","","Y","Y","","South"]
[null,"Horse Canyon","North",494604,4057016,8128,"","","","Y","","","North"]
[null,"House Canyon","North",502969,4051149,7157,"","","","Y","","","North"]
[null,"Hunting Lodge","Central",494338,4037841,7776,"","","N","y","","","South","Not used 2024, trail 2025"]
[null,"Indian Writings","North",500421,4053139,6979,"","","Y","","","Y","North"]
[null,"Iris Park","Valle Vidal",486124,4064630,8571,"","","","Y","","","North"]
[null,"Kit Carson","South",506169.3798,4024627.3322999999,6466,"","","Y","","","","South"]
[null,"Lamberts Mine","Central",490260,4037034,8957,"","","","Y","","","South"]
[2021,"Line",{"$f":"C83","v":"South"},{"$f":"D83","v":498199.67},4023525.53,8125,"","","","Y","","","South","Renamed from Line Camp"]
[null,"Line Camp","South",498199.67,4023525.53,8125,"","","","Y","","","South"]
[null,"Little Costilla","Valle Vidal",480285.29,4072995.57,10200.69,"","","","Y","","","North"]
[2019,"Little Twin","North",505391.65330000001,4049985.7826999999,7258.9650430000002,null,null,"","Y","Y",null,"North"]
[null,"Lookout Meadow","South",493728,4026401,9419,"","","","Y","","","South"]
[null,"Lost Cabins","South",487827,4026491,9205,"","","","Y","","","South"]
[null,"Lost Gap","Central",496635,4040475,8413,"","","","Y","Y","","South"]
[2019,"Lovato","South",487595.97,4023654.22,9523,null,null,"","Y","",null,"South"]
[null,"Lovers Leap","South",498474,4030533,7469,"","","","Y","","","South"]
[null,"Lower Bonito","South",493583,4027520,8962,"","","","Y","","","South"]
[null,"Lower Sawmill","Central",493143,4041628,8308,"","","","Y","","","South"]
[2021,"Magpie","South",501032.30530000001,4031514.3975,7385,null,null,"","Y","Y",null,"South"]
[null,"Martinez Springs","Central",496880,4043340,7494,"","","","Y","","","South"]
[null,"Maxwell","North",486238,4050954,8498,"","","","Y","","","North"]
[null,"McBride Canyon","North",500499,4050410,7105,"","","","Y","Y","","North"]
[null,"McCrystal Creek","Valle Vidal",486857.99619999999,4073297.6935000001,8538,"","","","Y","","","North"]
[null,"Metcalf Station","North",497635,4057295,7220,"","","Y","","","","North"]
[null,"Middle Ponil","Valle Vidal",482410,4068284,9118,"","","","Y","","","North"]
[null,"Miners Park","South",496250,4030958,7977,"Y","","Y","","","Y","South"]
[null,"Minnette Meadows","Central",492417.2,4044351,7703,"","","","Y","Y","","South"]
[null,"Miranda","North",484666,4051561,8898,"","","Y","","","","North"]
[2021,"Mistletoe","Central",493459.07990000001,4048688.4183999998,8295,null,null,"","Y","Y",null,"North & South"]
[null,"Mount Phillips","Central",486031.29960000003,4036786.3292,11650,"","","","Y","Y","","South","2023 Different spellings for same camp"]
[null,"Mt Phillips","Central",486031.29960000003,4036786.3292,11650,"","","","Y","Y","","South"]
[null,"New Dean","North",495733,4049734,7724,"","","","Y","","","North"]
[null,"North Fork Urraca","South",496228,4032333,7961,"","","","Y","","","South"]
[2019,"North Ponil","North",495945.07,4058676.11,7706,null,null,"","Y","",null,"North"]
[null,"Old Abreu","South",497636,4025768,7375,"","","","Y","","","South"]
[null,"Old Camp","Valle Vidal",null,null,null,"","","","Y","","","North"]
[null,"Olympia","South",502788,4025183,6731,"","","","Y","","","South"]
[null,"Phillips Junction","South",489389,4030051,8921,"Y","Y","Y","","","Y","South"]
[null,"Pinyon Flats","South",501236,4024353,6924,"","","","Y","","","South"]
[2023,"Placer","North",4836526.0779999997,4052601.3470000001,9483.43,"","","","Y","","","North"]
[null,"Ponderosa Park","Central",495827,4034966,8004,"","","","Y","Y","","South"]
[null,"Ponil","North",496696.54700000002,4053001.2755,7150,"Y","Y","Y","","","Y","North"]
[null,"Porcupine","South",488353,4030881,9152,"","","","Y","","","South"]
[null,"Pueblano","North",489738,4053274,8069,"","","Y","","","","North"]
[null,"Pueblano Ruins","North",487758,4053694,8359,"","","","Y","","","North"]
[2020,"Rabbit Ear","North",492496.72,4059396.86,8115,null,null,"","Y","Y",null,"North"]
[null,"Rayado","South",506169.3798,4024627.3322999999,6518,"","","","Y","","","South"]
[null,"Rayado Ridge","South",505371,4024604,6655,"","","","Y","","Y","South"]
[null,"Rayado River","South",499286,4025697,7079,"","","","Y","","","South"]
[null,"Red Hills","South",487476,4035642,10280,"","","","Y","","","South"]
[null,"Rich Cabins","Valle Vidal",489694,4058261,7728,"Y","","Y","","","","North"]
[null,"Rimrock Park","South",498366,4025625,7359,"","","","Y","Y","","South"]
[null,"Ring Place","Valle Vidal",489152,4069608,8124,"Y","","Y","","","","North"]
[2021,"Ringtail","North",487012.16409999999,4051328.0446000001,8600,null,null,"","Y","Y",null,"North"]
[null,"RMSC","South",500770,4032043,7080,"","","","Y","","","South"]
[null,"Rock Springs","Central",496880,4043340,7491,"","","","Y","","","South"]
[2019,"Saladon","South",482203.13,4032785.4142999998,9874.788998,null,null,"","Y","",null,"South"]
[null,"Santa Claus","North",491849,4049566,8438,"","","Y","","","","North"]
[null,"Sawmill","Central",490259,4041146,9193,"","","Y","","","Y","South"]
[null,"Seally Canyon","Valle Vidal",490997,4067420,8037,"","","","Y","Y","","North"]
[null,"Shaefers Pass","Central",495940,4033735,8724,"","","","Y","Y","","South"]
[null,"Shuree Cabin","Valle Vidal",480498,4070514,9647,"","","","Y","","","North"]
[null,"Shuree Lodge","Valle Vidal",482669,4069480,9277,"","","","Y","","","North"]
[null,"Sioux","North",495001,4053225,7382,"","","","Y","","","North"]
[null,"Six Mile Gate","North",503191.76,4049062.91,6710,"","","","Y","","","North"]
[null,"Slate Hill Heck","North",502409,4043124,7722,"","","","Y","Y","","North"]
[null,"Stockade","South",500015,4032275,7254,"","","","Y","","","South"]
[null,"Stockade Ridge","South",499296,4032487,7519,"","","","Y","Y","","South"]
[null,"Thunder Ridge","Central",488492.89939999999,4038824.1444999999,10490,"","","","Y","Y","","South"]
[2019,"Tolby Headwaters","South",480146.81,4038306.99,9219,null,null,"","Y","",null,"South"]
[null,"Tooth Ridge","Central",500029.67,4033924.75,8240,"","","","Y","Y","","South"]
[null,"Toothache Springs","South",500750,4028216,7870,"","","","Y","","","South"]
[2021,"Touch-Me-Not Creek","North",484936.67660000001,4050860.9983999999,8855,null,null,"","Y","",null,"North"]
[null,"Trail Canyon","North",499226,4049865,7070,"","","","Y","","","North"]
[null,"Turkey Creek","North",498097,4046582,7569,"","","","Y","","","North"]
[null,"Upper Bench","Central",494832,4043955,8161,"","","","Y","Y","","South"]
[null,"Upper Clarks Fork","Central",495583,4034947,7902,"","","","Y","Y","","South"]
[null,"Upper Dean Cow","North",492036,4050785,8254,"","","","Y","","","North"]
[null,"Upper Greenwood","Valle Vidal",479874.12530000001,4056510.7667999999,10262.665999999999,"","","","Y","","","North"]
[null,"Upper Sawmill","Central",491866.71,4041590,8611,"","","","Y","","","South"]
[2022,"Upper Webster Park","Central",492935.53470000002,4039576.3048999999,8764,null,null,"","Y","",null,"South","2023 Combined Upper & Lower Webster Parks"]
[null,"Urraca","South",500851,4029314,7968,"","","Y","","","","South"]
[null,"Ute Gulch","Central",494653,4041249,7866,"Y","Y","Y","","","","South"]
[null,"Ute Meadows","North",483892,4052643,9164,"","","","Y","","","North"]
[null,"Ute Park Pass","Central",493784,4042291,8258,"","","","Y","","","South"]
[null,"Ute Springs","Central",495177,4040114,7689,"","","","Y","","","South"]
[null,"Vaca","Central",499148,4041252,7415,"","","","Y","","","South"]
[null,"Visto Grande","Central",493983,4045668,7782,"","","","Y","","","South"]
[null,"Webster Lake","Central",497835,4037406,7122,"","","","Y","","","South"]
[null,"Webster Parks","Central",492939.82,4039509.952,8611.1200000000008,"","","","Y","Y","","South","2023 Combined Upper & Lower Webster Parks"]
[null,"Whistle Punk","Central",489586.4,4039243.3,10052,"","","","Y","","","South"]
[null,"Whiteman Vega","Valle Vidal",490820,4072011,8061,"","","Y","","","","North"]
[null,"Wild Horse","South",484174,4032864,10420,"","","","Y","","","South"]
[2019,"Wild Horse Park","South",481273.93,4030849.05,9883,null,null,"","Y","",null,"North"]
[null,"Window Rock","Central",null,null,8312,"","","","Y","Y","","South"]
[null,"Zastrow","South",500378,4025857,6946,"Y","","Y","","","Y","South"]
[null,null,null,"NOTE:  Coordinates/elevations  from 2017 Philmont's 2017 UTM.xlsm file.  These do not agree with Philmont's .kmz Google Earth file."]